Workbook

Sheet Biểu 03 CH (hidden)
A1: Biểu 03 CH
A2: ĐIỀU CHỈNH QUY HOẠCH SỬ DỤNG ĐẤT ĐẾN NĂM 2020 CỦA HUYỆN …. - TỈNH QUẢNG BÌNH
M3: Đơn vị tính: ha
A4: STT | B4: Chỉ tiêu | C4: Mã | D4: Tông diện tích | E4: Diện tích phân theo đơn vị hành chính
E5: =#REF! ->  | F5: =#REF! ->  | G5: =#REF! ->  | H5: =#REF! ->  | I5: =#REF! ->  | J5: =#REF! ->  | K5: =#REF! ->  | L5: =#REF! ->  | M5: =#REF! ->  | N5: =#REF! ->  | O5: =#REF! ->  | P5: =#REF! ->  | Q5: =#REF! ->  | R5: =#REF! ->  | S5: =#REF! ->  | T5: =#REF! ->  | U5: =#REF! ->  | V5: =#REF! ->  | W5: =#REF! ->  | X5: =#REF! -> 
A6: -1 | B6: -2 | C6: -3 | D6: (4)=(5)+..+(34) | E6: -5 | F6: -6 | G6: -7 | H6: -8 | I6: -9 | J6: -10 | K6: -11 | L6: -12 | M6: -13 | N6: -14 | O6: -15 | P6: -16 | Q6: -17 | R6: -18 | S6: -19 | T6: -20 | U6: -21 | V6: -22 | W6: -23 | X6: -24
B7: TỔNG DIỆN TÍCH TỰ NHIÊN | D7: =D8+D19+D46 ->  | E7: =E8+E19+E46 -> 
A8: 1 | B8: Đất nông nghiệp | C8: NNP | D8: =SUM(E8:X8) ->  | E8: =IF(E$5="","",VLOOKUP($C8,INDIRECT("'"&E$5&"'"&"!$C$7:$BJ$61"),60,0)) ->  | O8: =IF(O$5="","",VLOOKUP($C8,INDIRECT("'"&O$5&"'"&"!$C$7:$BJ$61"),60,0)) -> 
A9: 1.1 | B9: Đất trồng lúa | C9: LUA
B10: Trong đó: Đất chuyên trồng lúa nước | C10: LUC
A11: 1.2 | B11: Đất trồng cây hàng năm khác | C11: HNK
A12: 1.3 | B12: Đất trồng cây lâu năm | C12: CLN
A13: 1.4 | B13: Đất rừng phòng hộ | C13: RPH
A14: 1.5 | B14: Đất rừng đặc dụng | C14: RDD
A15: 1.6 | B15: Đất rừng sản xuất | C15: RSX
A16: 1.7 | B16: Đất nuôi trồng thuỷ sản | C16: NTS
A17: 1.8 | B17: Đất làm muối | C17: LMU
A18: 1.9 | B18: Đất nông nghiệp khác | C18: NKH | E18: =IF(E$5="","",VLOOKUP($C18,INDIRECT("'"&E$5&"'"&"!$C$7:$BJ$61"),60,0)) ->  | O18: =IF(O$5="","",VLOOKUP($C18,INDIRECT("'"&O$5&"'"&"!$C$7:$BJ$61"),60,0)) -> 
A19: 2 | B19: Đất phi nông nghiệp | C19: PNN
A20: 2.1 | B20: Đất quốc phòng | C20: CQP
A21: 2.2 | B21: Đất an ninh | C21: CAN
A22: 2.3 | B22: Đất khu công nghiệp | C22: SKK
A23: 2.4 | B23: Đất khu chế xuất | C23: SKT
A24: 2.5 | B24: Đất cụm công nghiệp | C24: SKN
A25: 2.6 | B25: Đất thương mại dịch vụ | C25: TMD
A26: 2.7 | B26: Đất cơ sở sản xuất phi nông nghiệp | C26: SKC
A27: 2.8 | B27: Đất sử dụng cho hoạt động khoáng sản | C27: SKS
A28: 2.9 | B28: Đất phát triển hạ tầng cấp quốc gia, cấp tỉnh, cấp huyện, cấp xã | C28: DHT | E28: =IF(E$5="","",VLOOKUP($C28,INDIRECT("'"&E$5&"'"&"!$C$7:$BJ$61"),60,0)) ->  | O28: =IF(O$5="","",VLOOKUP($C28,INDIRECT("'"&O$5&"'"&"!$C$7:$BJ$61"),60,0)) -> 
A29: 2.10 | B29: Đất có di tích lịch sử - văn hóa | C29: DDT
A30: 2.11 | B30: Đất danh lam thắng cảnh | C30: DDL
A31: 2.12 | B31: Đất bải thải, xử lý chất thải | C31: DRA
A32: 2.13 | B32: Đất ở tại nông thôn | C32: ONT
A33: 2.14 | B33: Đất ở tại đô thị | C33: ODT
A34: 2.15 | B34: Đất xây dựng trụ sở cơ quan | C34: TSC
A35: 2.16 | B35: Đất xây dựng trụ sở của tổ chức sự nghiệp | C35: DTS
A36: 2.17 | B36: Đất xây dựng cơ sở ngoại giao | C36: DNG
A37: 2.18 | B37: Đất cơ sở tôn giáo | C37: TON
A38: 2.19 | B38: Đất làm nghĩa trang, nghĩa địa, nhà tang lễ, nhà hỏa táng | C38: NTD | E38: =IF(E$5="","",VLOOKUP($C38,INDIRECT("'"&E$5&"'"&"!$C$7:$BJ$61"),60,0)) ->  | O38: =IF(O$5="","",VLOOKUP($C38,INDIRECT("'"&O$5&"'"&"!$C$7:$BJ$61"),60,0)) -> 
A39: 2.20 | B39: Đất sản xuất vật liệu xây dựng, làm đồ gốm | C39: SKX
A40: 2.21 | B40: Đất sinh hoạt cộng đồng | C40: DSH
A41: 2.22 | B41: Đất khu vui chơi giải trí công cộng | C41: DKV
A42: 2.23 | B42: Đất cơ sở tín ngưỡng | C42: TIN
A43: 2.24 | B43: Đất sông, ngòi, kênh, rạch, suối | C43: SON
A44: 2.25 | B44: Đất có mặt nước chuyên dùng | C44: MNC
A45: 2.26 | B45: Đất phi nông nghiệp khác | C45: PNK
A46: 3 | B46: Đất chưa sử dụng | C46: CSD
A47: 4 | B47: Đất khu công nghệ cao* | C47: KCN | D47: 0
A48: 5 | B48: Đất khu kinh tế* | C48: KKT | D48: 0
A49: 6 | B49: Đất đô thị* | C49: KDT | E49: =IF(E33>0,E8+E19+E46,"") ->  | F49: =IF(F33>0,F8+F19+F46,"") -> 
A50: II | B50: KHU CHỨC NĂNG*
A51: 1 | B51: Khu vực chuyên trồng lúa nước | C51: KVL | D51: =SUM(E51:X51) ->  | E51: =E10 ->  | F51: =F10 ->  | G51: =G10 ->  | H51: =H10 -> 
A52: 2 | B52: Khu vực chuyên trồng cây công nghiệp lâu năm | C52: KVN | D52: =SUM(E52:X52) ->  | E52: =E12 ->  | F52: =F12 ->  | G52: =G12 ->  | H52: =H12 -> 
A53: 3 | B53: Khu vực rừng phòng hộ | C53: KPH | F53: =F13 ->  | G53: =G13 ->  | H53: =H13 -> 
A54: 4 | B54: Khu vực rừng đặc dụng | C54: KDD | D54: 0
A55: 5 | B55: Khu vực rừng sản xuất | C55: KSX | E55: =E15 ->  | F55: =F15 ->  | G55: =G15 ->  | H55: =H15 -> 
A56: 6 | B56: Khu vực công nghiệp, cụm công nghiệp | C56: KKN | D56: 0
A57: 7 | B57: Khu đô thị - thương mại - dịch vụ | C57: KDV | E57: =E25 ->  | F57: =F25 ->  | G57: =G25 ->  | H57: =H25 -> 
A58: 8 | B58: Khu du lịch | C58: KDL | D58: 0
A59: 9 | B59: Khu ở, làng nghề, sản xuất phi nông nghiệp nông thôn | C59: KON | E59: =E32+E26 ->  | F59: =F32+F26+F16+F11 ->  | G59: =G32+G26+G16+G11 ->  | I59: =I32+I26+I16+I11 ->  | L59: =L32+L26+L16+L11 ->  | O59: =O32+O26+O16+O11 ->  | Q59: =Q32+Q26+Q16+Q11 ->  | T59: =T32+T26+T16+T11 ->  | W59: =W32+W26+W16+W11 -> 

Sheet Biểu 04 CH (hidden)
A1: Biểu 04 CH
A2: DIỆN TÍCH ĐẤT CHUYỂN MỤC ĐÍCH SỬ DỤNG TRONG KỲ ….. PHÂN BỔ ĐẾN TỪNG ĐƠN VỊ HÀNH CHÍNH CẤP XÃ HUYỆN ….. - TỈNH QUẢNG BÌNH
A3: CỦA HUYỆN QUẢNG TRẠCH - TỈNH QUẢNG BÌNH | M3: Đơn vị tính: ha
A4: STT | B4: Chỉ tiêu | C4: Mã | D4: Tổng diện tích | E4: Diện tích phân theo đơn vị hành chính
E5: =#REF! ->  | F5: =#REF! ->  | G5: =#REF! ->  | H5: =#REF! ->  | I5: =#REF! ->  | J5: =#REF! ->  | K5: =#REF! ->  | L5: =#REF! ->  | M5: =#REF! ->  | N5: =#REF! ->  | O5: =#REF! ->  | P5: =#REF! ->  | Q5: =#REF! ->  | R5: =#REF! ->  | S5: =#REF! ->  | T5: =#REF! ->  | U5: =#REF! ->  | V5: =#REF! ->  | W5: =#REF! ->  | X5: =#REF! -> 
A6: -1 | B6: -2 | C6: -3 | D6: (4)=(5)+(6)+..+(24) | E6: -5 | F6: -6 | G6: -7 | H6: -8 | I6: -9 | J6: -10 | K6: -11 | L6: -12 | M6: -13 | N6: -14 | O6: -15 | P6: -16 | Q6: -17 | R6: -18 | S6: -19 | T6: -20 | U6: -21 | V6: -22 | W6: -23 | X6: -24
A7: 1 | B7: Đất nông nghiệp chuyển sang đất phi nông nghiệp | C7: NNP/PNN | D7: =SUM(E7:X7) ->  | E7: =IF(E$5="","",VLOOKUP(LEFT($C7,3),INDIRECT("'"&E$5&"'"&"!$C$7:$BJ$61"),16,0)) ->  | F7: =IF(F$5="","",VLOOKUP(LEFT($C7,3),INDIRECT("'"&F$5&"'"&"!$C$7:$BJ$61"),16,0)) -> 
A8: 1.1 | B8: Đất lúa nước | C8: LUA/PNN
B9: Trong đó: Đất chuyên trồng lúa nước | C9: LUC/PNN | F9: =IF(F$5="","",VLOOKUP(LEFT($C9,3),INDIRECT("'"&F$5&"'"&"!$C$7:$BJ$61"),16,0)) -> 
A10: 1.2 | B10: Đất trồng cây hàng năm khác | C10: HNK/PNN
A11: 1.3 | B11: Đất trồng cây lâu năm | C11: CLN/PNN
A12: 1.4 | B12: Đất rừng phòng hộ | C12: RPH/PNN
A13: 1.5 | B13: Đất rừng đặc dụng | C13: RDD/PNN
A14: 1.6 | B14: Đất rừng sản xuất | C14: RSX/PNN
A15: 1.7 | B15: Đất nuôi trồng thuỷ sản | C15: NTS/PNN
A16: 1.8 | B16: Đất làm muối | C16: LMU/PNN | O16: =IF(O$5="","",VLOOKUP(LEFT($C16,3),INDIRECT("'"&O$5&"'"&"!$C$7:$BJ$61"),16,0)) -> 
A17: 1.9 | B17: Đất nông nghiệp khác | C17: NKH/PNN
A18: 2 | B18: Chuyển đổi cơ cấu sử dụng đất trong nội bộ đất nông nghiệp
A19: 2.1 | B19: Đất chuyên trồng lúa chuyển sang đất trồng cây lâu năm | C19: LUA/CLN | D19: =SUM(E19:X19) ->  | E19: =IF(E$5="","",VLOOKUP(LEFT($C19,3),INDIRECT("'"&E$5&"'"&"!$C$7:$BJ$61"),9,0)) ->  | F19: =IF(F$5="","",VLOOKUP(LEFT($C19,3),INDIRECT("'"&F$5&"'"&"!$C$7:$BJ$61"),9,0)) -> 
A20: 2.2 | B20: Đất chuyên trồng lúa chuyển sang đất lâm nghiệp | C20: LUA/LNP | E20: =IF(E$5="","",SUM(INDIRECT("'"&E$5&"'"&"!$L$8:$N$8"))) ->  | F20: =IF(F$5="","",SUM(INDIRECT("'"&F$5&"'"&"!$L$8:$N$8"))) -> 
A21: 2.3 | B21: Đất chuyên trồng lúa chuyển sang đất nuôi trồng thuỷ sản | C21: LUA/NTS | E21: =IF(E$5="","",VLOOKUP(LEFT($C21,3),INDIRECT("'"&E$5&"'"&"!$C$7:$BJ$61"),13,0)) ->  | F21: =IF(F$5="","",VLOOKUP(LEFT($C21,3),INDIRECT("'"&F$5&"'"&"!$C$7:$BJ$61"),13,0)) -> 
A22: 2.4 | B22: Đất chuyên trồng lúa chuyển sang đất làm muối | C22: LUA/LMU | E22: =IF(E$5="","",VLOOKUP(LEFT($C22,3),INDIRECT("'"&E$5&"'"&"!$C$7:$BJ$61"),14,0)) ->  | F22: =IF(F$5="","",VLOOKUP(LEFT($C22,3),INDIRECT("'"&F$5&"'"&"!$C$7:$BJ$61"),14,0)) -> 
A23: 2.5 | B23: Đất trồng cây hàng năm khác chuyển sang đất nuôi trồng thủy sản | C23: HNK/NTS | E23: =IF(E$5="","",VLOOKUP(LEFT($C23,3),INDIRECT("'"&E$5&"'"&"!$C$7:$BJ$61"),13,0)) ->  | F23: =IF(F$5="","",VLOOKUP(LEFT($C23,3),INDIRECT("'"&F$5&"'"&"!$C$7:$BJ$61"),13,0)) -> 
A24: 2.6 | B24: Đất trồng cây hàng năm khác chuyển sang đất làm muối | C24: HNK/LMU | E24: =IF(E$5="","",VLOOKUP(LEFT($C24,3),INDIRECT("'"&E$5&"'"&"!$C$7:$BJ$61"),14,0)) ->  | F24: =IF(F$5="","",VLOOKUP(LEFT($C24,3),INDIRECT("'"&F$5&"'"&"!$C$7:$BJ$61"),14,0)) -> 
A25: 2.7 | B25: Đất rừng phòng hộ chuyển sang đất sản xuất nông nghiệp, đất nuôi trồng thủy sản, đất làm muối và đất nông nghiệp khác | C25: RPH/NKR(a) | E25: =IF(E$5="","",INDIRECT("'"&E$5&"'"&"!$E$14")-SUM(INDIRECT("'"&E$5&"'"&"!$L$14:$N$14"))) ->  | F25: =IF(F$5="","",INDIRECT("'"&F$5&"'"&"!$E$14")-SUM(INDIRECT("'"&F$5&"'"&"!$L$14:$N$14"))) -> 
A26: 2.8 | B26: Đất rừng đặc dụng chuyển sang đất sản xuất nông nghiệp, đất nuôi trồng thủy sản, đất làm muối và đất nông nghiệp khác | C26: RDD/NKR(a) | E26: =IF(E$5="","",INDIRECT("'"&E$5&"'"&"!$E$15")-SUM(INDIRECT("'"&E$5&"'"&"!$L$15:$N$15"))) ->  | F26: =IF(F$5="","",INDIRECT("'"&F$5&"'"&"!$E$15")-SUM(INDIRECT("'"&F$5&"'"&"!$L$15:$N$15"))) -> 
A27: 2.9 | B27: Đất rừng sản xuất chuyển sang đất sản xuất nông nghiệp, đất nuôi trồng thủy sản, đất làm muối và đất nông nghiệp khác | C27: RSX/NKR(a) | E27: =IF(E$5="","",INDIRECT("'"&E$5&"'"&"!$E$16")-SUM(INDIRECT("'"&E$5&"'"&"!$L$16:$N$16"))) ->  | F27: =IF(F$5="","",INDIRECT("'"&F$5&"'"&"!$E$16")-SUM(INDIRECT("'"&F$5&"'"&"!$L$16:$N$16"))) -> 
A28: 3 | B28: Đất phi nông nghiệp không phải là đất ở chuyển sang đất ở | C28: PKO/OTC | E28: =IF(E$5="","",SUM(INDIRECT("'"&E$5&"'"&"!$AP$20:$AQ$20"))-SUM(INDIRECT("'"&E$5&"'"&"!$AP$44:$AQ$45"))) ->  | F28: =IF(F$5="","",SUM(INDIRECT("'"&F$5&"'"&"!$AP$20:$AQ$20"))-SUM(INDIRECT("'"&F$5&"'"&"!$AP$44:$AQ$45"))) -> 
B29: Ghi chú: - (a) gồm đất sản xuất nông nghiệp, đất nuôi trồng thủy sản, đất làm muối và đất nông nghiệp khác - PKO là đất phi nông nghiệp không phải là đất ở.

Sheet Biểu 05 CH (hidden)
A1: Biểu 05 CH
A2: DIỆN TÍCH ĐẤT CHƯA SỬ DỤNG ĐƯA VÀO SỬ DỤNG TRONG KỲ ……. PHÂN BỐ ĐẾN TỪNG ĐƠN VỊ HÀNH CHÍNH CẤP XÃ CỦA HUYỆN TUYÊN HÓA - TỈNH QUẢNG BÌNH
M3: Đơn vị tính: ha
A4: STT | B4: Chỉ tiêu | C4: Mã | D4: Tổng diện tích | E4: Diện tích phân theo đơn vị hành chính
E5: =#REF! ->  | F5: =#REF! ->  | G5: =#REF! ->  | H5: =#REF! ->  | I5: =#REF! ->  | J5: =#REF! ->  | K5: =#REF! ->  | L5: =#REF! ->  | M5: =#REF! ->  | N5: =#REF! ->  | O5: =#REF! ->  | P5: =#REF! ->  | Q5: =#REF! ->  | R5: =#REF! ->  | S5: =#REF! ->  | T5: =#REF! ->  | U5: =#REF! ->  | V5: =#REF! ->  | W5: =#REF! ->  | X5: =#REF! -> 
A6: -1 | B6: -2 | C6: -3 | D6: (4)=(5)+(6)+...(24) | E6: -5 | F6: -6 | G6: -7 | H6: -8 | I6: -9 | J6: -10 | K6: -11 | L6: -12 | M6: -13 | N6: -14 | O6: -15 | P6: -16 | Q6: -17 | R6: -18 | S6: -19 | T6: -20 | U6: -21 | V6: -22 | W6: -23 | X6: -24
A7: 1 | B7: Đất nông nghiệp | C7: NNP | D7: =SUM(E7:X7) ->  | E7: =IF(E$5="","",HLOOKUP($C7,INDIRECT("'"&E$5&"'"&"!C5:BC58"),54,0)) ->  | F7: =IF(F$5="","",HLOOKUP($C7,INDIRECT("'"&F$5&"'"&"!C5:BC58"),54,0)) -> 
A8: 1.1 | B8: Đất trồng lúa | C8: LUA | F8: =IF(F$5="","",HLOOKUP($C8,INDIRECT("'"&F$5&"'"&"!C5:BC58"),54,0)) -> 
B9: Trong đó: Đất chuyên trồng lúa nước | C9: LUC
A10: 1.2 | B10: Đất trồng cây hàng năm khác | C10: HNK
A11: 1.3 | B11: Đất trồng cây lâu năm | C11: CLN
A12: 1.4 | B12: Đất rừng phòng hộ | C12: RPH
A13: 1.5 | B13: Đất rừng đặc dụng | C13: RDD
A14: 1.6 | B14: Đất rừng sản xuất | C14: RSX
A15: 1.7 | B15: Đất nuôi trồng thuỷ sản | C15: NTS
A16: 1.8 | B16: Đất làm muối | C16: LMU | O16: =IF(O$5="","",HLOOKUP($C16,INDIRECT("'"&O$5&"'"&"!C5:BC58"),54,0)) -> 
A17: 1.9 | B17: Đất nông nghiệp khác | C17: NKH
A18: 2 | B18: Đất phi nông nghiệp | C18: PNN
A19: 2.1 | B19: Đất quốc phòng | C19: CQP
A20: 2.2 | B20: Đất an ninh | C20: CAN
A21: 2.3 | B21: Đất khu công nghiệp | C21: SKK
A22: 2.4 | B22: Đất khu chế xuất | C22: SKT
A23: 2.5 | B23: Đất cụm công nghiệp | C23: SKN
A24: 2.6 | B24: Đất thương mại dịch vụ | C24: TMD
A25: 2.7 | B25: Đất cơ sở sản xuất phi nông nghiệp | C25: SKC | I25: =IF(I$5="","",HLOOKUP($C25,INDIRECT("'"&I$5&"'"&"!C5:BC58"),54,0)) -> 
A26: 2.8 | B26: Đất sử dụng cho hoạt động khoáng sản | C26: SKS
A27: 2.9 | B27: Đất phát triển hạ tầng cấp quốc gia, cấp tỉnh, cấp huyện, cấp xã | C27: DHT
A28: 2.10 | B28: Đất có di tích lịch sử - văn hóa | C28: DDT
A29: 2.11 | B29: Đất danh lam thắng cảnh | C29: DDL
A30: 2.12 | B30: Đất bải thải, xử lý chất thải | C30: DRA
A31: 2.13 | B31: Đất ở tại nông thôn | C31: ONT
A32: 2.14 | B32: Đất ở tại đô thị | C32: ODT
A33: 2.15 | B33: Đất xây dựng trụ sở cơ quan | C33: TSC
A34: 2.16 | B34: Đất xây dựng trụ sở của tổ chức sự nghiệp | C34: DTS | F34: =IF(F$5="","",HLOOKUP($C34,INDIRECT("'"&F$5&"'"&"!C5:BC58"),54,0)) -> 
A35: 2.17 | B35: Đất xây dựng cơ sở ngoại giao | C35: DNG
A36: 2.18 | B36: Đất cơ sở tôn giáo | C36: TON
A37: 2.19 | B37: Đất làm nghĩa trang, nghĩa địa, nhà tang lễ, nhà hỏa táng | C37: NTD
A38: 2.20 | B38: Đất sản xuất vật liệu xây dựng, làm đồ gốm | C38: SKX
A39: 2.21 | B39: Đất sinh hoạt cộng đồng | C39: DSH
A40: 2.22 | B40: Đất khu vui chơi giải trí công cộng | C40: DKV
A41: 2.23 | B41: Đất cơ sở tín ngưỡng | C41: TIN
A42: 2.24 | B42: Đất sông, ngòi, kênh, rạch, suối | C42: SON
A43: 2.25 | B43: Đất có mặt nước chuyên dùng | C43: MNC | F43: =IF(F$5="","",HLOOKUP($C43,INDIRECT("'"&F$5&"'"&"!C5:BC58"),54,0)) -> 
A44: 2.26 | B44: Đất phi nông nghiệp khác | C44: PNK

Sheet CT phan bo (hidden)
B2: STT | C2: Chỉ tiêu | D2: Mã | E2: KH 2017 | F2: Chỉ tiêu phân bổ | H2: 2017 | I2: so với chi tieu phan bo
B3: -1 | C3: -2 | D3: -3 | F3: -5 | J3: 44787.86
B4: 1 | C4: Đất nông nghiệp | D4: NNP | E4: =VLOOKUP(D4,#REF!,2,0) ->  | F4: 34214.64 | G4: =E4-F4 ->  | H4: =VLOOKUP(D4,#REF!,2,0) ->  | I4: =H4-F4 ->  | K4: =H4-E4 -> 
C5: Trong đó: | I5: =H5-F5 -> 0 | K5: =H5-E5 -> 0
B6: 1.1 | C6: Đất trồng lúa | D6: LUA | E6: 3657.52 | F6: 3657.52 | H6: =VLOOKUP(D6,#REF!,2,0) -> 
C7: Trong đó: Đất chuyên trồng lúa nước | D7: LUC | E7: 3374.47 | F7: 3374.47 | H7: =VLOOKUP(D7,#REF!,2,0) -> 
B8: 1.2 | C8: Đất trồng cây hàng năm khác | D8: HNK | E8: 2754.82 | F8: 2697.22 | G8: =E8-F8 -> 57.6 | H8: =VLOOKUP(D8,#REF!,2,0) -> 
B9: 1.3 | C9: Đất trồng cây lâu năm | D9: CLN | E9: 1199.34 | F9: 1130.74 | G9: 68.6 | H9: =VLOOKUP(D9,#REF!,2,0) -> 
B10: 1.4 | C10: Đất rừng phòng hộ | D10: RPH | E10: 10736.03 | F10: 10736.03 | H10: =VLOOKUP(D10,#REF!,2,0) -> 
B11: 1.5 | C11: Đất rừng sản xuất | D11: RSX | E11: 15493.76 | F11: 15010.31 | G11: 483.45 | H11: =VLOOKUP(D11,#REF!,2,0) -> 
B12: 1.6 | C12: Đất nuôi trồng thuỷ sản | D12: NTS | E12: 181.1 | F12: 165.02 | G12: 16.08 | H12: =VLOOKUP(D12,#REF!,2,0) -> 
B13: 1.7 | C13: Đất làm muối | D13: LMU | E13: 70.17 | F13: 70.17 | G13: 0 | H13: =VLOOKUP(D13,#REF!,2,0) -> 
B14: 2 | C14: Đất phi nông nghiệp | D14: PNN | E14: 8907.96 | F14: 8907.96 | G14: 0 | H14: =VLOOKUP(D14,#REF!,2,0) -> 
B15: 2.1 | C15: Đất quốc phòng | D15: CQP | E15: 1318.94 | F15: 1318.94 | G15: 0 | H15: =VLOOKUP(D15,#REF!,2,0) ->  | J15: khớp
B16: 2.2 | C16: Đất an ninh | D16: CAN | E16: 15.47 | F16: 15.47 | G16: 0 | H16: =VLOOKUP(D16,#REF!,2,0) ->  | J16: khớp
B17: 2.3 | C17: Đất khu công nghiệp | D17: SKK | E17: 570.05 | F17: 570.05 | G17: 0 | H17: =VLOOKUP(D17,#REF!,2,0) ->  | I17: =H17-F17 ->  | J17: khớp
B18: 2.4 | C18: Đất cụm công nghiệp | D18: SKN | E18: 20 | F18: 20 | G18: 0 | H18: =VLOOKUP(D18,#REF!,2,0) ->  | J18: khớp
B19: 2.5 | C19: Đất thương mại dịch vụ | D19: TMD | E19: 186.23 | F19: 259.36 | G19: -73.13 | H19: =VLOOKUP(D19,#REF!,2,0) -> 
B20: 2.6 | C20: Đất cơ sở sản xuất phi nông nghiệp | D20: SKC | E20: 176.03 | F20: 125.63 | G20: 50.4 | H20: =VLOOKUP(D20,#REF!,2,0) -> 
B21: 2.7 | C21: Đất sử dụng cho hoạt động khoáng sản | D21: SKS | E21: 5.14 | F21: 5.14 | G21: 0 | H21: =VLOOKUP(D21,#REF!,2,0) -> 
B22: 2.8 | C22: Đất phát triển hạ tầng cấp quốc gia, cấp tỉnh, cấp huyện, cấp xã | D22: DHT | E22: 3705.68 | F22: 3705.68 | G22: 0 | H22: =VLOOKUP(D22,#REF!,2,0) -> 
B23: 2.9 | C23: Đất có di tích lịch sử - văn hóa | D23: DDT | E23: 41.23 | F23: 41.23 | G23: 0 | H23: =VLOOKUP(D23,#REF!,2,0) -> 
B24: 2.10 | C24: Đất danh lam thắng cảnh | D24: DDL | E24: 0 | G24: 0 | H24: =VLOOKUP(D24,#REF!,2,0) -> 
B25: 2.11 | C25: Đất bãi thải, xử lý chất thải | D25: DRA | E25: 25.78 | F25: 13.42 | G25: 12.36 | H25: =VLOOKUP(D25,#REF!,2,0) -> 
B26: 2.12 | C26: Đất ở tại nông thôn | D26: ONT | E26: 986.28 | F26: 916.98 | G26: 69.3 | H26: =VLOOKUP(D26,#REF!,2,0) -> 
B27: 2.13 | C27: Đất ở tại đô thị | D27: ODT | E27: 0 | G27: 0 | H27: =VLOOKUP(D27,#REF!,2,0) -> 
B28: 2.14 | C28: Đất xây dựng trụ sở cơ quan | D28: TSC | E28: 15.29 | F28: 13.55 | G28: 1.74 | H28: =VLOOKUP(D28,#REF!,2,0) -> 
B29: 2.15 | C29: Đất xây dựng trụ sở của tổ chức sự nghiệp | D29: DTS | E29: 4.93 | F29: 2.8 | G29: 2.13 | H29: =VLOOKUP(D29,#REF!,2,0) -> 
B30: 2.16 | C30: Đất xây dựng cơ sở ngoại giao | D30: DNG | E30: 0 | G30: 0 | H30: =VLOOKUP(D30,#REF!,2,0) -> 
B31: 2.17 | C31: Đất cơ sở tôn giáo | D31: TON | E31: 12.24 | F31: 10.89 | G31: 1.35 | H31: =VLOOKUP(D31,#REF!,2,0) -> 
B32: 2.18 | C32: Đất làm nghĩa trang, nghĩa địa, nhà tang lễ, nhà hỏa táng | D32: NTD | E32: 606.85 | F32: 606.85 | G32: 0 | H32: =VLOOKUP(D32,#REF!,2,0) -> 
B33: 2.26 | C33: Đất chưa sử dụng | D33: CSD | E33: 1606.19 | F33: 1665.26 | G33: -59.07 | H33: =VLOOKUP(D33,#REF!,2,0) -> 
B34: 4 | C34: Đất khu công nghệ cao* | D34: KCN | K34: 0
B35: 5 | C35: Đất khu kinh tế* | D35: KKT | F35: 13181.4 | K35: 0
B36: 6 | C36: Đất đô thị* | D36: KDT | K36: 0

Sheet Bieu 11 (hidden)
A1: DIỆN TÍCH, CƠ CẤU SỬ DỤNG ĐẤT CÁC KHU CHỨC NĂNG CỦA HUYỆN QUẢNG TRẠCH - TỈNH QUẢNG BÌNH
A3: STT | B3: Loại đất | C3: Mã | D3: Khu vực chuyên trồng lúa nước | F3: Khu vực chuyên trồng cây công nghiệp lâu năm | H3: Khu vực rừng phòng hộ | J3: Khu vực rừng đặc dụng | L3: Khu vực rừng sản xuất | N3: Khu vực công nghiệp, cụm công nghiệp | P3: Khu đô thị, thương mại, dịch vụ | R3: Khu du lịch | T3: Khu ở, làng nghề, sản xuất phi nông nghiệp nông thôn
D4: Diện tích (ha) | E4: Cơ cấu (%) | F4: Diện tích (ha) | G4: Cơ cấu (%) | H4: Diện tích (ha) | I4: Cơ cấu (%) | J4: Diện tích (ha) | K4: Cơ cấu (%) | L4: Diện tích (ha) | M4: Cơ cấu (%) | N4: Diện tích (ha) | O4: Cơ cấu (%) | P4: Diện tích (ha) | Q4: Cơ cấu (%) | R4: Diện tích (ha) | S4: Cơ cấu (%) | T4: Diện tích (ha) | U4: Cơ cấu (%)
A5: 1 | B5: Đất nông nghiệp | C5: NNP | D5: =SUM(D7) ->  | F5: =SUM(F7:F9) ->  | H5: =SUM(H7:H10) ->  | J5: 0 | L5: =SUM(L7:L12) ->  | N5: =SUM(N7:N12) -> 0 | P5: 0 | R5: 0 | T5: =SUM(T6:T15) -> 
A6: 1.1 | B6: Đất trồng lúa | C6: DLN | D6: =D7 ->  | I6: 0
B7: Trong đó: Đất chuyên trồng lúa nước | C7: LUC | D7: ='Biểu 03 CH'!D51 ->  | I7: 0
A8: 1.2 | B8: Đất trồng cây hàng năm khác | C8: HNK | I8: 0 | T8: ='Biểu 03 CH'!D11 -> 
A9: 1.3 | B9: Đất trồng cây lâu năm | C9: CLN | F9: ='Biểu 03 CH'!D52 ->  | I9: 0
A10: 1.4 | B10: Đất rừng phòng hộ | C10: RPH | H10: ='Biểu 03 CH'!D53 ->  | T10: 0 | U10: 0
A11: 1.5 | B11: Đất rừng đặc dụng | C11: RDD | I11: 0 | J11: 0 | L11: 0 | M11: 0 | U11: 0
A12: 1.6 | B12: Đất rừng sản xuất | C12: RSX | I12: 0 | L12: ='Biểu 03 CH'!D55 ->  | U12: 0
A13: 1.7 | B13: Đất nuôi trồng thuỷ sản | C13: NTS | I13: 0 | T13: ='Biểu 03 CH'!D18 -> 
A14: 1.8 | B14: Đất làm muối | C14: LMU | I14: 0 | U14: 0
A15: 1.9 | B15: Đất nông nghiệp khác | C15: NKH | I15: 0 | U15: 0
A16: 2 | B16: Đất phi nông nghiệp | C16: PNN | P16: =SUM(P18:P23) ->  | R16: =SUM(R18:R23) -> 0 | T16: =SUM(T18:T39) -> 1871.31 | U16: 4.157223994
A17: 2.1 | B17: Đất quốc phòng | C17: CQP | T17: 2.36 | U17: 0.005236273531
A18: 2.2 | B18: Đất an ninh | C18: CAN | T18: 0 | U18: 0
A19: 2.3 | B19: Đất khu công nghiệp | C19: SKK | T19: 0 | U19: 0
A20: 2.4 | B20: Đất khu chế xuất | C20: SKT | T20: 0 | U20: 0
A21: 2.5 | B21: Đất cụm công nghiệp | C21: SKN | U21: 0
A22: 2.6 | B22: Đất thương mại dịch vụ | C22: TMD | P22: ='Biểu 03 CH'!D57 ->  | T22: 1.06 | U22: 0.002351885569
A23: 2.7 | B23: Đất cơ sở sản xuất phi nông nghiệp | C23: SKC | Q23: 0 | T23: 191.17 | U23: 0.4241603436
A24: 2.8 | B24: Đất sử dụng cho hoạt động khoáng sản | C24: SKS | Q24: 0 | U24: 0
A25: 2.9 | B25: Đất phát triển hạ tầng cấp quốc gia, cấp tỉnh, cấp huyện, cấp xã | C25: DHT | Q25: 0 | T25: 789.72 | U25: 1.752199124
A26: 2.10 | B26: Đất có di tích lịch sử - văn hóa | C26: DDT | Q26: 0 | T26: 0.32 | U26: 0.0007100031906
A27: 2.11 | B27: Đất danh lam thắng cảnh | C27: DDL | Q27: 0 | T27: 0 | U27: 0
A28: 2.12 | B28: Đất bải thải, xử lý chất thải | C28: DRA | Q28: 0 | T28: 0 | U28: 0
A29: 2.13 | B29: Đất ở tại nông thôn | C29: ONT | Q29: 0 | T29: 755.67 | U29: 1.676650347
A30: 2.14 | B30: Đất ở tại đô thị | C30: ODT | Q30: 0 | T30: 0 | U30: 0
A31: 2.15 | B31: Đất xây dựng trụ sở cơ quan | C31: TSC | Q31: 0 | T31: 21.83 | U31: 0.04843553016
A32: 2.16 | B32: Đất xây dựng trụ sở của tổ chức sự nghiệp | C32: DTS | Q32: 0 | T32: 4.39 | U32: 0.009740356271
A33: 2.17 | B33: Đất xây dựng cơ sở ngoại giao | C33: DNG | Q33: 0 | T33: 0 | U33: 0
A34: 2.18 | B34: Đất cơ sở tôn giáo | C34: TON | Q34: 0 | T34: 15.51 | U34: 0.03441296714
A35: 2.19 | B35: Đất làm nghĩa trang, nghĩa địa, nhà tang lễ, nhà hỏa táng | C35: NTD | Q35: 0 | T35: 0.51 | U35: 0.001131567585
A36: 2.20 | B36: Đất sản xuất vật liệu xây dựng, làm đồ gốm | C36: SKX | Q36: 0 | T36: 0.74 | U36: 0.001641882378
A37: 2.21 | B37: Đất sinh hoạt cộng đồng | C37: DSH | Q37: 0 | T37: 10.97 | U37: 0.02433979688
A38: 2.22 | B38: Đất khu vui chơi giải trí công cộng | C38: DKV | Q38: 0 | T38: 75.49 | U38: 0.1674941902
A39: 2.23 | B39: Đất cơ sở tín ngưỡng | C39: TIN | Q39: 0 | T39: 3.93 | U39: 0.008719726684
A40: 2.24 | B40: Đất sông, ngòi, kênh, rạch, suối | C40: SON | Q40: 0 | T40: 0 | U40: 0
A41: 2.25 | B41: Đất có mặt nước chuyên dùng | C41: MNC | Q41: 0 | T41: 0 | U41: 0
A42: 2.26 | B42: Đất phi nông nghiệp khác | C42: PNK | Q42: 0 | T42: 0 | U42: 0
A43: 3 | B43: Đất chưa sử dụng | C43: CSD | T43: 0 | U43: 0

Sheet ! (hidden)
A1: ! | B1: I | C1: Hệ thống dự liệu ĐV hành chính
B3: Mã huyện | C3: Tên huyện | D3: TT | E3: 1 | F3: 2 | G3: 3 | H3: 4 | I3: 5 | J3: 6 | K3: 7 | L3: 8 | M3: 9 | N3: 10 | O3: 11 | P3: 12 | Q3: 13 | R3: 14 | S3: 15 | T3: 16 | U3: 17 | V3: 18 | W3: 19 | X3: 20 | Y3: 21 | Z3: 22 | AA3: 23 | AB3: 24 | AC3: 25 | AD3: 26 | AE3: 27 | AF3: 28 | AG3: 29 | AH3: 30
B4: BT | C4: HUYỆN TUYÊN HÓA | D4: 1 | E4: Cảnh Dương | F4: Cảnh Hóa | G4: Phù Hóa | H4: Quảng Châu | I4: Quảng Đông | J4: Quảng Hợp | K4: Quảng Hưng | L4: Quảng Kim | M4: Quảng Liên | N4: Quảng Lưu | O4: Quảng Phú | P4: Quảng Phương | Q4: Quảng Thạch | R4: Quảng Thanh | S4: Quảng Tiến | T4: Quảng Trường | U4: Quảng Tùng | V4: Quảng Xuân
B13: II | C13: Hệ thống dữ liệu về mã đất
B15: LUC | C15: LUN | D15: LUK | E15: HNK | F15: CLN | G15: RPH | H15: RDD | I15: RSX | J15: NTS | K15: LMU | L15: NKH | M15: CQP | N15: CAN | O15: SKK | P15: SKN | Q15: SKT | R15: TMD | S15: SKC | T15: SKS | U15: DGT | V15: DTL | W15: DNL | X15: DBV | Y15: DVH | Z15: DYT | AA15: DGD | AB15: DTT | AC15: DKH | AD15: DXH | AE15: DCH | AF15: DDT | AG15: DDL | AH15: DRA | AI15: ONT | AJ15: ODT | AK15: TSC | AL15: DTS | AM15: DNG | AN15: TON | AO15: NTD | AP15: SKX | AQ15: DSH | AR15: DKV | AS15: TIN | AT15: SON | AU15: MNC | AV15: PNK | AW15: BCS | AX15: DCS | AY15: NCS
B17: III | C17: Bảo mật dữ liệu
B19: Ngày cấp | C19: 2016-05-04
B20: Hiện tại | C20: =NOW() -> 2019-02-12T15:10:17.290
B21: Thời hạn sử dụng (ngày) | C21: =360-DAYS360(C19,C20,1) -> -638
B22: Tên đăng nhập | C22: =IF(C21>0,"hs123","viethungqhtn") -> viethungqhtn
B23: Pass cấp | C23: hs123
B24: Quyền admin | C24: =IF(C21>0,C23,"viethungqhtn") -> viethungqhtn

Sheet DT (hidden)
B1: Ẩn công việc điều tra | C1: QH
A2: DT
B3: BIỂU 10CH: DANH MỤC CÔNG TRÌNH, DỰ ÁN TRONG KẾ HOẠCH SỬ DỤNG ĐẤT NĂM 2017 CỦA HUYỆN QUẢNG TRẠCH - TỈNH QUẢNG BÌNH
A5: Thứ tự | B5: Tên công trình | C5: Mã quy hoạch | D5: vị trí (xã, phường, thị trấn) | E5: Diện tích | F5: LẤY VÀO LOẠI ĐẤT | DD5: vị trí (xã, phường, thị trấn) | DE5: Số tờ, Số thửa trên bản đồ địa chính
F6: LUC | G6: LUC | H6: LUN | I6: LUN | J6: LUK | K6: LUK | L6: HNK | M6: HNK | N6: CLN | O6: CLN | P6: RPH | Q6: RPH | R6: RDD | S6: RDD | T6: RSX | U6: RSX | V6: NTS | W6: NTS | X6: LMU | Y6: LMU | Z6: NKH | AA6: NKH | AB6: CQP | AC6: CQP | AD6: CAN | AE6: CAN | AF6: SKK | AG6: SKK | AH6: SKN | AI6: SKN | AJ6: SKT | AK6: SKT | AL6: TMD | AM6: TMD | AN6: SKC | AO6: SKC | AP6: SKS | AQ6: SKS | AR6: DHT | AS6: DHT | AT6: DGT | AU6: DGT | AV6: DTL | AW6: DTL | AX6: DNL | AY6: DNL | AZ6: DBV | BA6: DBV | BB6: DVH | BC6: DVH | BD6: DYT | BE6: DYT | BF6: DGD | BG6: DGD | BH6: DTT | BI6: DTT | BJ6: DKH | BK6: DKH | BL6: DXH | BM6: DXH | BN6: DCH | BO6: DCH | BP6: DDT | BQ6: DDT | BR6: DDL | BS6: DDL | BT6: DRA | BU6: DRA | BV6: ONT | BW6: ONT | BX6: ODT | BY6: ODT | BZ6: TSC | CA6: TSC | CB6: DTS | CC6: DTS | CD6: DNG | CE6: DNG | CF6: TON | CG6: TON | CH6: NTD | CI6: NTD | CJ6: SKX | CK6: SKX | CL6: DSH | CM6: DSH | CN6: DKV | CO6: DKV | CP6: TIN | CQ6: TIN | CR6: SON | CS6: SON | CT6: MNC | CU6: MNC | CV6: PNK | CW6: PNK | CX6: BCS | CY6: BCS | CZ6: DCS | DA6: DCS | DB6: NCS | DC6: NCS
F7: QH | G7: KH | H7: QH | I7: KH | J7: QH | K7: KH | L7: QH | M7: KH | N7: QH | O7: KH | P7: QH | Q7: KH | R7: QH | S7: KH | T7: QH | U7: KH | V7: QH | W7: KH | X7: QH | Y7: KH | Z7: QH | AA7: KH | AB7: QH | AC7: KH | AD7: QH | AE7: KH | AF7: QH | AG7: KH | AH7: QH | AI7: KH | AJ7: QH | AK7: KH | AL7: QH | AM7: KH | AN7: QH | AO7: KH | AP7: QH | AQ7: KH | AR7: QH | AS7: KH | AT7: QH | AU7: KH | AV7: QH | AW7: KH | AX7: QH | AY7: KH | AZ7: QH | BA7: KH | BB7: QH | BC7: KH | BD7: QH | BE7: KH | BF7: QH | BG7: KH | BH7: QH | BI7: KH | BJ7: QH | BK7: KH | BL7: QH | BM7: KH | BN7: QH | BO7: KH | BP7: QH | BQ7: KH | BR7: QH | BS7: KH | BT7: QH | BU7: KH | BV7: QH | BW7: KH | BX7: QH | BY7: KH | BZ7: QH | CA7: KH | CB7: QH | CC7: KH | CD7: QH | CE7: KH | CF7: QH | CG7: KH | CH7: QH | CI7: KH | CJ7: QH | CK7: KH | CL7: QH | CM7: KH | CN7: QH | CO7: KH | CP7: QH | CQ7: KH | CR7: QH | CS7: KH | CT7: QH | CU7: KH | CV7: QH | CW7: KH | CX7: QH | CY7: KH | CZ7: QH | DA7: KH | DB7: QH | DC7: KH
A8: `
A9: A | B9: CÔNG TRÌNH, DỰ ÁN ĐƯỢC PHÂN BỔ TỪ QUY HOẠCH SỬ DỤNG ĐẤT CẤP TỈNH | E9: =SUM(G9:CY9) -> 979.2 | F9: =F10+F22 -> 0 | G9: =G10+G22 -> 46.87 | H9: =H10+H22 -> 0 | I9: 0 | J9: 0 | K9: 0 | L9: 0 | M9: 84.79 | N9: 0 | O9: 27.79 | P9: 0 | Q9: 2.82 | R9: 0 | S9: 0 | T9: 0 | U9: 517.57 | V9: 0 | W9: 3.15 | X9: 0 | Y9: 3.39 | Z9: 0 | AA9: 0 | AB9: 0 | AC9: 0 | AD9: 0 | AE9: 0 | AF9: 0 | AG9: 0 | AH9: 0 | AI9: 0 | AJ9: 0 | AK9: 0 | AL9: 0 | AM9: 0 | AN9: 0 | AO9: 4.5 | AP9: 0 | AQ9: 0 | AR9: 0 | AS9: 0 | AT9: 0 | AU9: 40.26 | AV9: 0 | AW9: 56.52 | AX9: 0 | AY9: 0 | AZ9: 0 | BA9: 0 | BB9: 0 | BC9: 0 | BD9: 0 | BE9: 0.24 | BF9: 0 | BG9: 0.08 | BH9: 0 | BI9: 1.98 | BJ9: 0 | BK9: 0 | BL9: 0 | BM9: 0 | BN9: 0 | BO9: 0 | BP9: 0 | BQ9: 0 | BR9: 0 | BS9: 0 | BT9: =BT10+BT22 -> 13.51 | BU9: 0 | BV9: 0 | BW9: 2.38 | BX9: 0 | BY9: 0 | BZ9: 0 | CA9: 0 | CB9: 0 | CC9: 0 | CD9: 0 | CE9: 0 | CF9: 0 | CG9: 0 | CH9: 0 | CI9: 6.1 | CJ9: 0 | CK9: 0 | CL9: 0 | CM9: 0 | CN9: 0 | CO9: 0 | CP9: 0 | CQ9: 0 | CR9: 0 | CS9: 21.6 | CT9: 0 | CU9: 2 | CV9: 0 | CW9: 0 | CX9: 0 | CY9: 143.65 | DF9: =IF(LEN(C9)>0,"ok","") -> 
A10: I | B10: Công trình, dự án mục đích quốc phòng, an ninh | E10: 38.27 | F10: 0 | G10: 1.6 | H10: 0 | I10: 0 | J10: 0 | K10: 0 | L10: 0 | M10: 0.3 | N10: 0 | O10: 0 | P10: 0 | Q10: 0 | R10: 0 | S10: 0 | T10: 0 | U10: 29.7 | V10: 0 | W10: 0 | X10: 0 | Y10: 0 | Z10: 0 | AA10: 0 | AB10: 0 | AC10: 0 | AD10: 0 | AE10: 0 | AF10: 0 | AG10: 0 | AH10: 0 | AI10: 0 | AJ10: 0 | AK10: 0 | AL10: 0 | AM10: 0 | AN10: 0 | AO10: 0 | AU10: 0 | AV10: 0 | AW10: 0 | AX10: 0 | AY10: 0 | AZ10: 0 | BA10: 0 | BB10: 0 | BC10: 0 | BD10: 0 | BE10: 0 | BF10: 0 | BG10: 0 | BH10: 0 | BI10: 0 | BJ10: 0 | BK10: 0 | BL10: 0 | BM10: 0 | BN10: 0 | BO10: 0 | BP10: 0 | BQ10: 0 | BR10: 0 | BS10: 0 | BT10: 0 | BU10: 0 | BV10: 0 | BW10: 0 | BX10: 0 | BY10: 0 | BZ10: 0 | CA10: 0 | CB10: 0 | CC10: 0 | CD10: 0 | CE10: 0 | CF10: 0 | CG10: 0 | CH10: 0 | CI10: 0 | CJ10: 0 | CK10: 0 | CL10: 0 | CM10: 0 | CN10: 0 | CO10: 0 | CP10: 0 | CQ10: 0 | CR10: 0 | CS10: 0.05 | CT10: 0 | CU10: 0 | CV10: 0 | CW10: 0 | CX10: 0 | CY10: 6.62 | DF10: =IF(LEN(C10)>0,"ok","") -> 
A11: 1 | B11: Đất quốc phòng | E11: 26.37 | F11: 0 | G11: 0 | H11: 0 | I11: 0 | J11: 0 | K11: 0 | L11: 0 | M11: 0 | N11: 0 | O11: 0 | P11: 0 | Q11: 0 | R11: 0 | S11: 0 | T11: 0 | U11: 23.7 | V11: 0 | W11: 0 | X11: 0 | Y11: 0 | Z11: 0 | AA11: 0 | AB11: 0 | AC11: 0 | AD11: 0 | AE11: 0 | AF11: 0 | AG11: 0 | AH11: 0 | AI11: 0 | AJ11: 0 | AK11: 0 | AL11: 0 | AM11: 0 | AN11: 0 | AO11: 0 | AU11: 0 | AV11: 0 | AW11: 0 | AX11: 0 | AY11: 0 | AZ11: 0 | BA11: 0 | BB11: 0 | BC11: 0 | BD11: 0 | BE11: 0 | BF11: 0 | BG11: 0 | BH11: 0 | BI11: 0 | BJ11: 0 | BK11: 0 | BL11: 0 | BM11: 0 | BN11: 0 | BO11: 0 | BP11: 0 | BQ11: 0 | BR11: 0 | BS11: 0 | BT11: 0 | BU11: 0 | BV11: 0 | BW11: 0 | BX11: 0 | BY11: 0 | BZ11: 0 | CA11: 0 | CB11: 0 | CC11: 0 | CD11: 0 | CE11: 0 | CF11: 0 | CG11: 0 | CH11: 0 | CI11: 0 | CJ11: 0 | CK11: 0 | CL11: 0 | CM11: 0 | CN11: 0 | CO11: 0 | CP11: 0 | CQ11: 0 | CR11: 0 | CS11: 0.05 | CT11: 0 | CU11: 0 | CV11: 0 | CW11: 0 | CX11: 0 | CY11: 2.62
A12: 1.1 | B12: Thao trường huyấn luyện tổng hợp của huyện (chuyển tiếp từ năm 2016) | C12: CQP | D12: Quảng Lưu | E12: 15.7 | U12: 15.7 | DD12: Quảng Trường | DF12: ok
A13: 1.2 | B13: Xây dựng sở chỉ huy huyện Quảng Trạch (chuyển tiếp từ năm 2016) | C13: CQP | D13: Quảng Phương | E13: 2.47 | CY13: 2.47 | DD13: Quảng Phương | DF13: ok
A14: 1.3 | B14: Thao trường huấn luyện | C14: CQP | D14: Quảng Tiến | E14: 8 | U14: 8 | DD14: Quảng Tiến | DF14: ok
A15: 1.4 | B15: Xây dựng cầu kiểm soát cửa sông Roòn | C15: CQP | D15: Cảnh Dương | E15: 0.1 | CS15: 0.05 | CY15: 0.05 | DD15: Cảnh Dương | DF15: ok
A16: 1.5 | B16: Xây dựng bến nghiêng phục vụ triển khai canô TKCN | C16: CQP | D16: Cảnh Dương | E16: 0.05 | CY16: 0.05 | DD16: Cảnh Dương | DF16: ok
A17: 1.6 | B17: Xây dựng bến nghiêng phục vụ triển khai canô TKCN | C17: CQP | D17: Quảng Đông | E17: 0.05 | CY17: 0.05 | DD17: Quảng Đông | DF17: ok
A18: 2 | B18: Đất an ninh | E18: 11.9 | F18: 0 | G18: 1.6 | H18: 0 | I18: 0 | J18: 0 | K18: 0 | L18: 0 | M18: 0.3 | N18: 0 | O18: 0 | P18: 0 | Q18: 0 | R18: 0 | S18: 0 | T18: 0 | U18: 6 | V18: 0 | W18: 0 | X18: 0 | Y18: 0 | Z18: 0 | AA18: 0 | AB18: 0 | AC18: 0 | AD18: 0 | AE18: 0 | AF18: 0 | AG18: 0 | AH18: 0 | AI18: 0 | AJ18: 0 | AK18: 0 | AL18: 0 | AM18: 0 | AN18: 0 | AO18: 0 | AU18: 0 | AV18: 0 | AW18: 0 | AX18: 0 | AY18: 0 | AZ18: 0 | BA18: 0 | BB18: 0 | BC18: 0 | BD18: 0 | BE18: 0 | BF18: 0 | BG18: 0 | BH18: 0 | BI18: 0 | BJ18: 0 | BK18: 0 | BL18: 0 | BM18: 0 | BN18: 0 | BO18: 0 | BP18: 0 | BQ18: 0 | BR18: 0 | BS18: 0 | BT18: 0 | BU18: 0 | BV18: 0 | BW18: 0 | BX18: 0 | BY18: 0 | BZ18: 0 | CA18: 0 | CB18: 0 | CC18: 0 | CD18: 0 | CE18: 0 | CF18: 0 | CG18: 0 | CH18: 0 | CI18: 0 | CJ18: 0 | CK18: 0 | CL18: 0 | CM18: 0 | CN18: 0 | CO18: 0 | CP18: 0 | CQ18: 0 | CR18: 0 | CS18: 0 | CT18: 0 | CU18: 0 | CV18: 0 | CW18: 0 | CX18: 0 | CY18: 4
A19: 2.1 | B19: Công an thị trấn huyện Quảng Trạch | C19: CAN | D19: Quảng Phương | E19: 0.3 | M19: 0.3 | DD19: Quảng Phương | DF19: ok
A20: 2.2 | B20: Trạm cảnh sát cơ động | C20: CAN | D20: Quảng Hưng | E20: 10 | U20: 6 | CY20: 4 | DD20: Quảng Hưng | DF20: ok
A21: 2.3 | B21: Trạm cảnh sát giao thông quốc lộ 1A | C21: CAN | D21: Quảng Phú | E21: 1.6 | G21: 1.6 | DD21: Quảng Phú | DF21: ok
A22: II | B22: Công trình, dự án để phát triển kinh tế - xã hội vì lợi ích quốc gia, công cộng | E22: 940.93 | F22: =F23+F24+F60 -> 0 | G22: =G23+G24+G60 -> 45.27 | H22: =H23+H24+H60 -> 0 | I22: 0 | J22: 0 | K22: 0 | L22: 0 | M22: 84.49 | N22: 0 | O22: 27.79 | P22: 0 | Q22: 2.82 | R22: 0 | S22: 0 | T22: 0 | U22: 487.87 | V22: 0 | W22: 3.15 | X22: 0 | Y22: 3.39 | Z22: 0 | AA22: 0 | AB22: 0 | AC22: 0 | AD22: 0 | AE22: 0 | AF22: 0 | AG22: 0 | AH22: 0 | AI22: 0 | AJ22: 0 | AK22: 0 | AL22: 0 | AM22: 0 | AN22: 0 | AO22: 4.5 | AP22: 0 | AQ22: 0 | AR22: 0 | AS22: 0 | AT22: 0 | AU22: 40.26 | AV22: 0 | AW22: 56.52 | AX22: 0 | AY22: 0 | AZ22: 0 | BA22: 0 | BB22: 0 | BC22: 0 | BD22: 0 | BE22: 0.24 | BF22: 0 | BG22: 0.08 | BH22: 0 | BI22: 1.98 | BJ22: 0 | BK22: 0 | BL22: 0 | BM22: 0 | BN22: 0 | BO22: 0 | BP22: 0 | BQ22: 0 | BR22: 0 | BS22: 0 | BT22: =BT23+BT24+BT60 -> 13.51 | BU22: 0 | BV22: 0 | BW22: 2.38 | BX22: 0 | BY22: 0 | BZ22: 0 | CA22: 0 | CB22: 0 | CC22: 0 | CD22: 0 | CE22: 0 | CF22: 0 | CG22: 0 | CH22: 0 | CI22: 6.1 | CJ22: 0 | CK22: 0 | CL22: 0 | CM22: 0 | CN22: 0 | CO22: 0 | CP22: 0 | CQ22: 0 | CR22: 0 | CS22: 21.55 | CT22: 0 | CU22: 2 | CV22: 0 | CW22: 0 | CX22: 0 | CY22: 137.03
A23: 1 | B23: Công trình, dự án quan trọng quốc gia do Quốc hội quyết định chủ trương đầu tư mà phải thu hồi đất | E23: 0
A24: 2 | B24: Công trình, dự án do Thủ tướng Chính phủ chấp thuận, quyết định đầu tư mà phải thu hồi đất | E24: 434.63 | F24: =F25+F30+F55 -> 0 | G24: 12.57 | H24: 0 | I24: 0 | J24: 0 | K24: 0 | L24: 0 | M24: 39.7 | N24: 0 | O24: 15.28 | P24: 0 | Q24: 2 | R24: 0 | S24: 0 | T24: 0 | U24: 316.73 | V24: 0 | W24: 2.98 | X24: 0 | Y24: 0 | Z24: 0 | AA24: 0 | AB24: 0 | AC24: 0 | AD24: 0 | AE24: 0 | AF24: 0 | AG24: 0 | AH24: 0 | AI24: 0 | AJ24: 0 | AK24: 0 | AL24: =AL25+AL30+AL55 -> 0 | AM24: 0 | AN24: 0 | AO24: 0 | AP24: 0 | AQ24: 0 | AR24: 0 | AS24: 0 | AT24: 0 | AU24: 5.71 | AV24: 0 | AW24: 0.52 | AX24: 0 | AY24: 0 | AZ24: 0 | BA24: 0 | BB24: 0 | BC24: 0 | BD24: 0 | BE24: 0 | BF24: 0 | BG24: 0 | BH24: 0 | BI24: 0 | BJ24: 0 | BK24: 0 | BL24: 0 | BM24: 0 | BN24: 0 | BO24: 0 | BP24: 0 | BQ24: 0 | BR24: =BR25+BR30+BR55 -> 0 | BS24: 0 | BT24: 0 | BU24: 0 | BV24: 0 | BW24: 2 | BX24: 0 | BY24: 0 | BZ24: 0 | CA24: 0 | CB24: 0 | CC24: 0 | CD24: 0 | CE24: 0 | CF24: 0 | CG24: 0 | CH24: 0 | CI24: 3.14 | CJ24: 0 | CK24: 0 | CL24: 0 | CM24: 0 | CN24: 0 | CO24: 0 | CP24: 0 | CQ24: 0 | CR24: 0 | CS24: 5 | CT24: 0 | CU24: 1 | CV24: 0 | CW24: 0 | CX24: =CX25+CX30+CX55 -> 0 | CY24: =CY25+CY30+CY55 -> 28
A25: 2.1 | B25: Đất khu công nghiệp | E25: 72.8 | F25: 0 | G25: =G26+G29 -> 7.57 | H25: =H26+H29 -> 0 | I25: 0 | J25: 0 | K25: 0 | L25: 0 | M25: 16.6 | N25: 0 | O25: 2 | P25: 0 | Q25: 2 | R25: 0 | S25: 0 | T25: 0 | U25: 8.7 | V25: 0 | W25: 2.94 | X25: 0 | Y25: 0 | Z25: 0 | AA25: 0 | AB25: 0 | AC25: 0 | AD25: 0 | AE25: 0 | AF25: 0 | AG25: 0 | AH25: 0 | AI25: 0 | AJ25: 0 | AK25: 0 | AL25: 0 | AM25: 0 | AN25: 0 | AO25: 0 | AU25: 3.63 | AV25: 0 | AW25: 0 | AX25: 0 | AY25: 0 | AZ25: 0 | BA25: 0 | BB25: 0 | BC25: 0 | BD25: 0 | BE25: 0 | BF25: 0 | BG25: 0 | BH25: 0 | BI25: 0 | BJ25: 0 | BK25: 0 | BL25: 0 | BM25: 0 | BN25: 0 | BO25: 0 | BP25: 0 | BQ25: 0 | BR25: 0 | BS25: 0 | BT25: =BT26+BT29 -> 0 | BU25: 0 | BV25: 0 | BW25: 0 | BX25: 0 | BY25: 0 | BZ25: 0 | CA25: 0 | CB25: 0 | CC25: 0 | CD25: 0 | CE25: 0 | CF25: 0 | CG25: 0 | CH25: 0 | CI25: 2.36 | CJ25: 0 | CK25: 0 | CL25: 0 | CM25: 0 | CN25: 0 | CO25: 0 | CP25: 0 | CQ25: 0 | CR25: 0 | CS25: 4 | CT25: 0 | CU25: 1 | CV25: 0 | CW25: 0 | CX25: 0 | CY25: 22
A26: 3.5.1.3 | B26: Đường trục dọc, ngang KKT Hòn La tỉnh Quảng Bình | D26: Các xã: Quảng Đông, Quảng Phú | E26: 25.8 | G26: =SUM(G27:G28) -> 7.57 | H26: =SUM(H27:H28) -> 0 | I26: 0 | J26: 0 | K26: 0 | L26: 0 | M26: 1.6 | N26: 0 | O26: 0 | P26: 0 | Q26: 2 | R26: 0 | S26: 0 | T26: 0 | U26: 8.7 | V26: 0 | W26: 0.94 | X26: 0 | Y26: 0 | Z26: 0 | AA26: 0 | AB26: 0 | AC26: 0 | AD26: 0 | AE26: 0 | AF26: 0 | AG26: 0 | AH26: 0 | AI26: 0 | AJ26: 0 | AK26: 0 | AL26: 0 | AM26: 0 | AN26: 0 | AO26: 0 | AU26: 0.63 | AV26: 0 | AW26: 0 | AX26: 0 | AY26: 0 | AZ26: 0 | BA26: 0 | BB26: 0 | BC26: 0 | BD26: 0 | BE26: 0 | BF26: 0 | BG26: 0 | BH26: 0 | BI26: 0 | BJ26: 0 | BK26: 0 | BL26: 0 | BM26: 0 | BN26: 0 | BO26: 0 | BP26: 0 | BQ26: 0 | BR26: 0 | BS26: 0 | BT26: =SUM(BT27:BT28) -> 0 | BU26: 0 | BV26: 0 | BW26: 0 | BX26: 0 | BY26: 0 | BZ26: 0 | CA26: 0 | CB26: 0 | CC26: 0 | CD26: 0 | CE26: 0 | CF26: 0 | CG26: 0 | CH26: 0 | CI26: 1.36 | CJ26: 0 | CK26: 0 | CL26: 0 | CM26: 0 | CN26: 0 | CO26: 0 | CP26: 0 | CQ26: 0 | CR26: 0 | CS26: 1 | CT26: 0 | CU26: 0 | CV26: 0 | CW26: 0 | CX26: 0 | CY26: 2 | DD26: Các xã: Quảng Đông, Quảng Phú
C27: SKK | D27: Quảng Đông | E27: 12.9 | G27: 3.785 | K27: 0 | M27: 0.8 | O27: 0 | Q27: 1 | U27: 4.35 | W27: 0.47 | Y27: 0 | AG27: 0 | AO27: 0 | AU27: 0.315 | AW27: 0 | BE27: 0 | BG27: 0 | BI27: 0 | BO27: 0 | BT27: 0 | BW27: 0 | CA27: 0 | CI27: 0.68 | CS27: 0.5 | CU27: 0 | CY27: 1 | DD27: Quảng Đông | DF27: ok
C28: SKK | D28: Quảng Phú | E28: 12.9 | F28: 0 | G28: 3.785 | H28: 0 | I28: 0 | J28: 0 | K28: 0 | L28: 0 | M28: 0.8 | N28: 0 | O28: 0 | P28: 0 | Q28: 1 | R28: 0 | S28: 0 | T28: 0 | U28: 4.35 | V28: 0 | W28: 0.47 | X28: 0 | Y28: 0 | Z28: 0 | AA28: 0 | AB28: 0 | AC28: 0 | AD28: 0 | AE28: 0 | AF28: 0 | AG28: 0 | AH28: 0 | AI28: 0 | AJ28: 0 | AK28: 0 | AL28: 0 | AM28: 0 | AN28: 0 | AO28: 0 | AU28: 0.315 | AV28: 0 | AW28: 0 | AX28: 0 | AY28: 0 | AZ28: 0 | BA28: 0 | BB28: 0 | BC28: 0 | BD28: 0 | BE28: 0 | BF28: 0 | BG28: 0 | BH28: 0 | BI28: 0 | BJ28: 0 | BK28: 0 | BL28: 0 | BM28: 0 | BN28: 0 | BO28: 0 | BP28: 0 | BQ28: 0 | BR28: 0 | BS28: 0 | BT28: 0 | BU28: 0 | BV28: 0 | BW28: 0 | BX28: 0 | BY28: 0 | BZ28: 0 | CA28: 0 | CB28: 0 | CC28: 0 | CD28: 0 | CE28: 0 | CF28: 0 | CG28: 0 | CH28: 0 | CI28: 0.68 | CJ28: 0 | CK28: 0 | CL28: 0 | CM28: 0 | CN28: 0 | CO28: 0 | CP28: 0 | CQ28: 0 | CR28: 0 | CS28: 0.5 | CT28: 0 | CU28: 0 | CV28: 0 | CW28: 0 | CX28: 0 | CY28: 1 | DD28: Quảng Phú | DF28: ok
A29: 2.1.2 | B29: Xây dựng hạ tầng KCN cửa ngõ phía Nam Khu kinh tế Hòn La | C29: SKK | D29: Quảng Xuân | E29: 47 | M29: 15 | O29: 2 | W29: 2 | AU29: 3 | CI29: 1 | CS29: 3 | CU29: 1 | CY29: 20 | DD29: Quảng Xuân | DF29: ok
A30: 2.3 | B30: Đất phát triển hạ tầng | E30: 323.42 | F30: 0 | G30: =G31+G34 -> 5 | H30: =H31+H34 -> 0 | I30: 0 | J30: 0 | K30: 0 | L30: 0 | M30: 23.1 | N30: 0 | O30: 13.28 | P30: 0 | Q30: 0 | R30: 0 | S30: 0 | T30: 0 | U30: 269.64 | V30: 0 | W30: 0.04 | X30: 0 | Y30: 0 | Z30: 0 | AA30: 0 | AB30: 0 | AC30: 0 | AD30: 0 | AE30: 0 | AF30: 0 | AG30: 0 | AH30: 0 | AI30: 0 | AJ30: 0 | AK30: 0 | AL30: 0 | AM30: 0 | AN30: 0 | AO30: 0 | AU30: 2.08 | AV30: 0 | AW30: 0.52 | AX30: 0 | AY30: 0 | AZ30: 0 | BA30: 0 | BB30: 0 | BC30: 0 | BD30: 0 | BE30: 0 | BF30: 0 | BG30: 0 | BH30: 0 | BI30: 0 | BJ30: 0 | BK30: 0 | BL30: 0 | BM30: 0 | BN30: 0 | BO30: 0 | BP30: 0 | BQ30: 0 | BR30: 0 | BS30: 0 | BT30: =BT31+BT34 -> 0 | BU30: 0 | BV30: 0 | BW30: 2 | BX30: 0 | BY30: 0 | BZ30: 0 | CA30: 0 | CB30: 0 | CC30: 0 | CD30: 0 | CE30: 0 | CF30: 0 | CG30: 0 | CH30: 0 | CI30: 0.76 | CJ30: 0 | CK30: 0 | CL30: 0 | CM30: 0 | CN30: 0 | CO30: 0 | CP30: 0 | CQ30: 0 | CR30: 0 | CS30: 1 | CT30: 0 | CU30: 0 | CV30: 0 | CW30: 0 | CX30: 0 | CY30: 6
A31: 2.3.1 | B31: Đất giao thông | E31: 46.36 | F31: 0 | G31: =G32+G33 -> 0 | H31: =H32+H33 -> 0 | I31: 0 | J31: 0 | K31: 0 | L31: 0 | M31: 8.5 | N31: 0 | O31: 8.78 | P31: 0 | Q31: 0 | R31: 0 | S31: 0 | T31: 0 | U31: 23.08 | V31: 0 | W31: 0 | X31: 0 | Y31: 0 | Z31: 0 | AA31: 0 | AB31: 0 | AC31: 0 | AD31: 0 | AE31: 0 | AF31: 0 | AG31: 0 | AH31: 0 | AI31: 0 | AJ31: 0 | AK31: 0 | AL31: 0 | AM31: 0 | AN31: 0 | AO31: 0 | AU31: 0 | AV31: 0 | AW31: 0 | AX31: 0 | AY31: 0 | AZ31: 0 | BA31: 0 | BB31: 0 | BC31: 0 | BD31: 0 | BE31: 0 | BF31: 0 | BG31: 0 | BH31: 0 | BI31: 0 | BJ31: 0 | BK31: 0 | BL31: 0 | BM31: 0 | BN31: 0 | BO31: 0 | BP31: 0 | BQ31: 0 | BR31: 0 | BS31: 0 | BT31: =BT32+BT33 -> 0 | BU31: 0 | BV31: 0 | BW31: 0 | BX31: 0 | BY31: 0 | BZ31: 0 | CA31: 0 | CB31: 0 | CC31: 0 | CD31: 0 | CE31: 0 | CF31: 0 | CG31: 0 | CH31: 0 | CI31: 0 | CJ31: 0 | CK31: 0 | CL31: 0 | CM31: 0 | CN31: 0 | CO31: 0 | CP31: 0 | CQ31: 0 | CR31: 0 | CS31: 0 | CT31: 0 | CU31: 0 | CV31: 0 | CW31: 0 | CX31: 0 | CY31: 6
A32: 2.3.1.3 | B32: Khu bến cảng Hòn La (chuyển tiếp 2016) | C32: DGT | D32: Quảng Đông | E32: 33.86 | M32: 8.5 | O32: 8.78 | U32: 10.58 | CY32: 6 | DD32: Quảng Đông | DF32: ok
A33: 2.3.1.4 | B33: Hầm, đường bộ qua Đèo Ngang quốc lộ 1A | C33: DGT | D33: Quảng Đông | E33: 12.5 | U33: 12.5 | DD33: Quảng Đông | DF33: ok
A34: 2.2.2 | B34: Đất công trình năng lượng | E34: 277.06 | F34: 0 | G34: =SUM(G35:G48) -> 5 | H34: =SUM(H35:H48) -> 0 | I34: 0 | J34: 0 | K34: 0 | L34: 0 | M34: 14.6 | N34: 0 | O34: 4.5 | P34: 0 | Q34: 0 | R34: 0 | S34: 0 | T34: 0 | U34: 246.56 | V34: 0 | W34: 0.04 | X34: 0 | Y34: 0 | Z34: 0 | AA34: 0 | AB34: 0 | AC34: 0 | AD34: 0 | AE34: 0 | AF34: 0 | AG34: 0 | AH34: 0 | AI34: 0 | AJ34: 0 | AK34: 0 | AL34: 0 | AM34: 0 | AN34: 0 | AO34: 0 | AP34: 0 | AQ34: 0 | AR34: 0 | AS34: 0 | AT34: 0 | AU34: 2.08 | AV34: 0 | AW34: 0.52 | AX34: 0 | AY34: 0 | AZ34: 0 | BA34: 0 | BB34: 0 | BC34: 0 | BD34: 0 | BE34: 0 | BF34: 0 | BG34: 0 | BH34: 0 | BI34: 0 | BJ34: 0 | BK34: 0 | BL34: 0 | BM34: 0 | BN34: 0 | BO34: 0 | BP34: 0 | BQ34: 0 | BR34: 0 | BS34: 0 | BT34: =SUM(BT35:BT48) -> 0 | BU34: 0 | BV34: 0 | BW34: 2 | BX34: 0 | BY34: 0 | BZ34: 0 | CA34: 0 | CB34: 0 | CC34: 0 | CD34: 0 | CE34: 0 | CF34: 0 | CG34: 0 | CH34: 0 | CI34: 0.76 | CJ34: 0 | CK34: 0 | CL34: 0 | CM34: 0 | CN34: 0 | CO34: 0 | CP34: 0 | CQ34: 0 | CR34: 0 | CS34: 1 | CT34: 0 | CU34: 0 | CV34: 0 | CW34: 0 | CX34: 0 | CY34: 0
A35: 2.2.2.1 | B35: Quy hoạch điện gió | C35: DNL | D35: Quảng Đông | E35: 1.8 | U35: 1.8 | DD35: Quảng Đông | DF35: ok
A36: 2.2.2.2 | B36: Nhà máy nhiệt điện Quảng Trạch (Khu kinh tế Hòn La) | C36: DNL | D36: Quảng Đông | E36: 24 | M36: 6.6 | O36: 1 | U36: 11 | W36: 0.04 | AU36: 1.6 | BW36: 2 | CI36: 0.76 | CS36: 1 | DD36: Quảng Đông | DF36: ok
B37: Mạch đường dây 500vv Quảng Trạch - Dốc Sỏi | D37: Các xã: Quảng Đông, Quảng Hợp, Quảng Châu, Quảng Lưu, Quảng Thạch, Quảng Liên, Cảnh Hóa | E37: 103.36 | G37: =SUM(G38:G45) -> 0 | H37: =SUM(H38:H45) -> 0 | I37: 0 | J37: 0 | K37: 0 | L37: 0 | M37: 0 | N37: 0 | O37: 0 | P37: 0 | Q37: 0 | R37: 0 | S37: 0 | T37: 0 | U37: 103.36 | V37: 0 | W37: 0 | X37: 0 | Y37: 0 | Z37: 0 | AA37: 0 | AB37: 0 | AC37: 0 | AD37: 0 | AE37: 0 | AF37: 0 | AG37: 0 | AH37: 0 | AI37: 0 | AJ37: 0 | AK37: 0 | AL37: 0 | AM37: 0 | AN37: 0 | AO37: 0 | AP37: 0 | AQ37: 0 | AR37: 0 | AS37: 0 | AT37: 0 | AU37: 0 | AV37: 0 | AW37: 0 | AX37: 0 | AY37: 0 | AZ37: 0 | BA37: 0 | BB37: 0 | BC37: 0 | BD37: 0 | BE37: 0 | BF37: 0 | BG37: 0 | BH37: 0 | BI37: 0 | BJ37: 0 | BK37: 0 | BL37: 0 | BM37: 0 | BN37: 0 | BO37: 0 | BP37: 0 | BQ37: 0 | BR37: 0 | BS37: 0 | BT37: =SUM(BT38:BT45) -> 0 | BU37: 0 | BV37: 0 | BW37: 0 | BX37: 0 | BY37: 0 | BZ37: 0 | CA37: 0 | CB37: 0 | CC37: 0 | CD37: 0 | CE37: 0 | CF37: 0 | CG37: 0 | CH37: 0 | CI37: 0 | CJ37: 0 | CK37: 0 | CL37: 0 | CM37: 0 | CN37: 0 | CO37: 0 | CP37: 0 | CQ37: 0 | CR37: 0 | CS37: 0 | CT37: 0 | CU37: 0 | CV37: 0 | CW37: 0 | CX37: 0 | CY37: 0
C38: DNL | D38: Quảng Đông | E38: 10.56 | U38: =ROUND(3.3/32.3*103.36,2) -> 10.56
C39: DNL | D39: Quảng Kim | E39: 21.12 | U39: =ROUND(6.6/32.3*103.36,2) -> 21.12
C40: DNL | D40: Quảng Hợp | E40: 21.44 | U40: =ROUND(6.7/32.3*103.36,2) -> 21.44
C41: DNL | D41: Quảng Châu | E41: 13.12 | U41: =ROUND(4.1/32.3*103.36,2) -> 13.12
C42: DNL | D42: Quảng Lưu | E42: 7.04 | U42: =ROUND(2.2/32.3*103.36,2) -> 7.04
C43: DNL | D43: Quảng Thạch | E43: 15.36 | U43: =ROUND(4.8/32.3*103.36,2) -> 15.36
C44: DNL | D44: Quảng Liên | E44: 12.16 | U44: =ROUND(3.8/32.3*103.36,2) -> 12.16
C45: DNL | D45: Cảnh Hóa | E45: 2.56 | U45: =ROUND(0.8/32.3*103.36,2) -> 2.56
A46: 2.2.2.3 | B46: Kho Ngoại quan (Đường ống dẫn dầu từ cảng Hòn La sang tỉnh Khăm Muộn (Lào) của Công ty Cổ phần LàoPetro) | C46: DNL | D46: Quảng Đông | E46: 25 | U46: 25 | DD46: Quảng Đông | DF46: ok
A47: 2.2.2.4 | B47: Tổng kho xăng dầu | C47: DNL | D47: Quảng Đông | E47: 4.5 | M47: 4.5 | DD47: Quảng Đông | DF47: ok
A48: 2.2.2.5 | B48: Đường ống dẫn dầu từ cảng Hòn La sang tỉnh Khăm Muộn (Lào) của Công ty Cổ phần LàoPetro (chuyển tiếp KH2016) | D48: Các xã Quảng Đông, Quảng Phú, Quảng Tiến, Quảng Tùng, Quảng Thạch, Cảnh Hoá | E48: 15.04 | G48: 5 | H48: 0 | I48: 0 | J48: 0 | K48: 0 | L48: 0 | M48: 3.5 | N48: 0 | O48: 3.5 | P48: 0 | Q48: 0 | R48: 0 | S48: 0 | T48: 0 | U48: 2.04 | V48: 0 | W48: 0 | X48: 0 | Y48: 0 | Z48: 0 | AA48: 0 | AB48: 0 | AC48: 0 | AD48: 0 | AE48: 0 | AF48: 0 | AG48: 0 | AH48: 0 | AI48: 0 | AJ48: 0 | AK48: 0 | AL48: 0 | AM48: 0 | AN48: 0 | AO48: 0 | AU48: 0.48 | AV48: 0 | AW48: 0.52 | AX48: 0 | AY48: 0 | AZ48: 0 | BA48: 0 | BB48: 0 | BC48: 0 | BD48: 0 | BE48: 0 | BF48: 0 | BG48: 0 | BH48: 0 | BI48: 0 | BJ48: 0 | BK48: 0 | BL48: 0 | BM48: 0 | BN48: 0 | BO48: 0 | BP48: 0 | BQ48: 0 | BR48: 0 | BS48: 0 | BT48: 0 | BU48: 0 | BV48: 0 | BW48: 0 | BX48: 0 | BY48: 0 | BZ48: 0 | CA48: 0 | CB48: 0 | CC48: 0 | CD48: 0 | CE48: 0 | CF48: 0 | CG48: 0 | CH48: 0 | CI48: 0 | CJ48: 0 | CK48: 0 | CL48: 0 | CM48: 0 | CN48: 0 | CO48: 0 | CP48: 0 | CQ48: 0 | CR48: 0 | CS48: 0 | CT48: 0 | CU48: 0 | CV48: 0 | CW48: 0 | CX48: 0 | CY48: 0 | DD48: Các xã Quảng Đông, Quảng Phú, Quảng Tiến, Quảng Tùng, Quảng Thạch, Cảnh Hoá
C49: DNL | D49: Quảng Đông | E49: 2.51 | G49: 0.75 | M49: 0.55 | O49: 0.7 | U49: 0.34 | AU49: 0.08 | AW49: 0.09 | DD49: Quảng Đông | DF49: ok
C50: DNL | D50: Quảng Phú | E50: 2.61 | G50: 0.85 | M50: 0.55 | O50: 0.7 | U50: 0.34 | AU50: 0.08 | AW50: 0.09 | DD50: Quảng Phú | DF50: ok
C51: DNL | D51: Quảng Tiến | E51: 2.66 | G51: 0.85 | M51: 0.6 | O51: 0.7 | U51: 0.34 | AU51: 0.08 | AW51: 0.09 | DD51: Quảng Tiến | DF51: ok
C52: DNL | D52: Quảng Tùng | E52: 1.96 | G52: 0.85 | M52: 0.6 | U52: 0.34 | AU52: 0.08 | AW52: 0.09 | DD52: Quảng Tùng | DF52: ok
C53: DNL | D53: Quảng Thạch | E53: 2.65 | G53: 0.85 | M53: 0.6 | O53: 0.7 | U53: 0.34 | AU53: 0.08 | AW53: 0.08 | DD53: Quảng Thạch | DF53: ok
C54: DNL | D54: Cảnh Hóa | E54: 2.65 | G54: 0.85 | M54: 0.6 | O54: 0.7 | U54: 0.34 | AU54: 0.08 | AW54: 0.08 | DD54: Cảnh Hóa | DF54: ok
A55: 2.3 | B55: Đất di tích lịch sử | E55: 38.41 | F55: 0 | G55: =SUM(G56:G59) -> 0 | H55: =SUM(H56:H59) -> 0 | I55: 0 | J55: 0 | K55: 0 | L55: 0 | M55: 0 | N55: 0 | O55: 0 | P55: 0 | Q55: 0 | R55: 0 | S55: 0 | T55: 0 | U55: 38.39 | V55: 0 | W55: 0 | X55: 0 | Y55: 0 | Z55: 0 | AA55: 0 | AB55: 0 | AC55: 0 | AD55: 0 | AE55: 0 | AF55: 0 | AG55: 0 | AH55: 0 | AI55: 0 | AJ55: 0 | AK55: 0 | AL55: 0 | AM55: 0 | AN55: 0 | AO55: 0 | AP55: 0 | AQ55: 0 | AR55: 0 | AS55: 0 | AT55: 0 | AU55: 0 | AV55: 0 | AW55: 0 | AX55: 0 | AY55: 0 | AZ55: 0 | BA55: 0 | BB55: 0 | BC55: 0 | BD55: 0 | BE55: 0 | BF55: 0 | BG55: 0 | BH55: 0 | BI55: 0 | BJ55: 0 | BK55: 0 | BL55: 0 | BM55: 0 | BN55: 0 | BO55: 0 | BP55: 0 | BQ55: 0 | BR55: 0 | BS55: 0 | BT55: =SUM(BT56:BT59) -> 0 | BU55: 0 | BV55: 0 | BW55: 0 | BX55: 0 | BY55: 0 | BZ55: 0 | CA55: 0 | CB55: 0 | CC55: 0 | CD55: 0 | CE55: 0 | CF55: 0 | CG55: 0 | CH55: 0 | CI55: 0.02 | CJ55: 0 | CK55: 0 | CL55: 0 | CM55: 0 | CN55: 0 | CO55: 0 | CP55: 0 | CQ55: 0 | CR55: 0 | CS55: 0 | CT55: 0 | CU55: 0 | CV55: 0 | CW55: 0 | CX55: 0 | CY55: 0 | CZ55: =SUM(CZ56:CZ59) -> 0 | DA55: =SUM(DA56:DA59) -> 0 | DB55: =SUM(DB56:DB59) -> 0 | DC55: =SUM(DC56:DC59) -> 0
A56: 2.3.1 | B56: Mở rộng đền Thánh Mẫu Liễu Hạnh | C56: DDT | D56: Quảng Đông | E56: 38.2 | U56: 38.2 | DD56: Quảng Đông | DF56: ok
A57: 2.3.2 | B57: Đình làng Đông Dương | C57: DDT | D57: Quảng Phương | E57: 0.02 | CI57: 0.02 | DD57: Quảng Phương | DF57: ok
A58: 2.3.3 | B58: Lăng mộ danh nhân văn hóa - Nhà thơ Nguyễn Hàm Ninh | C58: DDT | D58: Quảng Lưu | E58: 0.14 | U58: 0.14 | DD58: Quảng Lưu | DF58: ok
A59: 2.3.4 | B59: Cụm di tích Chùa Phật Bà, miếu thành hoàng làng, miếu Cao Các Mạc Sơn | C59: DDT | D59: Quảng Tùng | E59: 0.05 | U59: 0.05 | DD59: Quảng Tùng | DF59: ok
A60: 3 | B60: Công trình, dự án do Hội đồng nhân dân cấp tỉnh chấp thuận mà phải thu hồi đất | E60: 506.3 | F60: =F61+F64+F67+F75+F84+F182+F186+F190+F196+F204+F208+F215 -> 0 | G60: 32.7 | H60: 0 | I60: 0 | J60: 0 | K60: 0 | L60: 0 | M60: 44.79 | N60: 0 | O60: 12.51 | P60: 0 | Q60: 0.82 | R60: 0 | S60: 0 | T60: 0 | U60: 171.14 | V60: 0 | W60: 0.17 | X60: 0 | Y60: 3.39 | Z60: 0 | AA60: 0 | AB60: 0 | AC60: 0 | AD60: 0 | AE60: 0 | AF60: 0 | AG60: 0 | AH60: 0 | AI60: 0 | AJ60: 0 | AK60: 0 | AL60: =AL61+AL64+AL67+AL75+AL84+AL182+AL186+AL190+AL196+AL204+AL208+AL215 -> 0 | AM60: 0 | AN60: 0 | AO60: 4.5 | AP60: 0 | AQ60: 0 | AR60: 0 | AS60: 0 | AT60: 0 | AU60: 34.55 | AV60: 0 | AW60: 56 | AX60: 0 | AY60: 0 | AZ60: 0 | BA60: 0 | BB60: 0 | BC60: 0 | BD60: 0 | BE60: 0.24 | BF60: 0 | BG60: 0.08 | BH60: 0 | BI60: 1.98 | BJ60: 0 | BK60: 0 | BL60: 0 | BM60: 0 | BN60: 0 | BO60: 0 | BP60: 0 | BQ60: 0 | BR60: =BR61+BR64+BR67+BR75+BR84+BR182+BR186+BR190+BR196+BR204+BR208+BR215 -> 0 | BS60: 0 | BT60: 13.51 | BU60: 0 | BV60: 0 | BW60: 0.38 | BX60: 0 | BY60: 0 | BZ60: 0 | CA60: 0 | CB60: 0 | CC60: 0 | CD60: 0 | CE60: 0 | CF60: 0 | CG60: 0 | CH60: 0 | CI60: 2.96 | CJ60: 0 | CK60: 0 | CL60: 0 | CM60: 0 | CN60: 0 | CO60: 0 | CP60: 0 | CQ60: 0 | CR60: 0 | CS60: 16.55 | CT60: 0 | CU60: 1 | CV60: 0 | CW60: 0 | CX60: =CX61+CX64+CX67+CX75+CX84+CX182+CX186+CX190+CX196+CX204+CX208+CX215 -> 0 | CY60: =CY61+CY64+CY67+CY75+CY84+CY182+CY186+CY190+CY196+CY204+CY208+CY215 -> 109.03
A61: 3.1 | B61: Đất khu công nghiệp | E61: 21 | F61: 0 | G61: =SUM(G62:G63) -> 0 | H61: =SUM(H62:H63) -> 0 | I61: 0 | J61: 0 | K61: 0 | L61: 0 | M61: 4.11 | N61: 0 | O61: 0 | P61: 0 | Q61: 0 | R61: 0 | S61: 0 | T61: 0 | U61: 13 | V61: 0 | W61: 0 | X61: 0 | Y61: 3.39 | Z61: 0 | AA61: 0 | AB61: 0 | AC61: 0 | AD61: 0 | AE61: 0 | AF61: 0 | AG61: 0 | AH61: 0 | AI61: 0 | AJ61: 0 | AK61: 0 | AL61: 0 | AM61: 0 | AN61: 0 | AO61: 0 | AU61: 0 | AV61: 0 | AW61: 0 | AX61: 0 | AY61: 0 | AZ61: 0 | BA61: 0 | BB61: 0 | BC61: 0 | BD61: 0 | BE61: 0 | BF61: 0 | BG61: 0 | BH61: 0 | BI61: 0 | BJ61: 0 | BK61: 0 | BL61: 0 | BM61: 0 | BN61: 0 | BO61: 0 | BP61: 0 | BQ61: 0 | BR61: 0 | BS61: 0 | BT61: =SUM(BT62:BT63) -> 0 | BU61: 0 | BV61: 0 | BW61: 0 | BX61: 0 | BY61: 0 | BZ61: 0 | CA61: 0 | CB61: 0 | CC61: 0 | CD61: 0 | CE61: 0 | CF61: 0 | CG61: 0 | CH61: 0 | CI61: 0 | CJ61: 0 | CK61: 0 | CL61: 0 | CM61: 0 | CN61: 0 | CO61: 0 | CP61: 0 | CQ61: 0 | CR61: 0 | CS61: 0 | CT61: 0 | CU61: 0 | CV61: 0 | CW61: 0 | CX61: 0 | CY61: 0.5 | CZ61: 0 | DA61: 0 | DB61: 0 | DC61: 0
A62: 3.1.2 | B62: Tổng kho xăng dầu | C62: SKK | D62: Quảng Đông | E62: 13.5 | U62: 13 | CY62: 0.5 | DD62: Quảng Đông | DF62: ok
A63: 3.1.3 | B63: Xây dựng hạ tầng KCN sản xuất muối và chế biến Hải sản | C63: SKK | D63: Quảng Phú | E63: 7.5 | M63: 4.11 | Y63: 3.39 | DD63: Quảng Phú | DF63: ok
A64: 3.2 | B64: Đất cụm công nghiệp | E64: 20 | F64: 0 | G64: =SUM(G65:G66) -> 0 | H64: =SUM(H65:H66) -> 0 | I64: 0 | J64: 0 | K64: 0 | L64: 0 | M64: 0 | N64: 0 | O64: 0 | P64: 0 | Q64: 0 | R64: 0 | S64: 0 | T64: 0 | U64: 10 | V64: 0 | W64: 0 | X64: 0 | Y64: 0 | Z64: 0 | AA64: 0 | AB64: 0 | AC64: 0 | AD64: 0 | AE64: 0 | AF64: 0 | AG64: 0 | AH64: 0 | AI64: 0 | AJ64: 0 | AK64: 0 | AL64: 0 | AM64: 0 | AN64: 0 | AO64: 0 | AU64: 0 | AV64: 0 | AW64: 0 | AX64: 0 | AY64: 0 | AZ64: 0 | BA64: 0 | BB64: 0 | BC64: 0 | BD64: 0 | BE64: 0 | BF64: 0 | BG64: 0 | BH64: 0 | BI64: 0 | BJ64: 0 | BK64: 0 | BL64: 0 | BM64: 0 | BN64: 0 | BO64: 0 | BP64: 0 | BQ64: 0 | BR64: 0 | BS64: 0 | BT64: =SUM(BT65:BT66) -> 0 | BU64: 0 | BV64: 0 | BW64: 0 | BX64: 0 | BY64: 0 | BZ64: 0 | CA64: 0 | CB64: 0 | CC64: 0 | CD64: 0 | CE64: 0 | CF64: 0 | CG64: 0 | CH64: 0 | CI64: 0 | CJ64: 0 | CK64: 0 | CL64: 0 | CM64: 0 | CN64: 0 | CO64: 0 | CP64: 0 | CQ64: 0 | CR64: 0 | CS64: 0 | CT64: 0 | CU64: 0 | CV64: 0 | CW64: 0 | CX64: 0 | CY64: 10
A65: 3.2.1 | B65: Cụm công nghiệp xã Quảng Hưng | C65: SKN | D65: Quảng Hưng | E65: 10 | CY65: 10 | DD65: Quảng Hưng | DF65: ok
A66: 3.2.2 | B66: Cụm công nghiệp xã Quảng Trường | C66: SKN | D66: Quảng Trường | E66: 10 | U66: 10 | DD66: Quảng Trường | DF66: ok
A67: 3.3 | B67: Đất xây dựng trụ sở cơ quan | E67: 5.37 | F67: 0 | G67: =SUM(G68:G73) -> 0 | H67: =SUM(H68:H73) -> 0 | I67: 0 | J67: 0 | K67: 0 | L67: 0 | M67: 0.39 | N67: 0 | O67: 0.25 | P67: 0 | Q67: 0 | R67: 0 | S67: 0 | T67: 0 | U67: 1.12 | V67: 0 | W67: 0 | X67: 0 | Y67: 0 | Z67: 0 | AA67: 0 | AB67: 0 | AC67: 0 | AD67: 0 | AE67: 0 | AF67: 0 | AG67: 0 | AH67: 0 | AI67: 0 | AJ67: 0 | AK67: 0 | AL67: 0 | AM67: 0 | AN67: 0 | AO67: 0 | AU67: 0 | AV67: 0 | AW67: 0 | AX67: 0 | AY67: 0 | AZ67: 0 | BA67: 0 | BB67: 0 | BC67: 0 | BD67: 0 | BE67: 0 | BF67: 0 | BG67: 0 | BH67: 0 | BI67: 0.2 | BJ67: 0 | BK67: 0 | BL67: 0 | BM67: 0 | BN67: 0 | BO67: 0 | BP67: 0 | BQ67: 0 | BR67: 0 | BS67: 0 | BT67: =SUM(BT68:BT73) -> 0 | BU67: 0 | BV67: 0 | BW67: 0 | BX67: 0 | BY67: 0 | BZ67: 0 | CA67: 0 | CB67: 0 | CC67: 0 | CD67: 0 | CE67: 0 | CF67: 0 | CG67: 0 | CH67: 0 | CI67: 0 | CJ67: 0 | CK67: 0 | CL67: 0 | CM67: 0 | CN67: 0 | CO67: 0 | CP67: 0 | CQ67: 0 | CR67: 0 | CS67: 0 | CT67: 0 | CU67: 0 | CV67: 0 | CW67: 0 | CX67: 0 | CY67: 3.41
A68: 3.3.2 | B68: Trụ sở làm việc của ban quản lý dự án thanh niên lập nghiệp | C68: TSC | D68: Quảng Châu | E68: 0.4 | U68: 0.4 | DD68: Quảng Châu | DF68: ok
A69: 3.3.3 | B69: Trụ sở cơ quan thị trấn mới | C69: TSC | D69: Quảng Phương | E69: 2.72 | M69: 0.39 | U69: 0.72 | CY69: 1.61 | DD69: Quảng Phương | DF69: ok
A70: 3.3.4 | B70: Khối cơ quan trực thuộc huyện | C70: TSC | D70: Quảng Phương | E70: 1.07 | CY70: 1.07 | DD70: Quảng Phương | DF70: ok
A71: 3.3.5 | B71: Trụ sở Mặt trần và khối đoàn thể | C71: TSC | D71: Quảng Phương | E71: 0.73 | CY71: 0.73 | DD71: Quảng Phương | DF71: ok
A72: 3.3.6 | B72: Mở rộng trụ sở UBND xã Quảng Lưu | C72: TSC | D72: Quảng Lưu | E72: 0.2 | BI72: 0.2 | DD72: Quảng Lưu | DE72: Tờ 10, thửa 107 | DF72: ok
B73: Đất xây dựng trụ sở cơ quan | D73: Các xã trong huyện | E73: 0.25 | G73: =G74 -> 0 | H73: =H74 -> 0 | I73: 0 | J73: 0 | K73: 0 | L73: 0 | M73: 0 | N73: 0 | O73: 0.25 | P73: 0 | Q73: 0 | R73: 0 | S73: 0 | T73: 0 | U73: 0 | V73: 0 | W73: 0 | X73: 0 | Y73: 0 | Z73: 0 | AA73: 0 | AB73: 0 | AC73: 0 | AD73: 0 | AE73: 0 | AF73: 0 | AG73: 0 | AH73: 0 | AI73: 0 | AJ73: 0 | AK73: 0 | AL73: 0 | AM73: 0 | AN73: 0 | AO73: 0 | AU73: 0 | AV73: 0 | AW73: 0 | AX73: 0 | AY73: 0 | AZ73: 0 | BA73: 0 | BB73: 0 | BC73: 0 | BD73: 0 | BE73: 0 | BF73: 0 | BG73: 0 | BH73: 0 | BI73: 0 | BJ73: 0 | BK73: 0 | BL73: 0 | BM73: 0 | BN73: 0 | BO73: 0 | BP73: 0 | BQ73: 0 | BR73: 0 | BS73: 0 | BT73: =BT74 -> 0 | BU73: 0 | BV73: 0 | BW73: 0 | BX73: 0 | BY73: 0 | BZ73: 0 | CA73: 0 | CB73: 0 | CC73: 0 | CD73: 0 | CE73: 0 | CF73: 0 | CG73: 0 | CH73: 0 | CI73: 0 | CJ73: 0 | CK73: 0 | CL73: 0 | CM73: 0 | CN73: 0 | CO73: 0 | CP73: 0 | CQ73: 0 | CR73: 0 | CS73: 0 | CT73: 0 | CU73: 0 | CV73: 0 | CW73: 0 | CX73: 0 | CY73: 0 | DD73: Các xã trong huyện
C74: TSC | D74: Quảng Châu | E74: 0.25 | O74: 0.25 | DD74: Quảng Châu | DF74: ok
A75: 3.4 | B75: Đất xây dựng trụ sở của tổ chức sự nghiệp | E75: 3.19 | F75: 0 | G75: =SUM(G76:G83) -> 0 | H75: 0 | I75: 0 | J75: 0 | K75: 0 | L75: 0 | M75: 0 | N75: 0 | O75: 0.2 | P75: 0 | Q75: 0 | R75: 0 | S75: 0 | T75: 0 | U75: 0 | V75: 0 | W75: 0 | X75: 0 | Y75: 0 | Z75: 0 | AA75: 0 | AB75: 0 | AC75: 0 | AD75: 0 | AE75: 0 | AF75: 0 | AG75: 0 | AH75: 0 | AI75: 0 | AJ75: 0 | AK75: 0 | AL75: 0 | AM75: 0 | AN75: 0 | AO75: 0 | AU75: =SUM(AU76:AU83) -> 0 | AV75: 0 | AW75: 0 | AX75: 0 | AY75: 0 | AZ75: 0 | BA75: 0 | BB75: 0 | BC75: 0 | BD75: 0 | BE75: 0 | BF75: 0 | BG75: 0 | BH75: 0 | BI75: 0 | BJ75: 0 | BK75: 0 | BL75: 0 | BM75: 0 | BN75: 0 | BO75: 0 | BP75: 0 | BQ75: 0 | BR75: 0 | BS75: 0 | BT75: 0 | BU75: 0 | BV75: 0 | BW75: 0 | BX75: 0 | BY75: 0 | BZ75: 0 | CA75: =SUM(CA76:CA83) -> 0 | CB75: 0 | CC75: 0 | CD75: 0 | CE75: 0 | CF75: 0 | CG75: 0 | CH75: 0 | CI75: 0 | CJ75: 0 | CK75: 0 | CL75: 0 | CM75: 0 | CN75: 0 | CO75: 0 | CP75: 0 | CQ75: 0 | CR75: 0 | CS75: 0 | CT75: 0 | CU75: 0 | CV75: 0 | CW75: 0 | CX75: 0 | CY75: 2.99
A76: 3.4.1 | B76: Trạm thú y Quảng Trạch | C76: DTS | D76: Quảng Phương | E76: 0.14 | CY76: 0.14 | DD76: Quảng Phương | DF76: ok
A77: 3.4.3 | B77: Trạm quản lý luồng Hòn La và Đèn báo cảng của tổng công ty bảo đảm an toàn hàng hải (chuyển tiếp từ năm 2016) | C77: DTS | D77: Quảng Đông | E77: 0.35 | CY77: 0.35 | DD77: Quảng Đông | DF77: ok
A78: 3.4.4 | B78: Trụ sở làm việc Ngân hàng chính sách xã hội huyện Quảng Trạch | C78: DTS | D78: Quảng Phương | E78: 0.5 | CY78: 0.5 | DD78: Quảng Phương | DF78: ok
A79: 3.4.5 | B79: Trụ sở hạt kiểm lâm Quảng Phú | C79: DTS | D79: Quảng Phú | E79: 0.2 | O79: 0.2 | DD79: Quảng Phú | DF79: ok
A80: 3.4.6 | B80: Trạm bảo vệ thực vật Quảng Trạch | C80: DTS | D80: Quảng Phương | E80: 0.5 | CY80: 0.5 | DD80: Quảng Phương | DF80: ok
A81: 3.4.7 | B81: Ban quản lý các công trình công cộng | C81: DTS | D81: Quảng Phương | E81: =SUM(G81:CY81) -> 0.51 | CY81: 0.51 | DD81: Quảng Phương | DF81: ok
A82: 3.5.5.3 | B82: Đài truyền thanh, truyền hình huyện Quảng Trạch | C82: DTS | D82: Quảng Phương | E82: 0.71 | CY82: 0.71 | DD82: Quảng Phương | DF82: =IF(LEN(C82)>0,"ok","") -> ok
A83: 3.4.8 | B83: Trụ sở hội đông y huyện Quảng Trạch | C83: DTS | D83: Quảng Phương | E83: 0.28 | CY83: 0.28 | DD83: Quảng Phương | DF83: ok
A84: 3.5 | B84: Đất phát triển hạ tầng | E84: 292.97 | F84: =F85+F127+F136+F151+F156+F159+F166+F170+F177 -> 0 | G84: =G85+G127+G136+G151+G156+G159+G166+G170+G177 -> 12.73 | H84: =H85+H127+H136+H151+H156+H159+H166+H170+H177 -> 0 | I84: 0 | J84: 0 | K84: 0 | L84: 0 | M84: 23.59 | N84: 0 | O84: 7.74 | P84: 0 | Q84: 0 | R84: 0 | S84: 0 | T84: 0 | U84: 84 | V84: 0 | W84: 0 | X84: 0 | Y84: 0 | Z84: 0 | AA84: 0 | AB84: 0 | AC84: 0 | AD84: 0 | AE84: 0 | AF84: 0 | AG84: 0 | AH84: 0 | AI84: 0 | AJ84: 0 | AK84: 0 | AL84: 0 | AM84: 0 | AN84: 0 | AO84: 2 | AP84: 0 | AQ84: 0 | AR84: 0 | AS84: 0 | AT84: 0 | AU84: 33.92 | AV84: 0 | AW84: 56 | AX84: 0 | AY84: 0 | AZ84: 0 | BA84: 0 | BB84: 0 | BC84: 0 | BD84: 0 | BE84: 0.2 | BF84: 0 | BG84: 0 | BH84: 0 | BI84: 0 | BJ84: 0 | BK84: 0 | BL84: 0 | BM84: 0 | BN84: 0 | BO84: 0 | BP84: 0 | BQ84: 0 | BR84: 0 | BS84: 0 | BT84: =BT85+BT127+BT136+BT151+BT156+BT159+BT166+BT170+BT177 -> 0 | BU84: 0 | BV84: 0 | BW84: 0.23 | BX84: 0 | BY84: 0 | BZ84: 0 | CA84: 0 | CB84: 0 | CC84: 0 | CD84: 0 | CE84: 0 | CF84: 0 | CG84: 0 | CH84: 0 | CI84: 2.3 | CJ84: 0 | CK84: 0 | CL84: 0 | CM84: 0 | CN84: 0 | CO84: 0 | CP84: 0 | CQ84: 0 | CR84: 0 | CS84: 7 | CT84: 0 | CU84: 1 | CV84: 0 | CW84: 0 | CX84: 0 | CY84: 62.26
A85: 3.5.1 | B85: Đất giao thông | E85: 115.4 | F85: =F86+SUM(F88:F101)+SUM(F105:F108) -> 0 | G85: =G86+SUM(G88:G101)+SUM(G105:G108) -> 0 | H85: 0 | I85: 0 | J85: 0 | K85: 0 | L85: 0 | M85: 4.09 | N85: 0 | O85: 1.65 | P85: 0 | Q85: 0 | R85: 0 | S85: 0 | T85: 0 | U85: 24.72 | V85: 0 | W85: 0 | X85: 0 | Y85: 0 | Z85: 0 | AA85: 0 | AB85: 0 | AC85: 0 | AD85: 0 | AE85: 0 | AF85: 0 | AG85: 0 | AH85: 0 | AI85: 0 | AJ85: 0 | AK85: 0 | AL85: 0 | AM85: 0 | AN85: 0 | AO85: 2 | AU85: 33.62 | AV85: 0 | AW85: 1 | AX85: 0 | AY85: 0 | AZ85: 0 | BA85: 0 | BB85: 0 | BC85: 0 | BD85: 0 | BE85: 0 | BF85: 0 | BG85: 0 | BH85: 0 | BI85: 0 | BJ85: 0 | BK85: 0 | BL85: 0 | BM85: 0 | BN85: 0 | BO85: 0 | BP85: 0 | BQ85: 0 | BR85: 0 | BS85: =BS86+SUM(BS88:BS101)+SUM(BS105:BS108) -> 0 | BT85: 0 | BU85: 0 | BV85: 0 | BW85: 0 | BX85: 0 | BY85: 0 | BZ85: 0 | CA85: 0 | CB85: 0 | CC85: 0 | CD85: 0 | CE85: 0 | CF85: 0 | CG85: 0 | CH85: 0 | CI85: 2 | CJ85: 0 | CK85: 0 | CL85: 0 | CM85: 0 | CN85: 0 | CO85: 0 | CP85: 0 | CQ85: 0 | CR85: 0 | CS85: 7 | CT85: 0 | CU85: 1 | CV85: 0 | CW85: 0 | CX85: 0 | CY85: 38.32
A86: 3.5.1.2 | B86: Kiên cố hóa chống sụt trược, cải tạo các đoạn xung yếu và xây dựng cầu Phú Nguyên, đường tỉnh 559B | D86: Các xã trong huyện | E86: 12 | U86: 5 | AU86: 4 | AW86: 1 | CI86: 1 | CU86: 1 | DD86: Các xã trong huyện
C87: DGT | D87: Quảng Trường | E87: 12 | U87: 5 | AU87: 4 | AW87: 1 | CI87: 1 | CU87: 1 | DD87: Quảng Trường | DF87: ok
A88: 3.5.1.7 | B88: Đường vượt lũ xã Phù Hóa | C88: DGT | D88: Phù Hóa | E88: 3.5 | M88: 1.5 | CY88: 2 | DD88: Phù Hóa | DF88: ok
A89: 3.5.1.8 | B89: Cảng cá Roòn | C89: DGT | D89: Cảnh Dương | E89: 7 | CS89: 7 | DD89: Cảnh Dương | DE89: Tờ 3, thửa 2 | DF89: ok
A90: 3.5.1.9 | B90: Dự án xây dựng bến xe, dịch vụ đầu mối phía Đông Nam trung tâm huyện lỵ mới huyện Quảng Trạch (giai đoạn 2) | C90: DGT | D90: Quảng Phương | E90: 1.07 | U90: 1.07 | DD90: Quảng Phương | DF90: ok
A91: 3.5.1.10 | B91: Dự án phát triển khu đất giao thông phía Đông Nam khu trung tâm huyện lỵ mới huyện Quảng Trạch (giai đoạn 2) | C91: DGT | D91: Quảng Phương | E91: 12.73 | U91: 12.73 | DD91: Quảng Phương | DF91: ok
A92: 3.5.1.11 | B92: Quy hoạch đất đầu mối kỷ thuật | C92: DGT | D92: Quảng Phương | E92: 2.75 | U92: 1.04 | CI92: 1 | CY92: 0.71 | DD92: Quảng Phương | DF92: ok
A93: 3.5.1.12 | B93: Giao thông khu trung tâm huyện | C93: DGT | D93: Quảng Phương | E93: 14.26 | CY93: 14.26 | DD93: Quảng Phương | DF93: ok
A94: 3.5.1.14 | B94: Điểm đỗ xe xã Quảng Thạch | C94: DGT | D94: Quảng Thạch | E94: 0.2 | M94: 0.2 | DD94: Quảng Thạch | DF94: ok
A95: 3.5.1.15 | B95: Bến xe thị trấn KTT huyện lỵ | C95: DGT | D95: Quảng Phương | E95: 0.71 | U95: 0.71 | DD95: Quảng Phương | DF95: ok
A96: 3.5.1.16 | B96: Đất giao thông phía Bắc khu trung tâm văn hóa, hành chính khu huyện lỵ mới (KOB;2017) | C96: DGT | D96: Quảng Phương | E96: 2.36 | CY96: 2.36 | DD96: Quảng Phương | DF96: ok
A97: 3.5.1.17 | B97: Khu đất giao thông phía Nam (bám theo đường 25m phia nam trục đường N2) KTT huyện lỵ mới (KON;2017) | C97: DGT | D97: Quảng Phương | E97: 3.89 | CY97: 3.89 | DD97: Quảng Phương | DF97: ok
A98: 3.5.1.18 | B98: Giao thông khu đất phía Tây Bắc khu huyện lỵ (TB1) | C98: DGT | D98: Quảng Phương | E98: 7.86 | CY98: 7.86 | DD98: Quảng Phương | DF98: ok
A99: 3.5.1.19 | B99: Giao thông khu đất phía Tây Nam khu huyện lỵ (TN2) | C99: DGT | D99: Quảng Phương | E99: 7 | CY99: 7 | DD99: Quảng Phương | DF99: ok
A100: 3.5.1.20 | B100: Giao thông khu TT làng TNLN | C100: DGT | D100: Quảng Châu | E100: 1.67 | U100: 1.67 | DD100: Quảng Châu | DF100: ok
A101: 3.5.1.21 | B101: Đường giao thông nâng cao năng lực phòng cháy, chữa cháy | D101: Các xã trong huyện | E101: 31 | U101: 2.5 | AU101: =31-2.5 -> 28.5 | DD101: Các xã trong huyện
C102: DGT | D102: Quảng Lưu | E102: 11 | U102: 1 | AU102: 10 | DD102: Quảng Lưu | DF102: ok
C103: DGT | D103: Quảng Thạch | E103: 10 | U103: 0.5 | AU103: 9.5 | DD103: Quảng Thạch | DF103: ok
C104: DGT | D104: Quảng Châu | E104: 10 | U104: 1 | AU104: 9 | DD104: Quảng Châu | DF104: ok
A105: 3.5.1.22 | B105: Dự án phát triển giao thông trong khu đất ở nhà máy xi măng Sông Gianh | C105: DGT | D105: Cảnh Hóa | E105: 2 | AO105: 2 | DD105: Cảnh Hóa | DF105: ok
A106: 3.5.1.24 | B106: Đường giao thông nông thôn | C106: DGT | D106: Quảng Kim | E106: 1.35 | M106: 0.23 | AU106: 1.12 | DD106: Quảng Kim | DF106: ok
A107: 3.5.1.25 | B107: Đường giao thông nông thôn | C107: DGT | D107: Quảng Tiến | E107: 0.24 | CY107: 0.24 | DD107: Quảng Tiến | DF107: ok
A108: 3.5.1.26 | B108: Đường giao thông nông thôn, nội đồng (chuyển tiếp 2016) | D108: Các xã trong huyện | E108: 3.81 | F108: =SUM(F109:F126) -> 0 | G108: 0 | H108: 0 | I108: 0 | J108: 0 | K108: 0 | L108: 0 | M108: 2.16 | N108: 0 | O108: 1.65 | P108: 0 | Q108: 0 | R108: 0 | S108: 0 | T108: 0 | U108: 0 | V108: 0 | W108: 0 | X108: 0 | Y108: 0 | Z108: 0 | AA108: 0 | AB108: 0 | AC108: 0 | AD108: 0 | AE108: 0 | AF108: 0 | AG108: 0 | AH108: 0 | AI108: 0 | AJ108: 0 | AK108: 0 | AL108: 0 | AM108: 0 | AN108: 0 | AO108: 0 | AU108: 0 | AV108: 0 | AW108: 0 | AX108: 0 | AY108: 0 | AZ108: 0 | BA108: 0 | BB108: 0 | BC108: 0 | BD108: 0 | BE108: 0 | BF108: 0 | BG108: 0 | BH108: 0 | BI108: 0 | BJ108: 0 | BK108: 0 | BL108: 0 | BM108: 0 | BN108: 0 | BO108: 0 | BP108: 0 | BQ108: 0 | BR108: =SUM(BR109:BR126) -> 0 | BS108: 0 | BT108: 0 | BU108: 0 | BV108: 0 | BW108: 0 | BX108: 0 | BY108: 0 | BZ108: 0 | CA108: 0 | CB108: 0 | CC108: 0 | CD108: 0 | CE108: 0 | CF108: 0 | CG108: 0 | CH108: 0 | CI108: 0 | CJ108: 0 | CK108: 0 | CL108: 0 | CM108: 0 | CN108: 0 | CO108: 0 | CP108: 0 | CQ108: 0 | CR108: 0 | CS108: 0 | CT108: 0 | CU108: 0 | CV108: 0 | CW108: 0 | CX108: 0 | CY108: 0 | DD108: Các xã trong huyện
B109: 1 | C109: DGT | D109: Cảnh Dương | E109: 0.12 | M109: 0.12 | DD109: Cảnh Dương | DF109: ok
B110: 2 | C110: DGT | D110: Cảnh Hóa | E110: 0.22 | M110: 0.12 | O110: 0.1 | DD110: Cảnh Hóa | DF110: ok
B111: 3 | C111: DGT | D111: Phù Hóa | E111: 0.17 | M111: 0.12 | O111: 0.05 | DD111: Phù Hóa | DF111: ok
B112: 4 | C112: DGT | D112: Quảng Châu | E112: 0.17 | M112: 0.12 | O112: 0.05 | DD112: Quảng Châu | DF112: ok
B113: 5 | C113: DGT | D113: Quảng Đông | E113: 0.17 | M113: 0.12 | O113: 0.05 | DD113: Quảng Đông | DF113: ok
B114: 6 | C114: DGT | D114: Quảng Hợp | E114: 0.17 | M114: 0.12 | O114: 0.05 | DD114: Quảng Hợp | DF114: ok
B115: 7 | C115: DGT | D115: Quảng Hưng | E115: 0.17 | M115: 0.12 | O115: 0.05 | DD115: Quảng Hưng | DF115: ok
B116: 8 | C116: DGT | D116: Quảng Kim | E116: 0.12 | M116: 0.12 | DD116: Quảng Kim | DF116: ok
B117: 9 | C117: DGT | D117: Quảng Liên | E117: 0.22 | M117: 0.12 | O117: 0.1 | DD117: Quảng Liên | DF117: ok
B118: 10 | C118: DGT | D118: Quảng Lưu | E118: 0.92 | M118: 0.12 | O118: 0.8 | DD118: Quảng Lưu | DF118: ok
B119: 11 | C119: DGT | D119: Quảng Phú | E119: 0.17 | M119: 0.12 | O119: 0.05 | DD119: Quảng Phú | DF119: ok
B120: 12 | C120: DGT | D120: Quảng Phương | E120: 0.17 | M120: 0.12 | O120: 0.05 | DD120: Quảng Phương | DF120: ok
B121: 13 | C121: DGT | D121: Quảng Thạch | E121: 0.17 | M121: 0.12 | O121: 0.05 | DD121: Quảng Thạch | DF121: ok
B122: 14 | C122: DGT | D122: Quảng Thanh | E122: 0.17 | M122: 0.12 | O122: 0.05 | DD122: Quảng Thanh | DF122: ok
B123: 15 | C123: DGT | D123: Quảng Tiến | E123: 0.17 | M123: 0.12 | O123: 0.05 | DD123: Quảng Tiến | DF123: ok
B124: 16 | C124: DGT | D124: Quảng Trường | E124: 0.17 | M124: 0.12 | O124: 0.05 | DD124: Quảng Trường | DF124: ok
B125: 17 | C125: DGT | D125: Quảng Tùng | E125: 0.17 | M125: 0.12 | O125: 0.05 | DD125: Quảng Tùng | DF125: ok
B126: 18 | C126: DGT | D126: Quảng Xuân | E126: 0.17 | M126: 0.12 | O126: 0.05 | DD126: Quảng Xuân | DF126: ok
A127: 3.5.2 | B127: Đất thủy lợi | E127: 80.93 | F127: 0 | G127: =SUM(G128:G135) -> 0 | H127: =SUM(H128:H135) -> 0 | I127: 0 | J127: 0 | K127: 0 | L127: 0 | M127: 6.97 | N127: 0 | O127: 0 | P127: 0 | Q127: 0 | R127: 0 | S127: 0 | T127: 0 | U127: 10.05 | V127: 0 | W127: 0 | X127: 0 | Y127: 0 | Z127: 0 | AA127: 0 | AB127: 0 | AC127: 0 | AD127: 0 | AE127: 0 | AF127: 0 | AG127: 0 | AH127: 0 | AI127: 0 | AJ127: 0 | AK127: 0 | AL127: 0 | AM127: 0 | AN127: 0 | AO127: 0 | AP127: 0 | AQ127: 0 | AR127: 0 | AS127: 0 | AT127: 0 | AU127: 0 | AV127: 0 | AW127: 55 | AX127: 0 | AY127: 0 | AZ127: 0 | BA127: 0 | BB127: 0 | BC127: 0 | BD127: 0 | BE127: 0 | BF127: 0 | BG127: 0 | BH127: 0 | BI127: 0 | BJ127: 0 | BK127: 0 | BL127: 0 | BM127: 0 | BN127: 0 | BO127: 0 | BP127: 0 | BQ127: 0 | BR127: 0 | BS127: 0 | BT127: =SUM(BT128:BT135) -> 0 | BU127: 0 | BV127: 0 | BW127: 0 | BX127: 0 | BY127: 0 | BZ127: 0 | CA127: 0 | CB127: 0 | CC127: 0 | CD127: 0 | CE127: 0 | CF127: 0 | CG127: 0 | CH127: 0 | CI127: 0 | CJ127: 0 | CK127: 0 | CL127: 0 | CM127: 0 | CN127: 0 | CO127: 0 | CP127: 0 | CQ127: 0 | CR127: 0 | CS127: 0 | CT127: 0 | CU127: 0 | CV127: 0 | CW127: 0 | CX127: 0 | CY127: 8.91 | CZ127: 0 | DA127: 0 | DB127: 0 | DC127: 0
A128: 3.5.2.1 | B128: Trạm bơm thôn Thanh Xuân | C128: DTL | D128: Quảng Hợp | E128: 0.05 | U128: 0.05 | DD128: Quảng Hợp | DE128: Tờ 44, thửa 448 | DF128: ok
A129: 3.5.2.4 | B129: Hồ Khe Am | C129: DTL | D129: Quảng Tiến | E129: 65 | U129: 10 | AW129: 55 | DD129: Quảng Tiến | DF129: ok
A130: 3.5.2.5 | B130: Di dời kênh mương trạm trộn Phù Lưu | C130: DTL | D130: Quảng Lưu | E130: 0.42 | M130: 0.42 | DD130: Quảng Lưu | DF130: ok
A131: 3.5.2.6 | B131: Dự án đê kè Cảnh Dương, Sông Ròn | C131: DTL | D131: Cảnh Dương | E131: 1.53 | CY131: 1.53 | DD131: Cảnh Dương | DF131: ok
A132: 3.5.2.7 | B132: Kè Phù Hoá | C132: DTL | D132: Phù Hóa | E132: 1.19 | CY132: 1.19 | DD132: Phù Hóa | DF132: ok
A133: 3.5.2.8 | B133: Công trình thu nước thô hồ Bàu Sen | C133: DTL | D133: Quảng Kim | E133: 0.05 | M133: 0.05 | DD133: Quảng Kim | DF133: ok
A134: 3.5.2.9 | B134: Kênh mương thủy lợi khu trung tâm huyện | C134: DTL | D134: Quảng Phương | E134: 12.64 | M134: 6.45 | CY134: 6.19 | DD134: Quảng Phương | DF134: ok
A135: 3.5.2.10 | B135: Trạm bơm đồng Cồn Gốc (Quảng Kim) | C135: DTL | D135: Quảng Kim | E135: 0.05 | M135: 0.05 | DD135: Quảng Kim | DF135: ok
A136: 3.5.3 | B136: Đất năng lượng | E136: 57.47 | F136: 0 | G136: =SUM(G137:G142)+G144+G146+G150 -> 9.97 | H136: =SUM(H137:H142)+H144+H146+H150 -> 0 | I136: 0 | J136: 0 | K136: 0 | L136: 0 | M136: 1.62 | N136: 0 | O136: 1 | P136: 0 | Q136: 0 | R136: 0 | S136: 0 | T136: 0 | U136: 42.7 | V136: 0 | W136: 0 | X136: 0 | Y136: 0 | Z136: 0 | AA136: 0 | AB136: 0 | AC136: 0 | AD136: 0 | AE136: 0 | AF136: 0 | AG136: 0 | AH136: 0 | AI136: 0 | AJ136: 0 | AK136: 0 | AL136: 0 | AM136: 0 | AN136: 0 | AO136: 0 | AU136: 0 | AV136: 0 | AW136: 0 | AX136: 0 | AY136: 0 | AZ136: 0 | BA136: 0 | BB136: 0 | BC136: 0 | BD136: 0 | BE136: 0 | BF136: 0 | BG136: 0 | BH136: 0 | BI136: 0 | BJ136: 0 | BK136: 0 | BL136: 0 | BM136: 0 | BN136: 0 | BO136: 0 | BP136: 0 | BQ136: 0 | BR136: 0 | BS136: 0 | BT136: =SUM(BT137:BT142)+BT144+BT146+BT150 -> 0 | BU136: 0 | BV136: 0 | BW136: 0 | BX136: 0 | BY136: 0 | BZ136: 0 | CA136: 0 | CB136: 0 | CC136: 0 | CD136: 0 | CE136: 0 | CF136: 0 | CG136: 0 | CH136: 0 | CI136: 0 | CJ136: 0 | CK136: 0 | CL136: 0 | CM136: 0 | CN136: 0 | CO136: 0 | CP136: 0 | CQ136: 0 | CR136: 0 | CS136: 0 | CT136: 0 | CU136: 0 | CV136: 0 | CW136: 0 | CX136: 0 | CY136: 2.18
A137: 3.5.3.1 | B137: Chi nhánh điện lực Quảng Trạch | C137: DNL | D137: Quảng Phương | E137: 0.23 | CY137: 0.23 | DD137: Quảng Phương | DF137: ok
A138: 3.5.3.2 | B138: Điện chiếu sáng trên trục đường chính đoạn qua KTT huyện lỵ (trục D1, D2, D3, N2) | C138: DNL | D138: Quảng Phương | E138: 0.55 | CY138: 0.55 | DD138: Quảng Phương | DF138: ok
A139: 3.5.3.3 | B139: Điện chiếu sáng đoạn Ba Đồn đi khu huyện lỵ (D2) | C139: DNL | D139: Quảng Phương | E139: 0.5 | CY139: 0.5 | DD139: Quảng Phương | DF139: ok
A140: 3.5.3.4 | B140: Điện chiếu sáng trên trục đường QL1 đi Bàu Sen | C140: DNL | D140: Quảng Phương | E140: 0.4 | CY140: 0.4 | DD140: Quảng Phương | DF140: ok
A141: 3.5.3.5 | B141: Khu nhà ở công vụ cho cán bộ công nhân viên Trung tâm điện lực Quảng Trạch của Ban Quản lý dự án điện lực Vũng Áng - Quảng Trạch | C141: DNL | D141: Quảng Phú | E141: 4 | M141: 1 | O141: 1 | U141: 2 | DD141: Quảng Phú | DF141: ok
B142: Mạch đường dây 110kv-220kv Đồng Hới - Ba Đồn và năng lượng NT 2 mở rộng (chuyển tiếp năm 2016) | D142: Các xã trong huyện | E142: 0.57 | F142: =F143 -> 0 | G142: 0.12 | H142: 0 | I142: 0 | J142: 0 | K142: 0 | L142: 0 | M142: 0.45 | N142: 0 | O142: 0 | P142: 0 | Q142: 0 | R142: 0 | S142: 0 | T142: 0 | U142: 0 | V142: 0 | W142: 0 | X142: 0 | Y142: 0 | Z142: 0 | AA142: 0 | AB142: 0 | AC142: 0 | AD142: 0 | AE142: 0 | AF142: 0 | AG142: 0 | AH142: 0 | AI142: 0 | AJ142: 0 | AK142: 0 | AL142: 0 | AM142: 0 | AN142: 0 | AO142: 0 | AU142: 0 | AV142: 0 | AW142: 0 | AX142: 0 | AY142: 0 | AZ142: 0 | BA142: 0 | BB142: 0 | BC142: 0 | BD142: 0 | BE142: 0 | BF142: 0 | BG142: 0 | BH142: 0 | BI142: 0 | BJ142: 0 | BK142: 0 | BL142: 0 | BM142: 0 | BN142: 0 | BO142: 0 | BP142: 0 | BQ142: 0 | BR142: =BR143 -> 0 | BS142: 0 | BT142: 0 | BU142: 0 | BV142: 0 | BW142: 0 | BX142: 0 | BY142: 0 | BZ142: 0 | CA142: 0 | CB142: 0 | CC142: 0 | CD142: 0 | CE142: 0 | CF142: 0 | CG142: 0 | CH142: 0 | CI142: 0 | CJ142: 0 | CK142: 0 | CL142: 0 | CM142: 0 | CN142: 0 | CO142: 0 | CP142: 0 | CQ142: 0 | CR142: 0 | CS142: 0 | CT142: 0 | CU142: 0 | CV142: 0 | CW142: 0 | CX142: 0 | CY142: 0
C143: DNL | D143: Quảng Tùng | E143: 0.57 | G143: 0.12 | M143: 0.45 | DF143: ok
B144: Đường dây 110kv Đồng Hới - Ba Đồn - Bố Trạch (chuyển tiếp năm 2016) | D144: Các xã trong huyện | E144: 0.15 | F144: =F145 -> 0 | G144: =G145 -> 0.05 | M144: =M145 -> 0.1
C145: DNL | D145: Quảng Xuân | E145: =SUM(G145:CY145) -> 0.15 | G145: 0.05 | M145: 0.1 | DF145: ok
A146: 3.5.3.7 | B146: Đường dây 110 kv Ba Đồn Hòn La (chuyển tiếp 2016) | D146: Các xã: Quảng Đông, Quảng Tùng, Quảng Phú | E146: 1.07 | G146: 0.5 | M146: 0.07 | CY146: 0.5 | DD146: Các xã: Quảng Đông, Quảng Tùng, Quảng Phú | DF146: =IF(LEN(C146)>0,"ok","") -> 
C147: DNL | D147: Quảng Đông | E147: 0.3 | G147: 0.3 | DD147: Quảng Đông | DF147: ok
C148: DNL | D148: Quảng Tùng | E148: 0.6 | G148: 0.1 | CY148: 0.5 | DD148: Quảng Tùng | DF148: ok
C149: DNL | D149: Quảng Phú | E149: 0.17 | G149: 0.1 | M149: 0.07 | DD149: Quảng Phú | DF149: ok
A150: 3.5.3.8 | B150: Các công trình phụ trợ Trung tâm điện lực Quảng Trạch | C150: DNL | D150: Quảng Đông | E150: 50 | G150: 9.3 | U150: 40.7 | DD150: Quảng Đông | DF150: ok
A151: 3.5.4 | B151: Đất công trình bưu chính viễn thông | E151: 3.89 | F151: 0 | G151: =SUM(G152:G154) -> 1.4 | H151: =SUM(H152:H154) -> 0 | I151: 0 | J151: 0 | K151: 0 | L151: 0 | M151: 1.75 | N151: 0 | O151: 0 | P151: 0 | Q151: 0 | R151: 0 | S151: 0 | T151: 0 | U151: 0.03 | V151: 0 | W151: 0 | X151: 0 | Y151: 0 | Z151: 0 | AA151: 0 | AB151: 0 | AC151: 0 | AD151: 0 | AE151: 0 | AF151: 0 | AG151: 0 | AH151: 0 | AI151: 0 | AJ151: 0 | AK151: 0 | AL151: 0 | AM151: 0 | AN151: 0 | AO151: 0 | AP151: 0 | AQ151: 0 | AR151: 0 | AS151: 0 | AT151: 0 | AU151: 0 | AV151: 0 | AW151: 0 | AX151: 0 | AY151: 0 | AZ151: 0 | BA151: 0 | BB151: 0 | BC151: 0 | BD151: 0 | BE151: 0 | BF151: 0 | BG151: 0 | BH151: 0 | BI151: 0 | BJ151: 0 | BK151: 0 | BL151: 0 | BM151: 0 | BN151: 0 | BO151: 0 | BP151: 0 | BQ151: 0 | BR151: 0 | BS151: 0 | BT151: =SUM(BT152:BT154) -> 0 | BU151: 0 | BV151: 0 | BW151: 0.05 | BX151: 0 | BY151: 0 | BZ151: 0 | CA151: 0 | CB151: 0 | CC151: 0 | CD151: 0 | CE151: 0 | CF151: 0 | CG151: 0 | CH151: 0 | CI151: 0 | CJ151: 0 | CK151: 0 | CL151: 0 | CM151: 0 | CN151: 0 | CO151: 0 | CP151: 0 | CQ151: 0 | CR151: 0 | CS151: 0 | CT151: 0 | CU151: 0 | CV151: 0 | CW151: 0 | CX151: 0 | CY151: 0.66 | CZ151: 0 | DA151: 0 | DB151: 0 | DC151: 0
A152: 3.5.4.1 | B152: Trụ sở viễn thông huyện Quảng trạch | C152: DBV | D152: Quảng Phương | E152: 0.69 | U152: 0.03 | CY152: 0.66 | DD152: Quảng Phương | DF152: ok
A153: 3.5.4.2 | B153: Điểm bưu điện văn hoá xã | C153: DBV | D153: Quảng Phương | E153: 0.05 | BW153: 0.05 | DD153: Quảng Phương | DF153: ok
A154: 3.5.3.6 | B154: Trạm BTS các xã trong huyện | D154: Các xã trong huyện | E154: 3.15 | G154: =G155 -> 1.4 | M154: 1.75 | DD154: Các xã trong huyện | DF154: =IF(LEN(C154)>0,"ok","") -> 
C155: DBV | D155: Quảng Châu | E155: 3.15 | G155: 1.4 | M155: 1.75 | DF155: =IF(LEN(C155)>0,"ok","") -> ok
A156: 3.5.5 | B156: Đất cơ sở văn hóa | E156: 2.62 | F156: 0 | G156: =G157+G158 -> 0 | H156: =H157+H158 -> 0 | I156: 0 | J156: 0 | K156: 0 | L156: 0 | M156: 0 | N156: 0 | O156: 0 | P156: 0 | Q156: 0 | R156: 0 | S156: 0 | T156: 0 | U156: 0.5 | V156: 0 | W156: 0 | X156: 0 | Y156: 0 | Z156: 0 | AA156: 0 | AB156: 0 | AC156: 0 | AD156: 0 | AE156: 0 | AF156: 0 | AG156: 0 | AH156: 0 | AI156: 0 | AJ156: 0 | AK156: 0 | AL156: 0 | AM156: 0 | AN156: 0 | AO156: 0 | AU156: 0 | AV156: 0 | AW156: 0 | AX156: 0 | AY156: 0 | AZ156: 0 | BA156: 0 | BB156: 0 | BC156: 0 | BD156: 0 | BE156: 0 | BF156: 0 | BG156: 0 | BH156: 0 | BI156: 0 | BJ156: 0 | BK156: 0 | BL156: 0 | BM156: 0 | BN156: 0 | BO156: 0 | BP156: 0 | BQ156: 0 | BR156: 0 | BS156: 0 | BT156: =BT157+BT158 -> 0 | BU156: 0 | BV156: 0 | BW156: 0 | BX156: 0 | BY156: 0 | BZ156: 0 | CA156: 0 | CB156: 0 | CC156: 0 | CD156: 0 | CE156: 0 | CF156: 0 | CG156: 0 | CH156: 0 | CI156: 0 | CJ156: 0 | CK156: 0 | CL156: 0 | CM156: 0 | CN156: 0 | CO156: 0 | CP156: 0 | CQ156: 0 | CR156: 0 | CS156: 0 | CT156: 0 | CU156: 0 | CV156: 0 | CW156: 0 | CX156: 0 | CY156: 2.12
A157: 3.5.5.1 | B157: Trung tâm văn hóa huyện Quảng Trạch | C157: DVH | D157: Quảng Phương | E157: 1.62 | CY157: 1.62 | DD157: Quảng Phương | DF157: ok
A158: 3.5.5.2 | B158: Đài tưởng niệm trung tâm huyện | C158: DVH | D158: Quảng Phương | E158: 1 | U158: 0.5 | CY158: 0.5 | DD158: Quảng Phương | DF158: ok
A159: 3.5.6 | B159: Đất cơ sở giáo dục - đào tạo | E159: 7.59 | F159: 0 | G159: =SUM(G160:G165) -> 0 | H159: =SUM(H160:H165) -> 0 | I159: 0 | J159: 0 | K159: 0 | L159: 0 | M159: 0.42 | N159: 0 | O159: 0 | P159: 0 | Q159: 0 | R159: 0 | S159: 0 | T159: 0 | U159: 0.5 | V159: 0 | W159: 0 | X159: 0 | Y159: 0 | Z159: 0 | AA159: 0 | AB159: 0 | AC159: 0 | AD159: 0 | AE159: 0 | AF159: 0 | AG159: 0 | AH159: 0 | AI159: 0 | AJ159: 0 | AK159: 0 | AL159: 0 | AM159: 0 | AN159: 0 | AO159: 0 | AP159: 0 | AQ159: 0 | AR159: 0 | AS159: 0 | AT159: 0 | AU159: 0 | AV159: 0 | AW159: 0 | AX159: 0 | AY159: 0 | AZ159: 0 | BA159: 0 | BB159: 0 | BC159: 0 | BD159: 0 | BE159: 0.2 | BF159: 0 | BG159: 0 | BH159: 0 | BI159: 0 | BJ159: 0 | BK159: 0 | BL159: 0 | BM159: 0 | BN159: 0 | BO159: 0 | BP159: 0 | BQ159: 0 | BR159: 0 | BS159: 0 | BT159: =SUM(BT160:BT165) -> 0 | BU159: 0 | BV159: 0 | BW159: 0 | BX159: 0 | BY159: 0 | BZ159: 0 | CA159: 0 | CB159: 0 | CC159: 0 | CD159: 0 | CE159: 0 | CF159: 0 | CG159: 0 | CH159: 0 | CI159: 0 | CJ159: 0 | CK159: 0 | CL159: 0 | CM159: 0 | CN159: 0 | CO159: 0 | CP159: 0 | CQ159: 0 | CR159: 0 | CS159: 0 | CT159: 0 | CU159: 0 | CV159: 0 | CW159: 0 | CX159: 0 | CY159: 6.47 | CZ159: 0 | DA159: 0 | DB159: 0 | DC159: 0
A160: 3.5.6.1 | B160: Trung tâm dạy nghề huyện Quảng Trạch (chuyển tiếp từ năm 2016) | C160: DGD | D160: Quảng Phương | E160: 3 | CY160: 3 | DD160: Quảng Phương | DF160: ok
A161: 3.5.6.2 | B161: Mở rộng trường mầm non xã Quảng Hợp | C161: DGD | D161: Quảng Hợp | E161: 0.2 | BE161: 0.2 | DD161: Quảng Hợp | DF161: ok
A162: 3.5.6.4 | B162: Trung tâm bồi dưỡng chính trị Quảng Trạch | C162: DGD | D162: Quảng Phương | E162: 2 | U162: 0.5 | CY162: 1.5 | DD162: Quảng Phương | DF162: ok
A163: 3.5.6.5 | B163: Mở rộng trường mầm non trung tâm xã Quảng Đông | C163: DGD | D163: Quảng Đông | E163: 0.3 | M163: 0.3 | DD163: Quảng Đông | DE163: Tờ 30, thửa 97 | DF163: ok
A164: 3.5.6.6 | B164: Khối trường tiểu học và trung học cơ sở | C164: DGD | D164: Quảng Phương | E164: 1.97 | CY164: 1.97 | DD164: Quảng Phương | DF164: ok
A165: 3.5.6.7 | B165: Trường mầm non Quảng Kim (chuyển tiếp từ năm 2016) | C165: DGD | D165: Quảng Kim | E165: 0.12 | M165: 0.12 | DD165: Quảng Kim | DF165: ok
A166: 3.5.7 | B166: Đất cơ sở y tế | E166: 5.46 | F166: 0 | G166: =SUM(G167:G169) -> 1.36 | H166: =SUM(H167:H169) -> 0 | I166: 0 | J166: 0 | K166: 0 | L166: 0 | M166: 2.32 | N166: 0 | O166: 0 | P166: 0 | Q166: 0 | R166: 0 | S166: 0 | T166: 0 | U166: 0 | V166: 0 | W166: 0 | X166: 0 | Y166: 0 | Z166: 0 | AA166: 0 | AB166: 0 | AC166: 0 | AD166: 0 | AE166: 0 | AF166: 0 | AG166: 0 | AH166: 0 | AI166: 0 | AJ166: 0 | AK166: 0 | AL166: 0 | AM166: 0 | AN166: 0 | AO166: 0 | AP166: 0 | AQ166: 0 | AR166: 0 | AS166: 0 | AT166: 0 | AU166: 0.3 | AV166: 0 | AW166: 0 | AX166: 0 | AY166: 0 | AZ166: 0 | BA166: 0 | BB166: 0 | BC166: 0 | BD166: 0 | BE166: 0 | BF166: 0 | BG166: 0 | BH166: 0 | BI166: 0 | BJ166: 0 | BK166: 0 | BL166: 0 | BM166: 0 | BN166: 0 | BO166: 0 | BP166: 0 | BQ166: 0 | BR166: 0 | BS166: 0 | BT166: =SUM(BT167:BT169) -> 0 | BU166: 0 | BV166: 0 | BW166: 0.18 | BX166: 0 | BY166: 0 | BZ166: 0 | CA166: 0 | CB166: 0 | CC166: 0 | CD166: 0 | CE166: 0 | CF166: 0 | CG166: 0 | CH166: 0 | CI166: 0 | CJ166: 0 | CK166: 0 | CL166: 0 | CM166: 0 | CN166: 0 | CO166: 0 | CP166: 0 | CQ166: 0 | CR166: 0 | CS166: 0 | CT166: 0 | CU166: 0 | CV166: 0 | CW166: 0 | CX166: 0 | CY166: 1.3
A167: 3.5.7.2 | B167: Mở rộng trạm y tế xã Quảng Xuân | C167: DYT | D167: Quảng Xuân | E167: 1 | M167: 1 | DD167: Quảng Xuân | DF167: ok
A168: 3.5.7.3 | B168: Trạm y tế xã Quảng Châu | C168: DYT | D168: Quảng Châu | E168: 0.2 | M168: 0.2 | DD168: Quảng Châu | DF168: ok
A169: 3.5.7.4 | B169: Trung tâm Y tế huyện Quảng Trạch (Bệnh viện đa khoa và TT y tế dự phòng Quảng Trạch) | C169: DYT | D169: Quảng Phương | E169: 4.26 | G169: 1.36 | M169: 1.12 | AU169: 0.3 | BW169: 0.18 | CY169: 1.3 | DD169: Quảng Phương | DF169: ok
A170: 3.5.8 | B170: Đất cơ sở thể dục - thể thao | E170: 15.2 | F170: 0 | G170: =SUM(G171:G175) -> 0 | H170: =SUM(H171:H175) -> 0 | I170: 0 | J170: 0 | K170: 0 | L170: 0 | M170: 4.4 | N170: 0 | O170: 5 | P170: 0 | Q170: 0 | R170: 0 | S170: 0 | T170: 0 | U170: 5.5 | V170: 0 | W170: 0 | X170: 0 | Y170: 0 | Z170: 0 | AA170: 0 | AB170: 0 | AC170: 0 | AD170: 0 | AE170: 0 | AF170: 0 | AG170: 0 | AH170: 0 | AI170: 0 | AJ170: 0 | AK170: 0 | AL170: 0 | AM170: 0 | AN170: 0 | AO170: 0 | AP170: 0 | AQ170: 0 | AR170: 0 | AS170: 0 | AT170: 0 | AU170: 0 | AV170: 0 | AW170: 0 | AX170: 0 | AY170: 0 | AZ170: 0 | BA170: 0 | BB170: 0 | BC170: 0 | BD170: 0 | BE170: 0 | BF170: 0 | BG170: 0 | BH170: 0 | BI170: 0 | BJ170: 0 | BK170: 0 | BL170: 0 | BM170: 0 | BN170: 0 | BO170: 0 | BP170: 0 | BQ170: 0 | BR170: 0 | BS170: 0 | BT170: =SUM(BT171:BT175) -> 0 | BU170: 0 | BV170: 0 | BW170: 0 | BX170: 0 | BY170: 0 | BZ170: 0 | CA170: 0 | CB170: 0 | CC170: 0 | CD170: 0 | CE170: 0 | CF170: 0 | CG170: 0 | CH170: 0 | CI170: 0.3 | CJ170: 0 | CK170: 0 | CL170: 0 | CM170: 0 | CN170: 0 | CO170: 0 | CP170: 0 | CQ170: 0 | CR170: 0 | CS170: 0 | CT170: 0 | CU170: 0 | CV170: 0 | CW170: 0 | CX170: 0 | CY170: 0
A171: 3.5.8.2 | B171: Quy hoạch sân thể thao thôn Tùng Giang | C171: DTT | D171: Quảng Châu | E171: 0.5 | U171: 0.5 | DD171: Quảng Châu | DF171: ok
A172: 3.5.8.4 | B172: Sân vận động trung tâm xã | C172: DTT | D172: Quảng Xuân | E172: 0.3 | CI172: 0.3 | DD172: Quảng Xuân | DF172: ok
A173: 3.5.8.5 | B173: Sân thể thao xã Quảng Phú | C173: DTT | D173: Quảng Phú | E173: 0.5 | M173: 0.5 | DD173: Quảng Phú | DF173: ok
A174: 3.5.8.7 | B174: Sân vận động xã Cảnh Hóa | C174: DTT | D174: Cảnh Hóa | E174: 0.9 | M174: 0.9 | DD174: Cảnh Hóa | DE174: Tờ 12 thửa 2 | DF174: ok
A175: 3.5.8.8 | B175: Đất thể dục thể thao các xã | D175: Các xã trong huyện | E175: 13 | G175: 0 | H175: 0 | I175: 0 | J175: 0 | K175: 0 | L175: 0 | M175: 3 | N175: 0 | O175: 5 | P175: 0 | R175: 0 | S175: 0 | U175: 5 | V175: 0 | W175: 0 | X175: 0 | Y175: 0 | Z175: 0 | AA175: 0 | AB175: 0 | AC175: 0 | AD175: 0 | AE175: 0 | AF175: 0 | AG175: 0 | AH175: 0 | AI175: 0 | AJ175: 0 | AK175: 0 | AL175: 0 | AM175: 0 | AN175: 0 | AO175: 0 | AU175: 0 | AV175: 0 | AW175: 0 | AX175: 0 | AY175: 0 | AZ175: 0 | BA175: 0 | BB175: 0 | BC175: 0 | BD175: 0 | BE175: 0 | BF175: 0 | BG175: 0 | BH175: 0 | BI175: 0 | BJ175: 0 | BK175: 0 | BL175: 0 | BM175: 0 | BN175: 0 | BO175: 0 | BP175: 0 | BQ175: 0 | BR175: 0 | BS175: 0 | BT175: 0 | BU175: 0 | BV175: 0 | BW175: 0 | BX175: 0 | BY175: 0 | BZ175: 0 | CA175: 0 | CB175: 0 | CC175: 0 | CD175: 0 | CE175: 0 | CF175: 0 | CG175: 0 | CH175: 0 | CI175: 0 | CJ175: 0 | CK175: 0 | CL175: 0 | CM175: 0 | CN175: 0 | CO175: 0 | CP175: 0 | CQ175: 0 | CR175: 0 | CS175: 0 | CT175: 0 | CU175: 0 | CV175: 0 | CW175: 0 | CX175: 0 | CY175: 0 | DD175: Các xã trong huyện
C176: DTT | D176: Quảng Lưu | E176: 13 | M176: 3 | O176: 5 | U176: 5 | DD176: Quảng Lưu | DF176: ok
A177: 3.5.9 | B177: Đất chợ | E177: 4.41 | F177: 0 | G177: =SUM(G178:G181) -> 0 | H177: =SUM(H178:H181) -> 0 | I177: 0 | J177: 0 | K177: 0 | L177: 0 | M177: 2.02 | N177: 0 | O177: 0.09 | P177: 0 | Q177: 0 | R177: 0 | S177: 0 | T177: 0 | U177: 0 | V177: 0 | W177: 0 | X177: 0 | Y177: 0 | Z177: 0 | AA177: 0 | AB177: 0 | AC177: 0 | AD177: 0 | AE177: 0 | AF177: 0 | AG177: 0 | AH177: 0 | AI177: 0 | AJ177: 0 | AK177: 0 | AL177: 0 | AM177: 0 | AN177: 0 | AO177: 0 | AP177: 0 | AQ177: 0 | AR177: 0 | AS177: 0 | AT177: 0 | AU177: 0 | AV177: 0 | AW177: 0 | AX177: 0 | AY177: 0 | AZ177: 0 | BA177: 0 | BB177: 0 | BC177: 0 | BD177: 0 | BE177: 0 | BF177: 0 | BG177: 0 | BH177: 0 | BI177: 0 | BJ177: 0 | BK177: 0 | BL177: 0 | BM177: 0 | BN177: 0 | BO177: 0 | BP177: 0 | BQ177: 0 | BR177: 0 | BS177: 0 | BT177: =SUM(BT178:BT181) -> 0 | BU177: 0 | BV177: 0 | BW177: 0 | BX177: 0 | BY177: 0 | BZ177: 0 | CA177: 0 | CB177: 0 | CC177: 0 | CD177: 0 | CE177: 0 | CF177: 0 | CG177: 0 | CH177: 0 | CI177: 0 | CJ177: 0 | CK177: 0 | CL177: 0 | CM177: 0 | CN177: 0 | CO177: 0 | CP177: 0 | CQ177: 0 | CR177: 0 | CS177: 0 | CT177: 0 | CU177: 0 | CV177: 0 | CW177: 0 | CX177: 0 | CY177: 2.3
A178: 3.5.9.1 | B178: Chợ Quảng Đông | C178: DCH | D178: Quảng Đông | E178: 2.03 | M178: 1.96 | CY178: 0.07 | DD178: Quảng Đông | DF178: ok
A179: 3.5.9.2 | B179: Mở rộng chợ Quảng Thạnh | C179: DCH | D179: Quảng Thạch | E179: 0.06 | M179: 0.06 | DD179: Quảng Thạch | DF179: ok
A180: 3.5.9.3 | B180: Chợ Quảng Hưng | C180: DCH | D180: Quảng Hưng | E180: 2.23 | CY180: 2.23 | DD180: Quảng Hưng | DE180: Tờ 82, thửa 12 | DF180: ok
A181: 3.5.9.5 | B181: Mở rộng chợ xã Quảng Hợp | C181: DCH | D181: Quảng Hợp | E181: 0.09 | O181: 0.09 | DD181: Quảng Hợp | DF181: ok
A182: 3.6 | B182: Đất cơ sở tôn giáo | E182: 1.75 | F182: 0 | G182: =SUM(G183:G185) -> 0 | H182: =SUM(H183:H185) -> 0 | I182: 0 | J182: 0 | K182: 0 | L182: 0 | M182: 0.65 | N182: 0 | O182: 0 | P182: 0 | Q182: 0 | R182: 0 | S182: 0 | T182: 0 | U182: 0.85 | V182: 0 | W182: 0.17 | X182: 0 | Y182: 0 | Z182: 0 | AA182: 0 | AB182: 0 | AC182: 0 | AD182: 0 | AE182: 0 | AF182: 0 | AG182: 0 | AH182: 0 | AI182: 0 | AJ182: 0 | AK182: 0 | AL182: 0 | AM182: 0 | AN182: 0 | AO182: 0 | AU182: 0 | AV182: 0 | AW182: 0 | AX182: 0 | AY182: 0 | AZ182: 0 | BA182: 0 | BB182: 0 | BC182: 0 | BD182: 0 | BE182: 0 | BF182: 0 | BG182: 0.08 | BH182: 0 | BI182: 0 | BJ182: 0 | BK182: 0 | BL182: 0 | BM182: 0 | BN182: 0 | BO182: 0 | BP182: 0 | BQ182: 0 | BR182: 0 | BS182: 0 | BT182: =SUM(BT183:BT185) -> 0 | BU182: 0 | BV182: 0 | BW182: 0 | BX182: 0 | BY182: 0 | BZ182: 0 | CA182: 0 | CB182: 0 | CC182: 0 | CD182: 0 | CE182: 0 | CF182: 0 | CG182: 0 | CH182: 0 | CI182: 0 | CJ182: 0 | CK182: 0 | CL182: 0 | CM182: 0 | CN182: 0 | CO182: 0 | CP182: 0 | CQ182: 0 | CR182: 0 | CS182: 0 | CT182: 0 | CU182: 0 | CV182: 0 | CW182: 0 | CX182: 0 | CY182: 0
A183: 3.6.1 | B183: Nhà thờ giáo họ thôn Xuân Hải | C183: TON | D183: Quảng Phú | E183: 0.17 | W183: 0.17 | DD183: Quảng Phú | DE183: Tờ 63, thửa số 216 | DF183: ok
A184: 3.6.2 | B184: Nhà giáo lý của nhà thờ Trừng Hải | C184: TON | D184: Quảng Phú | E184: 0.08 | BG184: 0.08 | DD184: Quảng Phú | DF184: ok
A185: 3.6.3 | B185: Mở rộng chùa Ngọa Cương | C185: TON | D185: Cảnh Hóa | E185: 1.5 | M185: 0.65 | U185: 0.85 | DD185: Cảnh Hóa | DE185: Tờ 7 các thửa 182, 58, 69, 155, 156, 73; Tờ 9 các thửa 274, 275, 277, 278, 289, 295, 290, 291, 292 | DF185: ok
A186: 3.7 | B186: Đất cơ sở tín ngưỡng | E186: 0.85 | F186: 0 | H186: =SUM(H187:H189) -> 0 | I186: 0 | J186: 0 | K186: 0 | L186: 0 | M186: 0.2 | N186: 0 | O186: 0 | P186: 0 | Q186: 0 | R186: 0 | S186: 0 | T186: 0 | U186: 0.5 | V186: 0 | W186: 0 | X186: 0 | Y186: 0 | Z186: 0 | AA186: 0 | AB186: 0 | AC186: 0 | AD186: 0 | AE186: 0 | AF186: 0 | AG186: 0 | AH186: 0 | AI186: 0 | AJ186: 0 | AK186: 0 | AL186: 0 | AM186: 0 | AN186: 0 | AO186: 0 | AU186: =SUM(AU187:AU189) -> 0 | AV186: 0 | AW186: 0 | AX186: 0 | AY186: 0 | AZ186: 0 | BA186: 0 | BB186: 0 | BC186: 0 | BD186: 0 | BE186: 0 | BF186: 0 | BG186: 0 | BH186: 0 | BI186: 0 | BJ186: 0 | BK186: 0 | BL186: 0 | BM186: 0 | BN186: 0 | BO186: 0 | BP186: 0 | BQ186: 0 | BR186: 0 | BS186: 0 | BT186: 0 | BU186: 0 | BV186: 0 | BW186: 0.15 | BX186: 0 | BY186: 0 | BZ186: 0 | CA186: =SUM(CA187:CA189) -> 0 | CB186: 0 | CC186: 0 | CD186: 0 | CE186: 0 | CF186: 0 | CG186: 0 | CH186: 0 | CI186: 0 | CJ186: 0 | CK186: 0 | CL186: 0 | CM186: 0 | CN186: 0 | CO186: 0 | CP186: 0 | CQ186: 0 | CR186: 0 | CS186: 0 | CT186: 0 | CU186: 0 | CV186: 0 | CW186: 0 | CX186: 0 | CY186: 0
A187: 3.7.2 | B187: Đình làng Hưng Lộc | C187: TIN | D187: Quảng Hưng | E187: 0.2 | M187: 0.2 | DD187: Quảng Hưng | DF187: ok
A188: 3.7.3 | B188: Đình làng Phú Lộc | C188: TIN | D188: Quảng Phú | E188: 0.15 | BW188: 0.15 | DD188: Quảng Phú | DE188: Tờ 52 thửa 305; tờ 57 thửa 20 | DF188: ok
A189: 3.7.5 | B189: Đất tín ngưỡng thôn Thượng Thọ | C189: TIN | D189: Cảnh Hóa | E189: 0.5 | U189: 0.5 | DD189: Cảnh Hóa | DE189: Tờ 17 các thửa 44 | DF189: ok
A190: 3.8 | B190: Đất nghĩa trang, nghĩa địa | E190: 31.55 | F190: 0 | G190: =G191+G193+G194 -> 0 | H190: =H191+H193+H194 -> 0 | I190: 0 | J190: 0 | K190: 0 | L190: 0 | M190: 0 | N190: 0 | O190: 0 | P190: 0 | Q190: 0 | R190: 0 | S190: 0 | T190: 0 | U190: 22 | V190: 0 | W190: 0 | X190: 0 | Y190: 0 | Z190: 0 | AA190: 0 | AB190: 0 | AC190: 0 | AD190: 0 | AE190: 0 | AF190: 0 | AG190: 0 | AH190: 0 | AI190: 0 | AJ190: 0 | AK190: 0 | AL190: 0 | AM190: 0 | AN190: 0 | AO190: 0 | AU190: 0 | AV190: 0 | AW190: 0 | AX190: 0 | AY190: 0 | AZ190: 0 | BA190: 0 | BB190: 0 | BC190: 0 | BD190: 0 | BE190: 0 | BF190: 0 | BG190: 0 | BH190: 0 | BI190: 0 | BJ190: 0 | BK190: 0 | BL190: 0 | BM190: 0 | BN190: 0 | BO190: 0 | BP190: 0 | BQ190: 0 | BR190: 0 | BS190: 0 | BT190: =BT191+BT193+BT194 -> 0 | BU190: 0 | BV190: 0 | BW190: 0 | BX190: 0 | BY190: 0 | BZ190: 0 | CA190: 0 | CB190: 0 | CC190: 0 | CD190: 0 | CE190: 0 | CF190: 0 | CG190: 0 | CH190: 0 | CI190: 0 | CJ190: 0 | CK190: 0 | CL190: 0 | CM190: 0 | CN190: 0 | CO190: 0 | CP190: 0 | CQ190: 0 | CR190: 0 | CS190: 9.55 | CT190: 0 | CU190: 0 | CV190: 0 | CW190: 0 | CX190: 0 | CY190: 0
A191: 3.8.1 | B191: Đất nghĩa trang nghĩa địa KKT Hòn La | D191: Khu kinh tế Hòn La | E191: 15 | F191: 0 | G191: =G192 -> 0 | H191: =H192 -> 0 | I191: 0 | J191: 0 | K191: 0 | L191: 0 | M191: 0 | N191: 0 | O191: 0 | P191: 0 | Q191: 0 | R191: 0 | S191: 0 | T191: 0 | U191: 15 | V191: 0 | W191: 0 | X191: 0 | Y191: 0 | Z191: 0 | AA191: 0 | AB191: 0 | AC191: 0 | AD191: 0 | AE191: 0 | AF191: 0 | AG191: 0 | AH191: 0 | AI191: 0 | AJ191: 0 | AK191: 0 | AL191: 0 | AM191: 0 | AN191: 0 | AO191: 0 | AU191: 0 | AV191: 0 | AW191: 0 | AX191: 0 | AY191: 0 | AZ191: 0 | BA191: 0 | BB191: 0 | BC191: 0 | BD191: 0 | BE191: 0 | BF191: 0 | BG191: 0 | BH191: 0 | BI191: 0 | BJ191: 0 | BK191: 0 | BL191: 0 | BM191: 0 | BN191: 0 | BO191: 0 | BP191: 0 | BQ191: 0 | BR191: 0 | BS191: 0 | BT191: =BT192 -> 0 | BU191: 0 | BV191: 0 | BW191: 0 | BX191: 0 | BY191: 0 | BZ191: 0 | CA191: 0 | CB191: 0 | CC191: 0 | CD191: 0 | CE191: 0 | CF191: 0 | CG191: 0 | CH191: 0 | CI191: 0 | CJ191: 0 | CK191: 0 | CL191: 0 | CM191: 0 | CN191: 0 | CO191: 0 | CP191: 0 | CQ191: 0 | CR191: 0 | CS191: 0 | CT191: 0 | CU191: 0 | CV191: 0 | CW191: 0 | CX191: 0 | CY191: 0 | DD191: Khu kinh tế Hòn La
C192: NTD | D192: Quảng Đông | E192: 15 | U192: 15 | DD192: Quảng Đông | DF192: ok
A193: 3.8.2 | B193: Khu nghĩa địa để GPMB khu trung tâm huyện Quảng Trạch | C193: NTD | D193: Quảng Phương | E193: 0.9 | U193: 0.9 | DD193: Quảng Phương | DF193: ok
A194: 3.8.3 | B194: Đất làm nghĩa trang, nghĩa địa, nhà tang lễ, nhà hỏa táng | D194: Các xã trong huyện | E194: 15.65 | G194: 0 | H194: 0 | I194: 0 | J194: 0 | K194: 0 | L194: 0 | M194: 0 | N194: 0 | O194: 0 | P194: 0 | Q194: 0 | R194: 0 | S194: 0 | T194: 0 | U194: 6.1 | V194: 0 | W194: 0 | X194: 0 | Y194: 0 | Z194: 0 | AA194: 0 | AB194: 0 | AC194: 0 | AD194: 0 | AE194: 0 | AF194: 0 | AG194: 0 | AH194: 0 | AI194: 0 | AJ194: 0 | AK194: 0 | AL194: 0 | AM194: 0 | AN194: 0 | AO194: 0 | AU194: 0 | AV194: 0 | AW194: 0 | AX194: 0 | AY194: 0 | AZ194: 0 | BA194: 0 | BB194: 0 | BC194: 0 | BD194: 0 | BE194: 0 | BF194: 0 | BG194: 0 | BH194: 0 | BI194: 0 | BJ194: 0 | BK194: 0 | BL194: 0 | BM194: 0 | BN194: 0 | BO194: 0 | BP194: 0 | BQ194: 0 | BR194: 0 | BS194: 0 | BT194: 0 | BU194: 0 | BV194: 0 | BW194: 0 | BX194: 0 | BY194: 0 | BZ194: 0 | CA194: 0 | CB194: 0 | CC194: 0 | CD194: 0 | CE194: 0 | CF194: 0 | CG194: 0 | CH194: 0 | CI194: 0 | CJ194: 0 | CK194: 0 | CL194: 0 | CM194: 0 | CN194: 0 | CO194: 0 | CP194: 0 | CQ194: 0 | CR194: 0 | CS194: 9.55 | CT194: 0 | CU194: 0 | CV194: 0 | CW194: 0 | CX194: 0 | CY194: 0 | DD194: Các xã trong huyện
C195: NTD | D195: Quảng Tùng | E195: 16.55 | U195: 7 | CS195: 9.55 | DD195: Quảng Tùng | DF195: ok
A196: 3.9 | B196: Đất sinh hoạt cộng đồng | E196: 3.52 | F196: 0 | G196: =SUM(G197:G203) -> 0 | H196: 0 | I196: 0 | J196: 0 | K196: 0 | L196: 0 | M196: 0.2 | N196: 0 | O196: 0 | P196: 0 | Q196: 0 | R196: 0 | S196: 0 | T196: 0 | U196: 0 | V196: 0 | W196: 0 | X196: 0 | Y196: 0 | Z196: 0 | AA196: 0 | AB196: 0 | AC196: 0 | AD196: 0 | AE196: 0 | AF196: 0 | AG196: 0 | AH196: 0 | AI196: 0 | AJ196: 0 | AK196: 0 | AL196: 0 | AM196: 0 | AN196: 0 | AO196: 0 | AU196: 0.63 | AV196: 0 | AW196: 0 | AX196: 0 | AY196: 0 | AZ196: 0 | BA196: 0 | BB196: 0 | BC196: 0 | BD196: 0 | BE196: 0 | BF196: 0 | BG196: 0 | BH196: 0 | BI196: 0.82 | BJ196: 0 | BK196: 0 | BL196: 0 | BM196: 0 | BN196: 0 | BO196: 0 | BP196: 0 | BQ196: 0 | BR196: 0 | BS196: =SUM(BS197:BS203) -> 0 | BT196: 0 | BU196: 0 | BV196: 0 | BW196: 0 | BX196: 0 | BY196: 0 | BZ196: 0 | CA196: 0 | CB196: 0 | CC196: 0 | CD196: 0 | CE196: 0 | CF196: 0 | CG196: 0 | CH196: 0 | CI196: 0 | CJ196: 0 | CK196: 0 | CL196: 0 | CM196: 0 | CN196: 0 | CO196: 0 | CP196: 0 | CQ196: 0 | CR196: 0 | CS196: 0 | CT196: 0 | CU196: 0 | CV196: 0 | CW196: 0 | CX196: 0 | CY196: 1.87
A197: 3.9.1 | B197: Nhà văn hóa thôn 1 | C197: DSH | D197: Quảng Kim | E197: 0.97 | CY197: 0.97 | DD197: Quảng Kim | DE197: Tờ 27, thửa số 530 | DF197: ok | DH197: Q. Phương, Q. Thanh chờ QH Chi tiết
A198: 3.9.2 | B198: Nhà văn hóa thôn 2 | C198: DSH | D198: Quảng Kim | E198: 0.2 | M198: 0.2 | DD198: Quảng Kim | DE198: Tờ 30, thửa số 18 | DF198: ok
A199: 3.9.3 | B199: Nhà văn hóa thôn 3 | C199: DSH | D199: Quảng Kim | E199: 0.9 | CY199: 0.9 | DD199: Quảng Kim | DE199: Tờ 22, thửa 199 | DF199: ok
A200: 3.9.4 | B200: Nhà văn hóa thôn 4 | C200: DSH | D200: Quảng Kim | E200: 0.73 | AU200: 0.43 | BI200: 0.3 | DD200: Quảng Kim | DE200: Tờ 19, thửa 380 | DF200: ok
A201: 3.9.5 | B201: Quy hoạch nhà văn hóa thôn Sơn Tùng | C201: DSH | D201: Quảng Châu | E201: 0.2 | AU201: 0.2 | DD201: Quảng Châu | DF201: ok
... 213 more rows

Sheet goc (hidden)
A2: I | B2: QUY HOẠCH
C3: 1 | D3: 2 | E3: 3 | F3: 4 | G3: 5 | H3: 6 | I3: 7 | J3: 8 | K3: 9 | L3: 10 | M3: 11 | N3: 12 | O3: 13 | P3: 14 | Q3: 15 | R3: 16 | S3: 17 | T3: 18 | U3: 19 | V3: 20 | W3: 21 | X3: 22 | Y3: 23 | Z3: 24 | AA3: 25 | AB3: 26 | AC3: 27 | AD3: 28 | AE3: 29 | AF3: 30 | AG3: 31 | AH3: 32 | AI3: 33 | AJ3: 34 | AK3: 35 | AL3: 36 | AM3: 37 | AN3: 38 | AO3: 39 | AP3: 40 | AQ3: 41 | AR3: 42 | AS3: 43 | AT3: 44 | AU3: 45 | AV3: 46 | AW3: 47 | AX3: 48 | AY3: 49 | AZ3: 50 | BA3: 51 | BB3: 52 | BC3: 53 | BD3: 54 | BE3: 55 | BF3: 56 | BG3: 57 | BH3: 58 | BI3: 59 | BJ3: 60 | BK3: 61
A4: STT | B4: Chỉ tiêu sử dụng đất | C4: Mã | D4: Diện tíchđầu kỳ, năm 2015 | E4: Chu chuyển đất đai trong năm kế hoạch 2016 | BH4: Cộng giảm | BI4: Tăng (+) Giảm (-) | BJ4: Diện tíchcuối kỳ năm 2020 | BK4: Kiểm tra
E5: NNP | F5: LUA | G5: LUC | H5: LUN | I5: LUK | J5: HNK | K5: CLN | L5: RPH | M5: RDD | N5: RSX | O5: NTS | P5: LMU | Q5: NKH | R5: PNN | S5: CQP | T5: CAN | U5: SKK | V5: SKN | W5: SKT | X5: TMD | Y5: SKC | Z5: SKS | AA5: DHT | AB5: DGT | AC5: DTL | AD5: DNL | AE5: DBV | AF5: DVH | AG5: DYT | AH5: DGD | AI5: DTT | AJ5: DKH | AK5: DXH | AL5: DCH | AM5: DDT | AN5: DDL | AO5: DRA | AP5: ONT | AQ5: ODT | AR5: TSC | AS5: DTS | AT5: DNG | AU5: TON | AV5: NTD | AW5: SKX | AX5: DSH | AY5: DKV | AZ5: TIN | BA5: SON | BB5: MNC | BC5: PNK | BD5: CSD | BE5: BCS | BF5: DCS | BG5: NCS
A6: I | B6: TỔNG DIỆN TÍCH ĐẤT TỰ NHIÊN | D6: =D7+D20+D58 ->  | E6: =E7+E20+E58 ->  | F6: =F7+F20+F58 ->  | BK6: =IF(BJ6-D6=0,"ok","sai") -> 
A7: 1 | B7: Đất nông nghiệp | C7: NNP | D7: =D8+SUM(D12:D19) ->  | E7: =E8+SUM(E12:E19) ->  | R7: 0 | S7: 0 | T7: 0 | U7: 0 | V7: 0 | W7: 0 | X7: 0 | Y7: 0 | Z7: 0 | AA7: 0 | AB7: 0 | AC7: 0 | AD7: 0 | AE7: 0 | AF7: 0 | AG7: 0 | AH7: 0 | AI7: 0 | AJ7: 0 | AK7: 0 | AL7: 0 | AM7: 0 | AN7: 0 | AO7: 0 | AP7: 0 | AQ7: 0 | AR7: 0 | AS7: 0 | AT7: 0 | AU7: 0 | AV7: 0 | AW7: 0 | AX7: 0 | AY7: 0 | AZ7: 0 | BA7: 0 | BB7: 0 | BC7: 0 | BD7: 0 | BE7: 0 | BF7: 0 | BG7: 0 | BH7: =$D7-E7 ->  | BI7: =E$62-$BH7 ->  | BJ7: =D7+BI7 ->  | BK7: =IF(BJ7<0,"Lỗi diện tích cuối kỳ <0",IF(BH7>D7,"Lỗi diện tích giảm lớn hơn diện tích hiện trạng","ok")) -> 
A8: 1.1 | B8: Đất trồng lúa | C8: LUA | D8: =SUM(D9:D11) ->  | E8: =SUM(E9:E11) ->  | J8: 0 | K8: 0 | L8: 0 | M8: 0 | N8: 0 | O8: 0 | P8: 0 | Q8: 0 | R8: 0 | S8: 0 | T8: 0 | U8: 0 | V8: 0 | W8: 0 | X8: 0 | Y8: 0 | Z8: 0 | AA8: 0 | AB8: 0 | AC8: 0 | AD8: 0 | AE8: 0 | AF8: 0 | AG8: 0 | AH8: 0 | AI8: 0 | AJ8: 0 | AK8: 0 | AL8: 0 | AM8: 0 | AN8: 0 | AO8: 0 | AP8: 0 | AQ8: 0 | AR8: 0 | AS8: 0 | AT8: 0 | AU8: 0 | AV8: 0 | AW8: 0 | AX8: 0 | AY8: 0 | AZ8: 0 | BA8: 0 | BB8: 0 | BC8: 0 | BD8: 0 | BE8: 0 | BF8: 0 | BG8: 0 | BH8: =$D8-F8 ->  | BI8: =F$62-$BH8 ->  | BJ8: =D8+BI8 ->  | BK8: =IF(BJ8<0,"Lỗi diện tích cuối kỳ <0",IF(BH8>D8,"Lỗi diện tích giảm lớn hơn diện tích hiện trạng","ok")) -> 
A9: 1.1.1 | B9: Đất chuyên trồng lúa nước | C9: LUC | D9: =VLOOKUP(C9,#REF!,MATCH($A$1,maxa,0)+2,0) ->  | E9: =F9+SUM(J9:Q9) ->  | F9: =SUM(G9:I9) ->  | G9: =$D9-SUM($H9:$Q9)-$R9-$BD9 ->  | H9: =SUMIFS(DT!$F$8:$F$595,DT!$C$8:$C$595,H$5,DT!$D$8:$D$595,$A$1) -> 0 | I9: =SUMIFS(DT!$F$8:$F$595,DT!$C$8:$C$595,I$5,DT!$D$8:$D$595,$A$1) -> 0 | J9: =SUMIFS(DT!$F$8:$F$595,DT!$C$8:$C$595,J$5,DT!$D$8:$D$595,$A$1) -> 0 | K9: =SUMIFS(DT!$F$8:$F$595,DT!$C$8:$C$595,K$5,DT!$D$8:$D$595,$A$1) -> 0 | L9: =SUMIFS(DT!$F$8:$F$595,DT!$C$8:$C$595,L$5,DT!$D$8:$D$595,$A$1) -> 0 | M9: =SUMIFS(DT!$F$8:$F$595,DT!$C$8:$C$595,M$5,DT!$D$8:$D$595,$A$1) -> 0 | N9: =SUMIFS(DT!$F$8:$F$595,DT!$C$8:$C$595,N$5,DT!$D$8:$D$595,$A$1) -> 0 | O9: =SUMIFS(DT!$F$8:$F$595,DT!$C$8:$C$595,O$5,DT!$D$8:$D$595,$A$1) -> 0 | P9: =SUMIFS(DT!$F$8:$F$595,DT!$C$8:$C$595,P$5,DT!$D$8:$D$595,$A$1) -> 0 | Q9: =SUMIFS(DT!$F$8:$F$595,DT!$C$8:$C$595,Q$5,DT!$D$8:$D$595,$A$1) -> 0 | R9: =SUM(S9:AA9)+SUM(AM9:BC9) -> 0 | S9: =SUMIFS(DT!$F$8:$F$595,DT!$C$8:$C$595,S$5,DT!$D$8:$D$595,$A$1) -> 0 | T9: =SUMIFS(DT!$F$8:$F$595,DT!$C$8:$C$595,T$5,DT!$D$8:$D$595,$A$1) -> 0 | U9: =SUMIFS(DT!$F$8:$F$595,DT!$C$8:$C$595,U$5,DT!$D$8:$D$595,$A$1) -> 0 | V9: =SUMIFS(DT!$F$8:$F$595,DT!$C$8:$C$595,V$5,DT!$D$8:$D$595,$A$1) -> 0 | W9: =SUMIFS(DT!$F$8:$F$595,DT!$C$8:$C$595,W$5,DT!$D$8:$D$595,$A$1) -> 0 | X9: =SUMIFS(DT!$F$8:$F$595,DT!$C$8:$C$595,X$5,DT!$D$8:$D$595,$A$1) -> 0 | Y9: =SUMIFS(DT!$F$8:$F$595,DT!$C$8:$C$595,Y$5,DT!$D$8:$D$595,$A$1) -> 0 | Z9: =SUMIFS(DT!$F$8:$F$595,DT!$C$8:$C$595,Z$5,DT!$D$8:$D$595,$A$1) -> 0 | AA9: =SUM(AB9:AL9) -> 0 | AB9: =SUMIFS(DT!$F$8:$F$595,DT!$C$8:$C$595,AB$5,DT!$D$8:$D$595,$A$1) -> 0 | AC9: =SUMIFS(DT!$F$8:$F$595,DT!$C$8:$C$595,AC$5,DT!$D$8:$D$595,$A$1) -> 0 | AD9: =SUMIFS(DT!$F$8:$F$595,DT!$C$8:$C$595,AD$5,DT!$D$8:$D$595,$A$1) -> 0 | AE9: =SUMIFS(DT!$F$8:$F$595,DT!$C$8:$C$595,AE$5,DT!$D$8:$D$595,$A$1) -> 0 | AF9: =SUMIFS(DT!$F$8:$F$595,DT!$C$8:$C$595,AF$5,DT!$D$8:$D$595,$A$1) -> 0 | AG9: =SUMIFS(DT!$F$8:$F$595,DT!$C$8:$C$595,AG$5,DT!$D$8:$D$595,$A$1) -> 0 | AH9: =SUMIFS(DT!$F$8:$F$595,DT!$C$8:$C$595,AH$5,DT!$D$8:$D$595,$A$1) -> 0 | AI9: =SUMIFS(DT!$F$8:$F$595,DT!$C$8:$C$595,AI$5,DT!$D$8:$D$595,$A$1) -> 0 | AJ9: =SUMIFS(DT!$F$8:$F$595,DT!$C$8:$C$595,AJ$5,DT!$D$8:$D$595,$A$1) -> 0 | AK9: =SUMIFS(DT!$F$8:$F$595,DT!$C$8:$C$595,AK$5,DT!$D$8:$D$595,$A$1) -> 0 | AL9: =SUMIFS(DT!$F$8:$F$595,DT!$C$8:$C$595,AL$5,DT!$D$8:$D$595,$A$1) -> 0 | AM9: =SUMIFS(DT!$F$8:$F$595,DT!$C$8:$C$595,AM$5,DT!$D$8:$D$595,$A$1) -> 0 | AN9: =SUMIFS(DT!$F$8:$F$595,DT!$C$8:$C$595,AN$5,DT!$D$8:$D$595,$A$1) -> 0 | AO9: =SUMIFS(DT!$F$8:$F$595,DT!$C$8:$C$595,AO$5,DT!$D$8:$D$595,$A$1) -> 0 | AP9: =SUMIFS(DT!$F$8:$F$595,DT!$C$8:$C$595,AP$5,DT!$D$8:$D$595,$A$1) -> 0 | AQ9: =SUMIFS(DT!$F$8:$F$595,DT!$C$8:$C$595,AQ$5,DT!$D$8:$D$595,$A$1) -> 0 | AR9: =SUMIFS(DT!$F$8:$F$595,DT!$C$8:$C$595,AR$5,DT!$D$8:$D$595,$A$1) -> 0 | AS9: =SUMIFS(DT!$F$8:$F$595,DT!$C$8:$C$595,AS$5,DT!$D$8:$D$595,$A$1) -> 0 | AT9: =SUMIFS(DT!$F$8:$F$595,DT!$C$8:$C$595,AT$5,DT!$D$8:$D$595,$A$1) -> 0 | AU9: =SUMIFS(DT!$F$8:$F$595,DT!$C$8:$C$595,AU$5,DT!$D$8:$D$595,$A$1) -> 0 | AV9: =SUMIFS(DT!$F$8:$F$595,DT!$C$8:$C$595,AV$5,DT!$D$8:$D$595,$A$1) -> 0 | AW9: =SUMIFS(DT!$F$8:$F$595,DT!$C$8:$C$595,AW$5,DT!$D$8:$D$595,$A$1) -> 0 | AX9: =SUMIFS(DT!$F$8:$F$595,DT!$C$8:$C$595,AX$5,DT!$D$8:$D$595,$A$1) -> 0 | AY9: =SUMIFS(DT!$F$8:$F$595,DT!$C$8:$C$595,AY$5,DT!$D$8:$D$595,$A$1) -> 0 | AZ9: =SUMIFS(DT!$F$8:$F$595,DT!$C$8:$C$595,AZ$5,DT!$D$8:$D$595,$A$1) -> 0 | BA9: =SUMIFS(DT!$F$8:$F$595,DT!$C$8:$C$595,BA$5,DT!$D$8:$D$595,$A$1) -> 0 | BB9: =SUMIFS(DT!$F$8:$F$595,DT!$C$8:$C$595,BB$5,DT!$D$8:$D$595,$A$1) -> 0 | BC9: =SUMIFS(DT!$F$8:$F$595,DT!$C$8:$C$595,BC$5,DT!$D$8:$D$595,$A$1) -> 0 | BD9: =SUM(BE9:BG9) -> 0 | BE9: =SUMIFS(DT!$F$8:$F$595,DT!$C$8:$C$595,BE$5,DT!$D$8:$D$595,$A$1) -> 0 | BF9: =SUMIFS(DT!$F$8:$F$595,DT!$C$8:$C$595,BF$5,DT!$D$8:$D$595,$A$1) -> 0 | BG9: =SUMIFS(DT!$F$8:$F$595,DT!$C$8:$C$595,BG$5,DT!$D$8:$D$595,$A$1) -> 0 | BH9: =$D9-G9 ->  | BI9: =G$62-$BH9 -> 
A10: 1.1.2 | B10: Đất trồng lúa nương | C10: LUN | D10: =VLOOKUP(C10,#REF!,MATCH($A$1,maxa,0)+2,0) ->  | E10: =F10+SUM(J10:Q10) ->  | F10: =SUM(G10:I10) ->  | G10: =SUMIFS(DT!$H$8:$H$595,DT!$C$8:$C$595,G$5,DT!$D$8:$D$595,$A$1) -> 0 | H10: =$D10-G10-SUM($I10:$Q10)-$R10-$BD10 ->  | I10: =SUMIFS(DT!$H$8:$H$595,DT!$C$8:$C$595,I$5,DT!$D$8:$D$595,$A$1) -> 0 | J10: =SUMIFS(DT!$H$8:$H$595,DT!$C$8:$C$595,J$5,DT!$D$8:$D$595,$A$1) -> 0 | K10: =SUMIFS(DT!$H$8:$H$595,DT!$C$8:$C$595,K$5,DT!$D$8:$D$595,$A$1) -> 0 | L10: =SUMIFS(DT!$H$8:$H$595,DT!$C$8:$C$595,L$5,DT!$D$8:$D$595,$A$1) -> 0 | M10: =SUMIFS(DT!$H$8:$H$595,DT!$C$8:$C$595,M$5,DT!$D$8:$D$595,$A$1) -> 0 | N10: =SUMIFS(DT!$H$8:$H$595,DT!$C$8:$C$595,N$5,DT!$D$8:$D$595,$A$1) -> 0 | O10: =SUMIFS(DT!$H$8:$H$595,DT!$C$8:$C$595,O$5,DT!$D$8:$D$595,$A$1) -> 0 | P10: =SUMIFS(DT!$H$8:$H$595,DT!$C$8:$C$595,P$5,DT!$D$8:$D$595,$A$1) -> 0 | Q10: =SUMIFS(DT!$H$8:$H$595,DT!$C$8:$C$595,Q$5,DT!$D$8:$D$595,$A$1) -> 0 | R10: 0 | S10: =SUMIFS(DT!$H$8:$H$595,DT!$C$8:$C$595,S$5,DT!$D$8:$D$595,$A$1) -> 0 | T10: =SUMIFS(DT!$H$8:$H$595,DT!$C$8:$C$595,T$5,DT!$D$8:$D$595,$A$1) -> 0 | U10: =SUMIFS(DT!$H$8:$H$595,DT!$C$8:$C$595,U$5,DT!$D$8:$D$595,$A$1) -> 0 | V10: =SUMIFS(DT!$H$8:$H$595,DT!$C$8:$C$595,V$5,DT!$D$8:$D$595,$A$1) -> 0 | W10: =SUMIFS(DT!$H$8:$H$595,DT!$C$8:$C$595,W$5,DT!$D$8:$D$595,$A$1) -> 0 | X10: =SUMIFS(DT!$H$8:$H$595,DT!$C$8:$C$595,X$5,DT!$D$8:$D$595,$A$1) -> 0 | Y10: =SUMIFS(DT!$H$8:$H$595,DT!$C$8:$C$595,Y$5,DT!$D$8:$D$595,$A$1) -> 0 | Z10: =SUMIFS(DT!$H$8:$H$595,DT!$C$8:$C$595,Z$5,DT!$D$8:$D$595,$A$1) -> 0 | AA10: =SUM(AB10:AL10) -> 0 | AB10: =SUMIFS(DT!$H$8:$H$595,DT!$C$8:$C$595,AB$5,DT!$D$8:$D$595,$A$1) -> 0 | AC10: =SUMIFS(DT!$H$8:$H$595,DT!$C$8:$C$595,AC$5,DT!$D$8:$D$595,$A$1) -> 0 | AD10: =SUMIFS(DT!$H$8:$H$595,DT!$C$8:$C$595,AD$5,DT!$D$8:$D$595,$A$1) -> 0 | AE10: =SUMIFS(DT!$H$8:$H$595,DT!$C$8:$C$595,AE$5,DT!$D$8:$D$595,$A$1) -> 0 | AF10: =SUMIFS(DT!$H$8:$H$595,DT!$C$8:$C$595,AF$5,DT!$D$8:$D$595,$A$1) -> 0 | AG10: =SUMIFS(DT!$H$8:$H$595,DT!$C$8:$C$595,AG$5,DT!$D$8:$D$595,$A$1) -> 0 | AH10: =SUMIFS(DT!$H$8:$H$595,DT!$C$8:$C$595,AH$5,DT!$D$8:$D$595,$A$1) -> 0 | AI10: =SUMIFS(DT!$H$8:$H$595,DT!$C$8:$C$595,AI$5,DT!$D$8:$D$595,$A$1) -> 0 | AJ10: =SUMIFS(DT!$H$8:$H$595,DT!$C$8:$C$595,AJ$5,DT!$D$8:$D$595,$A$1) -> 0 | AK10: =SUMIFS(DT!$H$8:$H$595,DT!$C$8:$C$595,AK$5,DT!$D$8:$D$595,$A$1) -> 0 | AL10: =SUMIFS(DT!$H$8:$H$595,DT!$C$8:$C$595,AL$5,DT!$D$8:$D$595,$A$1) -> 0 | AM10: =SUMIFS(DT!$H$8:$H$595,DT!$C$8:$C$595,AM$5,DT!$D$8:$D$595,$A$1) -> 0 | AN10: =SUMIFS(DT!$H$8:$H$595,DT!$C$8:$C$595,AN$5,DT!$D$8:$D$595,$A$1) -> 0 | AO10: =SUMIFS(DT!$H$8:$H$595,DT!$C$8:$C$595,AO$5,DT!$D$8:$D$595,$A$1) -> 0 | AP10: =SUMIFS(DT!$H$8:$H$595,DT!$C$8:$C$595,AP$5,DT!$D$8:$D$595,$A$1) -> 0 | AQ10: =SUMIFS(DT!$H$8:$H$595,DT!$C$8:$C$595,AQ$5,DT!$D$8:$D$595,$A$1) -> 0 | AR10: =SUMIFS(DT!$H$8:$H$595,DT!$C$8:$C$595,AR$5,DT!$D$8:$D$595,$A$1) -> 0 | AS10: =SUMIFS(DT!$H$8:$H$595,DT!$C$8:$C$595,AS$5,DT!$D$8:$D$595,$A$1) -> 0 | AT10: =SUMIFS(DT!$H$8:$H$595,DT!$C$8:$C$595,AT$5,DT!$D$8:$D$595,$A$1) -> 0 | AU10: =SUMIFS(DT!$H$8:$H$595,DT!$C$8:$C$595,AU$5,DT!$D$8:$D$595,$A$1) -> 0 | AV10: =SUMIFS(DT!$H$8:$H$595,DT!$C$8:$C$595,AV$5,DT!$D$8:$D$595,$A$1) -> 0 | AW10: =SUMIFS(DT!$H$8:$H$595,DT!$C$8:$C$595,AW$5,DT!$D$8:$D$595,$A$1) -> 0 | AX10: =SUMIFS(DT!$H$8:$H$595,DT!$C$8:$C$595,AX$5,DT!$D$8:$D$595,$A$1) -> 0 | AY10: =SUMIFS(DT!$H$8:$H$595,DT!$C$8:$C$595,AY$5,DT!$D$8:$D$595,$A$1) -> 0 | AZ10: =SUMIFS(DT!$H$8:$H$595,DT!$C$8:$C$595,AZ$5,DT!$D$8:$D$595,$A$1) -> 0 | BA10: =SUMIFS(DT!$H$8:$H$595,DT!$C$8:$C$595,BA$5,DT!$D$8:$D$595,$A$1) -> 0 | BB10: =SUMIFS(DT!$H$8:$H$595,DT!$C$8:$C$595,BB$5,DT!$D$8:$D$595,$A$1) -> 0 | BC10: =SUMIFS(DT!$H$8:$H$595,DT!$C$8:$C$595,BC$5,DT!$D$8:$D$595,$A$1) -> 0 | BD10: =SUM(BE10:BG10) -> 0 | BE10: =SUMIFS(DT!$H$8:$H$595,DT!$C$8:$C$595,BE$5,DT!$D$8:$D$595,$A$1) -> 0 | BF10: =SUMIFS(DT!$H$8:$H$595,DT!$C$8:$C$595,BF$5,DT!$D$8:$D$595,$A$1) -> 0 | BG10: =SUMIFS(DT!$H$8:$H$595,DT!$C$8:$C$595,BG$5,DT!$D$8:$D$595,$A$1) -> 0 | BH10: =$D10-H10 ->  | BI10: =H$62-$BH10 -> 
A11: 1.1.3 | B11: Đất trồng lúa nước còn lại | C11: LUK | D11: =VLOOKUP(C11,#REF!,MATCH($A$1,maxa,0)+2,0) ->  | G11: =SUMIFS(DT!$J$8:$J$595,DT!$C$8:$C$595,G$5,DT!$D$8:$D$595,$A$1) -> 0 | H11: =SUMIFS(DT!$J$8:$J$595,DT!$C$8:$C$595,H$5,DT!$D$8:$D$595,$A$1) -> 0 | I11: =$D11-SUM(G11:H11)-SUM($J11:$Q11)-$R11-$BD11 ->  | J11: =SUMIFS(DT!$J$8:$J$595,DT!$C$8:$C$595,J$5,DT!$D$8:$D$595,$A$1) -> 0 | K11: =SUMIFS(DT!$J$8:$J$595,DT!$C$8:$C$595,K$5,DT!$D$8:$D$595,$A$1) -> 0 | L11: =SUMIFS(DT!$J$8:$J$595,DT!$C$8:$C$595,L$5,DT!$D$8:$D$595,$A$1) -> 0 | M11: =SUMIFS(DT!$J$8:$J$595,DT!$C$8:$C$595,M$5,DT!$D$8:$D$595,$A$1) -> 0 | N11: =SUMIFS(DT!$J$8:$J$595,DT!$C$8:$C$595,N$5,DT!$D$8:$D$595,$A$1) -> 0 | O11: =SUMIFS(DT!$J$8:$J$595,DT!$C$8:$C$595,O$5,DT!$D$8:$D$595,$A$1) -> 0 | P11: =SUMIFS(DT!$J$8:$J$595,DT!$C$8:$C$595,P$5,DT!$D$8:$D$595,$A$1) -> 0 | Q11: =SUMIFS(DT!$J$8:$J$595,DT!$C$8:$C$595,Q$5,DT!$D$8:$D$595,$A$1) -> 0 | R11: 0 | S11: =SUMIFS(DT!$J$8:$J$595,DT!$C$8:$C$595,S$5,DT!$D$8:$D$595,$A$1) -> 0 | T11: =SUMIFS(DT!$J$8:$J$595,DT!$C$8:$C$595,T$5,DT!$D$8:$D$595,$A$1) -> 0 | U11: =SUMIFS(DT!$J$8:$J$595,DT!$C$8:$C$595,U$5,DT!$D$8:$D$595,$A$1) -> 0 | V11: =SUMIFS(DT!$J$8:$J$595,DT!$C$8:$C$595,V$5,DT!$D$8:$D$595,$A$1) -> 0 | W11: =SUMIFS(DT!$J$8:$J$595,DT!$C$8:$C$595,W$5,DT!$D$8:$D$595,$A$1) -> 0 | X11: =SUMIFS(DT!$J$8:$J$595,DT!$C$8:$C$595,X$5,DT!$D$8:$D$595,$A$1) -> 0 | Y11: =SUMIFS(DT!$J$8:$J$595,DT!$C$8:$C$595,Y$5,DT!$D$8:$D$595,$A$1) -> 0 | Z11: =SUMIFS(DT!$J$8:$J$595,DT!$C$8:$C$595,Z$5,DT!$D$8:$D$595,$A$1) -> 0 | AA11: 0 | AB11: =SUMIFS(DT!$J$8:$J$595,DT!$C$8:$C$595,AB$5,DT!$D$8:$D$595,$A$1) -> 0 | AC11: =SUMIFS(DT!$J$8:$J$595,DT!$C$8:$C$595,AC$5,DT!$D$8:$D$595,$A$1) -> 0 | AD11: =SUMIFS(DT!$J$8:$J$595,DT!$C$8:$C$595,AD$5,DT!$D$8:$D$595,$A$1) -> 0 | AE11: =SUMIFS(DT!$J$8:$J$595,DT!$C$8:$C$595,AE$5,DT!$D$8:$D$595,$A$1) -> 0 | AF11: =SUMIFS(DT!$J$8:$J$595,DT!$C$8:$C$595,AF$5,DT!$D$8:$D$595,$A$1) -> 0 | AG11: =SUMIFS(DT!$J$8:$J$595,DT!$C$8:$C$595,AG$5,DT!$D$8:$D$595,$A$1) -> 0 | AH11: =SUMIFS(DT!$J$8:$J$595,DT!$C$8:$C$595,AH$5,DT!$D$8:$D$595,$A$1) -> 0 | AI11: =SUMIFS(DT!$J$8:$J$595,DT!$C$8:$C$595,AI$5,DT!$D$8:$D$595,$A$1) -> 0 | AJ11: =SUMIFS(DT!$J$8:$J$595,DT!$C$8:$C$595,AJ$5,DT!$D$8:$D$595,$A$1) -> 0 | AK11: =SUMIFS(DT!$J$8:$J$595,DT!$C$8:$C$595,AK$5,DT!$D$8:$D$595,$A$1) -> 0 | AL11: =SUMIFS(DT!$J$8:$J$595,DT!$C$8:$C$595,AL$5,DT!$D$8:$D$595,$A$1) -> 0 | AM11: =SUMIFS(DT!$J$8:$J$595,DT!$C$8:$C$595,AM$5,DT!$D$8:$D$595,$A$1) -> 0 | AN11: =SUMIFS(DT!$J$8:$J$595,DT!$C$8:$C$595,AN$5,DT!$D$8:$D$595,$A$1) -> 0 | AO11: =SUMIFS(DT!$J$8:$J$595,DT!$C$8:$C$595,AO$5,DT!$D$8:$D$595,$A$1) -> 0 | AP11: =SUMIFS(DT!$J$8:$J$595,DT!$C$8:$C$595,AP$5,DT!$D$8:$D$595,$A$1) -> 0 | AQ11: =SUMIFS(DT!$J$8:$J$595,DT!$C$8:$C$595,AQ$5,DT!$D$8:$D$595,$A$1) -> 0 | AR11: =SUMIFS(DT!$J$8:$J$595,DT!$C$8:$C$595,AR$5,DT!$D$8:$D$595,$A$1) -> 0 | AS11: =SUMIFS(DT!$J$8:$J$595,DT!$C$8:$C$595,AS$5,DT!$D$8:$D$595,$A$1) -> 0 | AT11: =SUMIFS(DT!$J$8:$J$595,DT!$C$8:$C$595,AT$5,DT!$D$8:$D$595,$A$1) -> 0 | AU11: =SUMIFS(DT!$J$8:$J$595,DT!$C$8:$C$595,AU$5,DT!$D$8:$D$595,$A$1) -> 0 | AV11: =SUMIFS(DT!$J$8:$J$595,DT!$C$8:$C$595,AV$5,DT!$D$8:$D$595,$A$1) -> 0 | AW11: =SUMIFS(DT!$J$8:$J$595,DT!$C$8:$C$595,AW$5,DT!$D$8:$D$595,$A$1) -> 0 | AX11: =SUMIFS(DT!$J$8:$J$595,DT!$C$8:$C$595,AX$5,DT!$D$8:$D$595,$A$1) -> 0 | AY11: =SUMIFS(DT!$J$8:$J$595,DT!$C$8:$C$595,AY$5,DT!$D$8:$D$595,$A$1) -> 0 | AZ11: =SUMIFS(DT!$J$8:$J$595,DT!$C$8:$C$595,AZ$5,DT!$D$8:$D$595,$A$1) -> 0 | BA11: =SUMIFS(DT!$J$8:$J$595,DT!$C$8:$C$595,BA$5,DT!$D$8:$D$595,$A$1) -> 0 | BB11: =SUMIFS(DT!$J$8:$J$595,DT!$C$8:$C$595,BB$5,DT!$D$8:$D$595,$A$1) -> 0 | BC11: =SUMIFS(DT!$J$8:$J$595,DT!$C$8:$C$595,BC$5,DT!$D$8:$D$595,$A$1) -> 0 | BD11: 0 | BE11: =SUMIFS(DT!$J$8:$J$595,DT!$C$8:$C$595,BE$5,DT!$D$8:$D$595,$A$1) -> 0 | BF11: =SUMIFS(DT!$J$8:$J$595,DT!$C$8:$C$595,BF$5,DT!$D$8:$D$595,$A$1) -> 0 | BG11: =SUMIFS(DT!$J$8:$J$595,DT!$C$8:$C$595,BG$5,DT!$D$8:$D$595,$A$1) -> 0 | BH11: =$D11-I11 ->  | BI11: =I$62-$BH11 -> 
A12: 1.2 | B12: Đất trồng cây hàng năm khác | C12: HNK | D12: =VLOOKUP(C12,#REF!,MATCH($A$1,maxa,0)+2,0) ->  | F12: 0 | G12: =SUMIFS(DT!$L$8:$L$595,DT!$C$8:$C$595,G$5,DT!$D$8:$D$595,$A$1) -> 0 | H12: =SUMIFS(DT!$L$8:$L$595,DT!$C$8:$C$595,H$5,DT!$D$8:$D$595,$A$1) -> 0 | I12: =SUMIFS(DT!$L$8:$L$595,DT!$C$8:$C$595,I$5,DT!$D$8:$D$595,$A$1) -> 0 | J12: =$D12-SUM($G12:I12)-SUM(K12:$Q12)-$R12-$BD12 ->  | K12: =SUMIFS(DT!$L$8:$L$595,DT!$C$8:$C$595,K$5,DT!$D$8:$D$595,$A$1) -> 0 | L12: =SUMIFS(DT!$L$8:$L$595,DT!$C$8:$C$595,L$5,DT!$D$8:$D$595,$A$1) -> 0 | M12: =SUMIFS(DT!$L$8:$L$595,DT!$C$8:$C$595,M$5,DT!$D$8:$D$595,$A$1) -> 0 | N12: =SUMIFS(DT!$L$8:$L$595,DT!$C$8:$C$595,N$5,DT!$D$8:$D$595,$A$1) -> 0 | O12: =SUMIFS(DT!$L$8:$L$595,DT!$C$8:$C$595,O$5,DT!$D$8:$D$595,$A$1) -> 0 | P12: =SUMIFS(DT!$L$8:$L$595,DT!$C$8:$C$595,P$5,DT!$D$8:$D$595,$A$1) -> 0 | Q12: =SUMIFS(DT!$L$8:$L$595,DT!$C$8:$C$595,Q$5,DT!$D$8:$D$595,$A$1) -> 0 | R12: 0 | S12: =SUMIFS(DT!$L$8:$L$595,DT!$C$8:$C$595,S$5,DT!$D$8:$D$595,$A$1) -> 0 | T12: =SUMIFS(DT!$L$8:$L$595,DT!$C$8:$C$595,T$5,DT!$D$8:$D$595,$A$1) -> 0 | U12: =SUMIFS(DT!$L$8:$L$595,DT!$C$8:$C$595,U$5,DT!$D$8:$D$595,$A$1) -> 0 | V12: =SUMIFS(DT!$L$8:$L$595,DT!$C$8:$C$595,V$5,DT!$D$8:$D$595,$A$1) -> 0 | W12: =SUMIFS(DT!$L$8:$L$595,DT!$C$8:$C$595,W$5,DT!$D$8:$D$595,$A$1) -> 0 | X12: =SUMIFS(DT!$L$8:$L$595,DT!$C$8:$C$595,X$5,DT!$D$8:$D$595,$A$1) -> 0 | Y12: =SUMIFS(DT!$L$8:$L$595,DT!$C$8:$C$595,Y$5,DT!$D$8:$D$595,$A$1) -> 0 | Z12: =SUMIFS(DT!$L$8:$L$595,DT!$C$8:$C$595,Z$5,DT!$D$8:$D$595,$A$1) -> 0 | AA12: 0 | AB12: =SUMIFS(DT!$L$8:$L$595,DT!$C$8:$C$595,AB$5,DT!$D$8:$D$595,$A$1) -> 0 | AC12: =SUMIFS(DT!$L$8:$L$595,DT!$C$8:$C$595,AC$5,DT!$D$8:$D$595,$A$1) -> 0 | AD12: =SUMIFS(DT!$L$8:$L$595,DT!$C$8:$C$595,AD$5,DT!$D$8:$D$595,$A$1) -> 0 | AE12: =SUMIFS(DT!$L$8:$L$595,DT!$C$8:$C$595,AE$5,DT!$D$8:$D$595,$A$1) -> 0 | AF12: =SUMIFS(DT!$L$8:$L$595,DT!$C$8:$C$595,AF$5,DT!$D$8:$D$595,$A$1) -> 0 | AG12: =SUMIFS(DT!$L$8:$L$595,DT!$C$8:$C$595,AG$5,DT!$D$8:$D$595,$A$1) -> 0 | AH12: =SUMIFS(DT!$L$8:$L$595,DT!$C$8:$C$595,AH$5,DT!$D$8:$D$595,$A$1) -> 0 | AI12: =SUMIFS(DT!$L$8:$L$595,DT!$C$8:$C$595,AI$5,DT!$D$8:$D$595,$A$1) -> 0 | AJ12: =SUMIFS(DT!$L$8:$L$595,DT!$C$8:$C$595,AJ$5,DT!$D$8:$D$595,$A$1) -> 0 | AK12: =SUMIFS(DT!$L$8:$L$595,DT!$C$8:$C$595,AK$5,DT!$D$8:$D$595,$A$1) -> 0 | AL12: =SUMIFS(DT!$L$8:$L$595,DT!$C$8:$C$595,AL$5,DT!$D$8:$D$595,$A$1) -> 0 | AM12: =SUMIFS(DT!$L$8:$L$595,DT!$C$8:$C$595,AM$5,DT!$D$8:$D$595,$A$1) -> 0 | AN12: =SUMIFS(DT!$L$8:$L$595,DT!$C$8:$C$595,AN$5,DT!$D$8:$D$595,$A$1) -> 0 | AO12: =SUMIFS(DT!$L$8:$L$595,DT!$C$8:$C$595,AO$5,DT!$D$8:$D$595,$A$1) -> 0 | AP12: =SUMIFS(DT!$L$8:$L$595,DT!$C$8:$C$595,AP$5,DT!$D$8:$D$595,$A$1) -> 0 | AQ12: =SUMIFS(DT!$L$8:$L$595,DT!$C$8:$C$595,AQ$5,DT!$D$8:$D$595,$A$1) -> 0 | AR12: =SUMIFS(DT!$L$8:$L$595,DT!$C$8:$C$595,AR$5,DT!$D$8:$D$595,$A$1) -> 0 | AS12: =SUMIFS(DT!$L$8:$L$595,DT!$C$8:$C$595,AS$5,DT!$D$8:$D$595,$A$1) -> 0 | AT12: =SUMIFS(DT!$L$8:$L$595,DT!$C$8:$C$595,AT$5,DT!$D$8:$D$595,$A$1) -> 0 | AU12: =SUMIFS(DT!$L$8:$L$595,DT!$C$8:$C$595,AU$5,DT!$D$8:$D$595,$A$1) -> 0 | AV12: =SUMIFS(DT!$L$8:$L$595,DT!$C$8:$C$595,AV$5,DT!$D$8:$D$595,$A$1) -> 0 | AW12: =SUMIFS(DT!$L$8:$L$595,DT!$C$8:$C$595,AW$5,DT!$D$8:$D$595,$A$1) -> 0 | AX12: =SUMIFS(DT!$L$8:$L$595,DT!$C$8:$C$595,AX$5,DT!$D$8:$D$595,$A$1) -> 0 | AY12: =SUMIFS(DT!$L$8:$L$595,DT!$C$8:$C$595,AY$5,DT!$D$8:$D$595,$A$1) -> 0 | AZ12: =SUMIFS(DT!$L$8:$L$595,DT!$C$8:$C$595,AZ$5,DT!$D$8:$D$595,$A$1) -> 0 | BA12: =SUMIFS(DT!$L$8:$L$595,DT!$C$8:$C$595,BA$5,DT!$D$8:$D$595,$A$1) -> 0 | BB12: =SUMIFS(DT!$L$8:$L$595,DT!$C$8:$C$595,BB$5,DT!$D$8:$D$595,$A$1) -> 0 | BC12: =SUMIFS(DT!$L$8:$L$595,DT!$C$8:$C$595,BC$5,DT!$D$8:$D$595,$A$1) -> 0 | BD12: 0 | BE12: =SUMIFS(DT!$L$8:$L$595,DT!$C$8:$C$595,BE$5,DT!$D$8:$D$595,$A$1) -> 0 | BF12: =SUMIFS(DT!$L$8:$L$595,DT!$C$8:$C$595,BF$5,DT!$D$8:$D$595,$A$1) -> 0 | BG12: =SUMIFS(DT!$L$8:$L$595,DT!$C$8:$C$595,BG$5,DT!$D$8:$D$595,$A$1) -> 0 | BH12: =$D12-J12 ->  | BI12: =J$62-$BH12 -> 
A13: 1.3 | B13: Đất trồng cây lâu năm | C13: CLN | D13: =VLOOKUP(C13,#REF!,MATCH($A$1,maxa,0)+2,0) ->  | F13: 0 | G13: =SUMIFS(DT!$N$8:$N$595,DT!$C$8:$C$595,G$5,DT!$D$8:$D$595,$A$1) -> 0 | H13: =SUMIFS(DT!$N$8:$N$595,DT!$C$8:$C$595,H$5,DT!$D$8:$D$595,$A$1) -> 0 | I13: =SUMIFS(DT!$N$8:$N$595,DT!$C$8:$C$595,I$5,DT!$D$8:$D$595,$A$1) -> 0 | J13: =SUMIFS(DT!$N$8:$N$595,DT!$C$8:$C$595,J$5,DT!$D$8:$D$595,$A$1) -> 0 | K13: =$D13-SUM($G13:J13)-SUM(L13:$Q13)-$R13-$BD13 ->  | L13: =SUMIFS(DT!$N$8:$N$595,DT!$C$8:$C$595,L$5,DT!$D$8:$D$595,$A$1) -> 0 | M13: =SUMIFS(DT!$N$8:$N$595,DT!$C$8:$C$595,M$5,DT!$D$8:$D$595,$A$1) -> 0 | N13: =SUMIFS(DT!$N$8:$N$595,DT!$C$8:$C$595,N$5,DT!$D$8:$D$595,$A$1) -> 0 | O13: =SUMIFS(DT!$N$8:$N$595,DT!$C$8:$C$595,O$5,DT!$D$8:$D$595,$A$1) -> 0 | P13: =SUMIFS(DT!$N$8:$N$595,DT!$C$8:$C$595,P$5,DT!$D$8:$D$595,$A$1) -> 0 | Q13: =SUMIFS(DT!$N$8:$N$595,DT!$C$8:$C$595,Q$5,DT!$D$8:$D$595,$A$1) -> 0 | R13: 0 | S13: =SUMIFS(DT!$N$8:$N$595,DT!$C$8:$C$595,S$5,DT!$D$8:$D$595,$A$1) -> 0 | T13: =SUMIFS(DT!$N$8:$N$595,DT!$C$8:$C$595,T$5,DT!$D$8:$D$595,$A$1) -> 0 | U13: =SUMIFS(DT!$N$8:$N$595,DT!$C$8:$C$595,U$5,DT!$D$8:$D$595,$A$1) -> 0 | V13: =SUMIFS(DT!$N$8:$N$595,DT!$C$8:$C$595,V$5,DT!$D$8:$D$595,$A$1) -> 0 | W13: =SUMIFS(DT!$N$8:$N$595,DT!$C$8:$C$595,W$5,DT!$D$8:$D$595,$A$1) -> 0 | X13: =SUMIFS(DT!$N$8:$N$595,DT!$C$8:$C$595,X$5,DT!$D$8:$D$595,$A$1) -> 0 | Y13: =SUMIFS(DT!$N$8:$N$595,DT!$C$8:$C$595,Y$5,DT!$D$8:$D$595,$A$1) -> 0 | Z13: =SUMIFS(DT!$N$8:$N$595,DT!$C$8:$C$595,Z$5,DT!$D$8:$D$595,$A$1) -> 0 | AA13: 0 | AB13: =SUMIFS(DT!$N$8:$N$595,DT!$C$8:$C$595,AB$5,DT!$D$8:$D$595,$A$1) -> 0 | AC13: =SUMIFS(DT!$N$8:$N$595,DT!$C$8:$C$595,AC$5,DT!$D$8:$D$595,$A$1) -> 0 | AD13: =SUMIFS(DT!$N$8:$N$595,DT!$C$8:$C$595,AD$5,DT!$D$8:$D$595,$A$1) -> 0 | AE13: =SUMIFS(DT!$N$8:$N$595,DT!$C$8:$C$595,AE$5,DT!$D$8:$D$595,$A$1) -> 0 | AF13: =SUMIFS(DT!$N$8:$N$595,DT!$C$8:$C$595,AF$5,DT!$D$8:$D$595,$A$1) -> 0 | AG13: =SUMIFS(DT!$N$8:$N$595,DT!$C$8:$C$595,AG$5,DT!$D$8:$D$595,$A$1) -> 0 | AH13: =SUMIFS(DT!$N$8:$N$595,DT!$C$8:$C$595,AH$5,DT!$D$8:$D$595,$A$1) -> 0 | AI13: =SUMIFS(DT!$N$8:$N$595,DT!$C$8:$C$595,AI$5,DT!$D$8:$D$595,$A$1) -> 0 | AJ13: =SUMIFS(DT!$N$8:$N$595,DT!$C$8:$C$595,AJ$5,DT!$D$8:$D$595,$A$1) -> 0 | AK13: =SUMIFS(DT!$N$8:$N$595,DT!$C$8:$C$595,AK$5,DT!$D$8:$D$595,$A$1) -> 0 | AL13: =SUMIFS(DT!$N$8:$N$595,DT!$C$8:$C$595,AL$5,DT!$D$8:$D$595,$A$1) -> 0 | AM13: =SUMIFS(DT!$N$8:$N$595,DT!$C$8:$C$595,AM$5,DT!$D$8:$D$595,$A$1) -> 0 | AN13: =SUMIFS(DT!$N$8:$N$595,DT!$C$8:$C$595,AN$5,DT!$D$8:$D$595,$A$1) -> 0 | AO13: =SUMIFS(DT!$N$8:$N$595,DT!$C$8:$C$595,AO$5,DT!$D$8:$D$595,$A$1) -> 0 | AP13: =SUMIFS(DT!$N$8:$N$595,DT!$C$8:$C$595,AP$5,DT!$D$8:$D$595,$A$1) -> 0 | AQ13: =SUMIFS(DT!$N$8:$N$595,DT!$C$8:$C$595,AQ$5,DT!$D$8:$D$595,$A$1) -> 0 | AR13: =SUMIFS(DT!$N$8:$N$595,DT!$C$8:$C$595,AR$5,DT!$D$8:$D$595,$A$1) -> 0 | AS13: =SUMIFS(DT!$N$8:$N$595,DT!$C$8:$C$595,AS$5,DT!$D$8:$D$595,$A$1) -> 0 | AT13: =SUMIFS(DT!$N$8:$N$595,DT!$C$8:$C$595,AT$5,DT!$D$8:$D$595,$A$1) -> 0 | AU13: =SUMIFS(DT!$N$8:$N$595,DT!$C$8:$C$595,AU$5,DT!$D$8:$D$595,$A$1) -> 0 | AV13: =SUMIFS(DT!$N$8:$N$595,DT!$C$8:$C$595,AV$5,DT!$D$8:$D$595,$A$1) -> 0 | AW13: =SUMIFS(DT!$N$8:$N$595,DT!$C$8:$C$595,AW$5,DT!$D$8:$D$595,$A$1) -> 0 | AX13: =SUMIFS(DT!$N$8:$N$595,DT!$C$8:$C$595,AX$5,DT!$D$8:$D$595,$A$1) -> 0 | AY13: =SUMIFS(DT!$N$8:$N$595,DT!$C$8:$C$595,AY$5,DT!$D$8:$D$595,$A$1) -> 0 | AZ13: =SUMIFS(DT!$N$8:$N$595,DT!$C$8:$C$595,AZ$5,DT!$D$8:$D$595,$A$1) -> 0 | BA13: =SUMIFS(DT!$N$8:$N$595,DT!$C$8:$C$595,BA$5,DT!$D$8:$D$595,$A$1) -> 0 | BB13: =SUMIFS(DT!$N$8:$N$595,DT!$C$8:$C$595,BB$5,DT!$D$8:$D$595,$A$1) -> 0 | BC13: =SUMIFS(DT!$N$8:$N$595,DT!$C$8:$C$595,BC$5,DT!$D$8:$D$595,$A$1) -> 0 | BD13: 0 | BE13: =SUMIFS(DT!$N$8:$N$595,DT!$C$8:$C$595,BE$5,DT!$D$8:$D$595,$A$1) -> 0 | BF13: =SUMIFS(DT!$N$8:$N$595,DT!$C$8:$C$595,BF$5,DT!$D$8:$D$595,$A$1) -> 0 | BG13: =SUMIFS(DT!$N$8:$N$595,DT!$C$8:$C$595,BG$5,DT!$D$8:$D$595,$A$1) -> 0 | BH13: =$D13-K13 ->  | BI13: =K$62-$BH13 -> 
A14: 1.4 | B14: Đất rừng phòng hộ | C14: RPH | D14: =VLOOKUP(C14,#REF!,MATCH($A$1,maxa,0)+2,0) ->  | F14: 0 | G14: =SUMIFS(DT!$P$8:$P$595,DT!$C$8:$C$595,G$5,DT!$D$8:$D$595,$A$1) -> 0 | H14: =SUMIFS(DT!$P$8:$P$595,DT!$C$8:$C$595,H$5,DT!$D$8:$D$595,$A$1) -> 0 | I14: =SUMIFS(DT!$P$8:$P$595,DT!$C$8:$C$595,I$5,DT!$D$8:$D$595,$A$1) -> 0 | J14: =SUMIFS(DT!$P$8:$P$595,DT!$C$8:$C$595,J$5,DT!$D$8:$D$595,$A$1) -> 0 | K14: =SUMIFS(DT!$P$8:$P$595,DT!$C$8:$C$595,K$5,DT!$D$8:$D$595,$A$1) -> 0 | L14: =$D14-SUM($G14:K14)-SUM(M14:$Q14)-$R14-$BD14 ->  | M14: =SUMIFS(DT!$P$8:$P$595,DT!$C$8:$C$595,M$5,DT!$D$8:$D$595,$A$1) -> 0 | N14: =SUMIFS(DT!$P$8:$P$595,DT!$C$8:$C$595,N$5,DT!$D$8:$D$595,$A$1) -> 0 | O14: =SUMIFS(DT!$P$8:$P$595,DT!$C$8:$C$595,O$5,DT!$D$8:$D$595,$A$1) -> 0 | P14: =SUMIFS(DT!$P$8:$P$595,DT!$C$8:$C$595,P$5,DT!$D$8:$D$595,$A$1) -> 0 | Q14: =SUMIFS(DT!$P$8:$P$595,DT!$C$8:$C$595,Q$5,DT!$D$8:$D$595,$A$1) -> 0 | R14: 0 | S14: =SUMIFS(DT!$P$8:$P$595,DT!$C$8:$C$595,S$5,DT!$D$8:$D$595,$A$1) -> 0 | T14: =SUMIFS(DT!$P$8:$P$595,DT!$C$8:$C$595,T$5,DT!$D$8:$D$595,$A$1) -> 0 | U14: =SUMIFS(DT!$P$8:$P$595,DT!$C$8:$C$595,U$5,DT!$D$8:$D$595,$A$1) -> 0 | V14: =SUMIFS(DT!$P$8:$P$595,DT!$C$8:$C$595,V$5,DT!$D$8:$D$595,$A$1) -> 0 | W14: =SUMIFS(DT!$P$8:$P$595,DT!$C$8:$C$595,W$5,DT!$D$8:$D$595,$A$1) -> 0 | X14: =SUMIFS(DT!$P$8:$P$595,DT!$C$8:$C$595,X$5,DT!$D$8:$D$595,$A$1) -> 0 | Y14: =SUMIFS(DT!$P$8:$P$595,DT!$C$8:$C$595,Y$5,DT!$D$8:$D$595,$A$1) -> 0 | Z14: =SUMIFS(DT!$P$8:$P$595,DT!$C$8:$C$595,Z$5,DT!$D$8:$D$595,$A$1) -> 0 | AA14: 0 | AB14: =SUMIFS(DT!$P$8:$P$595,DT!$C$8:$C$595,AB$5,DT!$D$8:$D$595,$A$1) -> 0 | AC14: =SUMIFS(DT!$P$8:$P$595,DT!$C$8:$C$595,AC$5,DT!$D$8:$D$595,$A$1) -> 0 | AD14: =SUMIFS(DT!$P$8:$P$595,DT!$C$8:$C$595,AD$5,DT!$D$8:$D$595,$A$1) -> 0 | AE14: =SUMIFS(DT!$P$8:$P$595,DT!$C$8:$C$595,AE$5,DT!$D$8:$D$595,$A$1) -> 0 | AF14: =SUMIFS(DT!$P$8:$P$595,DT!$C$8:$C$595,AF$5,DT!$D$8:$D$595,$A$1) -> 0 | AG14: =SUMIFS(DT!$P$8:$P$595,DT!$C$8:$C$595,AG$5,DT!$D$8:$D$595,$A$1) -> 0 | AH14: =SUMIFS(DT!$P$8:$P$595,DT!$C$8:$C$595,AH$5,DT!$D$8:$D$595,$A$1) -> 0 | AI14: =SUMIFS(DT!$P$8:$P$595,DT!$C$8:$C$595,AI$5,DT!$D$8:$D$595,$A$1) -> 0 | AJ14: =SUMIFS(DT!$P$8:$P$595,DT!$C$8:$C$595,AJ$5,DT!$D$8:$D$595,$A$1) -> 0 | AK14: =SUMIFS(DT!$P$8:$P$595,DT!$C$8:$C$595,AK$5,DT!$D$8:$D$595,$A$1) -> 0 | AL14: =SUMIFS(DT!$P$8:$P$595,DT!$C$8:$C$595,AL$5,DT!$D$8:$D$595,$A$1) -> 0 | AM14: =SUMIFS(DT!$P$8:$P$595,DT!$C$8:$C$595,AM$5,DT!$D$8:$D$595,$A$1) -> 0 | AN14: =SUMIFS(DT!$P$8:$P$595,DT!$C$8:$C$595,AN$5,DT!$D$8:$D$595,$A$1) -> 0 | AO14: =SUMIFS(DT!$P$8:$P$595,DT!$C$8:$C$595,AO$5,DT!$D$8:$D$595,$A$1) -> 0 | AP14: =SUMIFS(DT!$P$8:$P$595,DT!$C$8:$C$595,AP$5,DT!$D$8:$D$595,$A$1) -> 0 | AQ14: =SUMIFS(DT!$P$8:$P$595,DT!$C$8:$C$595,AQ$5,DT!$D$8:$D$595,$A$1) -> 0 | AR14: =SUMIFS(DT!$P$8:$P$595,DT!$C$8:$C$595,AR$5,DT!$D$8:$D$595,$A$1) -> 0 | AS14: =SUMIFS(DT!$P$8:$P$595,DT!$C$8:$C$595,AS$5,DT!$D$8:$D$595,$A$1) -> 0 | AT14: =SUMIFS(DT!$P$8:$P$595,DT!$C$8:$C$595,AT$5,DT!$D$8:$D$595,$A$1) -> 0 | AU14: =SUMIFS(DT!$P$8:$P$595,DT!$C$8:$C$595,AU$5,DT!$D$8:$D$595,$A$1) -> 0 | AV14: =SUMIFS(DT!$P$8:$P$595,DT!$C$8:$C$595,AV$5,DT!$D$8:$D$595,$A$1) -> 0 | AW14: =SUMIFS(DT!$P$8:$P$595,DT!$C$8:$C$595,AW$5,DT!$D$8:$D$595,$A$1) -> 0 | AX14: =SUMIFS(DT!$P$8:$P$595,DT!$C$8:$C$595,AX$5,DT!$D$8:$D$595,$A$1) -> 0 | AY14: =SUMIFS(DT!$P$8:$P$595,DT!$C$8:$C$595,AY$5,DT!$D$8:$D$595,$A$1) -> 0 | AZ14: =SUMIFS(DT!$P$8:$P$595,DT!$C$8:$C$595,AZ$5,DT!$D$8:$D$595,$A$1) -> 0 | BA14: =SUMIFS(DT!$P$8:$P$595,DT!$C$8:$C$595,BA$5,DT!$D$8:$D$595,$A$1) -> 0 | BB14: =SUMIFS(DT!$P$8:$P$595,DT!$C$8:$C$595,BB$5,DT!$D$8:$D$595,$A$1) -> 0 | BC14: =SUMIFS(DT!$P$8:$P$595,DT!$C$8:$C$595,BC$5,DT!$D$8:$D$595,$A$1) -> 0 | BD14: 0 | BE14: =SUMIFS(DT!$P$8:$P$595,DT!$C$8:$C$595,BE$5,DT!$D$8:$D$595,$A$1) -> 0 | BF14: =SUMIFS(DT!$P$8:$P$595,DT!$C$8:$C$595,BF$5,DT!$D$8:$D$595,$A$1) -> 0 | BG14: =SUMIFS(DT!$P$8:$P$595,DT!$C$8:$C$595,BG$5,DT!$D$8:$D$595,$A$1) -> 0 | BH14: =$D14-L14 ->  | BI14: =L$62-$BH14 -> 
A15: 1.5 | B15: Đất rừng đặc dụng | C15: RDD | D15: =VLOOKUP(C15,#REF!,MATCH($A$1,maxa,0)+2,0) ->  | F15: 0 | G15: =SUMIFS(DT!$R$8:$R$595,DT!$C$8:$C$595,G$5,DT!$D$8:$D$595,$A$1) -> 0 | H15: =SUMIFS(DT!$R$8:$R$595,DT!$C$8:$C$595,H$5,DT!$D$8:$D$595,$A$1) -> 0 | I15: =SUMIFS(DT!$R$8:$R$595,DT!$C$8:$C$595,I$5,DT!$D$8:$D$595,$A$1) -> 0 | J15: =SUMIFS(DT!$R$8:$R$595,DT!$C$8:$C$595,J$5,DT!$D$8:$D$595,$A$1) -> 0 | K15: =SUMIFS(DT!$R$8:$R$595,DT!$C$8:$C$595,K$5,DT!$D$8:$D$595,$A$1) -> 0 | L15: =SUMIFS(DT!$R$8:$R$595,DT!$C$8:$C$595,L$5,DT!$D$8:$D$595,$A$1) -> 0 | M15: =$D15-SUM($G15:L15)-SUM(N15:$Q15)-$R15-$BD15 ->  | N15: =SUMIFS(DT!$R$8:$R$595,DT!$C$8:$C$595,N$5,DT!$D$8:$D$595,$A$1) -> 0 | O15: =SUMIFS(DT!$R$8:$R$595,DT!$C$8:$C$595,O$5,DT!$D$8:$D$595,$A$1) -> 0 | P15: =SUMIFS(DT!$R$8:$R$595,DT!$C$8:$C$595,P$5,DT!$D$8:$D$595,$A$1) -> 0 | Q15: =SUMIFS(DT!$R$8:$R$595,DT!$C$8:$C$595,Q$5,DT!$D$8:$D$595,$A$1) -> 0 | R15: 0 | S15: =SUMIFS(DT!$R$8:$R$595,DT!$C$8:$C$595,S$5,DT!$D$8:$D$595,$A$1) -> 0 | T15: =SUMIFS(DT!$R$8:$R$595,DT!$C$8:$C$595,T$5,DT!$D$8:$D$595,$A$1) -> 0 | U15: =SUMIFS(DT!$R$8:$R$595,DT!$C$8:$C$595,U$5,DT!$D$8:$D$595,$A$1) -> 0 | V15: =SUMIFS(DT!$R$8:$R$595,DT!$C$8:$C$595,V$5,DT!$D$8:$D$595,$A$1) -> 0 | W15: =SUMIFS(DT!$R$8:$R$595,DT!$C$8:$C$595,W$5,DT!$D$8:$D$595,$A$1) -> 0 | X15: =SUMIFS(DT!$R$8:$R$595,DT!$C$8:$C$595,X$5,DT!$D$8:$D$595,$A$1) -> 0 | Y15: =SUMIFS(DT!$R$8:$R$595,DT!$C$8:$C$595,Y$5,DT!$D$8:$D$595,$A$1) -> 0 | Z15: =SUMIFS(DT!$R$8:$R$595,DT!$C$8:$C$595,Z$5,DT!$D$8:$D$595,$A$1) -> 0 | AA15: 0 | AB15: =SUMIFS(DT!$R$8:$R$595,DT!$C$8:$C$595,AB$5,DT!$D$8:$D$595,$A$1) -> 0 | AC15: =SUMIFS(DT!$R$8:$R$595,DT!$C$8:$C$595,AC$5,DT!$D$8:$D$595,$A$1) -> 0 | AD15: =SUMIFS(DT!$R$8:$R$595,DT!$C$8:$C$595,AD$5,DT!$D$8:$D$595,$A$1) -> 0 | AE15: =SUMIFS(DT!$R$8:$R$595,DT!$C$8:$C$595,AE$5,DT!$D$8:$D$595,$A$1) -> 0 | AF15: =SUMIFS(DT!$R$8:$R$595,DT!$C$8:$C$595,AF$5,DT!$D$8:$D$595,$A$1) -> 0 | AG15: =SUMIFS(DT!$R$8:$R$595,DT!$C$8:$C$595,AG$5,DT!$D$8:$D$595,$A$1) -> 0 | AH15: =SUMIFS(DT!$R$8:$R$595,DT!$C$8:$C$595,AH$5,DT!$D$8:$D$595,$A$1) -> 0 | AI15: =SUMIFS(DT!$R$8:$R$595,DT!$C$8:$C$595,AI$5,DT!$D$8:$D$595,$A$1) -> 0 | AJ15: =SUMIFS(DT!$R$8:$R$595,DT!$C$8:$C$595,AJ$5,DT!$D$8:$D$595,$A$1) -> 0 | AK15: =SUMIFS(DT!$R$8:$R$595,DT!$C$8:$C$595,AK$5,DT!$D$8:$D$595,$A$1) -> 0 | AL15: =SUMIFS(DT!$R$8:$R$595,DT!$C$8:$C$595,AL$5,DT!$D$8:$D$595,$A$1) -> 0 | AM15: =SUMIFS(DT!$R$8:$R$595,DT!$C$8:$C$595,AM$5,DT!$D$8:$D$595,$A$1) -> 0 | AN15: =SUMIFS(DT!$R$8:$R$595,DT!$C$8:$C$595,AN$5,DT!$D$8:$D$595,$A$1) -> 0 | AO15: =SUMIFS(DT!$R$8:$R$595,DT!$C$8:$C$595,AO$5,DT!$D$8:$D$595,$A$1) -> 0 | AP15: =SUMIFS(DT!$R$8:$R$595,DT!$C$8:$C$595,AP$5,DT!$D$8:$D$595,$A$1) -> 0 | AQ15: =SUMIFS(DT!$R$8:$R$595,DT!$C$8:$C$595,AQ$5,DT!$D$8:$D$595,$A$1) -> 0 | AR15: =SUMIFS(DT!$R$8:$R$595,DT!$C$8:$C$595,AR$5,DT!$D$8:$D$595,$A$1) -> 0 | AS15: =SUMIFS(DT!$R$8:$R$595,DT!$C$8:$C$595,AS$5,DT!$D$8:$D$595,$A$1) -> 0 | AT15: =SUMIFS(DT!$R$8:$R$595,DT!$C$8:$C$595,AT$5,DT!$D$8:$D$595,$A$1) -> 0 | AU15: =SUMIFS(DT!$R$8:$R$595,DT!$C$8:$C$595,AU$5,DT!$D$8:$D$595,$A$1) -> 0 | AV15: =SUMIFS(DT!$R$8:$R$595,DT!$C$8:$C$595,AV$5,DT!$D$8:$D$595,$A$1) -> 0 | AW15: =SUMIFS(DT!$R$8:$R$595,DT!$C$8:$C$595,AW$5,DT!$D$8:$D$595,$A$1) -> 0 | AX15: =SUMIFS(DT!$R$8:$R$595,DT!$C$8:$C$595,AX$5,DT!$D$8:$D$595,$A$1) -> 0 | AY15: =SUMIFS(DT!$R$8:$R$595,DT!$C$8:$C$595,AY$5,DT!$D$8:$D$595,$A$1) -> 0 | AZ15: =SUMIFS(DT!$R$8:$R$595,DT!$C$8:$C$595,AZ$5,DT!$D$8:$D$595,$A$1) -> 0 | BA15: =SUMIFS(DT!$R$8:$R$595,DT!$C$8:$C$595,BA$5,DT!$D$8:$D$595,$A$1) -> 0 | BB15: =SUMIFS(DT!$R$8:$R$595,DT!$C$8:$C$595,BB$5,DT!$D$8:$D$595,$A$1) -> 0 | BC15: =SUMIFS(DT!$R$8:$R$595,DT!$C$8:$C$595,BC$5,DT!$D$8:$D$595,$A$1) -> 0 | BD15: 0 | BE15: =SUMIFS(DT!$R$8:$R$595,DT!$C$8:$C$595,BE$5,DT!$D$8:$D$595,$A$1) -> 0 | BF15: =SUMIFS(DT!$R$8:$R$595,DT!$C$8:$C$595,BF$5,DT!$D$8:$D$595,$A$1) -> 0 | BG15: =SUMIFS(DT!$R$8:$R$595,DT!$C$8:$C$595,BG$5,DT!$D$8:$D$595,$A$1) -> 0 | BH15: =$D15-M15 ->  | BI15: =M$62-$BH15 -> 
A16: 1.6 | B16: Đất rừng sản xuất | C16: RSX | D16: =VLOOKUP(C16,#REF!,MATCH($A$1,maxa,0)+2,0) ->  | F16: 0 | G16: =SUMIFS(DT!$T$8:$T$595,DT!$C$8:$C$595,G$5,DT!$D$8:$D$595,$A$1) -> 0 | H16: =SUMIFS(DT!$T$8:$T$595,DT!$C$8:$C$595,H$5,DT!$D$8:$D$595,$A$1) -> 0 | I16: =SUMIFS(DT!$T$8:$T$595,DT!$C$8:$C$595,I$5,DT!$D$8:$D$595,$A$1) -> 0 | J16: =SUMIFS(DT!$T$8:$T$595,DT!$C$8:$C$595,J$5,DT!$D$8:$D$595,$A$1) -> 0 | K16: =SUMIFS(DT!$T$8:$T$595,DT!$C$8:$C$595,K$5,DT!$D$8:$D$595,$A$1) -> 0 | L16: =SUMIFS(DT!$T$8:$T$595,DT!$C$8:$C$595,L$5,DT!$D$8:$D$595,$A$1) -> 0 | M16: =SUMIFS(DT!$T$8:$T$595,DT!$C$8:$C$595,M$5,DT!$D$8:$D$595,$A$1) -> 0 | N16: =$D16-SUM($G16:M16)-SUM(O16:$Q16)-$R16-$BD16 ->  | O16: =SUMIFS(DT!$T$8:$T$595,DT!$C$8:$C$595,O$5,DT!$D$8:$D$595,$A$1) -> 0 | P16: =SUMIFS(DT!$T$8:$T$595,DT!$C$8:$C$595,P$5,DT!$D$8:$D$595,$A$1) -> 0 | Q16: =SUMIFS(DT!$T$8:$T$595,DT!$C$8:$C$595,Q$5,DT!$D$8:$D$595,$A$1) -> 0 | R16: 0 | S16: =SUMIFS(DT!$T$8:$T$595,DT!$C$8:$C$595,S$5,DT!$D$8:$D$595,$A$1) -> 0 | T16: =SUMIFS(DT!$T$8:$T$595,DT!$C$8:$C$595,T$5,DT!$D$8:$D$595,$A$1) -> 0 | U16: =SUMIFS(DT!$T$8:$T$595,DT!$C$8:$C$595,U$5,DT!$D$8:$D$595,$A$1) -> 0 | V16: =SUMIFS(DT!$T$8:$T$595,DT!$C$8:$C$595,V$5,DT!$D$8:$D$595,$A$1) -> 0 | W16: =SUMIFS(DT!$T$8:$T$595,DT!$C$8:$C$595,W$5,DT!$D$8:$D$595,$A$1) -> 0 | X16: =SUMIFS(DT!$T$8:$T$595,DT!$C$8:$C$595,X$5,DT!$D$8:$D$595,$A$1) -> 0 | Y16: =SUMIFS(DT!$T$8:$T$595,DT!$C$8:$C$595,Y$5,DT!$D$8:$D$595,$A$1) -> 0 | Z16: =SUMIFS(DT!$T$8:$T$595,DT!$C$8:$C$595,Z$5,DT!$D$8:$D$595,$A$1) -> 0 | AA16: 0 | AB16: =SUMIFS(DT!$T$8:$T$595,DT!$C$8:$C$595,AB$5,DT!$D$8:$D$595,$A$1) -> 0 | AC16: =SUMIFS(DT!$T$8:$T$595,DT!$C$8:$C$595,AC$5,DT!$D$8:$D$595,$A$1) -> 0 | AD16: =SUMIFS(DT!$T$8:$T$595,DT!$C$8:$C$595,AD$5,DT!$D$8:$D$595,$A$1) -> 0 | AE16: =SUMIFS(DT!$T$8:$T$595,DT!$C$8:$C$595,AE$5,DT!$D$8:$D$595,$A$1) -> 0 | AF16: =SUMIFS(DT!$T$8:$T$595,DT!$C$8:$C$595,AF$5,DT!$D$8:$D$595,$A$1) -> 0 | AG16: =SUMIFS(DT!$T$8:$T$595,DT!$C$8:$C$595,AG$5,DT!$D$8:$D$595,$A$1) -> 0 | AH16: =SUMIFS(DT!$T$8:$T$595,DT!$C$8:$C$595,AH$5,DT!$D$8:$D$595,$A$1) -> 0 | AI16: =SUMIFS(DT!$T$8:$T$595,DT!$C$8:$C$595,AI$5,DT!$D$8:$D$595,$A$1) -> 0 | AJ16: =SUMIFS(DT!$T$8:$T$595,DT!$C$8:$C$595,AJ$5,DT!$D$8:$D$595,$A$1) -> 0 | AK16: =SUMIFS(DT!$T$8:$T$595,DT!$C$8:$C$595,AK$5,DT!$D$8:$D$595,$A$1) -> 0 | AL16: =SUMIFS(DT!$T$8:$T$595,DT!$C$8:$C$595,AL$5,DT!$D$8:$D$595,$A$1) -> 0 | AM16: =SUMIFS(DT!$T$8:$T$595,DT!$C$8:$C$595,AM$5,DT!$D$8:$D$595,$A$1) -> 0 | AN16: =SUMIFS(DT!$T$8:$T$595,DT!$C$8:$C$595,AN$5,DT!$D$8:$D$595,$A$1) -> 0 | AO16: =SUMIFS(DT!$T$8:$T$595,DT!$C$8:$C$595,AO$5,DT!$D$8:$D$595,$A$1) -> 0 | AP16: =SUMIFS(DT!$T$8:$T$595,DT!$C$8:$C$595,AP$5,DT!$D$8:$D$595,$A$1) -> 0 | AQ16: =SUMIFS(DT!$T$8:$T$595,DT!$C$8:$C$595,AQ$5,DT!$D$8:$D$595,$A$1) -> 0 | AR16: =SUMIFS(DT!$T$8:$T$595,DT!$C$8:$C$595,AR$5,DT!$D$8:$D$595,$A$1) -> 0 | AS16: =SUMIFS(DT!$T$8:$T$595,DT!$C$8:$C$595,AS$5,DT!$D$8:$D$595,$A$1) -> 0 | AT16: =SUMIFS(DT!$T$8:$T$595,DT!$C$8:$C$595,AT$5,DT!$D$8:$D$595,$A$1) -> 0 | AU16: =SUMIFS(DT!$T$8:$T$595,DT!$C$8:$C$595,AU$5,DT!$D$8:$D$595,$A$1) -> 0 | AV16: =SUMIFS(DT!$T$8:$T$595,DT!$C$8:$C$595,AV$5,DT!$D$8:$D$595,$A$1) -> 0 | AW16: =SUMIFS(DT!$T$8:$T$595,DT!$C$8:$C$595,AW$5,DT!$D$8:$D$595,$A$1) -> 0 | AX16: =SUMIFS(DT!$T$8:$T$595,DT!$C$8:$C$595,AX$5,DT!$D$8:$D$595,$A$1) -> 0 | AY16: =SUMIFS(DT!$T$8:$T$595,DT!$C$8:$C$595,AY$5,DT!$D$8:$D$595,$A$1) -> 0 | AZ16: =SUMIFS(DT!$T$8:$T$595,DT!$C$8:$C$595,AZ$5,DT!$D$8:$D$595,$A$1) -> 0 | BA16: =SUMIFS(DT!$T$8:$T$595,DT!$C$8:$C$595,BA$5,DT!$D$8:$D$595,$A$1) -> 0 | BB16: =SUMIFS(DT!$T$8:$T$595,DT!$C$8:$C$595,BB$5,DT!$D$8:$D$595,$A$1) -> 0 | BC16: =SUMIFS(DT!$T$8:$T$595,DT!$C$8:$C$595,BC$5,DT!$D$8:$D$595,$A$1) -> 0 | BD16: 0 | BE16: =SUMIFS(DT!$T$8:$T$595,DT!$C$8:$C$595,BE$5,DT!$D$8:$D$595,$A$1) -> 0 | BF16: =SUMIFS(DT!$T$8:$T$595,DT!$C$8:$C$595,BF$5,DT!$D$8:$D$595,$A$1) -> 0 | BG16: =SUMIFS(DT!$T$8:$T$595,DT!$C$8:$C$595,BG$5,DT!$D$8:$D$595,$A$1) -> 0 | BH16: =$D16-N16 ->  | BI16: =N$62-$BH16 -> 
A17: 1.7 | B17: Đất nuôi trồng thuỷ sản | C17: NTS | D17: =VLOOKUP(C17,#REF!,MATCH($A$1,maxa,0)+2,0) ->  | F17: 0 | G17: =SUMIFS(DT!$V$8:$V$595,DT!$C$8:$C$595,G$5,DT!$D$8:$D$595,$A$1) -> 0 | H17: =SUMIFS(DT!$V$8:$V$595,DT!$C$8:$C$595,H$5,DT!$D$8:$D$595,$A$1) -> 0 | I17: =SUMIFS(DT!$V$8:$V$595,DT!$C$8:$C$595,I$5,DT!$D$8:$D$595,$A$1) -> 0 | J17: =SUMIFS(DT!$V$8:$V$595,DT!$C$8:$C$595,J$5,DT!$D$8:$D$595,$A$1) -> 0 | K17: =SUMIFS(DT!$V$8:$V$595,DT!$C$8:$C$595,K$5,DT!$D$8:$D$595,$A$1) -> 0 | L17: =SUMIFS(DT!$V$8:$V$595,DT!$C$8:$C$595,L$5,DT!$D$8:$D$595,$A$1) -> 0 | M17: =SUMIFS(DT!$V$8:$V$595,DT!$C$8:$C$595,M$5,DT!$D$8:$D$595,$A$1) -> 0 | N17: =SUMIFS(DT!$V$8:$V$595,DT!$C$8:$C$595,N$5,DT!$D$8:$D$595,$A$1) -> 0 | O17: =$D17-SUM($G17:N17)-SUM(P17:$Q17)-$R17-$BD17 ->  | P17: =SUMIFS(DT!$V$8:$V$595,DT!$C$8:$C$595,P$5,DT!$D$8:$D$595,$A$1) -> 0 | Q17: =SUMIFS(DT!$V$8:$V$595,DT!$C$8:$C$595,Q$5,DT!$D$8:$D$595,$A$1) -> 0 | R17: 0 | S17: =SUMIFS(DT!$V$8:$V$595,DT!$C$8:$C$595,S$5,DT!$D$8:$D$595,$A$1) -> 0 | T17: =SUMIFS(DT!$V$8:$V$595,DT!$C$8:$C$595,T$5,DT!$D$8:$D$595,$A$1) -> 0 | U17: =SUMIFS(DT!$V$8:$V$595,DT!$C$8:$C$595,U$5,DT!$D$8:$D$595,$A$1) -> 0 | V17: =SUMIFS(DT!$V$8:$V$595,DT!$C$8:$C$595,V$5,DT!$D$8:$D$595,$A$1) -> 0 | W17: =SUMIFS(DT!$V$8:$V$595,DT!$C$8:$C$595,W$5,DT!$D$8:$D$595,$A$1) -> 0 | X17: =SUMIFS(DT!$V$8:$V$595,DT!$C$8:$C$595,X$5,DT!$D$8:$D$595,$A$1) -> 0 | Y17: =SUMIFS(DT!$V$8:$V$595,DT!$C$8:$C$595,Y$5,DT!$D$8:$D$595,$A$1) -> 0 | Z17: =SUMIFS(DT!$V$8:$V$595,DT!$C$8:$C$595,Z$5,DT!$D$8:$D$595,$A$1) -> 0 | AA17: 0 | AB17: =SUMIFS(DT!$V$8:$V$595,DT!$C$8:$C$595,AB$5,DT!$D$8:$D$595,$A$1) -> 0 | AC17: =SUMIFS(DT!$V$8:$V$595,DT!$C$8:$C$595,AC$5,DT!$D$8:$D$595,$A$1) -> 0 | AD17: =SUMIFS(DT!$V$8:$V$595,DT!$C$8:$C$595,AD$5,DT!$D$8:$D$595,$A$1) -> 0 | AE17: =SUMIFS(DT!$V$8:$V$595,DT!$C$8:$C$595,AE$5,DT!$D$8:$D$595,$A$1) -> 0 | AF17: =SUMIFS(DT!$V$8:$V$595,DT!$C$8:$C$595,AF$5,DT!$D$8:$D$595,$A$1) -> 0 | AG17: =SUMIFS(DT!$V$8:$V$595,DT!$C$8:$C$595,AG$5,DT!$D$8:$D$595,$A$1) -> 0 | AH17: =SUMIFS(DT!$V$8:$V$595,DT!$C$8:$C$595,AH$5,DT!$D$8:$D$595,$A$1) -> 0 | AI17: =SUMIFS(DT!$V$8:$V$595,DT!$C$8:$C$595,AI$5,DT!$D$8:$D$595,$A$1) -> 0 | AJ17: =SUMIFS(DT!$V$8:$V$595,DT!$C$8:$C$595,AJ$5,DT!$D$8:$D$595,$A$1) -> 0 | AK17: =SUMIFS(DT!$V$8:$V$595,DT!$C$8:$C$595,AK$5,DT!$D$8:$D$595,$A$1) -> 0 | AL17: =SUMIFS(DT!$V$8:$V$595,DT!$C$8:$C$595,AL$5,DT!$D$8:$D$595,$A$1) -> 0 | AM17: =SUMIFS(DT!$V$8:$V$595,DT!$C$8:$C$595,AM$5,DT!$D$8:$D$595,$A$1) -> 0 | AN17: =SUMIFS(DT!$V$8:$V$595,DT!$C$8:$C$595,AN$5,DT!$D$8:$D$595,$A$1) -> 0 | AO17: =SUMIFS(DT!$V$8:$V$595,DT!$C$8:$C$595,AO$5,DT!$D$8:$D$595,$A$1) -> 0 | AP17: =SUMIFS(DT!$V$8:$V$595,DT!$C$8:$C$595,AP$5,DT!$D$8:$D$595,$A$1) -> 0 | AQ17: =SUMIFS(DT!$V$8:$V$595,DT!$C$8:$C$595,AQ$5,DT!$D$8:$D$595,$A$1) -> 0 | AR17: =SUMIFS(DT!$V$8:$V$595,DT!$C$8:$C$595,AR$5,DT!$D$8:$D$595,$A$1) -> 0 | AS17: =SUMIFS(DT!$V$8:$V$595,DT!$C$8:$C$595,AS$5,DT!$D$8:$D$595,$A$1) -> 0 | AT17: =SUMIFS(DT!$V$8:$V$595,DT!$C$8:$C$595,AT$5,DT!$D$8:$D$595,$A$1) -> 0 | AU17: =SUMIFS(DT!$V$8:$V$595,DT!$C$8:$C$595,AU$5,DT!$D$8:$D$595,$A$1) -> 0 | AV17: =SUMIFS(DT!$V$8:$V$595,DT!$C$8:$C$595,AV$5,DT!$D$8:$D$595,$A$1) -> 0 | AW17: =SUMIFS(DT!$V$8:$V$595,DT!$C$8:$C$595,AW$5,DT!$D$8:$D$595,$A$1) -> 0 | AX17: =SUMIFS(DT!$V$8:$V$595,DT!$C$8:$C$595,AX$5,DT!$D$8:$D$595,$A$1) -> 0 | AY17: =SUMIFS(DT!$V$8:$V$595,DT!$C$8:$C$595,AY$5,DT!$D$8:$D$595,$A$1) -> 0 | AZ17: =SUMIFS(DT!$V$8:$V$595,DT!$C$8:$C$595,AZ$5,DT!$D$8:$D$595,$A$1) -> 0 | BA17: =SUMIFS(DT!$V$8:$V$595,DT!$C$8:$C$595,BA$5,DT!$D$8:$D$595,$A$1) -> 0 | BB17: =SUMIFS(DT!$V$8:$V$595,DT!$C$8:$C$595,BB$5,DT!$D$8:$D$595,$A$1) -> 0 | BC17: =SUMIFS(DT!$V$8:$V$595,DT!$C$8:$C$595,BC$5,DT!$D$8:$D$595,$A$1) -> 0 | BD17: 0 | BE17: =SUMIFS(DT!$V$8:$V$595,DT!$C$8:$C$595,BE$5,DT!$D$8:$D$595,$A$1) -> 0 | BF17: =SUMIFS(DT!$V$8:$V$595,DT!$C$8:$C$595,BF$5,DT!$D$8:$D$595,$A$1) -> 0 | BG17: =SUMIFS(DT!$V$8:$V$595,DT!$C$8:$C$595,BG$5,DT!$D$8:$D$595,$A$1) -> 0 | BH17: =$D17-O17 ->  | BI17: =O$62-$BH17 -> 
A18: 1.8 | B18: Đất làm muối | C18: LMU | D18: =VLOOKUP(C18,#REF!,MATCH($A$1,maxa,0)+2,0) ->  | F18: 0 | G18: =SUMIFS(DT!$X$8:$X$595,DT!$C$8:$C$595,G$5,DT!$D$8:$D$595,$A$1) -> 0 | H18: =SUMIFS(DT!$X$8:$X$595,DT!$C$8:$C$595,H$5,DT!$D$8:$D$595,$A$1) -> 0 | I18: =SUMIFS(DT!$X$8:$X$595,DT!$C$8:$C$595,I$5,DT!$D$8:$D$595,$A$1) -> 0 | J18: =SUMIFS(DT!$X$8:$X$595,DT!$C$8:$C$595,J$5,DT!$D$8:$D$595,$A$1) -> 0 | K18: =SUMIFS(DT!$X$8:$X$595,DT!$C$8:$C$595,K$5,DT!$D$8:$D$595,$A$1) -> 0 | L18: =SUMIFS(DT!$X$8:$X$595,DT!$C$8:$C$595,L$5,DT!$D$8:$D$595,$A$1) -> 0 | M18: =SUMIFS(DT!$X$8:$X$595,DT!$C$8:$C$595,M$5,DT!$D$8:$D$595,$A$1) -> 0 | N18: =SUMIFS(DT!$X$8:$X$595,DT!$C$8:$C$595,N$5,DT!$D$8:$D$595,$A$1) -> 0 | O18: =SUMIFS(DT!$X$8:$X$595,DT!$C$8:$C$595,O$5,DT!$D$8:$D$595,$A$1) -> 0 | P18: =$D18-SUM($G18:O18)-SUM(Q18:$Q18)-$R18-$BD18 ->  | Q18: =SUMIFS(DT!$X$8:$X$595,DT!$C$8:$C$595,Q$5,DT!$D$8:$D$595,$A$1) -> 0 | R18: 0 | S18: =SUMIFS(DT!$X$8:$X$595,DT!$C$8:$C$595,S$5,DT!$D$8:$D$595,$A$1) -> 0 | T18: =SUMIFS(DT!$X$8:$X$595,DT!$C$8:$C$595,T$5,DT!$D$8:$D$595,$A$1) -> 0 | U18: =SUMIFS(DT!$X$8:$X$595,DT!$C$8:$C$595,U$5,DT!$D$8:$D$595,$A$1) -> 0 | V18: =SUMIFS(DT!$X$8:$X$595,DT!$C$8:$C$595,V$5,DT!$D$8:$D$595,$A$1) -> 0 | W18: =SUMIFS(DT!$X$8:$X$595,DT!$C$8:$C$595,W$5,DT!$D$8:$D$595,$A$1) -> 0 | X18: =SUMIFS(DT!$X$8:$X$595,DT!$C$8:$C$595,X$5,DT!$D$8:$D$595,$A$1) -> 0 | Y18: =SUMIFS(DT!$X$8:$X$595,DT!$C$8:$C$595,Y$5,DT!$D$8:$D$595,$A$1) -> 0 | Z18: =SUMIFS(DT!$X$8:$X$595,DT!$C$8:$C$595,Z$5,DT!$D$8:$D$595,$A$1) -> 0 | AA18: 0 | AB18: =SUMIFS(DT!$X$8:$X$595,DT!$C$8:$C$595,AB$5,DT!$D$8:$D$595,$A$1) -> 0 | AC18: =SUMIFS(DT!$X$8:$X$595,DT!$C$8:$C$595,AC$5,DT!$D$8:$D$595,$A$1) -> 0 | AD18: =SUMIFS(DT!$X$8:$X$595,DT!$C$8:$C$595,AD$5,DT!$D$8:$D$595,$A$1) -> 0 | AE18: =SUMIFS(DT!$X$8:$X$595,DT!$C$8:$C$595,AE$5,DT!$D$8:$D$595,$A$1) -> 0 | AF18: =SUMIFS(DT!$X$8:$X$595,DT!$C$8:$C$595,AF$5,DT!$D$8:$D$595,$A$1) -> 0 | AG18: =SUMIFS(DT!$X$8:$X$595,DT!$C$8:$C$595,AG$5,DT!$D$8:$D$595,$A$1) -> 0 | AH18: =SUMIFS(DT!$X$8:$X$595,DT!$C$8:$C$595,AH$5,DT!$D$8:$D$595,$A$1) -> 0 | AI18: =SUMIFS(DT!$X$8:$X$595,DT!$C$8:$C$595,AI$5,DT!$D$8:$D$595,$A$1) -> 0 | AJ18: =SUMIFS(DT!$X$8:$X$595,DT!$C$8:$C$595,AJ$5,DT!$D$8:$D$595,$A$1) -> 0 | AK18: =SUMIFS(DT!$X$8:$X$595,DT!$C$8:$C$595,AK$5,DT!$D$8:$D$595,$A$1) -> 0 | AL18: =SUMIFS(DT!$X$8:$X$595,DT!$C$8:$C$595,AL$5,DT!$D$8:$D$595,$A$1) -> 0 | AM18: =SUMIFS(DT!$X$8:$X$595,DT!$C$8:$C$595,AM$5,DT!$D$8:$D$595,$A$1) -> 0 | AN18: =SUMIFS(DT!$X$8:$X$595,DT!$C$8:$C$595,AN$5,DT!$D$8:$D$595,$A$1) -> 0 | AO18: =SUMIFS(DT!$X$8:$X$595,DT!$C$8:$C$595,AO$5,DT!$D$8:$D$595,$A$1) -> 0 | AP18: =SUMIFS(DT!$X$8:$X$595,DT!$C$8:$C$595,AP$5,DT!$D$8:$D$595,$A$1) -> 0 | AQ18: =SUMIFS(DT!$X$8:$X$595,DT!$C$8:$C$595,AQ$5,DT!$D$8:$D$595,$A$1) -> 0 | AR18: =SUMIFS(DT!$X$8:$X$595,DT!$C$8:$C$595,AR$5,DT!$D$8:$D$595,$A$1) -> 0 | AS18: =SUMIFS(DT!$X$8:$X$595,DT!$C$8:$C$595,AS$5,DT!$D$8:$D$595,$A$1) -> 0 | AT18: =SUMIFS(DT!$X$8:$X$595,DT!$C$8:$C$595,AT$5,DT!$D$8:$D$595,$A$1) -> 0 | AU18: =SUMIFS(DT!$X$8:$X$595,DT!$C$8:$C$595,AU$5,DT!$D$8:$D$595,$A$1) -> 0 | AV18: =SUMIFS(DT!$X$8:$X$595,DT!$C$8:$C$595,AV$5,DT!$D$8:$D$595,$A$1) -> 0 | AW18: =SUMIFS(DT!$X$8:$X$595,DT!$C$8:$C$595,AW$5,DT!$D$8:$D$595,$A$1) -> 0 | AX18: =SUMIFS(DT!$X$8:$X$595,DT!$C$8:$C$595,AX$5,DT!$D$8:$D$595,$A$1) -> 0 | AY18: =SUMIFS(DT!$X$8:$X$595,DT!$C$8:$C$595,AY$5,DT!$D$8:$D$595,$A$1) -> 0 | AZ18: =SUMIFS(DT!$X$8:$X$595,DT!$C$8:$C$595,AZ$5,DT!$D$8:$D$595,$A$1) -> 0 | BA18: =SUMIFS(DT!$X$8:$X$595,DT!$C$8:$C$595,BA$5,DT!$D$8:$D$595,$A$1) -> 0 | BB18: =SUMIFS(DT!$X$8:$X$595,DT!$C$8:$C$595,BB$5,DT!$D$8:$D$595,$A$1) -> 0 | BC18: =SUMIFS(DT!$X$8:$X$595,DT!$C$8:$C$595,BC$5,DT!$D$8:$D$595,$A$1) -> 0 | BD18: 0 | BE18: =SUMIFS(DT!$X$8:$X$595,DT!$C$8:$C$595,BE$5,DT!$D$8:$D$595,$A$1) -> 0 | BF18: =SUMIFS(DT!$X$8:$X$595,DT!$C$8:$C$595,BF$5,DT!$D$8:$D$595,$A$1) -> 0 | BG18: =SUMIFS(DT!$X$8:$X$595,DT!$C$8:$C$595,BG$5,DT!$D$8:$D$595,$A$1) -> 0 | BH18: =$D18-P18 ->  | BI18: =P$62-$BH18 -> 
A19: 1.9 | B19: Đất nông nghiệp khác | C19: NKH | D19: =VLOOKUP(C19,#REF!,MATCH($A$1,maxa,0)+2,0) ->  | F19: 0 | G19: =SUMIFS(DT!$Z$8:$Z$595,DT!$C$8:$C$595,G$5,DT!$D$8:$D$595,$A$1) -> 0 | H19: =SUMIFS(DT!$Z$8:$Z$595,DT!$C$8:$C$595,H$5,DT!$D$8:$D$595,$A$1) -> 0 | I19: =SUMIFS(DT!$Z$8:$Z$595,DT!$C$8:$C$595,I$5,DT!$D$8:$D$595,$A$1) -> 0 | J19: =SUMIFS(DT!$Z$8:$Z$595,DT!$C$8:$C$595,J$5,DT!$D$8:$D$595,$A$1) -> 0 | K19: =SUMIFS(DT!$Z$8:$Z$595,DT!$C$8:$C$595,K$5,DT!$D$8:$D$595,$A$1) -> 0 | L19: =SUMIFS(DT!$Z$8:$Z$595,DT!$C$8:$C$595,L$5,DT!$D$8:$D$595,$A$1) -> 0 | M19: =SUMIFS(DT!$Z$8:$Z$595,DT!$C$8:$C$595,M$5,DT!$D$8:$D$595,$A$1) -> 0 | N19: =SUMIFS(DT!$Z$8:$Z$595,DT!$C$8:$C$595,N$5,DT!$D$8:$D$595,$A$1) -> 0 | O19: =SUMIFS(DT!$Z$8:$Z$595,DT!$C$8:$C$595,O$5,DT!$D$8:$D$595,$A$1) -> 0 | P19: =SUMIFS(DT!$Z$8:$Z$595,DT!$C$8:$C$595,P$5,DT!$D$8:$D$595,$A$1) -> 0 | Q19: =$D19-SUM($G19:P19)-$R19-$BD19 ->  | R19: 0 | S19: =SUMIFS(DT!$Z$8:$Z$595,DT!$C$8:$C$595,S$5,DT!$D$8:$D$595,$A$1) -> 0 | T19: =SUMIFS(DT!$Z$8:$Z$595,DT!$C$8:$C$595,T$5,DT!$D$8:$D$595,$A$1) -> 0 | U19: =SUMIFS(DT!$Z$8:$Z$595,DT!$C$8:$C$595,U$5,DT!$D$8:$D$595,$A$1) -> 0 | V19: =SUMIFS(DT!$Z$8:$Z$595,DT!$C$8:$C$595,V$5,DT!$D$8:$D$595,$A$1) -> 0 | W19: =SUMIFS(DT!$Z$8:$Z$595,DT!$C$8:$C$595,W$5,DT!$D$8:$D$595,$A$1) -> 0 | X19: =SUMIFS(DT!$Z$8:$Z$595,DT!$C$8:$C$595,X$5,DT!$D$8:$D$595,$A$1) -> 0 | Y19: =SUMIFS(DT!$Z$8:$Z$595,DT!$C$8:$C$595,Y$5,DT!$D$8:$D$595,$A$1) -> 0 | Z19: =SUMIFS(DT!$Z$8:$Z$595,DT!$C$8:$C$595,Z$5,DT!$D$8:$D$595,$A$1) -> 0 | AA19: 0 | AB19: =SUMIFS(DT!$Z$8:$Z$595,DT!$C$8:$C$595,AB$5,DT!$D$8:$D$595,$A$1) -> 0 | AC19: =SUMIFS(DT!$Z$8:$Z$595,DT!$C$8:$C$595,AC$5,DT!$D$8:$D$595,$A$1) -> 0 | AD19: =SUMIFS(DT!$Z$8:$Z$595,DT!$C$8:$C$595,AD$5,DT!$D$8:$D$595,$A$1) -> 0 | AE19: =SUMIFS(DT!$Z$8:$Z$595,DT!$C$8:$C$595,AE$5,DT!$D$8:$D$595,$A$1) -> 0 | AF19: =SUMIFS(DT!$Z$8:$Z$595,DT!$C$8:$C$595,AF$5,DT!$D$8:$D$595,$A$1) -> 0 | AG19: =SUMIFS(DT!$Z$8:$Z$595,DT!$C$8:$C$595,AG$5,DT!$D$8:$D$595,$A$1) -> 0 | AH19: =SUMIFS(DT!$Z$8:$Z$595,DT!$C$8:$C$595,AH$5,DT!$D$8:$D$595,$A$1) -> 0 | AI19: =SUMIFS(DT!$Z$8:$Z$595,DT!$C$8:$C$595,AI$5,DT!$D$8:$D$595,$A$1) -> 0 | AJ19: =SUMIFS(DT!$Z$8:$Z$595,DT!$C$8:$C$595,AJ$5,DT!$D$8:$D$595,$A$1) -> 0 | AK19: =SUMIFS(DT!$Z$8:$Z$595,DT!$C$8:$C$595,AK$5,DT!$D$8:$D$595,$A$1) -> 0 | AL19: =SUMIFS(DT!$Z$8:$Z$595,DT!$C$8:$C$595,AL$5,DT!$D$8:$D$595,$A$1) -> 0 | AM19: =SUMIFS(DT!$Z$8:$Z$595,DT!$C$8:$C$595,AM$5,DT!$D$8:$D$595,$A$1) -> 0 | AN19: =SUMIFS(DT!$Z$8:$Z$595,DT!$C$8:$C$595,AN$5,DT!$D$8:$D$595,$A$1) -> 0 | AO19: =SUMIFS(DT!$Z$8:$Z$595,DT!$C$8:$C$595,AO$5,DT!$D$8:$D$595,$A$1) -> 0 | AP19: =SUMIFS(DT!$Z$8:$Z$595,DT!$C$8:$C$595,AP$5,DT!$D$8:$D$595,$A$1) -> 0 | AQ19: =SUMIFS(DT!$Z$8:$Z$595,DT!$C$8:$C$595,AQ$5,DT!$D$8:$D$595,$A$1) -> 0 | AR19: =SUMIFS(DT!$Z$8:$Z$595,DT!$C$8:$C$595,AR$5,DT!$D$8:$D$595,$A$1) -> 0 | AS19: =SUMIFS(DT!$Z$8:$Z$595,DT!$C$8:$C$595,AS$5,DT!$D$8:$D$595,$A$1) -> 0 | AT19: =SUMIFS(DT!$Z$8:$Z$595,DT!$C$8:$C$595,AT$5,DT!$D$8:$D$595,$A$1) -> 0 | AU19: =SUMIFS(DT!$Z$8:$Z$595,DT!$C$8:$C$595,AU$5,DT!$D$8:$D$595,$A$1) -> 0 | AV19: =SUMIFS(DT!$Z$8:$Z$595,DT!$C$8:$C$595,AV$5,DT!$D$8:$D$595,$A$1) -> 0 | AW19: =SUMIFS(DT!$Z$8:$Z$595,DT!$C$8:$C$595,AW$5,DT!$D$8:$D$595,$A$1) -> 0 | AX19: =SUMIFS(DT!$Z$8:$Z$595,DT!$C$8:$C$595,AX$5,DT!$D$8:$D$595,$A$1) -> 0 | AY19: =SUMIFS(DT!$Z$8:$Z$595,DT!$C$8:$C$595,AY$5,DT!$D$8:$D$595,$A$1) -> 0 | AZ19: =SUMIFS(DT!$Z$8:$Z$595,DT!$C$8:$C$595,AZ$5,DT!$D$8:$D$595,$A$1) -> 0 | BA19: =SUMIFS(DT!$Z$8:$Z$595,DT!$C$8:$C$595,BA$5,DT!$D$8:$D$595,$A$1) -> 0 | BB19: =SUMIFS(DT!$Z$8:$Z$595,DT!$C$8:$C$595,BB$5,DT!$D$8:$D$595,$A$1) -> 0 | BC19: =SUMIFS(DT!$Z$8:$Z$595,DT!$C$8:$C$595,BC$5,DT!$D$8:$D$595,$A$1) -> 0 | BD19: 0 | BE19: =SUMIFS(DT!$Z$8:$Z$595,DT!$C$8:$C$595,BE$5,DT!$D$8:$D$595,$A$1) -> 0 | BF19: =SUMIFS(DT!$Z$8:$Z$595,DT!$C$8:$C$595,BF$5,DT!$D$8:$D$595,$A$1) -> 0 | BG19: =SUMIFS(DT!$Z$8:$Z$595,DT!$C$8:$C$595,BG$5,DT!$D$8:$D$595,$A$1) -> 0 | BH19: =$D19-Q19 ->  | BI19: =Q$62-$BH19 -> 
A20: 2 | B20: Đất phi nông nghiệp | C20: PNN | D20: =SUM(D21:D29)+SUM(D41:D57) ->  | E20: 0 | F20: 0 | G20: 0 | H20: 0 | I20: 0 | J20: 0 | K20: 0 | L20: 0 | M20: 0 | N20: 0 | O20: 0 | P20: 0 | Q20: 0 | AJ20: =SUM(AJ21:AJ29)+SUM(AJ41:AJ57) ->  | BD20: 0 | BE20: 0 | BF20: 0 | BG20: 0 | BH20: =$D20-R20 ->  | BI20: =R$62-$BH20 -> 
A21: 2.1 | B21: Đất quốc phòng | C21: CQP | D21: =VLOOKUP(C21,#REF!,MATCH($A$1,maxa,0)+2,0) ->  | E21: =F21+SUM(J21:Q21) -> 0 | F21: =SUM(G21:I21) -> 0 | G21: =SUMIFS(DT!$AB$8:$AB$595,DT!$C$8:$C$595,G$5,DT!$D$8:$D$595,$A$1) -> 0 | H21: =SUMIFS(DT!$AB$8:$AB$595,DT!$C$8:$C$595,H$5,DT!$D$8:$D$595,$A$1) -> 0 | I21: =SUMIFS(DT!$AB$8:$AB$595,DT!$C$8:$C$595,I$5,DT!$D$8:$D$595,$A$1) -> 0 | J21: =SUMIFS(DT!$AB$8:$AB$595,DT!$C$8:$C$595,J$5,DT!$D$8:$D$595,$A$1) -> 0 | K21: =SUMIFS(DT!$AB$8:$AB$595,DT!$C$8:$C$595,K$5,DT!$D$8:$D$595,$A$1) -> 0 | L21: =SUMIFS(DT!$AB$8:$AB$595,DT!$C$8:$C$595,L$5,DT!$D$8:$D$595,$A$1) -> 0 | M21: =SUMIFS(DT!$AB$8:$AB$595,DT!$C$8:$C$595,M$5,DT!$D$8:$D$595,$A$1) -> 0 | N21: =SUMIFS(DT!$AB$8:$AB$595,DT!$C$8:$C$595,N$5,DT!$D$8:$D$595,$A$1) -> 0 | O21: =SUMIFS(DT!$AB$8:$AB$595,DT!$C$8:$C$595,O$5,DT!$D$8:$D$595,$A$1) -> 0 | P21: =SUMIFS(DT!$AB$8:$AB$595,DT!$C$8:$C$595,P$5,DT!$D$8:$D$595,$A$1) -> 0 | Q21: =SUMIFS(DT!$AB$8:$AB$595,DT!$C$8:$C$595,Q$5,DT!$D$8:$D$595,$A$1) -> 0 | R21: =SUM(S21:AA21)+SUM(AM21:BC21) ->  | S21: =$D21-$E21-SUM(T21:$AA21)-SUM($AM21:$BD21) ->  | T21: =SUMIFS(DT!$AB$8:$AB$595,DT!$C$8:$C$595,T$5,DT!$D$8:$D$595,$A$1) -> 0 | U21: =SUMIFS(DT!$AB$8:$AB$595,DT!$C$8:$C$595,U$5,DT!$D$8:$D$595,$A$1) -> 0 | V21: =SUMIFS(DT!$AB$8:$AB$595,DT!$C$8:$C$595,V$5,DT!$D$8:$D$595,$A$1) -> 0 | W21: =SUMIFS(DT!$AB$8:$AB$595,DT!$C$8:$C$595,W$5,DT!$D$8:$D$595,$A$1) -> 0 | X21: =SUMIFS(DT!$AB$8:$AB$595,DT!$C$8:$C$595,X$5,DT!$D$8:$D$595,$A$1) -> 0 | Y21: =SUMIFS(DT!$AB$8:$AB$595,DT!$C$8:$C$595,Y$5,DT!$D$8:$D$595,$A$1) -> 0 | Z21: =SUMIFS(DT!$AB$8:$AB$595,DT!$C$8:$C$595,Z$5,DT!$D$8:$D$595,$A$1) -> 0 | AA21: 0 | AB21: =SUMIFS(DT!$AB$8:$AB$595,DT!$C$8:$C$595,AB$5,DT!$D$8:$D$595,$A$1) -> 0 | AC21: =SUMIFS(DT!$AB$8:$AB$595,DT!$C$8:$C$595,AC$5,DT!$D$8:$D$595,$A$1) -> 0 | AD21: =SUMIFS(DT!$AB$8:$AB$595,DT!$C$8:$C$595,AD$5,DT!$D$8:$D$595,$A$1) -> 0 | AE21: =SUMIFS(DT!$AB$8:$AB$595,DT!$C$8:$C$595,AE$5,DT!$D$8:$D$595,$A$1) -> 0 | AF21: =SUMIFS(DT!$AB$8:$AB$595,DT!$C$8:$C$595,AF$5,DT!$D$8:$D$595,$A$1) -> 0 | AG21: =SUMIFS(DT!$AB$8:$AB$595,DT!$C$8:$C$595,AG$5,DT!$D$8:$D$595,$A$1) -> 0 | AH21: =SUMIFS(DT!$AB$8:$AB$595,DT!$C$8:$C$595,AH$5,DT!$D$8:$D$595,$A$1) -> 0 | AI21: =SUMIFS(DT!$AB$8:$AB$595,DT!$C$8:$C$595,AI$5,DT!$D$8:$D$595,$A$1) -> 0 | AJ21: =SUMIFS(DT!$AB$8:$AB$595,DT!$C$8:$C$595,AJ$5,DT!$D$8:$D$595,$A$1) -> 0 | AK21: =SUMIFS(DT!$AB$8:$AB$595,DT!$C$8:$C$595,AK$5,DT!$D$8:$D$595,$A$1) -> 0 | AL21: =SUMIFS(DT!$AB$8:$AB$595,DT!$C$8:$C$595,AL$5,DT!$D$8:$D$595,$A$1) -> 0 | AM21: =SUMIFS(DT!$AB$8:$AB$595,DT!$C$8:$C$595,AM$5,DT!$D$8:$D$595,$A$1) -> 0 | AN21: =SUMIFS(DT!$AB$8:$AB$595,DT!$C$8:$C$595,AN$5,DT!$D$8:$D$595,$A$1) -> 0 | AO21: =SUMIFS(DT!$AB$8:$AB$595,DT!$C$8:$C$595,AO$5,DT!$D$8:$D$595,$A$1) -> 0 | AP21: =SUMIFS(DT!$AB$8:$AB$595,DT!$C$8:$C$595,AP$5,DT!$D$8:$D$595,$A$1) -> 0 | AQ21: =SUMIFS(DT!$AB$8:$AB$595,DT!$C$8:$C$595,AQ$5,DT!$D$8:$D$595,$A$1) -> 0 | AR21: =SUMIFS(DT!$AB$8:$AB$595,DT!$C$8:$C$595,AR$5,DT!$D$8:$D$595,$A$1) -> 0 | AS21: =SUMIFS(DT!$AB$8:$AB$595,DT!$C$8:$C$595,AS$5,DT!$D$8:$D$595,$A$1) -> 0 | AT21: =SUMIFS(DT!$AB$8:$AB$595,DT!$C$8:$C$595,AT$5,DT!$D$8:$D$595,$A$1) -> 0 | AU21: =SUMIFS(DT!$AB$8:$AB$595,DT!$C$8:$C$595,AU$5,DT!$D$8:$D$595,$A$1) -> 0 | AV21: =SUMIFS(DT!$AB$8:$AB$595,DT!$C$8:$C$595,AV$5,DT!$D$8:$D$595,$A$1) -> 0 | AW21: =SUMIFS(DT!$AB$8:$AB$595,DT!$C$8:$C$595,AW$5,DT!$D$8:$D$595,$A$1) -> 0 | AX21: =SUMIFS(DT!$AB$8:$AB$595,DT!$C$8:$C$595,AX$5,DT!$D$8:$D$595,$A$1) -> 0 | AY21: =SUMIFS(DT!$AB$8:$AB$595,DT!$C$8:$C$595,AY$5,DT!$D$8:$D$595,$A$1) -> 0 | AZ21: =SUMIFS(DT!$AB$8:$AB$595,DT!$C$8:$C$595,AZ$5,DT!$D$8:$D$595,$A$1) -> 0 | BA21: =SUMIFS(DT!$AB$8:$AB$595,DT!$C$8:$C$595,BA$5,DT!$D$8:$D$595,$A$1) -> 0 | BB21: =SUMIFS(DT!$AB$8:$AB$595,DT!$C$8:$C$595,BB$5,DT!$D$8:$D$595,$A$1) -> 0 | BC21: =SUMIFS(DT!$AB$8:$AB$595,DT!$C$8:$C$595,BC$5,DT!$D$8:$D$595,$A$1) -> 0 | BD21: 0 | BE21: =SUMIFS(DT!$AB$8:$AB$595,DT!$C$8:$C$595,BE$5,DT!$D$8:$D$595,$A$1) -> 0 | BF21: =SUMIFS(DT!$AB$8:$AB$595,DT!$C$8:$C$595,BF$5,DT!$D$8:$D$595,$A$1) -> 0 | BG21: =SUMIFS(DT!$AB$8:$AB$595,DT!$C$8:$C$595,BG$5,DT!$D$8:$D$595,$A$1) -> 0 | BH21: =$D21-S21 ->  | BI21: =S$62-$BH21 -> 
A22: 2.2 | B22: Đất an ninh | C22: CAN | D22: =VLOOKUP(C22,#REF!,MATCH($A$1,maxa,0)+2,0) ->  | E22: 0 | F22: 0 | G22: =SUMIFS(DT!$AD$8:$AD$595,DT!$C$8:$C$595,G$5,DT!$D$8:$D$595,$A$1) -> 0 | H22: =SUMIFS(DT!$AD$8:$AD$595,DT!$C$8:$C$595,H$5,DT!$D$8:$D$595,$A$1) -> 0 | I22: =SUMIFS(DT!$AD$8:$AD$595,DT!$C$8:$C$595,I$5,DT!$D$8:$D$595,$A$1) -> 0 | J22: =SUMIFS(DT!$AD$8:$AD$595,DT!$C$8:$C$595,J$5,DT!$D$8:$D$595,$A$1) -> 0 | K22: =SUMIFS(DT!$AD$8:$AD$595,DT!$C$8:$C$595,K$5,DT!$D$8:$D$595,$A$1) -> 0 | L22: =SUMIFS(DT!$AD$8:$AD$595,DT!$C$8:$C$595,L$5,DT!$D$8:$D$595,$A$1) -> 0 | M22: =SUMIFS(DT!$AD$8:$AD$595,DT!$C$8:$C$595,M$5,DT!$D$8:$D$595,$A$1) -> 0 | N22: =SUMIFS(DT!$AD$8:$AD$595,DT!$C$8:$C$595,N$5,DT!$D$8:$D$595,$A$1) -> 0 | O22: =SUMIFS(DT!$AD$8:$AD$595,DT!$C$8:$C$595,O$5,DT!$D$8:$D$595,$A$1) -> 0 | P22: =SUMIFS(DT!$AD$8:$AD$595,DT!$C$8:$C$595,P$5,DT!$D$8:$D$595,$A$1) -> 0 | Q22: =SUMIFS(DT!$AD$8:$AD$595,DT!$C$8:$C$595,Q$5,DT!$D$8:$D$595,$A$1) -> 0 | S22: =SUMIFS(DT!$AD$8:$AD$595,DT!$C$8:$C$595,S$5,DT!$D$8:$D$595,$A$1) -> 0 | T22: =$D22-$E22-S22-SUM(U22:$AA22)-SUM($AM22:$BD22) ->  | U22: =SUMIFS(DT!$AD$8:$AD$595,DT!$C$8:$C$595,U$5,DT!$D$8:$D$595,$A$1) -> 0 | V22: =SUMIFS(DT!$AD$8:$AD$595,DT!$C$8:$C$595,V$5,DT!$D$8:$D$595,$A$1) -> 0 | W22: =SUMIFS(DT!$AD$8:$AD$595,DT!$C$8:$C$595,W$5,DT!$D$8:$D$595,$A$1) -> 0 | X22: =SUMIFS(DT!$AD$8:$AD$595,DT!$C$8:$C$595,X$5,DT!$D$8:$D$595,$A$1) -> 0 | Y22: =SUMIFS(DT!$AD$8:$AD$595,DT!$C$8:$C$595,Y$5,DT!$D$8:$D$595,$A$1) -> 0 | Z22: =SUMIFS(DT!$AD$8:$AD$595,DT!$C$8:$C$595,Z$5,DT!$D$8:$D$595,$A$1) -> 0 | AA22: 0 | AB22: =SUMIFS(DT!$AD$8:$AD$595,DT!$C$8:$C$595,AB$5,DT!$D$8:$D$595,$A$1) -> 0 | AC22: =SUMIFS(DT!$AD$8:$AD$595,DT!$C$8:$C$595,AC$5,DT!$D$8:$D$595,$A$1) -> 0 | AD22: =SUMIFS(DT!$AD$8:$AD$595,DT!$C$8:$C$595,AD$5,DT!$D$8:$D$595,$A$1) -> 0 | AE22: =SUMIFS(DT!$AD$8:$AD$595,DT!$C$8:$C$595,AE$5,DT!$D$8:$D$595,$A$1) -> 0 | AF22: =SUMIFS(DT!$AD$8:$AD$595,DT!$C$8:$C$595,AF$5,DT!$D$8:$D$595,$A$1) -> 0 | AG22: =SUMIFS(DT!$AD$8:$AD$595,DT!$C$8:$C$595,AG$5,DT!$D$8:$D$595,$A$1) -> 0 | AH22: =SUMIFS(DT!$AD$8:$AD$595,DT!$C$8:$C$595,AH$5,DT!$D$8:$D$595,$A$1) -> 0 | AI22: =SUMIFS(DT!$AD$8:$AD$595,DT!$C$8:$C$595,AI$5,DT!$D$8:$D$595,$A$1) -> 0 | AJ22: =SUMIFS(DT!$AD$8:$AD$595,DT!$C$8:$C$595,AJ$5,DT!$D$8:$D$595,$A$1) -> 0 | AK22: =SUMIFS(DT!$AD$8:$AD$595,DT!$C$8:$C$595,AK$5,DT!$D$8:$D$595,$A$1) -> 0 | AL22: =SUMIFS(DT!$AD$8:$AD$595,DT!$C$8:$C$595,AL$5,DT!$D$8:$D$595,$A$1) -> 0 | AM22: =SUMIFS(DT!$AD$8:$AD$595,DT!$C$8:$C$595,AM$5,DT!$D$8:$D$595,$A$1) -> 0 | AN22: =SUMIFS(DT!$AD$8:$AD$595,DT!$C$8:$C$595,AN$5,DT!$D$8:$D$595,$A$1) -> 0 | AO22: =SUMIFS(DT!$AD$8:$AD$595,DT!$C$8:$C$595,AO$5,DT!$D$8:$D$595,$A$1) -> 0 | AP22: =SUMIFS(DT!$AD$8:$AD$595,DT!$C$8:$C$595,AP$5,DT!$D$8:$D$595,$A$1) -> 0 | AQ22: =SUMIFS(DT!$AD$8:$AD$595,DT!$C$8:$C$595,AQ$5,DT!$D$8:$D$595,$A$1) -> 0 | AR22: =SUMIFS(DT!$AD$8:$AD$595,DT!$C$8:$C$595,AR$5,DT!$D$8:$D$595,$A$1) -> 0 | AS22: =SUMIFS(DT!$AD$8:$AD$595,DT!$C$8:$C$595,AS$5,DT!$D$8:$D$595,$A$1) -> 0 | AT22: =SUMIFS(DT!$AD$8:$AD$595,DT!$C$8:$C$595,AT$5,DT!$D$8:$D$595,$A$1) -> 0 | AU22: =SUMIFS(DT!$AD$8:$AD$595,DT!$C$8:$C$595,AU$5,DT!$D$8:$D$595,$A$1) -> 0 | AV22: =SUMIFS(DT!$AD$8:$AD$595,DT!$C$8:$C$595,AV$5,DT!$D$8:$D$595,$A$1) -> 0 | AW22: =SUMIFS(DT!$AD$8:$AD$595,DT!$C$8:$C$595,AW$5,DT!$D$8:$D$595,$A$1) -> 0 | AX22: =SUMIFS(DT!$AD$8:$AD$595,DT!$C$8:$C$595,AX$5,DT!$D$8:$D$595,$A$1) -> 0 | AY22: =SUMIFS(DT!$AD$8:$AD$595,DT!$C$8:$C$595,AY$5,DT!$D$8:$D$595,$A$1) -> 0 | AZ22: =SUMIFS(DT!$AD$8:$AD$595,DT!$C$8:$C$595,AZ$5,DT!$D$8:$D$595,$A$1) -> 0 | BA22: =SUMIFS(DT!$AD$8:$AD$595,DT!$C$8:$C$595,BA$5,DT!$D$8:$D$595,$A$1) -> 0 | BB22: =SUMIFS(DT!$AD$8:$AD$595,DT!$C$8:$C$595,BB$5,DT!$D$8:$D$595,$A$1) -> 0 | BC22: =SUMIFS(DT!$AD$8:$AD$595,DT!$C$8:$C$595,BC$5,DT!$D$8:$D$595,$A$1) -> 0 | BD22: 0 | BE22: =SUMIFS(DT!$AD$8:$AD$595,DT!$C$8:$C$595,BE$5,DT!$D$8:$D$595,$A$1) -> 0 | BF22: =SUMIFS(DT!$AD$8:$AD$595,DT!$C$8:$C$595,BF$5,DT!$D$8:$D$595,$A$1) -> 0 | BG22: =SUMIFS(DT!$AD$8:$AD$595,DT!$C$8:$C$595,BG$5,DT!$D$8:$D$595,$A$1) -> 0 | BH22: =$D22-T22 ->  | BI22: =T$62-$BH22 -> 
A23: 2.3 | B23: Đất khu công nghiệp | C23: SKK | D23: =VLOOKUP(C23,#REF!,MATCH($A$1,maxa,0)+2,0) ->  | E23: 0 | F23: 0 | G23: =SUMIFS(DT!$AF$8:$AF$595,DT!$C$8:$C$595,G$5,DT!$D$8:$D$595,$A$1) -> 0 | H23: =SUMIFS(DT!$AF$8:$AF$595,DT!$C$8:$C$595,H$5,DT!$D$8:$D$595,$A$1) -> 0 | I23: =SUMIFS(DT!$AF$8:$AF$595,DT!$C$8:$C$595,I$5,DT!$D$8:$D$595,$A$1) -> 0 | J23: =SUMIFS(DT!$AF$8:$AF$595,DT!$C$8:$C$595,J$5,DT!$D$8:$D$595,$A$1) -> 0 | K23: =SUMIFS(DT!$AF$8:$AF$595,DT!$C$8:$C$595,K$5,DT!$D$8:$D$595,$A$1) -> 0 | L23: =SUMIFS(DT!$AF$8:$AF$595,DT!$C$8:$C$595,L$5,DT!$D$8:$D$595,$A$1) -> 0 | M23: =SUMIFS(DT!$AF$8:$AF$595,DT!$C$8:$C$595,M$5,DT!$D$8:$D$595,$A$1) -> 0 | N23: =SUMIFS(DT!$AF$8:$AF$595,DT!$C$8:$C$595,N$5,DT!$D$8:$D$595,$A$1) -> 0 | O23: =SUMIFS(DT!$AF$8:$AF$595,DT!$C$8:$C$595,O$5,DT!$D$8:$D$595,$A$1) -> 0 | P23: =SUMIFS(DT!$AF$8:$AF$595,DT!$C$8:$C$595,P$5,DT!$D$8:$D$595,$A$1) -> 0 | Q23: =SUMIFS(DT!$AF$8:$AF$595,DT!$C$8:$C$595,Q$5,DT!$D$8:$D$595,$A$1) -> 0 | S23: =SUMIFS(DT!$AF$8:$AF$595,DT!$C$8:$C$595,S$5,DT!$D$8:$D$595,$A$1) -> 0 | T23: =SUMIFS(DT!$AF$8:$AF$595,DT!$C$8:$C$595,T$5,DT!$D$8:$D$595,$A$1) -> 0 | U23: =$D23-$E23-SUM($S23:T23)-SUM(V23:$AA23)-SUM($AM23:$BD23) ->  | V23: =SUMIFS(DT!$AF$8:$AF$595,DT!$C$8:$C$595,V$5,DT!$D$8:$D$595,$A$1) -> 0 | W23: =SUMIFS(DT!$AF$8:$AF$595,DT!$C$8:$C$595,W$5,DT!$D$8:$D$595,$A$1) -> 0 | X23: =SUMIFS(DT!$AF$8:$AF$595,DT!$C$8:$C$595,X$5,DT!$D$8:$D$595,$A$1) -> 0 | Y23: =SUMIFS(DT!$AF$8:$AF$595,DT!$C$8:$C$595,Y$5,DT!$D$8:$D$595,$A$1) -> 0 | Z23: =SUMIFS(DT!$AF$8:$AF$595,DT!$C$8:$C$595,Z$5,DT!$D$8:$D$595,$A$1) -> 0 | AA23: 0 | AB23: =SUMIFS(DT!$AF$8:$AF$595,DT!$C$8:$C$595,AB$5,DT!$D$8:$D$595,$A$1) -> 0 | AC23: =SUMIFS(DT!$AF$8:$AF$595,DT!$C$8:$C$595,AC$5,DT!$D$8:$D$595,$A$1) -> 0 | AD23: =SUMIFS(DT!$AF$8:$AF$595,DT!$C$8:$C$595,AD$5,DT!$D$8:$D$595,$A$1) -> 0 | AE23: =SUMIFS(DT!$AF$8:$AF$595,DT!$C$8:$C$595,AE$5,DT!$D$8:$D$595,$A$1) -> 0 | AF23: =SUMIFS(DT!$AF$8:$AF$595,DT!$C$8:$C$595,AF$5,DT!$D$8:$D$595,$A$1) -> 0 | AG23: =SUMIFS(DT!$AF$8:$AF$595,DT!$C$8:$C$595,AG$5,DT!$D$8:$D$595,$A$1) -> 0 | AH23: =SUMIFS(DT!$AF$8:$AF$595,DT!$C$8:$C$595,AH$5,DT!$D$8:$D$595,$A$1) -> 0 | AI23: =SUMIFS(DT!$AF$8:$AF$595,DT!$C$8:$C$595,AI$5,DT!$D$8:$D$595,$A$1) -> 0 | AJ23: =SUMIFS(DT!$AF$8:$AF$595,DT!$C$8:$C$595,AJ$5,DT!$D$8:$D$595,$A$1) -> 0 | AK23: =SUMIFS(DT!$AF$8:$AF$595,DT!$C$8:$C$595,AK$5,DT!$D$8:$D$595,$A$1) -> 0 | AL23: =SUMIFS(DT!$AF$8:$AF$595,DT!$C$8:$C$595,AL$5,DT!$D$8:$D$595,$A$1) -> 0 | AM23: =SUMIFS(DT!$AF$8:$AF$595,DT!$C$8:$C$595,AM$5,DT!$D$8:$D$595,$A$1) -> 0 | AN23: =SUMIFS(DT!$AF$8:$AF$595,DT!$C$8:$C$595,AN$5,DT!$D$8:$D$595,$A$1) -> 0 | AO23: =SUMIFS(DT!$AF$8:$AF$595,DT!$C$8:$C$595,AO$5,DT!$D$8:$D$595,$A$1) -> 0 | AP23: =SUMIFS(DT!$AF$8:$AF$595,DT!$C$8:$C$595,AP$5,DT!$D$8:$D$595,$A$1) -> 0 | AQ23: =SUMIFS(DT!$AF$8:$AF$595,DT!$C$8:$C$595,AQ$5,DT!$D$8:$D$595,$A$1) -> 0 | AR23: =SUMIFS(DT!$AF$8:$AF$595,DT!$C$8:$C$595,AR$5,DT!$D$8:$D$595,$A$1) -> 0 | AS23: =SUMIFS(DT!$AF$8:$AF$595,DT!$C$8:$C$595,AS$5,DT!$D$8:$D$595,$A$1) -> 0 | AT23: =SUMIFS(DT!$AF$8:$AF$595,DT!$C$8:$C$595,AT$5,DT!$D$8:$D$595,$A$1) -> 0 | AU23: =SUMIFS(DT!$AF$8:$AF$595,DT!$C$8:$C$595,AU$5,DT!$D$8:$D$595,$A$1) -> 0 | AV23: =SUMIFS(DT!$AF$8:$AF$595,DT!$C$8:$C$595,AV$5,DT!$D$8:$D$595,$A$1) -> 0 | AW23: =SUMIFS(DT!$AF$8:$AF$595,DT!$C$8:$C$595,AW$5,DT!$D$8:$D$595,$A$1) -> 0 | AX23: =SUMIFS(DT!$AF$8:$AF$595,DT!$C$8:$C$595,AX$5,DT!$D$8:$D$595,$A$1) -> 0 | AY23: =SUMIFS(DT!$AF$8:$AF$595,DT!$C$8:$C$595,AY$5,DT!$D$8:$D$595,$A$1) -> 0 | AZ23: =SUMIFS(DT!$AF$8:$AF$595,DT!$C$8:$C$595,AZ$5,DT!$D$8:$D$595,$A$1) -> 0 | BA23: =SUMIFS(DT!$AF$8:$AF$595,DT!$C$8:$C$595,BA$5,DT!$D$8:$D$595,$A$1) -> 0 | BB23: =SUMIFS(DT!$AF$8:$AF$595,DT!$C$8:$C$595,BB$5,DT!$D$8:$D$595,$A$1) -> 0 | BC23: =SUMIFS(DT!$AF$8:$AF$595,DT!$C$8:$C$595,BC$5,DT!$D$8:$D$595,$A$1) -> 0 | BD23: 0 | BE23: =SUMIFS(DT!$AF$8:$AF$595,DT!$C$8:$C$595,BE$5,DT!$D$8:$D$595,$A$1) -> 0 | BF23: =SUMIFS(DT!$AF$8:$AF$595,DT!$C$8:$C$595,BF$5,DT!$D$8:$D$595,$A$1) -> 0 | BG23: =SUMIFS(DT!$AF$8:$AF$595,DT!$C$8:$C$595,BG$5,DT!$D$8:$D$595,$A$1) -> 0 | BH23: =$D23-U23 ->  | BI23: =U$62-$BH23 -> 
A24: 2.4 | B24: Đất cụm công nghiệp | C24: SKN | D24: =VLOOKUP(C24,#REF!,MATCH($A$1,maxa,0)+2,0) ->  | E24: 0 | F24: 0 | G24: =SUMIFS(DT!$AH$8:$AH$595,DT!$C$8:$C$595,G$5,DT!$D$8:$D$595,$A$1) -> 0 | H24: =SUMIFS(DT!$AH$8:$AH$595,DT!$C$8:$C$595,H$5,DT!$D$8:$D$595,$A$1) -> 0 | I24: =SUMIFS(DT!$AH$8:$AH$595,DT!$C$8:$C$595,I$5,DT!$D$8:$D$595,$A$1) -> 0 | J24: =SUMIFS(DT!$AH$8:$AH$595,DT!$C$8:$C$595,J$5,DT!$D$8:$D$595,$A$1) -> 0 | K24: =SUMIFS(DT!$AH$8:$AH$595,DT!$C$8:$C$595,K$5,DT!$D$8:$D$595,$A$1) -> 0 | L24: =SUMIFS(DT!$AH$8:$AH$595,DT!$C$8:$C$595,L$5,DT!$D$8:$D$595,$A$1) -> 0 | M24: =SUMIFS(DT!$AH$8:$AH$595,DT!$C$8:$C$595,M$5,DT!$D$8:$D$595,$A$1) -> 0 | N24: =SUMIFS(DT!$AH$8:$AH$595,DT!$C$8:$C$595,N$5,DT!$D$8:$D$595,$A$1) -> 0 | O24: =SUMIFS(DT!$AH$8:$AH$595,DT!$C$8:$C$595,O$5,DT!$D$8:$D$595,$A$1) -> 0 | P24: =SUMIFS(DT!$AH$8:$AH$595,DT!$C$8:$C$595,P$5,DT!$D$8:$D$595,$A$1) -> 0 | Q24: =SUMIFS(DT!$AH$8:$AH$595,DT!$C$8:$C$595,Q$5,DT!$D$8:$D$595,$A$1) -> 0 | S24: =SUMIFS(DT!$AH$8:$AH$595,DT!$C$8:$C$595,S$5,DT!$D$8:$D$595,$A$1) -> 0 | T24: =SUMIFS(DT!$AH$8:$AH$595,DT!$C$8:$C$595,T$5,DT!$D$8:$D$595,$A$1) -> 0 | U24: =SUMIFS(DT!$AH$8:$AH$595,DT!$C$8:$C$595,U$5,DT!$D$8:$D$595,$A$1) -> 0 | V24: =$D24-$E24-SUM($S24:U24)-SUM(W24:$AA24)-SUM($AM24:$BD24) ->  | W24: =SUMIFS(DT!$AH$8:$AH$595,DT!$C$8:$C$595,W$5,DT!$D$8:$D$595,$A$1) -> 0 | X24: =SUMIFS(DT!$AH$8:$AH$595,DT!$C$8:$C$595,X$5,DT!$D$8:$D$595,$A$1) -> 0 | Y24: =SUMIFS(DT!$AH$8:$AH$595,DT!$C$8:$C$595,Y$5,DT!$D$8:$D$595,$A$1) -> 0 | Z24: =SUMIFS(DT!$AH$8:$AH$595,DT!$C$8:$C$595,Z$5,DT!$D$8:$D$595,$A$1) -> 0 | AA24: 0 | AB24: =SUMIFS(DT!$AH$8:$AH$595,DT!$C$8:$C$595,AB$5,DT!$D$8:$D$595,$A$1) -> 0 | AC24: =SUMIFS(DT!$AH$8:$AH$595,DT!$C$8:$C$595,AC$5,DT!$D$8:$D$595,$A$1) -> 0 | AD24: =SUMIFS(DT!$AH$8:$AH$595,DT!$C$8:$C$595,AD$5,DT!$D$8:$D$595,$A$1) -> 0 | AE24: =SUMIFS(DT!$AH$8:$AH$595,DT!$C$8:$C$595,AE$5,DT!$D$8:$D$595,$A$1) -> 0 | AF24: =SUMIFS(DT!$AH$8:$AH$595,DT!$C$8:$C$595,AF$5,DT!$D$8:$D$595,$A$1) -> 0 | AG24: =SUMIFS(DT!$AH$8:$AH$595,DT!$C$8:$C$595,AG$5,DT!$D$8:$D$595,$A$1) -> 0 | AH24: =SUMIFS(DT!$AH$8:$AH$595,DT!$C$8:$C$595,AH$5,DT!$D$8:$D$595,$A$1) -> 0 | AI24: =SUMIFS(DT!$AH$8:$AH$595,DT!$C$8:$C$595,AI$5,DT!$D$8:$D$595,$A$1) -> 0 | AJ24: =SUMIFS(DT!$AH$8:$AH$595,DT!$C$8:$C$595,AJ$5,DT!$D$8:$D$595,$A$1) -> 0 | AK24: =SUMIFS(DT!$AH$8:$AH$595,DT!$C$8:$C$595,AK$5,DT!$D$8:$D$595,$A$1) -> 0 | AL24: =SUMIFS(DT!$AH$8:$AH$595,DT!$C$8:$C$595,AL$5,DT!$D$8:$D$595,$A$1) -> 0 | AM24: =SUMIFS(DT!$AH$8:$AH$595,DT!$C$8:$C$595,AM$5,DT!$D$8:$D$595,$A$1) -> 0 | AN24: =SUMIFS(DT!$AH$8:$AH$595,DT!$C$8:$C$595,AN$5,DT!$D$8:$D$595,$A$1) -> 0 | AO24: =SUMIFS(DT!$AH$8:$AH$595,DT!$C$8:$C$595,AO$5,DT!$D$8:$D$595,$A$1) -> 0 | AP24: =SUMIFS(DT!$AH$8:$AH$595,DT!$C$8:$C$595,AP$5,DT!$D$8:$D$595,$A$1) -> 0 | AQ24: =SUMIFS(DT!$AH$8:$AH$595,DT!$C$8:$C$595,AQ$5,DT!$D$8:$D$595,$A$1) -> 0 | AR24: =SUMIFS(DT!$AH$8:$AH$595,DT!$C$8:$C$595,AR$5,DT!$D$8:$D$595,$A$1) -> 0 | AS24: =SUMIFS(DT!$AH$8:$AH$595,DT!$C$8:$C$595,AS$5,DT!$D$8:$D$595,$A$1) -> 0 | AT24: =SUMIFS(DT!$AH$8:$AH$595,DT!$C$8:$C$595,AT$5,DT!$D$8:$D$595,$A$1) -> 0 | AU24: =SUMIFS(DT!$AH$8:$AH$595,DT!$C$8:$C$595,AU$5,DT!$D$8:$D$595,$A$1) -> 0 | AV24: =SUMIFS(DT!$AH$8:$AH$595,DT!$C$8:$C$595,AV$5,DT!$D$8:$D$595,$A$1) -> 0 | AW24: =SUMIFS(DT!$AH$8:$AH$595,DT!$C$8:$C$595,AW$5,DT!$D$8:$D$595,$A$1) -> 0 | AX24: =SUMIFS(DT!$AH$8:$AH$595,DT!$C$8:$C$595,AX$5,DT!$D$8:$D$595,$A$1) -> 0 | AY24: =SUMIFS(DT!$AH$8:$AH$595,DT!$C$8:$C$595,AY$5,DT!$D$8:$D$595,$A$1) -> 0 | AZ24: =SUMIFS(DT!$AH$8:$AH$595,DT!$C$8:$C$595,AZ$5,DT!$D$8:$D$595,$A$1) -> 0 | BA24: =SUMIFS(DT!$AH$8:$AH$595,DT!$C$8:$C$595,BA$5,DT!$D$8:$D$595,$A$1) -> 0 | BB24: =SUMIFS(DT!$AH$8:$AH$595,DT!$C$8:$C$595,BB$5,DT!$D$8:$D$595,$A$1) -> 0 | BC24: =SUMIFS(DT!$AH$8:$AH$595,DT!$C$8:$C$595,BC$5,DT!$D$8:$D$595,$A$1) -> 0 | BD24: 0 | BE24: =SUMIFS(DT!$AH$8:$AH$595,DT!$C$8:$C$595,BE$5,DT!$D$8:$D$595,$A$1) -> 0 | BF24: =SUMIFS(DT!$AH$8:$AH$595,DT!$C$8:$C$595,BF$5,DT!$D$8:$D$595,$A$1) -> 0 | BG24: =SUMIFS(DT!$AH$8:$AH$595,DT!$C$8:$C$595,BG$5,DT!$D$8:$D$595,$A$1) -> 0 | BH24: =$D24-V24 ->  | BI24: =V$62-$BH24 -> 
A25: 2.5 | B25: Đất khu chế xuất | C25: SKT | D25: =VLOOKUP(C25,#REF!,MATCH($A$1,maxa,0)+2,0) ->  | E25: 0 | F25: 0 | G25: =SUMIFS(DT!$AJ$8:$AJ$595,DT!$C$8:$C$595,G$5,DT!$D$8:$D$595,$A$1) -> 0 | H25: =SUMIFS(DT!$AJ$8:$AJ$595,DT!$C$8:$C$595,H$5,DT!$D$8:$D$595,$A$1) -> 0 | I25: =SUMIFS(DT!$AJ$8:$AJ$595,DT!$C$8:$C$595,I$5,DT!$D$8:$D$595,$A$1) -> 0 | J25: =SUMIFS(DT!$AJ$8:$AJ$595,DT!$C$8:$C$595,J$5,DT!$D$8:$D$595,$A$1) -> 0 | K25: =SUMIFS(DT!$AJ$8:$AJ$595,DT!$C$8:$C$595,K$5,DT!$D$8:$D$595,$A$1) -> 0 | L25: =SUMIFS(DT!$AJ$8:$AJ$595,DT!$C$8:$C$595,L$5,DT!$D$8:$D$595,$A$1) -> 0 | M25: =SUMIFS(DT!$AJ$8:$AJ$595,DT!$C$8:$C$595,M$5,DT!$D$8:$D$595,$A$1) -> 0 | N25: =SUMIFS(DT!$AJ$8:$AJ$595,DT!$C$8:$C$595,N$5,DT!$D$8:$D$595,$A$1) -> 0 | O25: =SUMIFS(DT!$AJ$8:$AJ$595,DT!$C$8:$C$595,O$5,DT!$D$8:$D$595,$A$1) -> 0 | P25: =SUMIFS(DT!$AJ$8:$AJ$595,DT!$C$8:$C$595,P$5,DT!$D$8:$D$595,$A$1) -> 0 | Q25: =SUMIFS(DT!$AJ$8:$AJ$595,DT!$C$8:$C$595,Q$5,DT!$D$8:$D$595,$A$1) -> 0 | S25: =SUMIFS(DT!$AJ$8:$AJ$595,DT!$C$8:$C$595,S$5,DT!$D$8:$D$595,$A$1) -> 0 | T25: =SUMIFS(DT!$AJ$8:$AJ$595,DT!$C$8:$C$595,T$5,DT!$D$8:$D$595,$A$1) -> 0 | U25: =SUMIFS(DT!$AJ$8:$AJ$595,DT!$C$8:$C$595,U$5,DT!$D$8:$D$595,$A$1) -> 0 | V25: =SUMIFS(DT!$AJ$8:$AJ$595,DT!$C$8:$C$595,V$5,DT!$D$8:$D$595,$A$1) -> 0 | W25: =$D25-$E25-SUM($S25:V25)-SUM(X25:$AA25)-SUM($AM25:$BD25) ->  | X25: =SUMIFS(DT!$AJ$8:$AJ$595,DT!$C$8:$C$595,X$5,DT!$D$8:$D$595,$A$1) -> 0 | Y25: =SUMIFS(DT!$AJ$8:$AJ$595,DT!$C$8:$C$595,Y$5,DT!$D$8:$D$595,$A$1) -> 0 | Z25: =SUMIFS(DT!$AJ$8:$AJ$595,DT!$C$8:$C$595,Z$5,DT!$D$8:$D$595,$A$1) -> 0 | AA25: 0 | AB25: =SUMIFS(DT!$AJ$8:$AJ$595,DT!$C$8:$C$595,AB$5,DT!$D$8:$D$595,$A$1) -> 0 | AC25: =SUMIFS(DT!$AJ$8:$AJ$595,DT!$C$8:$C$595,AC$5,DT!$D$8:$D$595,$A$1) -> 0 | AD25: =SUMIFS(DT!$AJ$8:$AJ$595,DT!$C$8:$C$595,AD$5,DT!$D$8:$D$595,$A$1) -> 0 | AE25: =SUMIFS(DT!$AJ$8:$AJ$595,DT!$C$8:$C$595,AE$5,DT!$D$8:$D$595,$A$1) -> 0 | AF25: =SUMIFS(DT!$AJ$8:$AJ$595,DT!$C$8:$C$595,AF$5,DT!$D$8:$D$595,$A$1) -> 0 | AG25: =SUMIFS(DT!$AJ$8:$AJ$595,DT!$C$8:$C$595,AG$5,DT!$D$8:$D$595,$A$1) -> 0 | AH25: =SUMIFS(DT!$AJ$8:$AJ$595,DT!$C$8:$C$595,AH$5,DT!$D$8:$D$595,$A$1) -> 0 | AI25: =SUMIFS(DT!$AJ$8:$AJ$595,DT!$C$8:$C$595,AI$5,DT!$D$8:$D$595,$A$1) -> 0 | AJ25: =SUMIFS(DT!$AJ$8:$AJ$595,DT!$C$8:$C$595,AJ$5,DT!$D$8:$D$595,$A$1) -> 0 | AK25: =SUMIFS(DT!$AJ$8:$AJ$595,DT!$C$8:$C$595,AK$5,DT!$D$8:$D$595,$A$1) -> 0 | AL25: =SUMIFS(DT!$AJ$8:$AJ$595,DT!$C$8:$C$595,AL$5,DT!$D$8:$D$595,$A$1) -> 0 | AM25: =SUMIFS(DT!$AJ$8:$AJ$595,DT!$C$8:$C$595,AM$5,DT!$D$8:$D$595,$A$1) -> 0 | AN25: =SUMIFS(DT!$AJ$8:$AJ$595,DT!$C$8:$C$595,AN$5,DT!$D$8:$D$595,$A$1) -> 0 | AO25: =SUMIFS(DT!$AJ$8:$AJ$595,DT!$C$8:$C$595,AO$5,DT!$D$8:$D$595,$A$1) -> 0 | AP25: =SUMIFS(DT!$AJ$8:$AJ$595,DT!$C$8:$C$595,AP$5,DT!$D$8:$D$595,$A$1) -> 0 | AQ25: =SUMIFS(DT!$AJ$8:$AJ$595,DT!$C$8:$C$595,AQ$5,DT!$D$8:$D$595,$A$1) -> 0 | AR25: =SUMIFS(DT!$AJ$8:$AJ$595,DT!$C$8:$C$595,AR$5,DT!$D$8:$D$595,$A$1) -> 0 | AS25: =SUMIFS(DT!$AJ$8:$AJ$595,DT!$C$8:$C$595,AS$5,DT!$D$8:$D$595,$A$1) -> 0 | AT25: =SUMIFS(DT!$AJ$8:$AJ$595,DT!$C$8:$C$595,AT$5,DT!$D$8:$D$595,$A$1) -> 0 | AU25: =SUMIFS(DT!$AJ$8:$AJ$595,DT!$C$8:$C$595,AU$5,DT!$D$8:$D$595,$A$1) -> 0 | AV25: =SUMIFS(DT!$AJ$8:$AJ$595,DT!$C$8:$C$595,AV$5,DT!$D$8:$D$595,$A$1) -> 0 | AW25: =SUMIFS(DT!$AJ$8:$AJ$595,DT!$C$8:$C$595,AW$5,DT!$D$8:$D$595,$A$1) -> 0 | AX25: =SUMIFS(DT!$AJ$8:$AJ$595,DT!$C$8:$C$595,AX$5,DT!$D$8:$D$595,$A$1) -> 0 | AY25: =SUMIFS(DT!$AJ$8:$AJ$595,DT!$C$8:$C$595,AY$5,DT!$D$8:$D$595,$A$1) -> 0 | AZ25: =SUMIFS(DT!$AJ$8:$AJ$595,DT!$C$8:$C$595,AZ$5,DT!$D$8:$D$595,$A$1) -> 0 | BA25: =SUMIFS(DT!$AJ$8:$AJ$595,DT!$C$8:$C$595,BA$5,DT!$D$8:$D$595,$A$1) -> 0 | BB25: =SUMIFS(DT!$AJ$8:$AJ$595,DT!$C$8:$C$595,BB$5,DT!$D$8:$D$595,$A$1) -> 0 | BC25: =SUMIFS(DT!$AJ$8:$AJ$595,DT!$C$8:$C$595,BC$5,DT!$D$8:$D$595,$A$1) -> 0 | BD25: 0 | BE25: =SUMIFS(DT!$AJ$8:$AJ$595,DT!$C$8:$C$595,BE$5,DT!$D$8:$D$595,$A$1) -> 0 | BF25: =SUMIFS(DT!$AJ$8:$AJ$595,DT!$C$8:$C$595,BF$5,DT!$D$8:$D$595,$A$1) -> 0 | BG25: =SUMIFS(DT!$AJ$8:$AJ$595,DT!$C$8:$C$595,BG$5,DT!$D$8:$D$595,$A$1) -> 0 | BH25: =$D25-W25 ->  | BI25: =W$62-$BH25 -> 
A26: 2.6 | B26: Đất thương mại, dịch vụ | C26: TMD | D26: =VLOOKUP(C26,#REF!,MATCH($A$1,maxa,0)+2,0) ->  | E26: 0 | F26: 0 | G26: =SUMIFS(DT!$AL$8:$AL$595,DT!$C$8:$C$595,G$5,DT!$D$8:$D$595,$A$1) -> 0 | H26: =SUMIFS(DT!$AL$8:$AL$595,DT!$C$8:$C$595,H$5,DT!$D$8:$D$595,$A$1) -> 0 | I26: =SUMIFS(DT!$AL$8:$AL$595,DT!$C$8:$C$595,I$5,DT!$D$8:$D$595,$A$1) -> 0 | J26: =SUMIFS(DT!$AL$8:$AL$595,DT!$C$8:$C$595,J$5,DT!$D$8:$D$595,$A$1) -> 0 | K26: =SUMIFS(DT!$AL$8:$AL$595,DT!$C$8:$C$595,K$5,DT!$D$8:$D$595,$A$1) -> 0 | L26: =SUMIFS(DT!$AL$8:$AL$595,DT!$C$8:$C$595,L$5,DT!$D$8:$D$595,$A$1) -> 0 | M26: =SUMIFS(DT!$AL$8:$AL$595,DT!$C$8:$C$595,M$5,DT!$D$8:$D$595,$A$1) -> 0 | N26: =SUMIFS(DT!$AL$8:$AL$595,DT!$C$8:$C$595,N$5,DT!$D$8:$D$595,$A$1) -> 0 | O26: =SUMIFS(DT!$AL$8:$AL$595,DT!$C$8:$C$595,O$5,DT!$D$8:$D$595,$A$1) -> 0 | P26: =SUMIFS(DT!$AL$8:$AL$595,DT!$C$8:$C$595,P$5,DT!$D$8:$D$595,$A$1) -> 0 | Q26: =SUMIFS(DT!$AL$8:$AL$595,DT!$C$8:$C$595,Q$5,DT!$D$8:$D$595,$A$1) -> 0 | S26: =SUMIFS(DT!$AL$8:$AL$595,DT!$C$8:$C$595,S$5,DT!$D$8:$D$595,$A$1) -> 0 | T26: =SUMIFS(DT!$AL$8:$AL$595,DT!$C$8:$C$595,T$5,DT!$D$8:$D$595,$A$1) -> 0 | U26: =SUMIFS(DT!$AL$8:$AL$595,DT!$C$8:$C$595,U$5,DT!$D$8:$D$595,$A$1) -> 0 | V26: =SUMIFS(DT!$AL$8:$AL$595,DT!$C$8:$C$595,V$5,DT!$D$8:$D$595,$A$1) -> 0 | W26: =SUMIFS(DT!$AL$8:$AL$595,DT!$C$8:$C$595,W$5,DT!$D$8:$D$595,$A$1) -> 0 | X26: =$D26-$E26-SUM($S26:W26)-SUM(Y26:$AA26)-SUM($AM26:$BD26) ->  | Y26: =SUMIFS(DT!$AL$8:$AL$595,DT!$C$8:$C$595,Y$5,DT!$D$8:$D$595,$A$1) -> 0 | Z26: =SUMIFS(DT!$AL$8:$AL$595,DT!$C$8:$C$595,Z$5,DT!$D$8:$D$595,$A$1) -> 0 | AA26: 0 | AB26: =SUMIFS(DT!$AL$8:$AL$595,DT!$C$8:$C$595,AB$5,DT!$D$8:$D$595,$A$1) -> 0 | AC26: =SUMIFS(DT!$AL$8:$AL$595,DT!$C$8:$C$595,AC$5,DT!$D$8:$D$595,$A$1) -> 0 | AD26: =SUMIFS(DT!$AL$8:$AL$595,DT!$C$8:$C$595,AD$5,DT!$D$8:$D$595,$A$1) -> 0 | AE26: =SUMIFS(DT!$AL$8:$AL$595,DT!$C$8:$C$595,AE$5,DT!$D$8:$D$595,$A$1) -> 0 | AF26: =SUMIFS(DT!$AL$8:$AL$595,DT!$C$8:$C$595,AF$5,DT!$D$8:$D$595,$A$1) -> 0 | AG26: =SUMIFS(DT!$AL$8:$AL$595,DT!$C$8:$C$595,AG$5,DT!$D$8:$D$595,$A$1) -> 0 | AH26: =SUMIFS(DT!$AL$8:$AL$595,DT!$C$8:$C$595,AH$5,DT!$D$8:$D$595,$A$1) -> 0 | AI26: =SUMIFS(DT!$AL$8:$AL$595,DT!$C$8:$C$595,AI$5,DT!$D$8:$D$595,$A$1) -> 0 | AJ26: =SUMIFS(DT!$AL$8:$AL$595,DT!$C$8:$C$595,AJ$5,DT!$D$8:$D$595,$A$1) -> 0 | AK26: =SUMIFS(DT!$AL$8:$AL$595,DT!$C$8:$C$595,AK$5,DT!$D$8:$D$595,$A$1) -> 0 | AL26: =SUMIFS(DT!$AL$8:$AL$595,DT!$C$8:$C$595,AL$5,DT!$D$8:$D$595,$A$1) -> 0 | AM26: =SUMIFS(DT!$AL$8:$AL$595,DT!$C$8:$C$595,AM$5,DT!$D$8:$D$595,$A$1) -> 0 | AN26: =SUMIFS(DT!$AL$8:$AL$595,DT!$C$8:$C$595,AN$5,DT!$D$8:$D$595,$A$1) -> 0 | AO26: =SUMIFS(DT!$AL$8:$AL$595,DT!$C$8:$C$595,AO$5,DT!$D$8:$D$595,$A$1) -> 0 | AP26: =SUMIFS(DT!$AL$8:$AL$595,DT!$C$8:$C$595,AP$5,DT!$D$8:$D$595,$A$1) -> 0 | AQ26: =SUMIFS(DT!$AL$8:$AL$595,DT!$C$8:$C$595,AQ$5,DT!$D$8:$D$595,$A$1) -> 0 | AR26: =SUMIFS(DT!$AL$8:$AL$595,DT!$C$8:$C$595,AR$5,DT!$D$8:$D$595,$A$1) -> 0 | AS26: =SUMIFS(DT!$AL$8:$AL$595,DT!$C$8:$C$595,AS$5,DT!$D$8:$D$595,$A$1) -> 0 | AT26: =SUMIFS(DT!$AL$8:$AL$595,DT!$C$8:$C$595,AT$5,DT!$D$8:$D$595,$A$1) -> 0 | AU26: =SUMIFS(DT!$AL$8:$AL$595,DT!$C$8:$C$595,AU$5,DT!$D$8:$D$595,$A$1) -> 0 | AV26: =SUMIFS(DT!$AL$8:$AL$595,DT!$C$8:$C$595,AV$5,DT!$D$8:$D$595,$A$1) -> 0 | AW26: =SUMIFS(DT!$AL$8:$AL$595,DT!$C$8:$C$595,AW$5,DT!$D$8:$D$595,$A$1) -> 0 | AX26: =SUMIFS(DT!$AL$8:$AL$595,DT!$C$8:$C$595,AX$5,DT!$D$8:$D$595,$A$1) -> 0 | AY26: =SUMIFS(DT!$AL$8:$AL$595,DT!$C$8:$C$595,AY$5,DT!$D$8:$D$595,$A$1) -> 0 | AZ26: =SUMIFS(DT!$AL$8:$AL$595,DT!$C$8:$C$595,AZ$5,DT!$D$8:$D$595,$A$1) -> 0 | BA26: =SUMIFS(DT!$AL$8:$AL$595,DT!$C$8:$C$595,BA$5,DT!$D$8:$D$595,$A$1) -> 0 | BB26: =SUMIFS(DT!$AL$8:$AL$595,DT!$C$8:$C$595,BB$5,DT!$D$8:$D$595,$A$1) -> 0 | BC26: =SUMIFS(DT!$AL$8:$AL$595,DT!$C$8:$C$595,BC$5,DT!$D$8:$D$595,$A$1) -> 0 | BD26: 0 | BE26: =SUMIFS(DT!$AL$8:$AL$595,DT!$C$8:$C$595,BE$5,DT!$D$8:$D$595,$A$1) -> 0 | BF26: =SUMIFS(DT!$AL$8:$AL$595,DT!$C$8:$C$595,BF$5,DT!$D$8:$D$595,$A$1) -> 0 | BG26: =SUMIFS(DT!$AL$8:$AL$595,DT!$C$8:$C$595,BG$5,DT!$D$8:$D$595,$A$1) -> 0 | BH26: =$D26-X26 ->  | BI26: =X$62-$BH26 -> 
A27: 2.7 | B27: Đất cơ sở sản xuất phi nông nghiệp | C27: SKC | D27: =VLOOKUP(C27,#REF!,MATCH($A$1,maxa,0)+2,0) ->  | E27: 0 | F27: 0 | G27: =SUMIFS(DT!$AN$8:$AN$595,DT!$C$8:$C$595,G$5,DT!$D$8:$D$595,$A$1) -> 0 | H27: =SUMIFS(DT!$AN$8:$AN$595,DT!$C$8:$C$595,H$5,DT!$D$8:$D$595,$A$1) -> 0 | I27: =SUMIFS(DT!$AN$8:$AN$595,DT!$C$8:$C$595,I$5,DT!$D$8:$D$595,$A$1) -> 0 | J27: =SUMIFS(DT!$AN$8:$AN$595,DT!$C$8:$C$595,J$5,DT!$D$8:$D$595,$A$1) -> 0 | K27: =SUMIFS(DT!$AN$8:$AN$595,DT!$C$8:$C$595,K$5,DT!$D$8:$D$595,$A$1) -> 0 | L27: =SUMIFS(DT!$AN$8:$AN$595,DT!$C$8:$C$595,L$5,DT!$D$8:$D$595,$A$1) -> 0 | M27: =SUMIFS(DT!$AN$8:$AN$595,DT!$C$8:$C$595,M$5,DT!$D$8:$D$595,$A$1) -> 0 | N27: =SUMIFS(DT!$AN$8:$AN$595,DT!$C$8:$C$595,N$5,DT!$D$8:$D$595,$A$1) -> 0 | O27: =SUMIFS(DT!$AN$8:$AN$595,DT!$C$8:$C$595,O$5,DT!$D$8:$D$595,$A$1) -> 0 | P27: =SUMIFS(DT!$AN$8:$AN$595,DT!$C$8:$C$595,P$5,DT!$D$8:$D$595,$A$1) -> 0 | Q27: =SUMIFS(DT!$AN$8:$AN$595,DT!$C$8:$C$595,Q$5,DT!$D$8:$D$595,$A$1) -> 0 | S27: =SUMIFS(DT!$AN$8:$AN$595,DT!$C$8:$C$595,S$5,DT!$D$8:$D$595,$A$1) -> 0 | T27: =SUMIFS(DT!$AN$8:$AN$595,DT!$C$8:$C$595,T$5,DT!$D$8:$D$595,$A$1) -> 0 | U27: =SUMIFS(DT!$AN$8:$AN$595,DT!$C$8:$C$595,U$5,DT!$D$8:$D$595,$A$1) -> 0 | V27: =SUMIFS(DT!$AN$8:$AN$595,DT!$C$8:$C$595,V$5,DT!$D$8:$D$595,$A$1) -> 0 | W27: =SUMIFS(DT!$AN$8:$AN$595,DT!$C$8:$C$595,W$5,DT!$D$8:$D$595,$A$1) -> 0 | X27: =SUMIFS(DT!$AN$8:$AN$595,DT!$C$8:$C$595,X$5,DT!$D$8:$D$595,$A$1) -> 0 | Y27: =$D27-$E27-SUM($S27:X27)-SUM(Z27:$AA27)-SUM($AM27:$BD27) ->  | Z27: =SUMIFS(DT!$AN$8:$AN$595,DT!$C$8:$C$595,Z$5,DT!$D$8:$D$595,$A$1) -> 0 | AA27: 0 | AB27: =SUMIFS(DT!$AN$8:$AN$595,DT!$C$8:$C$595,AB$5,DT!$D$8:$D$595,$A$1) -> 0 | AC27: =SUMIFS(DT!$AN$8:$AN$595,DT!$C$8:$C$595,AC$5,DT!$D$8:$D$595,$A$1) -> 0 | AD27: =SUMIFS(DT!$AN$8:$AN$595,DT!$C$8:$C$595,AD$5,DT!$D$8:$D$595,$A$1) -> 0 | AE27: =SUMIFS(DT!$AN$8:$AN$595,DT!$C$8:$C$595,AE$5,DT!$D$8:$D$595,$A$1) -> 0 | AF27: =SUMIFS(DT!$AN$8:$AN$595,DT!$C$8:$C$595,AF$5,DT!$D$8:$D$595,$A$1) -> 0 | AG27: =SUMIFS(DT!$AN$8:$AN$595,DT!$C$8:$C$595,AG$5,DT!$D$8:$D$595,$A$1) -> 0 | AH27: =SUMIFS(DT!$AN$8:$AN$595,DT!$C$8:$C$595,AH$5,DT!$D$8:$D$595,$A$1) -> 0 | AI27: =SUMIFS(DT!$AN$8:$AN$595,DT!$C$8:$C$595,AI$5,DT!$D$8:$D$595,$A$1) -> 0 | AJ27: =SUMIFS(DT!$AN$8:$AN$595,DT!$C$8:$C$595,AJ$5,DT!$D$8:$D$595,$A$1) -> 0 | AK27: =SUMIFS(DT!$AN$8:$AN$595,DT!$C$8:$C$595,AK$5,DT!$D$8:$D$595,$A$1) -> 0 | AL27: =SUMIFS(DT!$AN$8:$AN$595,DT!$C$8:$C$595,AL$5,DT!$D$8:$D$595,$A$1) -> 0 | AM27: =SUMIFS(DT!$AN$8:$AN$595,DT!$C$8:$C$595,AM$5,DT!$D$8:$D$595,$A$1) -> 0 | AN27: =SUMIFS(DT!$AN$8:$AN$595,DT!$C$8:$C$595,AN$5,DT!$D$8:$D$595,$A$1) -> 0 | AO27: =SUMIFS(DT!$AN$8:$AN$595,DT!$C$8:$C$595,AO$5,DT!$D$8:$D$595,$A$1) -> 0 | AP27: =SUMIFS(DT!$AN$8:$AN$595,DT!$C$8:$C$595,AP$5,DT!$D$8:$D$595,$A$1) -> 0 | AQ27: =SUMIFS(DT!$AN$8:$AN$595,DT!$C$8:$C$595,AQ$5,DT!$D$8:$D$595,$A$1) -> 0 | AR27: =SUMIFS(DT!$AN$8:$AN$595,DT!$C$8:$C$595,AR$5,DT!$D$8:$D$595,$A$1) -> 0 | AS27: =SUMIFS(DT!$AN$8:$AN$595,DT!$C$8:$C$595,AS$5,DT!$D$8:$D$595,$A$1) -> 0 | AT27: =SUMIFS(DT!$AN$8:$AN$595,DT!$C$8:$C$595,AT$5,DT!$D$8:$D$595,$A$1) -> 0 | AU27: =SUMIFS(DT!$AN$8:$AN$595,DT!$C$8:$C$595,AU$5,DT!$D$8:$D$595,$A$1) -> 0 | AV27: =SUMIFS(DT!$AN$8:$AN$595,DT!$C$8:$C$595,AV$5,DT!$D$8:$D$595,$A$1) -> 0 | AW27: =SUMIFS(DT!$AN$8:$AN$595,DT!$C$8:$C$595,AW$5,DT!$D$8:$D$595,$A$1) -> 0 | AX27: =SUMIFS(DT!$AN$8:$AN$595,DT!$C$8:$C$595,AX$5,DT!$D$8:$D$595,$A$1) -> 0 | AY27: =SUMIFS(DT!$AN$8:$AN$595,DT!$C$8:$C$595,AY$5,DT!$D$8:$D$595,$A$1) -> 0 | AZ27: =SUMIFS(DT!$AN$8:$AN$595,DT!$C$8:$C$595,AZ$5,DT!$D$8:$D$595,$A$1) -> 0 | BA27: =SUMIFS(DT!$AN$8:$AN$595,DT!$C$8:$C$595,BA$5,DT!$D$8:$D$595,$A$1) -> 0 | BB27: =SUMIFS(DT!$AN$8:$AN$595,DT!$C$8:$C$595,BB$5,DT!$D$8:$D$595,$A$1) -> 0 | BC27: =SUMIFS(DT!$AN$8:$AN$595,DT!$C$8:$C$595,BC$5,DT!$D$8:$D$595,$A$1) -> 0 | BD27: 0 | BE27: =SUMIFS(DT!$AN$8:$AN$595,DT!$C$8:$C$595,BE$5,DT!$D$8:$D$595,$A$1) -> 0 | BF27: =SUMIFS(DT!$AN$8:$AN$595,DT!$C$8:$C$595,BF$5,DT!$D$8:$D$595,$A$1) -> 0 | BG27: =SUMIFS(DT!$AN$8:$AN$595,DT!$C$8:$C$595,BG$5,DT!$D$8:$D$595,$A$1) -> 0 | BH27: =$D27-Y27 ->  | BI27: =Y$62-$BH27 -> 
A28: 2.8 | B28: Đất sử dụng cho hoạt động khoáng sản | C28: SKS | D28: =VLOOKUP(C28,#REF!,MATCH($A$1,maxa,0)+2,0) ->  | E28: 0 | F28: 0 | G28: =SUMIFS(DT!$AP$8:$AP$595,DT!$C$8:$C$595,G$5,DT!$D$8:$D$595,$A$1) -> 0 | H28: =SUMIFS(DT!$AP$8:$AP$595,DT!$C$8:$C$595,H$5,DT!$D$8:$D$595,$A$1) -> 0 | I28: =SUMIFS(DT!$AP$8:$AP$595,DT!$C$8:$C$595,I$5,DT!$D$8:$D$595,$A$1) -> 0 | J28: =SUMIFS(DT!$AP$8:$AP$595,DT!$C$8:$C$595,J$5,DT!$D$8:$D$595,$A$1) -> 0 | K28: =SUMIFS(DT!$AP$8:$AP$595,DT!$C$8:$C$595,K$5,DT!$D$8:$D$595,$A$1) -> 0 | L28: =SUMIFS(DT!$AP$8:$AP$595,DT!$C$8:$C$595,L$5,DT!$D$8:$D$595,$A$1) -> 0 | M28: =SUMIFS(DT!$AP$8:$AP$595,DT!$C$8:$C$595,M$5,DT!$D$8:$D$595,$A$1) -> 0 | N28: =SUMIFS(DT!$AP$8:$AP$595,DT!$C$8:$C$595,N$5,DT!$D$8:$D$595,$A$1) -> 0 | O28: =SUMIFS(DT!$AP$8:$AP$595,DT!$C$8:$C$595,O$5,DT!$D$8:$D$595,$A$1) -> 0 | P28: =SUMIFS(DT!$AP$8:$AP$595,DT!$C$8:$C$595,P$5,DT!$D$8:$D$595,$A$1) -> 0 | Q28: =SUMIFS(DT!$AP$8:$AP$595,DT!$C$8:$C$595,Q$5,DT!$D$8:$D$595,$A$1) -> 0 | S28: =SUMIFS(DT!$AP$8:$AP$595,DT!$C$8:$C$595,S$5,DT!$D$8:$D$595,$A$1) -> 0 | T28: =SUMIFS(DT!$AP$8:$AP$595,DT!$C$8:$C$595,T$5,DT!$D$8:$D$595,$A$1) -> 0 | U28: =SUMIFS(DT!$AP$8:$AP$595,DT!$C$8:$C$595,U$5,DT!$D$8:$D$595,$A$1) -> 0 | V28: =SUMIFS(DT!$AP$8:$AP$595,DT!$C$8:$C$595,V$5,DT!$D$8:$D$595,$A$1) -> 0 | W28: =SUMIFS(DT!$AP$8:$AP$595,DT!$C$8:$C$595,W$5,DT!$D$8:$D$595,$A$1) -> 0 | X28: =SUMIFS(DT!$AP$8:$AP$595,DT!$C$8:$C$595,X$5,DT!$D$8:$D$595,$A$1) -> 0 | Y28: =SUMIFS(DT!$AP$8:$AP$595,DT!$C$8:$C$595,Y$5,DT!$D$8:$D$595,$A$1) -> 0 | Z28: =$D28-$E28-SUM($S28:Y28)-AA28-SUM($AM28:$BD28) ->  | AA28: 0 | AB28: =SUMIFS(DT!$AP$8:$AP$595,DT!$C$8:$C$595,AB$5,DT!$D$8:$D$595,$A$1) -> 0 | AC28: =SUMIFS(DT!$AP$8:$AP$595,DT!$C$8:$C$595,AC$5,DT!$D$8:$D$595,$A$1) -> 0 | AD28: =SUMIFS(DT!$AP$8:$AP$595,DT!$C$8:$C$595,AD$5,DT!$D$8:$D$595,$A$1) -> 0 | AE28: =SUMIFS(DT!$AP$8:$AP$595,DT!$C$8:$C$595,AE$5,DT!$D$8:$D$595,$A$1) -> 0 | AF28: =SUMIFS(DT!$AP$8:$AP$595,DT!$C$8:$C$595,AF$5,DT!$D$8:$D$595,$A$1) -> 0 | AG28: =SUMIFS(DT!$AP$8:$AP$595,DT!$C$8:$C$595,AG$5,DT!$D$8:$D$595,$A$1) -> 0 | AH28: =SUMIFS(DT!$AP$8:$AP$595,DT!$C$8:$C$595,AH$5,DT!$D$8:$D$595,$A$1) -> 0 | AI28: =SUMIFS(DT!$AP$8:$AP$595,DT!$C$8:$C$595,AI$5,DT!$D$8:$D$595,$A$1) -> 0 | AJ28: =SUMIFS(DT!$AP$8:$AP$595,DT!$C$8:$C$595,AJ$5,DT!$D$8:$D$595,$A$1) -> 0 | AK28: =SUMIFS(DT!$AP$8:$AP$595,DT!$C$8:$C$595,AK$5,DT!$D$8:$D$595,$A$1) -> 0 | AL28: =SUMIFS(DT!$AP$8:$AP$595,DT!$C$8:$C$595,AL$5,DT!$D$8:$D$595,$A$1) -> 0 | AM28: =SUMIFS(DT!$AP$8:$AP$595,DT!$C$8:$C$595,AM$5,DT!$D$8:$D$595,$A$1) -> 0 | AN28: =SUMIFS(DT!$AP$8:$AP$595,DT!$C$8:$C$595,AN$5,DT!$D$8:$D$595,$A$1) -> 0 | AO28: =SUMIFS(DT!$AP$8:$AP$595,DT!$C$8:$C$595,AO$5,DT!$D$8:$D$595,$A$1) -> 0 | AP28: =SUMIFS(DT!$AP$8:$AP$595,DT!$C$8:$C$595,AP$5,DT!$D$8:$D$595,$A$1) -> 0 | AQ28: =SUMIFS(DT!$AP$8:$AP$595,DT!$C$8:$C$595,AQ$5,DT!$D$8:$D$595,$A$1) -> 0 | AR28: =SUMIFS(DT!$AP$8:$AP$595,DT!$C$8:$C$595,AR$5,DT!$D$8:$D$595,$A$1) -> 0 | AS28: =SUMIFS(DT!$AP$8:$AP$595,DT!$C$8:$C$595,AS$5,DT!$D$8:$D$595,$A$1) -> 0 | AT28: =SUMIFS(DT!$AP$8:$AP$595,DT!$C$8:$C$595,AT$5,DT!$D$8:$D$595,$A$1) -> 0 | AU28: =SUMIFS(DT!$AP$8:$AP$595,DT!$C$8:$C$595,AU$5,DT!$D$8:$D$595,$A$1) -> 0 | AV28: =SUMIFS(DT!$AP$8:$AP$595,DT!$C$8:$C$595,AV$5,DT!$D$8:$D$595,$A$1) -> 0 | AW28: =SUMIFS(DT!$AP$8:$AP$595,DT!$C$8:$C$595,AW$5,DT!$D$8:$D$595,$A$1) -> 0 | AX28: =SUMIFS(DT!$AP$8:$AP$595,DT!$C$8:$C$595,AX$5,DT!$D$8:$D$595,$A$1) -> 0 | AY28: =SUMIFS(DT!$AP$8:$AP$595,DT!$C$8:$C$595,AY$5,DT!$D$8:$D$595,$A$1) -> 0 | AZ28: =SUMIFS(DT!$AP$8:$AP$595,DT!$C$8:$C$595,AZ$5,DT!$D$8:$D$595,$A$1) -> 0 | BA28: =SUMIFS(DT!$AP$8:$AP$595,DT!$C$8:$C$595,BA$5,DT!$D$8:$D$595,$A$1) -> 0 | BB28: =SUMIFS(DT!$AP$8:$AP$595,DT!$C$8:$C$595,BB$5,DT!$D$8:$D$595,$A$1) -> 0 | BC28: =SUMIFS(DT!$AP$8:$AP$595,DT!$C$8:$C$595,BC$5,DT!$D$8:$D$595,$A$1) -> 0 | BD28: 0 | BE28: =SUMIFS(DT!$AP$8:$AP$595,DT!$C$8:$C$595,BE$5,DT!$D$8:$D$595,$A$1) -> 0 | BF28: =SUMIFS(DT!$AP$8:$AP$595,DT!$C$8:$C$595,BF$5,DT!$D$8:$D$595,$A$1) -> 0 | BG28: =SUMIFS(DT!$AP$8:$AP$595,DT!$C$8:$C$595,BG$5,DT!$D$8:$D$595,$A$1) -> 0 | BH28: =$D28-Z28 ->  | BI28: =Z$62-$BH28 -> 
A29: 2.9 | B29: Đất phát triển hạ tầng | C29: DHT | D29: =SUM(D30:D40) ->  | E29: =SUM(E30:E40) -> 0 | F29: 0 | G29: 0 | H29: 0 | I29: 0 | J29: 0 | K29: 0 | L29: 0 | M29: 0 | N29: 0 | O29: 0 | P29: 0 | Q29: 0 | S29: 0 | T29: 0 | U29: 0 | V29: 0 | W29: 0 | X29: 0 | Y29: 0 | Z29: 0 | AM29: 0 | AN29: 0 | AO29: 0 | AP29: 0 | AQ29: 0 | AR29: 0 | AS29: 0 | AT29: 0 | AU29: 0 | AV29: 0 | AW29: 0 | AX29: 0 | AY29: 0 | AZ29: 0 | BA29: 0 | BB29: 0 | BC29: 0 | BD29: 0 | BE29: 0 | BF29: 0 | BG29: 0 | BH29: =$D29-AA29 ->  | BI29: =AA$62-$BH29 -> 
A30: 2.9.1 | B30: Đất giao thông | C30: DGT | D30: =VLOOKUP(C30,#REF!,MATCH($A$1,maxa,0)+2,0) ->  | E30: =F30+SUM(J30:Q30) -> 0 | F30: =SUM(G30:I30) -> 0 | G30: =SUMIFS(DT!$AT$8:$AT$595,DT!$C$8:$C$595,G$5,DT!$D$8:$D$595,$A$1) -> 0 | H30: =SUMIFS(DT!$AT$8:$AT$595,DT!$C$8:$C$595,H$5,DT!$D$8:$D$595,$A$1) -> 0 | I30: =SUMIFS(DT!$AT$8:$AT$595,DT!$C$8:$C$595,I$5,DT!$D$8:$D$595,$A$1) -> 0 | J30: =SUMIFS(DT!$AT$8:$AT$595,DT!$C$8:$C$595,J$5,DT!$D$8:$D$595,$A$1) -> 0 | K30: =SUMIFS(DT!$AT$8:$AT$595,DT!$C$8:$C$595,K$5,DT!$D$8:$D$595,$A$1) -> 0 | L30: =SUMIFS(DT!$AT$8:$AT$595,DT!$C$8:$C$595,L$5,DT!$D$8:$D$595,$A$1) -> 0 | M30: =SUMIFS(DT!$AT$8:$AT$595,DT!$C$8:$C$595,M$5,DT!$D$8:$D$595,$A$1) -> 0 | N30: =SUMIFS(DT!$AT$8:$AT$595,DT!$C$8:$C$595,N$5,DT!$D$8:$D$595,$A$1) -> 0 | O30: =SUMIFS(DT!$AT$8:$AT$595,DT!$C$8:$C$595,O$5,DT!$D$8:$D$595,$A$1) -> 0 | P30: =SUMIFS(DT!$AT$8:$AT$595,DT!$C$8:$C$595,P$5,DT!$D$8:$D$595,$A$1) -> 0 | Q30: =SUMIFS(DT!$AT$8:$AT$595,DT!$C$8:$C$595,Q$5,DT!$D$8:$D$595,$A$1) -> 0 | R30: =SUM(S30:AA30)+SUM(AM30:BC30) ->  | S30: =SUMIFS(DT!$AT$8:$AT$595,DT!$C$8:$C$595,S$5,DT!$D$8:$D$595,$A$1) -> 0 | T30: =SUMIFS(DT!$AT$8:$AT$595,DT!$C$8:$C$595,T$5,DT!$D$8:$D$595,$A$1) -> 0 | U30: =SUMIFS(DT!$AT$8:$AT$595,DT!$C$8:$C$595,U$5,DT!$D$8:$D$595,$A$1) -> 0 | V30: =SUMIFS(DT!$AT$8:$AT$595,DT!$C$8:$C$595,V$5,DT!$D$8:$D$595,$A$1) -> 0 | W30: =SUMIFS(DT!$AT$8:$AT$595,DT!$C$8:$C$595,W$5,DT!$D$8:$D$595,$A$1) -> 0 | X30: =SUMIFS(DT!$AT$8:$AT$595,DT!$C$8:$C$595,X$5,DT!$D$8:$D$595,$A$1) -> 0 | Y30: =SUMIFS(DT!$AT$8:$AT$595,DT!$C$8:$C$595,Y$5,DT!$D$8:$D$595,$A$1) -> 0 | Z30: =SUMIFS(DT!$AT$8:$AT$595,DT!$C$8:$C$595,Z$5,DT!$D$8:$D$595,$A$1) -> 0 | AB30: =$D30-$E30-SUM($S30:$Z30)-SUM(AC30:$BD30) ->  | AC30: =SUMIFS(DT!$AT$8:$AT$595,DT!$C$8:$C$595,AC$5,DT!$D$8:$D$595,$A$1) -> 0 | AD30: =SUMIFS(DT!$AT$8:$AT$595,DT!$C$8:$C$595,AD$5,DT!$D$8:$D$595,$A$1) -> 0 | AE30: =SUMIFS(DT!$AT$8:$AT$595,DT!$C$8:$C$595,AE$5,DT!$D$8:$D$595,$A$1) -> 0 | AF30: =SUMIFS(DT!$AT$8:$AT$595,DT!$C$8:$C$595,AF$5,DT!$D$8:$D$595,$A$1) -> 0 | AG30: =SUMIFS(DT!$AT$8:$AT$595,DT!$C$8:$C$595,AG$5,DT!$D$8:$D$595,$A$1) -> 0 | AH30: =SUMIFS(DT!$AT$8:$AT$595,DT!$C$8:$C$595,AH$5,DT!$D$8:$D$595,$A$1) -> 0 | AI30: =SUMIFS(DT!$AT$8:$AT$595,DT!$C$8:$C$595,AI$5,DT!$D$8:$D$595,$A$1) -> 0 | AJ30: =SUMIFS(DT!$AT$8:$AT$595,DT!$C$8:$C$595,AJ$5,DT!$D$8:$D$595,$A$1) -> 0 | AK30: =SUMIFS(DT!$AT$8:$AT$595,DT!$C$8:$C$595,AK$5,DT!$D$8:$D$595,$A$1) -> 0 | AL30: =SUMIFS(DT!$AT$8:$AT$595,DT!$C$8:$C$595,AL$5,DT!$D$8:$D$595,$A$1) -> 0 | AM30: =SUMIFS(DT!$AT$8:$AT$595,DT!$C$8:$C$595,AM$5,DT!$D$8:$D$595,$A$1) -> 0 | AN30: =SUMIFS(DT!$AT$8:$AT$595,DT!$C$8:$C$595,AN$5,DT!$D$8:$D$595,$A$1) -> 0 | AO30: =SUMIFS(DT!$AT$8:$AT$595,DT!$C$8:$C$595,AO$5,DT!$D$8:$D$595,$A$1) -> 0 | AP30: =SUMIFS(DT!$AT$8:$AT$595,DT!$C$8:$C$595,AP$5,DT!$D$8:$D$595,$A$1) -> 0 | AQ30: =SUMIFS(DT!$AT$8:$AT$595,DT!$C$8:$C$595,AQ$5,DT!$D$8:$D$595,$A$1) -> 0 | AR30: =SUMIFS(DT!$AT$8:$AT$595,DT!$C$8:$C$595,AR$5,DT!$D$8:$D$595,$A$1) -> 0 | AS30: =SUMIFS(DT!$AT$8:$AT$595,DT!$C$8:$C$595,AS$5,DT!$D$8:$D$595,$A$1) -> 0 | AT30: =SUMIFS(DT!$AT$8:$AT$595,DT!$C$8:$C$595,AT$5,DT!$D$8:$D$595,$A$1) -> 0 | AU30: =SUMIFS(DT!$AT$8:$AT$595,DT!$C$8:$C$595,AU$5,DT!$D$8:$D$595,$A$1) -> 0 | AV30: =SUMIFS(DT!$AT$8:$AT$595,DT!$C$8:$C$595,AV$5,DT!$D$8:$D$595,$A$1) -> 0 | AW30: =SUMIFS(DT!$AT$8:$AT$595,DT!$C$8:$C$595,AW$5,DT!$D$8:$D$595,$A$1) -> 0 | AX30: =SUMIFS(DT!$AT$8:$AT$595,DT!$C$8:$C$595,AX$5,DT!$D$8:$D$595,$A$1) -> 0 | AY30: =SUMIFS(DT!$AT$8:$AT$595,DT!$C$8:$C$595,AY$5,DT!$D$8:$D$595,$A$1) -> 0 | AZ30: =SUMIFS(DT!$AT$8:$AT$595,DT!$C$8:$C$595,AZ$5,DT!$D$8:$D$595,$A$1) -> 0 | BA30: =SUMIFS(DT!$AT$8:$AT$595,DT!$C$8:$C$595,BA$5,DT!$D$8:$D$595,$A$1) -> 0 | BB30: =SUMIFS(DT!$AT$8:$AT$595,DT!$C$8:$C$595,BB$5,DT!$D$8:$D$595,$A$1) -> 0 | BC30: =SUMIFS(DT!$AT$8:$AT$595,DT!$C$8:$C$595,BC$5,DT!$D$8:$D$595,$A$1) -> 0 | BD30: 0 | BE30: =SUMIFS(DT!$AT$8:$AT$595,DT!$C$8:$C$595,BE$5,DT!$D$8:$D$595,$A$1) -> 0 | BF30: =SUMIFS(DT!$AT$8:$AT$595,DT!$C$8:$C$595,BF$5,DT!$D$8:$D$595,$A$1) -> 0 | BG30: =SUMIFS(DT!$AT$8:$AT$595,DT!$C$8:$C$595,BG$5,DT!$D$8:$D$595,$A$1) -> 0 | BH30: =$D30-AB30 ->  | BI30: =AB$62-$BH30 -> 
A31: 2.9.2 | B31: Đất thuỷ lợi | C31: DTL | D31: =VLOOKUP(C31,#REF!,MATCH($A$1,maxa,0)+2,0) ->  | E31: 0 | F31: 0 | G31: =SUMIFS(DT!$AV$8:$AV$595,DT!$C$8:$C$595,G$5,DT!$D$8:$D$595,$A$1) -> 0 | H31: =SUMIFS(DT!$AV$8:$AV$595,DT!$C$8:$C$595,H$5,DT!$D$8:$D$595,$A$1) -> 0 | I31: =SUMIFS(DT!$AV$8:$AV$595,DT!$C$8:$C$595,I$5,DT!$D$8:$D$595,$A$1) -> 0 | J31: =SUMIFS(DT!$AV$8:$AV$595,DT!$C$8:$C$595,J$5,DT!$D$8:$D$595,$A$1) -> 0 | K31: =SUMIFS(DT!$AV$8:$AV$595,DT!$C$8:$C$595,K$5,DT!$D$8:$D$595,$A$1) -> 0 | L31: =SUMIFS(DT!$AV$8:$AV$595,DT!$C$8:$C$595,L$5,DT!$D$8:$D$595,$A$1) -> 0 | M31: =SUMIFS(DT!$AV$8:$AV$595,DT!$C$8:$C$595,M$5,DT!$D$8:$D$595,$A$1) -> 0 | N31: =SUMIFS(DT!$AV$8:$AV$595,DT!$C$8:$C$595,N$5,DT!$D$8:$D$595,$A$1) -> 0 | O31: =SUMIFS(DT!$AV$8:$AV$595,DT!$C$8:$C$595,O$5,DT!$D$8:$D$595,$A$1) -> 0 | P31: =SUMIFS(DT!$AV$8:$AV$595,DT!$C$8:$C$595,P$5,DT!$D$8:$D$595,$A$1) -> 0 | Q31: =SUMIFS(DT!$AV$8:$AV$595,DT!$C$8:$C$595,Q$5,DT!$D$8:$D$595,$A$1) -> 0 | S31: =SUMIFS(DT!$AV$8:$AV$595,DT!$C$8:$C$595,S$5,DT!$D$8:$D$595,$A$1) -> 0 | T31: =SUMIFS(DT!$AV$8:$AV$595,DT!$C$8:$C$595,T$5,DT!$D$8:$D$595,$A$1) -> 0 | U31: =SUMIFS(DT!$AV$8:$AV$595,DT!$C$8:$C$595,U$5,DT!$D$8:$D$595,$A$1) -> 0 | V31: =SUMIFS(DT!$AV$8:$AV$595,DT!$C$8:$C$595,V$5,DT!$D$8:$D$595,$A$1) -> 0 | W31: =SUMIFS(DT!$AV$8:$AV$595,DT!$C$8:$C$595,W$5,DT!$D$8:$D$595,$A$1) -> 0 | X31: =SUMIFS(DT!$AV$8:$AV$595,DT!$C$8:$C$595,X$5,DT!$D$8:$D$595,$A$1) -> 0 | Y31: =SUMIFS(DT!$AV$8:$AV$595,DT!$C$8:$C$595,Y$5,DT!$D$8:$D$595,$A$1) -> 0 | Z31: =SUMIFS(DT!$AV$8:$AV$595,DT!$C$8:$C$595,Z$5,DT!$D$8:$D$595,$A$1) -> 0 | AB31: =SUMIFS(DT!$AV$8:$AV$595,DT!$C$8:$C$595,AB$5,DT!$D$8:$D$595,$A$1) -> 0 | AC31: =$D31-$E31--SUM($AB31:AB31)-SUM($S31:$Z31)-SUM(AD31:$BD31) ->  | AD31: =SUMIFS(DT!$AV$8:$AV$595,DT!$C$8:$C$595,AD$5,DT!$D$8:$D$595,$A$1) -> 0 | AE31: =SUMIFS(DT!$AV$8:$AV$595,DT!$C$8:$C$595,AE$5,DT!$D$8:$D$595,$A$1) -> 0 | AF31: =SUMIFS(DT!$AV$8:$AV$595,DT!$C$8:$C$595,AF$5,DT!$D$8:$D$595,$A$1) -> 0 | AG31: =SUMIFS(DT!$AV$8:$AV$595,DT!$C$8:$C$595,AG$5,DT!$D$8:$D$595,$A$1) -> 0 | AH31: =SUMIFS(DT!$AV$8:$AV$595,DT!$C$8:$C$595,AH$5,DT!$D$8:$D$595,$A$1) -> 0 | AI31: =SUMIFS(DT!$AV$8:$AV$595,DT!$C$8:$C$595,AI$5,DT!$D$8:$D$595,$A$1) -> 0 | AJ31: =SUMIFS(DT!$AV$8:$AV$595,DT!$C$8:$C$595,AJ$5,DT!$D$8:$D$595,$A$1) -> 0 | AK31: =SUMIFS(DT!$AV$8:$AV$595,DT!$C$8:$C$595,AK$5,DT!$D$8:$D$595,$A$1) -> 0 | AL31: =SUMIFS(DT!$AV$8:$AV$595,DT!$C$8:$C$595,AL$5,DT!$D$8:$D$595,$A$1) -> 0 | AM31: =SUMIFS(DT!$AV$8:$AV$595,DT!$C$8:$C$595,AM$5,DT!$D$8:$D$595,$A$1) -> 0 | AN31: =SUMIFS(DT!$AV$8:$AV$595,DT!$C$8:$C$595,AN$5,DT!$D$8:$D$595,$A$1) -> 0 | AO31: =SUMIFS(DT!$AV$8:$AV$595,DT!$C$8:$C$595,AO$5,DT!$D$8:$D$595,$A$1) -> 0 | AP31: =SUMIFS(DT!$AV$8:$AV$595,DT!$C$8:$C$595,AP$5,DT!$D$8:$D$595,$A$1) -> 0 | AQ31: =SUMIFS(DT!$AV$8:$AV$595,DT!$C$8:$C$595,AQ$5,DT!$D$8:$D$595,$A$1) -> 0 | AR31: =SUMIFS(DT!$AV$8:$AV$595,DT!$C$8:$C$595,AR$5,DT!$D$8:$D$595,$A$1) -> 0 | AS31: =SUMIFS(DT!$AV$8:$AV$595,DT!$C$8:$C$595,AS$5,DT!$D$8:$D$595,$A$1) -> 0 | AT31: =SUMIFS(DT!$AV$8:$AV$595,DT!$C$8:$C$595,AT$5,DT!$D$8:$D$595,$A$1) -> 0 | AU31: =SUMIFS(DT!$AV$8:$AV$595,DT!$C$8:$C$595,AU$5,DT!$D$8:$D$595,$A$1) -> 0 | AV31: =SUMIFS(DT!$AV$8:$AV$595,DT!$C$8:$C$595,AV$5,DT!$D$8:$D$595,$A$1) -> 0 | AW31: =SUMIFS(DT!$AV$8:$AV$595,DT!$C$8:$C$595,AW$5,DT!$D$8:$D$595,$A$1) -> 0 | AX31: =SUMIFS(DT!$AV$8:$AV$595,DT!$C$8:$C$595,AX$5,DT!$D$8:$D$595,$A$1) -> 0 | AY31: =SUMIFS(DT!$AV$8:$AV$595,DT!$C$8:$C$595,AY$5,DT!$D$8:$D$595,$A$1) -> 0 | AZ31: =SUMIFS(DT!$AV$8:$AV$595,DT!$C$8:$C$595,AZ$5,DT!$D$8:$D$595,$A$1) -> 0 | BA31: =SUMIFS(DT!$AV$8:$AV$595,DT!$C$8:$C$595,BA$5,DT!$D$8:$D$595,$A$1) -> 0 | BB31: =SUMIFS(DT!$AV$8:$AV$595,DT!$C$8:$C$595,BB$5,DT!$D$8:$D$595,$A$1) -> 0 | BC31: =SUMIFS(DT!$AV$8:$AV$595,DT!$C$8:$C$595,BC$5,DT!$D$8:$D$595,$A$1) -> 0 | BD31: 0 | BE31: =SUMIFS(DT!$AV$8:$AV$595,DT!$C$8:$C$595,BE$5,DT!$D$8:$D$595,$A$1) -> 0 | BF31: =SUMIFS(DT!$AV$8:$AV$595,DT!$C$8:$C$595,BF$5,DT!$D$8:$D$595,$A$1) -> 0 | BG31: =SUMIFS(DT!$AV$8:$AV$595,DT!$C$8:$C$595,BG$5,DT!$D$8:$D$595,$A$1) -> 0 | BH31: =$D31-AC31 ->  | BI31: =AC$62-$BH31 -> 
A32: 2.9.3 | B32: Đất công trình năng lượng | C32: DNL | D32: =VLOOKUP(C32,#REF!,MATCH($A$1,maxa,0)+2,0) ->  | E32: 0 | F32: 0 | G32: =SUMIFS(DT!$AX$8:$AX$595,DT!$C$8:$C$595,G$5,DT!$D$8:$D$595,$A$1) -> 0 | H32: =SUMIFS(DT!$AX$8:$AX$595,DT!$C$8:$C$595,H$5,DT!$D$8:$D$595,$A$1) -> 0 | I32: =SUMIFS(DT!$AX$8:$AX$595,DT!$C$8:$C$595,I$5,DT!$D$8:$D$595,$A$1) -> 0 | J32: =SUMIFS(DT!$AX$8:$AX$595,DT!$C$8:$C$595,J$5,DT!$D$8:$D$595,$A$1) -> 0 | K32: =SUMIFS(DT!$AX$8:$AX$595,DT!$C$8:$C$595,K$5,DT!$D$8:$D$595,$A$1) -> 0 | L32: =SUMIFS(DT!$AX$8:$AX$595,DT!$C$8:$C$595,L$5,DT!$D$8:$D$595,$A$1) -> 0 | M32: =SUMIFS(DT!$AX$8:$AX$595,DT!$C$8:$C$595,M$5,DT!$D$8:$D$595,$A$1) -> 0 | N32: =SUMIFS(DT!$AX$8:$AX$595,DT!$C$8:$C$595,N$5,DT!$D$8:$D$595,$A$1) -> 0 | O32: =SUMIFS(DT!$AX$8:$AX$595,DT!$C$8:$C$595,O$5,DT!$D$8:$D$595,$A$1) -> 0 | P32: =SUMIFS(DT!$AX$8:$AX$595,DT!$C$8:$C$595,P$5,DT!$D$8:$D$595,$A$1) -> 0 | Q32: =SUMIFS(DT!$AX$8:$AX$595,DT!$C$8:$C$595,Q$5,DT!$D$8:$D$595,$A$1) -> 0 | S32: =SUMIFS(DT!$AX$8:$AX$595,DT!$C$8:$C$595,S$5,DT!$D$8:$D$595,$A$1) -> 0 | T32: =SUMIFS(DT!$AX$8:$AX$595,DT!$C$8:$C$595,T$5,DT!$D$8:$D$595,$A$1) -> 0 | U32: =SUMIFS(DT!$AX$8:$AX$595,DT!$C$8:$C$595,U$5,DT!$D$8:$D$595,$A$1) -> 0 | V32: =SUMIFS(DT!$AX$8:$AX$595,DT!$C$8:$C$595,V$5,DT!$D$8:$D$595,$A$1) -> 0 | W32: =SUMIFS(DT!$AX$8:$AX$595,DT!$C$8:$C$595,W$5,DT!$D$8:$D$595,$A$1) -> 0 | X32: =SUMIFS(DT!$AX$8:$AX$595,DT!$C$8:$C$595,X$5,DT!$D$8:$D$595,$A$1) -> 0 | Y32: =SUMIFS(DT!$AX$8:$AX$595,DT!$C$8:$C$595,Y$5,DT!$D$8:$D$595,$A$1) -> 0 | Z32: =SUMIFS(DT!$AX$8:$AX$595,DT!$C$8:$C$595,Z$5,DT!$D$8:$D$595,$A$1) -> 0 | AB32: =SUMIFS(DT!$AX$8:$AX$595,DT!$C$8:$C$595,AB$5,DT!$D$8:$D$595,$A$1) -> 0 | AC32: =SUMIFS(DT!$AX$8:$AX$595,DT!$C$8:$C$595,AC$5,DT!$D$8:$D$595,$A$1) -> 0 | AD32: =$D32-$E32--SUM($AB32:AC32)-SUM($S32:$Z32)-SUM(AE32:$BD32) ->  | AE32: =SUMIFS(DT!$AX$8:$AX$595,DT!$C$8:$C$595,AE$5,DT!$D$8:$D$595,$A$1) -> 0 | AF32: =SUMIFS(DT!$AX$8:$AX$595,DT!$C$8:$C$595,AF$5,DT!$D$8:$D$595,$A$1) -> 0 | AG32: =SUMIFS(DT!$AX$8:$AX$595,DT!$C$8:$C$595,AG$5,DT!$D$8:$D$595,$A$1) -> 0 | AH32: =SUMIFS(DT!$AX$8:$AX$595,DT!$C$8:$C$595,AH$5,DT!$D$8:$D$595,$A$1) -> 0 | AI32: =SUMIFS(DT!$AX$8:$AX$595,DT!$C$8:$C$595,AI$5,DT!$D$8:$D$595,$A$1) -> 0 | AJ32: =SUMIFS(DT!$AX$8:$AX$595,DT!$C$8:$C$595,AJ$5,DT!$D$8:$D$595,$A$1) -> 0 | AK32: =SUMIFS(DT!$AX$8:$AX$595,DT!$C$8:$C$595,AK$5,DT!$D$8:$D$595,$A$1) -> 0 | AL32: =SUMIFS(DT!$AX$8:$AX$595,DT!$C$8:$C$595,AL$5,DT!$D$8:$D$595,$A$1) -> 0 | AM32: =SUMIFS(DT!$AX$8:$AX$595,DT!$C$8:$C$595,AM$5,DT!$D$8:$D$595,$A$1) -> 0 | AN32: =SUMIFS(DT!$AX$8:$AX$595,DT!$C$8:$C$595,AN$5,DT!$D$8:$D$595,$A$1) -> 0 | AO32: =SUMIFS(DT!$AX$8:$AX$595,DT!$C$8:$C$595,AO$5,DT!$D$8:$D$595,$A$1) -> 0 | AP32: =SUMIFS(DT!$AX$8:$AX$595,DT!$C$8:$C$595,AP$5,DT!$D$8:$D$595,$A$1) -> 0 | AQ32: =SUMIFS(DT!$AX$8:$AX$595,DT!$C$8:$C$595,AQ$5,DT!$D$8:$D$595,$A$1) -> 0 | AR32: =SUMIFS(DT!$AX$8:$AX$595,DT!$C$8:$C$595,AR$5,DT!$D$8:$D$595,$A$1) -> 0 | AS32: =SUMIFS(DT!$AX$8:$AX$595,DT!$C$8:$C$595,AS$5,DT!$D$8:$D$595,$A$1) -> 0 | AT32: =SUMIFS(DT!$AX$8:$AX$595,DT!$C$8:$C$595,AT$5,DT!$D$8:$D$595,$A$1) -> 0 | AU32: =SUMIFS(DT!$AX$8:$AX$595,DT!$C$8:$C$595,AU$5,DT!$D$8:$D$595,$A$1) -> 0 | AV32: =SUMIFS(DT!$AX$8:$AX$595,DT!$C$8:$C$595,AV$5,DT!$D$8:$D$595,$A$1) -> 0 | AW32: =SUMIFS(DT!$AX$8:$AX$595,DT!$C$8:$C$595,AW$5,DT!$D$8:$D$595,$A$1) -> 0 | AX32: =SUMIFS(DT!$AX$8:$AX$595,DT!$C$8:$C$595,AX$5,DT!$D$8:$D$595,$A$1) -> 0 | AY32: =SUMIFS(DT!$AX$8:$AX$595,DT!$C$8:$C$595,AY$5,DT!$D$8:$D$595,$A$1) -> 0 | AZ32: =SUMIFS(DT!$AX$8:$AX$595,DT!$C$8:$C$595,AZ$5,DT!$D$8:$D$595,$A$1) -> 0 | BA32: =SUMIFS(DT!$AX$8:$AX$595,DT!$C$8:$C$595,BA$5,DT!$D$8:$D$595,$A$1) -> 0 | BB32: =SUMIFS(DT!$AX$8:$AX$595,DT!$C$8:$C$595,BB$5,DT!$D$8:$D$595,$A$1) -> 0 | BC32: =SUMIFS(DT!$AX$8:$AX$595,DT!$C$8:$C$595,BC$5,DT!$D$8:$D$595,$A$1) -> 0 | BD32: 0 | BE32: =SUMIFS(DT!$AX$8:$AX$595,DT!$C$8:$C$595,BE$5,DT!$D$8:$D$595,$A$1) -> 0 | BF32: =SUMIFS(DT!$AX$8:$AX$595,DT!$C$8:$C$595,BF$5,DT!$D$8:$D$595,$A$1) -> 0 | BG32: =SUMIFS(DT!$AX$8:$AX$595,DT!$C$8:$C$595,BG$5,DT!$D$8:$D$595,$A$1) -> 0 | BH32: =$D32-AD32 ->  | BI32: =AD$62-$BH32 -> 
A33: 2.9.4 | B33: Đất công trình bưu chính viễn thông | C33: DBV | D33: =VLOOKUP(C33,#REF!,MATCH($A$1,maxa,0)+2,0) ->  | E33: 0 | F33: 0 | G33: =SUMIFS(DT!$AZ$8:$AZ$595,DT!$C$8:$C$595,G$5,DT!$D$8:$D$595,$A$1) -> 0 | H33: =SUMIFS(DT!$AZ$8:$AZ$595,DT!$C$8:$C$595,H$5,DT!$D$8:$D$595,$A$1) -> 0 | I33: =SUMIFS(DT!$AZ$8:$AZ$595,DT!$C$8:$C$595,I$5,DT!$D$8:$D$595,$A$1) -> 0 | J33: =SUMIFS(DT!$AZ$8:$AZ$595,DT!$C$8:$C$595,J$5,DT!$D$8:$D$595,$A$1) -> 0 | K33: =SUMIFS(DT!$AZ$8:$AZ$595,DT!$C$8:$C$595,K$5,DT!$D$8:$D$595,$A$1) -> 0 | L33: =SUMIFS(DT!$AZ$8:$AZ$595,DT!$C$8:$C$595,L$5,DT!$D$8:$D$595,$A$1) -> 0 | M33: =SUMIFS(DT!$AZ$8:$AZ$595,DT!$C$8:$C$595,M$5,DT!$D$8:$D$595,$A$1) -> 0 | N33: =SUMIFS(DT!$AZ$8:$AZ$595,DT!$C$8:$C$595,N$5,DT!$D$8:$D$595,$A$1) -> 0 | O33: =SUMIFS(DT!$AZ$8:$AZ$595,DT!$C$8:$C$595,O$5,DT!$D$8:$D$595,$A$1) -> 0 | P33: =SUMIFS(DT!$AZ$8:$AZ$595,DT!$C$8:$C$595,P$5,DT!$D$8:$D$595,$A$1) -> 0 | Q33: =SUMIFS(DT!$AZ$8:$AZ$595,DT!$C$8:$C$595,Q$5,DT!$D$8:$D$595,$A$1) -> 0 | S33: =SUMIFS(DT!$AZ$8:$AZ$595,DT!$C$8:$C$595,S$5,DT!$D$8:$D$595,$A$1) -> 0 | T33: =SUMIFS(DT!$AZ$8:$AZ$595,DT!$C$8:$C$595,T$5,DT!$D$8:$D$595,$A$1) -> 0 | U33: =SUMIFS(DT!$AZ$8:$AZ$595,DT!$C$8:$C$595,U$5,DT!$D$8:$D$595,$A$1) -> 0 | V33: =SUMIFS(DT!$AZ$8:$AZ$595,DT!$C$8:$C$595,V$5,DT!$D$8:$D$595,$A$1) -> 0 | W33: =SUMIFS(DT!$AZ$8:$AZ$595,DT!$C$8:$C$595,W$5,DT!$D$8:$D$595,$A$1) -> 0 | X33: =SUMIFS(DT!$AZ$8:$AZ$595,DT!$C$8:$C$595,X$5,DT!$D$8:$D$595,$A$1) -> 0 | Y33: =SUMIFS(DT!$AZ$8:$AZ$595,DT!$C$8:$C$595,Y$5,DT!$D$8:$D$595,$A$1) -> 0 | Z33: =SUMIFS(DT!$AZ$8:$AZ$595,DT!$C$8:$C$595,Z$5,DT!$D$8:$D$595,$A$1) -> 0 | AB33: =SUMIFS(DT!$AZ$8:$AZ$595,DT!$C$8:$C$595,AB$5,DT!$D$8:$D$595,$A$1) -> 0 | AC33: =SUMIFS(DT!$AZ$8:$AZ$595,DT!$C$8:$C$595,AC$5,DT!$D$8:$D$595,$A$1) -> 0 | AD33: =SUMIFS(DT!$AZ$8:$AZ$595,DT!$C$8:$C$595,AD$5,DT!$D$8:$D$595,$A$1) -> 0 | AE33: =$D33-$E33--SUM($AB33:AD33)-SUM($S33:$Z33)-SUM(AF33:$BD33) ->  | AF33: =SUMIFS(DT!$AZ$8:$AZ$595,DT!$C$8:$C$595,AF$5,DT!$D$8:$D$595,$A$1) -> 0 | AG33: =SUMIFS(DT!$AZ$8:$AZ$595,DT!$C$8:$C$595,AG$5,DT!$D$8:$D$595,$A$1) -> 0 | AH33: =SUMIFS(DT!$AZ$8:$AZ$595,DT!$C$8:$C$595,AH$5,DT!$D$8:$D$595,$A$1) -> 0 | AI33: =SUMIFS(DT!$AZ$8:$AZ$595,DT!$C$8:$C$595,AI$5,DT!$D$8:$D$595,$A$1) -> 0 | AJ33: =SUMIFS(DT!$AZ$8:$AZ$595,DT!$C$8:$C$595,AJ$5,DT!$D$8:$D$595,$A$1) -> 0 | AK33: =SUMIFS(DT!$AZ$8:$AZ$595,DT!$C$8:$C$595,AK$5,DT!$D$8:$D$595,$A$1) -> 0 | AL33: =SUMIFS(DT!$AZ$8:$AZ$595,DT!$C$8:$C$595,AL$5,DT!$D$8:$D$595,$A$1) -> 0 | AM33: =SUMIFS(DT!$AZ$8:$AZ$595,DT!$C$8:$C$595,AM$5,DT!$D$8:$D$595,$A$1) -> 0 | AN33: =SUMIFS(DT!$AZ$8:$AZ$595,DT!$C$8:$C$595,AN$5,DT!$D$8:$D$595,$A$1) -> 0 | AO33: =SUMIFS(DT!$AZ$8:$AZ$595,DT!$C$8:$C$595,AO$5,DT!$D$8:$D$595,$A$1) -> 0 | AP33: =SUMIFS(DT!$AZ$8:$AZ$595,DT!$C$8:$C$595,AP$5,DT!$D$8:$D$595,$A$1) -> 0 | AQ33: =SUMIFS(DT!$AZ$8:$AZ$595,DT!$C$8:$C$595,AQ$5,DT!$D$8:$D$595,$A$1) -> 0 | AR33: =SUMIFS(DT!$AZ$8:$AZ$595,DT!$C$8:$C$595,AR$5,DT!$D$8:$D$595,$A$1) -> 0 | AS33: =SUMIFS(DT!$AZ$8:$AZ$595,DT!$C$8:$C$595,AS$5,DT!$D$8:$D$595,$A$1) -> 0 | AT33: =SUMIFS(DT!$AZ$8:$AZ$595,DT!$C$8:$C$595,AT$5,DT!$D$8:$D$595,$A$1) -> 0 | AU33: =SUMIFS(DT!$AZ$8:$AZ$595,DT!$C$8:$C$595,AU$5,DT!$D$8:$D$595,$A$1) -> 0 | AV33: =SUMIFS(DT!$AZ$8:$AZ$595,DT!$C$8:$C$595,AV$5,DT!$D$8:$D$595,$A$1) -> 0 | AW33: =SUMIFS(DT!$AZ$8:$AZ$595,DT!$C$8:$C$595,AW$5,DT!$D$8:$D$595,$A$1) -> 0 | AX33: =SUMIFS(DT!$AZ$8:$AZ$595,DT!$C$8:$C$595,AX$5,DT!$D$8:$D$595,$A$1) -> 0 | AY33: =SUMIFS(DT!$AZ$8:$AZ$595,DT!$C$8:$C$595,AY$5,DT!$D$8:$D$595,$A$1) -> 0 | AZ33: =SUMIFS(DT!$AZ$8:$AZ$595,DT!$C$8:$C$595,AZ$5,DT!$D$8:$D$595,$A$1) -> 0 | BA33: =SUMIFS(DT!$AZ$8:$AZ$595,DT!$C$8:$C$595,BA$5,DT!$D$8:$D$595,$A$1) -> 0 | BB33: =SUMIFS(DT!$AZ$8:$AZ$595,DT!$C$8:$C$595,BB$5,DT!$D$8:$D$595,$A$1) -> 0 | BC33: =SUMIFS(DT!$AZ$8:$AZ$595,DT!$C$8:$C$595,BC$5,DT!$D$8:$D$595,$A$1) -> 0 | BD33: 0 | BE33: =SUMIFS(DT!$AZ$8:$AZ$595,DT!$C$8:$C$595,BE$5,DT!$D$8:$D$595,$A$1) -> 0 | BF33: =SUMIFS(DT!$AZ$8:$AZ$595,DT!$C$8:$C$595,BF$5,DT!$D$8:$D$595,$A$1) -> 0 | BG33: =SUMIFS(DT!$AZ$8:$AZ$595,DT!$C$8:$C$595,BG$5,DT!$D$8:$D$595,$A$1) -> 0 | BH33: =$D33-AE33 ->  | BI33: =AE$62-$BH33 -> 
A34: 2.9.5 | B34: Đất cơ sở văn hoá | C34: DVH | D34: =VLOOKUP(C34,#REF!,MATCH($A$1,maxa,0)+2,0) ->  | E34: 0 | F34: 0 | G34: =SUMIFS(DT!$BB$8:$BB$595,DT!$C$8:$C$595,G$5,DT!$D$8:$D$595,$A$1) -> 0 | H34: =SUMIFS(DT!$BB$8:$BB$595,DT!$C$8:$C$595,H$5,DT!$D$8:$D$595,$A$1) -> 0 | I34: =SUMIFS(DT!$BB$8:$BB$595,DT!$C$8:$C$595,I$5,DT!$D$8:$D$595,$A$1) -> 0 | J34: =SUMIFS(DT!$BB$8:$BB$595,DT!$C$8:$C$595,J$5,DT!$D$8:$D$595,$A$1) -> 0 | K34: =SUMIFS(DT!$BB$8:$BB$595,DT!$C$8:$C$595,K$5,DT!$D$8:$D$595,$A$1) -> 0 | L34: =SUMIFS(DT!$BB$8:$BB$595,DT!$C$8:$C$595,L$5,DT!$D$8:$D$595,$A$1) -> 0 | M34: =SUMIFS(DT!$BB$8:$BB$595,DT!$C$8:$C$595,M$5,DT!$D$8:$D$595,$A$1) -> 0 | N34: =SUMIFS(DT!$BB$8:$BB$595,DT!$C$8:$C$595,N$5,DT!$D$8:$D$595,$A$1) -> 0 | O34: =SUMIFS(DT!$BB$8:$BB$595,DT!$C$8:$C$595,O$5,DT!$D$8:$D$595,$A$1) -> 0 | P34: =SUMIFS(DT!$BB$8:$BB$595,DT!$C$8:$C$595,P$5,DT!$D$8:$D$595,$A$1) -> 0 | Q34: =SUMIFS(DT!$BB$8:$BB$595,DT!$C$8:$C$595,Q$5,DT!$D$8:$D$595,$A$1) -> 0 | S34: =SUMIFS(DT!$BB$8:$BB$595,DT!$C$8:$C$595,S$5,DT!$D$8:$D$595,$A$1) -> 0 | T34: =SUMIFS(DT!$BB$8:$BB$595,DT!$C$8:$C$595,T$5,DT!$D$8:$D$595,$A$1) -> 0 | U34: =SUMIFS(DT!$BB$8:$BB$595,DT!$C$8:$C$595,U$5,DT!$D$8:$D$595,$A$1) -> 0 | V34: =SUMIFS(DT!$BB$8:$BB$595,DT!$C$8:$C$595,V$5,DT!$D$8:$D$595,$A$1) -> 0 | W34: =SUMIFS(DT!$BB$8:$BB$595,DT!$C$8:$C$595,W$5,DT!$D$8:$D$595,$A$1) -> 0 | X34: =SUMIFS(DT!$BB$8:$BB$595,DT!$C$8:$C$595,X$5,DT!$D$8:$D$595,$A$1) -> 0 | Y34: =SUMIFS(DT!$BB$8:$BB$595,DT!$C$8:$C$595,Y$5,DT!$D$8:$D$595,$A$1) -> 0 | Z34: =SUMIFS(DT!$BB$8:$BB$595,DT!$C$8:$C$595,Z$5,DT!$D$8:$D$595,$A$1) -> 0 | AB34: =SUMIFS(DT!$BB$8:$BB$595,DT!$C$8:$C$595,AB$5,DT!$D$8:$D$595,$A$1) -> 0 | AC34: =SUMIFS(DT!$BB$8:$BB$595,DT!$C$8:$C$595,AC$5,DT!$D$8:$D$595,$A$1) -> 0 | AD34: =SUMIFS(DT!$BB$8:$BB$595,DT!$C$8:$C$595,AD$5,DT!$D$8:$D$595,$A$1) -> 0 | AE34: =SUMIFS(DT!$BB$8:$BB$595,DT!$C$8:$C$595,AE$5,DT!$D$8:$D$595,$A$1) -> 0 | AF34: =$D34-$E34--SUM($AB34:AE34)-SUM($S34:$Z34)-SUM(AG34:$BD34) ->  | AG34: =SUMIFS(DT!$BB$8:$BB$595,DT!$C$8:$C$595,AG$5,DT!$D$8:$D$595,$A$1) -> 0 | AH34: =SUMIFS(DT!$BB$8:$BB$595,DT!$C$8:$C$595,AH$5,DT!$D$8:$D$595,$A$1) -> 0 | AI34: =SUMIFS(DT!$BB$8:$BB$595,DT!$C$8:$C$595,AI$5,DT!$D$8:$D$595,$A$1) -> 0 | AJ34: =SUMIFS(DT!$BB$8:$BB$595,DT!$C$8:$C$595,AJ$5,DT!$D$8:$D$595,$A$1) -> 0 | AK34: =SUMIFS(DT!$BB$8:$BB$595,DT!$C$8:$C$595,AK$5,DT!$D$8:$D$595,$A$1) -> 0 | AL34: =SUMIFS(DT!$BB$8:$BB$595,DT!$C$8:$C$595,AL$5,DT!$D$8:$D$595,$A$1) -> 0 | AM34: =SUMIFS(DT!$BB$8:$BB$595,DT!$C$8:$C$595,AM$5,DT!$D$8:$D$595,$A$1) -> 0 | AN34: =SUMIFS(DT!$BB$8:$BB$595,DT!$C$8:$C$595,AN$5,DT!$D$8:$D$595,$A$1) -> 0 | AO34: =SUMIFS(DT!$BB$8:$BB$595,DT!$C$8:$C$595,AO$5,DT!$D$8:$D$595,$A$1) -> 0 | AP34: =SUMIFS(DT!$BB$8:$BB$595,DT!$C$8:$C$595,AP$5,DT!$D$8:$D$595,$A$1) -> 0 | AQ34: =SUMIFS(DT!$BB$8:$BB$595,DT!$C$8:$C$595,AQ$5,DT!$D$8:$D$595,$A$1) -> 0 | AR34: =SUMIFS(DT!$BB$8:$BB$595,DT!$C$8:$C$595,AR$5,DT!$D$8:$D$595,$A$1) -> 0 | AS34: =SUMIFS(DT!$BB$8:$BB$595,DT!$C$8:$C$595,AS$5,DT!$D$8:$D$595,$A$1) -> 0 | AT34: =SUMIFS(DT!$BB$8:$BB$595,DT!$C$8:$C$595,AT$5,DT!$D$8:$D$595,$A$1) -> 0 | AU34: =SUMIFS(DT!$BB$8:$BB$595,DT!$C$8:$C$595,AU$5,DT!$D$8:$D$595,$A$1) -> 0 | AV34: =SUMIFS(DT!$BB$8:$BB$595,DT!$C$8:$C$595,AV$5,DT!$D$8:$D$595,$A$1) -> 0 | AW34: =SUMIFS(DT!$BB$8:$BB$595,DT!$C$8:$C$595,AW$5,DT!$D$8:$D$595,$A$1) -> 0 | AX34: =SUMIFS(DT!$BB$8:$BB$595,DT!$C$8:$C$595,AX$5,DT!$D$8:$D$595,$A$1) -> 0 | AY34: =SUMIFS(DT!$BB$8:$BB$595,DT!$C$8:$C$595,AY$5,DT!$D$8:$D$595,$A$1) -> 0 | AZ34: =SUMIFS(DT!$BB$8:$BB$595,DT!$C$8:$C$595,AZ$5,DT!$D$8:$D$595,$A$1) -> 0 | BA34: =SUMIFS(DT!$BB$8:$BB$595,DT!$C$8:$C$595,BA$5,DT!$D$8:$D$595,$A$1) -> 0 | BB34: =SUMIFS(DT!$BB$8:$BB$595,DT!$C$8:$C$595,BB$5,DT!$D$8:$D$595,$A$1) -> 0 | BC34: =SUMIFS(DT!$BB$8:$BB$595,DT!$C$8:$C$595,BC$5,DT!$D$8:$D$595,$A$1) -> 0 | BD34: 0 | BE34: =SUMIFS(DT!$BB$8:$BB$595,DT!$C$8:$C$595,BE$5,DT!$D$8:$D$595,$A$1) -> 0 | BF34: =SUMIFS(DT!$BB$8:$BB$595,DT!$C$8:$C$595,BF$5,DT!$D$8:$D$595,$A$1) -> 0 | BG34: =SUMIFS(DT!$BB$8:$BB$595,DT!$C$8:$C$595,BG$5,DT!$D$8:$D$595,$A$1) -> 0 | BH34: =$D34-AF34 ->  | BI34: =AF$62-$BH34 -> 
A35: 2.9.6 | B35: Đất cơ sở y tế | C35: DYT | D35: =VLOOKUP(C35,#REF!,MATCH($A$1,maxa,0)+2,0) ->  | E35: 0 | F35: 0 | G35: =SUMIFS(DT!$BD$8:$BD$595,DT!$C$8:$C$595,G$5,DT!$D$8:$D$595,$A$1) -> 0 | H35: =SUMIFS(DT!$BD$8:$BD$595,DT!$C$8:$C$595,H$5,DT!$D$8:$D$595,$A$1) -> 0 | I35: =SUMIFS(DT!$BD$8:$BD$595,DT!$C$8:$C$595,I$5,DT!$D$8:$D$595,$A$1) -> 0 | J35: =SUMIFS(DT!$BD$8:$BD$595,DT!$C$8:$C$595,J$5,DT!$D$8:$D$595,$A$1) -> 0 | K35: =SUMIFS(DT!$BD$8:$BD$595,DT!$C$8:$C$595,K$5,DT!$D$8:$D$595,$A$1) -> 0 | L35: =SUMIFS(DT!$BD$8:$BD$595,DT!$C$8:$C$595,L$5,DT!$D$8:$D$595,$A$1) -> 0 | M35: =SUMIFS(DT!$BD$8:$BD$595,DT!$C$8:$C$595,M$5,DT!$D$8:$D$595,$A$1) -> 0 | N35: =SUMIFS(DT!$BD$8:$BD$595,DT!$C$8:$C$595,N$5,DT!$D$8:$D$595,$A$1) -> 0 | O35: =SUMIFS(DT!$BD$8:$BD$595,DT!$C$8:$C$595,O$5,DT!$D$8:$D$595,$A$1) -> 0 | P35: =SUMIFS(DT!$BD$8:$BD$595,DT!$C$8:$C$595,P$5,DT!$D$8:$D$595,$A$1) -> 0 | Q35: =SUMIFS(DT!$BD$8:$BD$595,DT!$C$8:$C$595,Q$5,DT!$D$8:$D$595,$A$1) -> 0 | S35: =SUMIFS(DT!$BD$8:$BD$595,DT!$C$8:$C$595,S$5,DT!$D$8:$D$595,$A$1) -> 0 | T35: =SUMIFS(DT!$BD$8:$BD$595,DT!$C$8:$C$595,T$5,DT!$D$8:$D$595,$A$1) -> 0 | U35: =SUMIFS(DT!$BD$8:$BD$595,DT!$C$8:$C$595,U$5,DT!$D$8:$D$595,$A$1) -> 0 | V35: =SUMIFS(DT!$BD$8:$BD$595,DT!$C$8:$C$595,V$5,DT!$D$8:$D$595,$A$1) -> 0 | W35: =SUMIFS(DT!$BD$8:$BD$595,DT!$C$8:$C$595,W$5,DT!$D$8:$D$595,$A$1) -> 0 | X35: =SUMIFS(DT!$BD$8:$BD$595,DT!$C$8:$C$595,X$5,DT!$D$8:$D$595,$A$1) -> 0 | Y35: =SUMIFS(DT!$BD$8:$BD$595,DT!$C$8:$C$595,Y$5,DT!$D$8:$D$595,$A$1) -> 0 | Z35: =SUMIFS(DT!$BD$8:$BD$595,DT!$C$8:$C$595,Z$5,DT!$D$8:$D$595,$A$1) -> 0 | AB35: =SUMIFS(DT!$BD$8:$BD$595,DT!$C$8:$C$595,AB$5,DT!$D$8:$D$595,$A$1) -> 0 | AC35: =SUMIFS(DT!$BD$8:$BD$595,DT!$C$8:$C$595,AC$5,DT!$D$8:$D$595,$A$1) -> 0 | AD35: =SUMIFS(DT!$BD$8:$BD$595,DT!$C$8:$C$595,AD$5,DT!$D$8:$D$595,$A$1) -> 0 | AE35: =SUMIFS(DT!$BD$8:$BD$595,DT!$C$8:$C$595,AE$5,DT!$D$8:$D$595,$A$1) -> 0 | AF35: =SUMIFS(DT!$BD$8:$BD$595,DT!$C$8:$C$595,AF$5,DT!$D$8:$D$595,$A$1) -> 0 | AG35: =$D35-$E35--SUM($AB35:AF35)-SUM($S35:$Z35)-SUM(AH35:$BD35) ->  | AH35: =SUMIFS(DT!$BD$8:$BD$595,DT!$C$8:$C$595,AH$5,DT!$D$8:$D$595,$A$1) -> 0 | AI35: =SUMIFS(DT!$BD$8:$BD$595,DT!$C$8:$C$595,AI$5,DT!$D$8:$D$595,$A$1) -> 0 | AJ35: =SUMIFS(DT!$BD$8:$BD$595,DT!$C$8:$C$595,AJ$5,DT!$D$8:$D$595,$A$1) -> 0 | AK35: =SUMIFS(DT!$BD$8:$BD$595,DT!$C$8:$C$595,AK$5,DT!$D$8:$D$595,$A$1) -> 0 | AL35: =SUMIFS(DT!$BD$8:$BD$595,DT!$C$8:$C$595,AL$5,DT!$D$8:$D$595,$A$1) -> 0 | AM35: =SUMIFS(DT!$BD$8:$BD$595,DT!$C$8:$C$595,AM$5,DT!$D$8:$D$595,$A$1) -> 0 | AN35: =SUMIFS(DT!$BD$8:$BD$595,DT!$C$8:$C$595,AN$5,DT!$D$8:$D$595,$A$1) -> 0 | AO35: =SUMIFS(DT!$BD$8:$BD$595,DT!$C$8:$C$595,AO$5,DT!$D$8:$D$595,$A$1) -> 0 | AP35: =SUMIFS(DT!$BD$8:$BD$595,DT!$C$8:$C$595,AP$5,DT!$D$8:$D$595,$A$1) -> 0 | AQ35: =SUMIFS(DT!$BD$8:$BD$595,DT!$C$8:$C$595,AQ$5,DT!$D$8:$D$595,$A$1) -> 0 | AR35: =SUMIFS(DT!$BD$8:$BD$595,DT!$C$8:$C$595,AR$5,DT!$D$8:$D$595,$A$1) -> 0 | AS35: =SUMIFS(DT!$BD$8:$BD$595,DT!$C$8:$C$595,AS$5,DT!$D$8:$D$595,$A$1) -> 0 | AT35: =SUMIFS(DT!$BD$8:$BD$595,DT!$C$8:$C$595,AT$5,DT!$D$8:$D$595,$A$1) -> 0 | AU35: =SUMIFS(DT!$BD$8:$BD$595,DT!$C$8:$C$595,AU$5,DT!$D$8:$D$595,$A$1) -> 0 | AV35: =SUMIFS(DT!$BD$8:$BD$595,DT!$C$8:$C$595,AV$5,DT!$D$8:$D$595,$A$1) -> 0 | AW35: =SUMIFS(DT!$BD$8:$BD$595,DT!$C$8:$C$595,AW$5,DT!$D$8:$D$595,$A$1) -> 0 | AX35: =SUMIFS(DT!$BD$8:$BD$595,DT!$C$8:$C$595,AX$5,DT!$D$8:$D$595,$A$1) -> 0 | AY35: =SUMIFS(DT!$BD$8:$BD$595,DT!$C$8:$C$595,AY$5,DT!$D$8:$D$595,$A$1) -> 0 | AZ35: =SUMIFS(DT!$BD$8:$BD$595,DT!$C$8:$C$595,AZ$5,DT!$D$8:$D$595,$A$1) -> 0 | BA35: =SUMIFS(DT!$BD$8:$BD$595,DT!$C$8:$C$595,BA$5,DT!$D$8:$D$595,$A$1) -> 0 | BB35: =SUMIFS(DT!$BD$8:$BD$595,DT!$C$8:$C$595,BB$5,DT!$D$8:$D$595,$A$1) -> 0 | BC35: =SUMIFS(DT!$BD$8:$BD$595,DT!$C$8:$C$595,BC$5,DT!$D$8:$D$595,$A$1) -> 0 | BD35: 0 | BE35: =SUMIFS(DT!$BD$8:$BD$595,DT!$C$8:$C$595,BE$5,DT!$D$8:$D$595,$A$1) -> 0 | BF35: =SUMIFS(DT!$BD$8:$BD$595,DT!$C$8:$C$595,BF$5,DT!$D$8:$D$595,$A$1) -> 0 | BG35: =SUMIFS(DT!$BD$8:$BD$595,DT!$C$8:$C$595,BG$5,DT!$D$8:$D$595,$A$1) -> 0 | BH35: =$D35-AG35 ->  | BI35: =AG$62-$BH35 -> 
A36: 2.9.7 | B36: Đất cơ sở giáo dục - đào tạo | C36: DGD | D36: =VLOOKUP(C36,#REF!,MATCH($A$1,maxa,0)+2,0) ->  | E36: 0 | F36: 0 | G36: =SUMIFS(DT!$BF$8:$BF$595,DT!$C$8:$C$595,G$5,DT!$D$8:$D$595,$A$1) -> 0 | H36: =SUMIFS(DT!$BF$8:$BF$595,DT!$C$8:$C$595,H$5,DT!$D$8:$D$595,$A$1) -> 0 | I36: =SUMIFS(DT!$BF$8:$BF$595,DT!$C$8:$C$595,I$5,DT!$D$8:$D$595,$A$1) -> 0 | J36: =SUMIFS(DT!$BF$8:$BF$595,DT!$C$8:$C$595,J$5,DT!$D$8:$D$595,$A$1) -> 0 | K36: =SUMIFS(DT!$BF$8:$BF$595,DT!$C$8:$C$595,K$5,DT!$D$8:$D$595,$A$1) -> 0 | L36: =SUMIFS(DT!$BF$8:$BF$595,DT!$C$8:$C$595,L$5,DT!$D$8:$D$595,$A$1) -> 0 | M36: =SUMIFS(DT!$BF$8:$BF$595,DT!$C$8:$C$595,M$5,DT!$D$8:$D$595,$A$1) -> 0 | N36: =SUMIFS(DT!$BF$8:$BF$595,DT!$C$8:$C$595,N$5,DT!$D$8:$D$595,$A$1) -> 0 | O36: =SUMIFS(DT!$BF$8:$BF$595,DT!$C$8:$C$595,O$5,DT!$D$8:$D$595,$A$1) -> 0 | P36: =SUMIFS(DT!$BF$8:$BF$595,DT!$C$8:$C$595,P$5,DT!$D$8:$D$595,$A$1) -> 0 | Q36: =SUMIFS(DT!$BF$8:$BF$595,DT!$C$8:$C$595,Q$5,DT!$D$8:$D$595,$A$1) -> 0 | S36: =SUMIFS(DT!$BF$8:$BF$595,DT!$C$8:$C$595,S$5,DT!$D$8:$D$595,$A$1) -> 0 | T36: =SUMIFS(DT!$BF$8:$BF$595,DT!$C$8:$C$595,T$5,DT!$D$8:$D$595,$A$1) -> 0 | U36: =SUMIFS(DT!$BF$8:$BF$595,DT!$C$8:$C$595,U$5,DT!$D$8:$D$595,$A$1) -> 0 | V36: =SUMIFS(DT!$BF$8:$BF$595,DT!$C$8:$C$595,V$5,DT!$D$8:$D$595,$A$1) -> 0 | W36: =SUMIFS(DT!$BF$8:$BF$595,DT!$C$8:$C$595,W$5,DT!$D$8:$D$595,$A$1) -> 0 | X36: =SUMIFS(DT!$BF$8:$BF$595,DT!$C$8:$C$595,X$5,DT!$D$8:$D$595,$A$1) -> 0 | Y36: =SUMIFS(DT!$BF$8:$BF$595,DT!$C$8:$C$595,Y$5,DT!$D$8:$D$595,$A$1) -> 0 | Z36: =SUMIFS(DT!$BF$8:$BF$595,DT!$C$8:$C$595,Z$5,DT!$D$8:$D$595,$A$1) -> 0 | AB36: =SUMIFS(DT!$BF$8:$BF$595,DT!$C$8:$C$595,AB$5,DT!$D$8:$D$595,$A$1) -> 0 | AC36: =SUMIFS(DT!$BF$8:$BF$595,DT!$C$8:$C$595,AC$5,DT!$D$8:$D$595,$A$1) -> 0 | AD36: =SUMIFS(DT!$BF$8:$BF$595,DT!$C$8:$C$595,AD$5,DT!$D$8:$D$595,$A$1) -> 0 | AE36: =SUMIFS(DT!$BF$8:$BF$595,DT!$C$8:$C$595,AE$5,DT!$D$8:$D$595,$A$1) -> 0 | AF36: =SUMIFS(DT!$BF$8:$BF$595,DT!$C$8:$C$595,AF$5,DT!$D$8:$D$595,$A$1) -> 0 | AG36: =SUMIFS(DT!$BF$8:$BF$595,DT!$C$8:$C$595,AG$5,DT!$D$8:$D$595,$A$1) -> 0 | AH36: =$D36-$E36--SUM($AB36:AG36)-SUM($S36:$Z36)-SUM(AI36:$BD36) ->  | AI36: =SUMIFS(DT!$BF$8:$BF$595,DT!$C$8:$C$595,AI$5,DT!$D$8:$D$595,$A$1) -> 0 | AJ36: =SUMIFS(DT!$BF$8:$BF$595,DT!$C$8:$C$595,AJ$5,DT!$D$8:$D$595,$A$1) -> 0 | AK36: =SUMIFS(DT!$BF$8:$BF$595,DT!$C$8:$C$595,AK$5,DT!$D$8:$D$595,$A$1) -> 0 | AL36: =SUMIFS(DT!$BF$8:$BF$595,DT!$C$8:$C$595,AL$5,DT!$D$8:$D$595,$A$1) -> 0 | AM36: =SUMIFS(DT!$BF$8:$BF$595,DT!$C$8:$C$595,AM$5,DT!$D$8:$D$595,$A$1) -> 0 | AN36: =SUMIFS(DT!$BF$8:$BF$595,DT!$C$8:$C$595,AN$5,DT!$D$8:$D$595,$A$1) -> 0 | AO36: =SUMIFS(DT!$BF$8:$BF$595,DT!$C$8:$C$595,AO$5,DT!$D$8:$D$595,$A$1) -> 0 | AP36: =SUMIFS(DT!$BF$8:$BF$595,DT!$C$8:$C$595,AP$5,DT!$D$8:$D$595,$A$1) -> 0 | AQ36: =SUMIFS(DT!$BF$8:$BF$595,DT!$C$8:$C$595,AQ$5,DT!$D$8:$D$595,$A$1) -> 0 | AR36: =SUMIFS(DT!$BF$8:$BF$595,DT!$C$8:$C$595,AR$5,DT!$D$8:$D$595,$A$1) -> 0 | AS36: =SUMIFS(DT!$BF$8:$BF$595,DT!$C$8:$C$595,AS$5,DT!$D$8:$D$595,$A$1) -> 0 | AT36: =SUMIFS(DT!$BF$8:$BF$595,DT!$C$8:$C$595,AT$5,DT!$D$8:$D$595,$A$1) -> 0 | AU36: =SUMIFS(DT!$BF$8:$BF$595,DT!$C$8:$C$595,AU$5,DT!$D$8:$D$595,$A$1) -> 0 | AV36: =SUMIFS(DT!$BF$8:$BF$595,DT!$C$8:$C$595,AV$5,DT!$D$8:$D$595,$A$1) -> 0 | AW36: =SUMIFS(DT!$BF$8:$BF$595,DT!$C$8:$C$595,AW$5,DT!$D$8:$D$595,$A$1) -> 0 | AX36: =SUMIFS(DT!$BF$8:$BF$595,DT!$C$8:$C$595,AX$5,DT!$D$8:$D$595,$A$1) -> 0 | AY36: =SUMIFS(DT!$BF$8:$BF$595,DT!$C$8:$C$595,AY$5,DT!$D$8:$D$595,$A$1) -> 0 | AZ36: =SUMIFS(DT!$BF$8:$BF$595,DT!$C$8:$C$595,AZ$5,DT!$D$8:$D$595,$A$1) -> 0 | BA36: =SUMIFS(DT!$BF$8:$BF$595,DT!$C$8:$C$595,BA$5,DT!$D$8:$D$595,$A$1) -> 0 | BB36: =SUMIFS(DT!$BF$8:$BF$595,DT!$C$8:$C$595,BB$5,DT!$D$8:$D$595,$A$1) -> 0 | BC36: =SUMIFS(DT!$BF$8:$BF$595,DT!$C$8:$C$595,BC$5,DT!$D$8:$D$595,$A$1) -> 0 | BD36: 0 | BE36: =SUMIFS(DT!$BF$8:$BF$595,DT!$C$8:$C$595,BE$5,DT!$D$8:$D$595,$A$1) -> 0 | BF36: =SUMIFS(DT!$BF$8:$BF$595,DT!$C$8:$C$595,BF$5,DT!$D$8:$D$595,$A$1) -> 0 | BG36: =SUMIFS(DT!$BF$8:$BF$595,DT!$C$8:$C$595,BG$5,DT!$D$8:$D$595,$A$1) -> 0 | BH36: =$D36-AH36 ->  | BI36: =AH$62-$BH36 -> 
A37: 2.9.8 | B37: Đất cơ sở thể dục - thể thao | C37: DTT | D37: =VLOOKUP(C37,#REF!,MATCH($A$1,maxa,0)+2,0) ->  | E37: 0 | F37: 0 | G37: =SUMIFS(DT!$BH$8:$BH$595,DT!$C$8:$C$595,G$5,DT!$D$8:$D$595,$A$1) -> 0 | H37: =SUMIFS(DT!$BH$8:$BH$595,DT!$C$8:$C$595,H$5,DT!$D$8:$D$595,$A$1) -> 0 | I37: =SUMIFS(DT!$BH$8:$BH$595,DT!$C$8:$C$595,I$5,DT!$D$8:$D$595,$A$1) -> 0 | J37: =SUMIFS(DT!$BH$8:$BH$595,DT!$C$8:$C$595,J$5,DT!$D$8:$D$595,$A$1) -> 0 | K37: =SUMIFS(DT!$BH$8:$BH$595,DT!$C$8:$C$595,K$5,DT!$D$8:$D$595,$A$1) -> 0 | L37: =SUMIFS(DT!$BH$8:$BH$595,DT!$C$8:$C$595,L$5,DT!$D$8:$D$595,$A$1) -> 0 | M37: =SUMIFS(DT!$BH$8:$BH$595,DT!$C$8:$C$595,M$5,DT!$D$8:$D$595,$A$1) -> 0 | N37: =SUMIFS(DT!$BH$8:$BH$595,DT!$C$8:$C$595,N$5,DT!$D$8:$D$595,$A$1) -> 0 | O37: =SUMIFS(DT!$BH$8:$BH$595,DT!$C$8:$C$595,O$5,DT!$D$8:$D$595,$A$1) -> 0 | P37: =SUMIFS(DT!$BH$8:$BH$595,DT!$C$8:$C$595,P$5,DT!$D$8:$D$595,$A$1) -> 0 | Q37: =SUMIFS(DT!$BH$8:$BH$595,DT!$C$8:$C$595,Q$5,DT!$D$8:$D$595,$A$1) -> 0 | S37: =SUMIFS(DT!$BH$8:$BH$595,DT!$C$8:$C$595,S$5,DT!$D$8:$D$595,$A$1) -> 0 | T37: =SUMIFS(DT!$BH$8:$BH$595,DT!$C$8:$C$595,T$5,DT!$D$8:$D$595,$A$1) -> 0 | U37: =SUMIFS(DT!$BH$8:$BH$595,DT!$C$8:$C$595,U$5,DT!$D$8:$D$595,$A$1) -> 0 | V37: =SUMIFS(DT!$BH$8:$BH$595,DT!$C$8:$C$595,V$5,DT!$D$8:$D$595,$A$1) -> 0 | W37: =SUMIFS(DT!$BH$8:$BH$595,DT!$C$8:$C$595,W$5,DT!$D$8:$D$595,$A$1) -> 0 | X37: =SUMIFS(DT!$BH$8:$BH$595,DT!$C$8:$C$595,X$5,DT!$D$8:$D$595,$A$1) -> 0 | Y37: =SUMIFS(DT!$BH$8:$BH$595,DT!$C$8:$C$595,Y$5,DT!$D$8:$D$595,$A$1) -> 0 | Z37: =SUMIFS(DT!$BH$8:$BH$595,DT!$C$8:$C$595,Z$5,DT!$D$8:$D$595,$A$1) -> 0 | AB37: =SUMIFS(DT!$BH$8:$BH$595,DT!$C$8:$C$595,AB$5,DT!$D$8:$D$595,$A$1) -> 0 | AC37: =SUMIFS(DT!$BH$8:$BH$595,DT!$C$8:$C$595,AC$5,DT!$D$8:$D$595,$A$1) -> 0 | AD37: =SUMIFS(DT!$BH$8:$BH$595,DT!$C$8:$C$595,AD$5,DT!$D$8:$D$595,$A$1) -> 0 | AE37: =SUMIFS(DT!$BH$8:$BH$595,DT!$C$8:$C$595,AE$5,DT!$D$8:$D$595,$A$1) -> 0 | AF37: =SUMIFS(DT!$BH$8:$BH$595,DT!$C$8:$C$595,AF$5,DT!$D$8:$D$595,$A$1) -> 0 | AG37: =SUMIFS(DT!$BH$8:$BH$595,DT!$C$8:$C$595,AG$5,DT!$D$8:$D$595,$A$1) -> 0 | AH37: =SUMIFS(DT!$BH$8:$BH$595,DT!$C$8:$C$595,AH$5,DT!$D$8:$D$595,$A$1) -> 0 | AI37: =$D37-$E37--SUM($AB37:AH37)-SUM($S37:$Z37)-SUM(AJ37:$BD37) ->  | AJ37: =SUMIFS(DT!$BH$8:$BH$595,DT!$C$8:$C$595,AJ$5,DT!$D$8:$D$595,$A$1) -> 0 | AK37: =SUMIFS(DT!$BH$8:$BH$595,DT!$C$8:$C$595,AK$5,DT!$D$8:$D$595,$A$1) -> 0 | AL37: =SUMIFS(DT!$BH$8:$BH$595,DT!$C$8:$C$595,AL$5,DT!$D$8:$D$595,$A$1) -> 0 | AM37: =SUMIFS(DT!$BH$8:$BH$595,DT!$C$8:$C$595,AM$5,DT!$D$8:$D$595,$A$1) -> 0 | AN37: =SUMIFS(DT!$BH$8:$BH$595,DT!$C$8:$C$595,AN$5,DT!$D$8:$D$595,$A$1) -> 0 | AO37: =SUMIFS(DT!$BH$8:$BH$595,DT!$C$8:$C$595,AO$5,DT!$D$8:$D$595,$A$1) -> 0 | AP37: =SUMIFS(DT!$BH$8:$BH$595,DT!$C$8:$C$595,AP$5,DT!$D$8:$D$595,$A$1) -> 0 | AQ37: =SUMIFS(DT!$BH$8:$BH$595,DT!$C$8:$C$595,AQ$5,DT!$D$8:$D$595,$A$1) -> 0 | AR37: =SUMIFS(DT!$BH$8:$BH$595,DT!$C$8:$C$595,AR$5,DT!$D$8:$D$595,$A$1) -> 0 | AS37: =SUMIFS(DT!$BH$8:$BH$595,DT!$C$8:$C$595,AS$5,DT!$D$8:$D$595,$A$1) -> 0 | AT37: =SUMIFS(DT!$BH$8:$BH$595,DT!$C$8:$C$595,AT$5,DT!$D$8:$D$595,$A$1) -> 0 | AU37: =SUMIFS(DT!$BH$8:$BH$595,DT!$C$8:$C$595,AU$5,DT!$D$8:$D$595,$A$1) -> 0 | AV37: =SUMIFS(DT!$BH$8:$BH$595,DT!$C$8:$C$595,AV$5,DT!$D$8:$D$595,$A$1) -> 0 | AW37: =SUMIFS(DT!$BH$8:$BH$595,DT!$C$8:$C$595,AW$5,DT!$D$8:$D$595,$A$1) -> 0 | AX37: =SUMIFS(DT!$BH$8:$BH$595,DT!$C$8:$C$595,AX$5,DT!$D$8:$D$595,$A$1) -> 0 | AY37: =SUMIFS(DT!$BH$8:$BH$595,DT!$C$8:$C$595,AY$5,DT!$D$8:$D$595,$A$1) -> 0 | AZ37: =SUMIFS(DT!$BH$8:$BH$595,DT!$C$8:$C$595,AZ$5,DT!$D$8:$D$595,$A$1) -> 0 | BA37: =SUMIFS(DT!$BH$8:$BH$595,DT!$C$8:$C$595,BA$5,DT!$D$8:$D$595,$A$1) -> 0 | BB37: =SUMIFS(DT!$BH$8:$BH$595,DT!$C$8:$C$595,BB$5,DT!$D$8:$D$595,$A$1) -> 0 | BC37: =SUMIFS(DT!$BH$8:$BH$595,DT!$C$8:$C$595,BC$5,DT!$D$8:$D$595,$A$1) -> 0 | BD37: 0 | BE37: =SUMIFS(DT!$BH$8:$BH$595,DT!$C$8:$C$595,BE$5,DT!$D$8:$D$595,$A$1) -> 0 | BF37: =SUMIFS(DT!$BH$8:$BH$595,DT!$C$8:$C$595,BF$5,DT!$D$8:$D$595,$A$1) -> 0 | BG37: =SUMIFS(DT!$BH$8:$BH$595,DT!$C$8:$C$595,BG$5,DT!$D$8:$D$595,$A$1) -> 0 | BH37: =$D37-AI37 ->  | BI37: =AI$62-$BH37 -> 
A38: 2.9.9 | B38: Đất cơ sở nghiên cứu khoa học | C38: DKH | D38: =VLOOKUP(C38,#REF!,MATCH($A$1,maxa,0)+2,0) ->  | E38: 0 | F38: 0 | G38: =SUMIFS(DT!$BJ$8:$BJ$595,DT!$C$8:$C$595,G$5,DT!$D$8:$D$595,$A$1) -> 0 | H38: =SUMIFS(DT!$BJ$8:$BJ$595,DT!$C$8:$C$595,H$5,DT!$D$8:$D$595,$A$1) -> 0 | I38: =SUMIFS(DT!$BJ$8:$BJ$595,DT!$C$8:$C$595,I$5,DT!$D$8:$D$595,$A$1) -> 0 | J38: =SUMIFS(DT!$BJ$8:$BJ$595,DT!$C$8:$C$595,J$5,DT!$D$8:$D$595,$A$1) -> 0 | K38: =SUMIFS(DT!$BJ$8:$BJ$595,DT!$C$8:$C$595,K$5,DT!$D$8:$D$595,$A$1) -> 0 | L38: =SUMIFS(DT!$BJ$8:$BJ$595,DT!$C$8:$C$595,L$5,DT!$D$8:$D$595,$A$1) -> 0 | M38: =SUMIFS(DT!$BJ$8:$BJ$595,DT!$C$8:$C$595,M$5,DT!$D$8:$D$595,$A$1) -> 0 | N38: =SUMIFS(DT!$BJ$8:$BJ$595,DT!$C$8:$C$595,N$5,DT!$D$8:$D$595,$A$1) -> 0 | O38: =SUMIFS(DT!$BJ$8:$BJ$595,DT!$C$8:$C$595,O$5,DT!$D$8:$D$595,$A$1) -> 0 | P38: =SUMIFS(DT!$BJ$8:$BJ$595,DT!$C$8:$C$595,P$5,DT!$D$8:$D$595,$A$1) -> 0 | Q38: =SUMIFS(DT!$BJ$8:$BJ$595,DT!$C$8:$C$595,Q$5,DT!$D$8:$D$595,$A$1) -> 0 | S38: =SUMIFS(DT!$BJ$8:$BJ$595,DT!$C$8:$C$595,S$5,DT!$D$8:$D$595,$A$1) -> 0 | T38: =SUMIFS(DT!$BJ$8:$BJ$595,DT!$C$8:$C$595,T$5,DT!$D$8:$D$595,$A$1) -> 0 | U38: =SUMIFS(DT!$BJ$8:$BJ$595,DT!$C$8:$C$595,U$5,DT!$D$8:$D$595,$A$1) -> 0 | V38: =SUMIFS(DT!$BJ$8:$BJ$595,DT!$C$8:$C$595,V$5,DT!$D$8:$D$595,$A$1) -> 0 | W38: =SUMIFS(DT!$BJ$8:$BJ$595,DT!$C$8:$C$595,W$5,DT!$D$8:$D$595,$A$1) -> 0 | X38: =SUMIFS(DT!$BJ$8:$BJ$595,DT!$C$8:$C$595,X$5,DT!$D$8:$D$595,$A$1) -> 0 | Y38: =SUMIFS(DT!$BJ$8:$BJ$595,DT!$C$8:$C$595,Y$5,DT!$D$8:$D$595,$A$1) -> 0 | Z38: =SUMIFS(DT!$BJ$8:$BJ$595,DT!$C$8:$C$595,Z$5,DT!$D$8:$D$595,$A$1) -> 0 | AB38: =SUMIFS(DT!$BJ$8:$BJ$595,DT!$C$8:$C$595,AB$5,DT!$D$8:$D$595,$A$1) -> 0 | AC38: =SUMIFS(DT!$BJ$8:$BJ$595,DT!$C$8:$C$595,AC$5,DT!$D$8:$D$595,$A$1) -> 0 | AD38: =SUMIFS(DT!$BJ$8:$BJ$595,DT!$C$8:$C$595,AD$5,DT!$D$8:$D$595,$A$1) -> 0 | AE38: =SUMIFS(DT!$BJ$8:$BJ$595,DT!$C$8:$C$595,AE$5,DT!$D$8:$D$595,$A$1) -> 0 | AF38: =SUMIFS(DT!$BJ$8:$BJ$595,DT!$C$8:$C$595,AF$5,DT!$D$8:$D$595,$A$1) -> 0 | AG38: =SUMIFS(DT!$BJ$8:$BJ$595,DT!$C$8:$C$595,AG$5,DT!$D$8:$D$595,$A$1) -> 0 | AH38: =SUMIFS(DT!$BJ$8:$BJ$595,DT!$C$8:$C$595,AH$5,DT!$D$8:$D$595,$A$1) -> 0 | AI38: =SUMIFS(DT!$BJ$8:$BJ$595,DT!$C$8:$C$595,AI$5,DT!$D$8:$D$595,$A$1) -> 0 | AJ38: =$D38-$E38--SUM($AB38:AI38)-SUM($S38:$Z38)-SUM(AK38:$BD38) ->  | AK38: =SUMIFS(DT!$BJ$8:$BJ$595,DT!$C$8:$C$595,AK$5,DT!$D$8:$D$595,$A$1) -> 0 | AL38: =SUMIFS(DT!$BJ$8:$BJ$595,DT!$C$8:$C$595,AL$5,DT!$D$8:$D$595,$A$1) -> 0 | AM38: =SUMIFS(DT!$BJ$8:$BJ$595,DT!$C$8:$C$595,AM$5,DT!$D$8:$D$595,$A$1) -> 0 | AN38: =SUMIFS(DT!$BJ$8:$BJ$595,DT!$C$8:$C$595,AN$5,DT!$D$8:$D$595,$A$1) -> 0 | AO38: =SUMIFS(DT!$BJ$8:$BJ$595,DT!$C$8:$C$595,AO$5,DT!$D$8:$D$595,$A$1) -> 0 | AP38: =SUMIFS(DT!$BJ$8:$BJ$595,DT!$C$8:$C$595,AP$5,DT!$D$8:$D$595,$A$1) -> 0 | AQ38: =SUMIFS(DT!$BJ$8:$BJ$595,DT!$C$8:$C$595,AQ$5,DT!$D$8:$D$595,$A$1) -> 0 | AR38: =SUMIFS(DT!$BJ$8:$BJ$595,DT!$C$8:$C$595,AR$5,DT!$D$8:$D$595,$A$1) -> 0 | AS38: =SUMIFS(DT!$BJ$8:$BJ$595,DT!$C$8:$C$595,AS$5,DT!$D$8:$D$595,$A$1) -> 0 | AT38: =SUMIFS(DT!$BJ$8:$BJ$595,DT!$C$8:$C$595,AT$5,DT!$D$8:$D$595,$A$1) -> 0 | AU38: =SUMIFS(DT!$BJ$8:$BJ$595,DT!$C$8:$C$595,AU$5,DT!$D$8:$D$595,$A$1) -> 0 | AV38: =SUMIFS(DT!$BJ$8:$BJ$595,DT!$C$8:$C$595,AV$5,DT!$D$8:$D$595,$A$1) -> 0 | AW38: =SUMIFS(DT!$BJ$8:$BJ$595,DT!$C$8:$C$595,AW$5,DT!$D$8:$D$595,$A$1) -> 0 | AX38: =SUMIFS(DT!$BJ$8:$BJ$595,DT!$C$8:$C$595,AX$5,DT!$D$8:$D$595,$A$1) -> 0 | AY38: =SUMIFS(DT!$BJ$8:$BJ$595,DT!$C$8:$C$595,AY$5,DT!$D$8:$D$595,$A$1) -> 0 | AZ38: =SUMIFS(DT!$BJ$8:$BJ$595,DT!$C$8:$C$595,AZ$5,DT!$D$8:$D$595,$A$1) -> 0 | BA38: =SUMIFS(DT!$BJ$8:$BJ$595,DT!$C$8:$C$595,BA$5,DT!$D$8:$D$595,$A$1) -> 0 | BB38: =SUMIFS(DT!$BJ$8:$BJ$595,DT!$C$8:$C$595,BB$5,DT!$D$8:$D$595,$A$1) -> 0 | BC38: =SUMIFS(DT!$BJ$8:$BJ$595,DT!$C$8:$C$595,BC$5,DT!$D$8:$D$595,$A$1) -> 0 | BD38: 0 | BE38: =SUMIFS(DT!$BJ$8:$BJ$595,DT!$C$8:$C$595,BE$5,DT!$D$8:$D$595,$A$1) -> 0 | BF38: =SUMIFS(DT!$BJ$8:$BJ$595,DT!$C$8:$C$595,BF$5,DT!$D$8:$D$595,$A$1) -> 0 | BG38: =SUMIFS(DT!$BJ$8:$BJ$595,DT!$C$8:$C$595,BG$5,DT!$D$8:$D$595,$A$1) -> 0 | BH38: =$D38-AJ38 ->  | BI38: =AJ$62-$BH38 -> 
A39: 2.9.10 | B39: Đất cơ sở dịch vụ về xã hội | C39: DXH | D39: =VLOOKUP(C39,#REF!,MATCH($A$1,maxa,0)+2,0) ->  | E39: 0 | F39: 0 | G39: =SUMIFS(DT!$BL$8:$BL$595,DT!$C$8:$C$595,G$5,DT!$D$8:$D$595,$A$1) -> 0 | H39: =SUMIFS(DT!$BL$8:$BL$595,DT!$C$8:$C$595,H$5,DT!$D$8:$D$595,$A$1) -> 0 | I39: =SUMIFS(DT!$BL$8:$BL$595,DT!$C$8:$C$595,I$5,DT!$D$8:$D$595,$A$1) -> 0 | J39: =SUMIFS(DT!$BL$8:$BL$595,DT!$C$8:$C$595,J$5,DT!$D$8:$D$595,$A$1) -> 0 | K39: =SUMIFS(DT!$BL$8:$BL$595,DT!$C$8:$C$595,K$5,DT!$D$8:$D$595,$A$1) -> 0 | L39: =SUMIFS(DT!$BL$8:$BL$595,DT!$C$8:$C$595,L$5,DT!$D$8:$D$595,$A$1) -> 0 | M39: =SUMIFS(DT!$BL$8:$BL$595,DT!$C$8:$C$595,M$5,DT!$D$8:$D$595,$A$1) -> 0 | N39: =SUMIFS(DT!$BL$8:$BL$595,DT!$C$8:$C$595,N$5,DT!$D$8:$D$595,$A$1) -> 0 | O39: =SUMIFS(DT!$BL$8:$BL$595,DT!$C$8:$C$595,O$5,DT!$D$8:$D$595,$A$1) -> 0 | P39: =SUMIFS(DT!$BL$8:$BL$595,DT!$C$8:$C$595,P$5,DT!$D$8:$D$595,$A$1) -> 0 | Q39: =SUMIFS(DT!$BL$8:$BL$595,DT!$C$8:$C$595,Q$5,DT!$D$8:$D$595,$A$1) -> 0 | S39: =SUMIFS(DT!$BL$8:$BL$595,DT!$C$8:$C$595,S$5,DT!$D$8:$D$595,$A$1) -> 0 | T39: =SUMIFS(DT!$BL$8:$BL$595,DT!$C$8:$C$595,T$5,DT!$D$8:$D$595,$A$1) -> 0 | U39: =SUMIFS(DT!$BL$8:$BL$595,DT!$C$8:$C$595,U$5,DT!$D$8:$D$595,$A$1) -> 0 | V39: =SUMIFS(DT!$BL$8:$BL$595,DT!$C$8:$C$595,V$5,DT!$D$8:$D$595,$A$1) -> 0 | W39: =SUMIFS(DT!$BL$8:$BL$595,DT!$C$8:$C$595,W$5,DT!$D$8:$D$595,$A$1) -> 0 | X39: =SUMIFS(DT!$BL$8:$BL$595,DT!$C$8:$C$595,X$5,DT!$D$8:$D$595,$A$1) -> 0 | Y39: =SUMIFS(DT!$BL$8:$BL$595,DT!$C$8:$C$595,Y$5,DT!$D$8:$D$595,$A$1) -> 0 | Z39: =SUMIFS(DT!$BL$8:$BL$595,DT!$C$8:$C$595,Z$5,DT!$D$8:$D$595,$A$1) -> 0 | AB39: =SUMIFS(DT!$BL$8:$BL$595,DT!$C$8:$C$595,AB$5,DT!$D$8:$D$595,$A$1) -> 0 | AC39: =SUMIFS(DT!$BL$8:$BL$595,DT!$C$8:$C$595,AC$5,DT!$D$8:$D$595,$A$1) -> 0 | AD39: =SUMIFS(DT!$BL$8:$BL$595,DT!$C$8:$C$595,AD$5,DT!$D$8:$D$595,$A$1) -> 0 | AE39: =SUMIFS(DT!$BL$8:$BL$595,DT!$C$8:$C$595,AE$5,DT!$D$8:$D$595,$A$1) -> 0 | AF39: =SUMIFS(DT!$BL$8:$BL$595,DT!$C$8:$C$595,AF$5,DT!$D$8:$D$595,$A$1) -> 0 | AG39: =SUMIFS(DT!$BL$8:$BL$595,DT!$C$8:$C$595,AG$5,DT!$D$8:$D$595,$A$1) -> 0 | AH39: =SUMIFS(DT!$BL$8:$BL$595,DT!$C$8:$C$595,AH$5,DT!$D$8:$D$595,$A$1) -> 0 | AI39: =SUMIFS(DT!$BL$8:$BL$595,DT!$C$8:$C$595,AI$5,DT!$D$8:$D$595,$A$1) -> 0 | AJ39: =SUMIFS(DT!$BL$8:$BL$595,DT!$C$8:$C$595,AJ$5,DT!$D$8:$D$595,$A$1) -> 0 | AK39: =$D39-$E39--SUM($AB39:AJ39)-SUM($S39:$Z39)-SUM(AL39:$BD39) ->  | AL39: =SUMIFS(DT!$BL$8:$BL$595,DT!$C$8:$C$595,AL$5,DT!$D$8:$D$595,$A$1) -> 0 | AM39: =SUMIFS(DT!$BL$8:$BL$595,DT!$C$8:$C$595,AM$5,DT!$D$8:$D$595,$A$1) -> 0 | AN39: =SUMIFS(DT!$BL$8:$BL$595,DT!$C$8:$C$595,AN$5,DT!$D$8:$D$595,$A$1) -> 0 | AO39: =SUMIFS(DT!$BL$8:$BL$595,DT!$C$8:$C$595,AO$5,DT!$D$8:$D$595,$A$1) -> 0 | AP39: =SUMIFS(DT!$BL$8:$BL$595,DT!$C$8:$C$595,AP$5,DT!$D$8:$D$595,$A$1) -> 0 | AQ39: =SUMIFS(DT!$BL$8:$BL$595,DT!$C$8:$C$595,AQ$5,DT!$D$8:$D$595,$A$1) -> 0 | AR39: =SUMIFS(DT!$BL$8:$BL$595,DT!$C$8:$C$595,AR$5,DT!$D$8:$D$595,$A$1) -> 0 | AS39: =SUMIFS(DT!$BL$8:$BL$595,DT!$C$8:$C$595,AS$5,DT!$D$8:$D$595,$A$1) -> 0 | AT39: =SUMIFS(DT!$BL$8:$BL$595,DT!$C$8:$C$595,AT$5,DT!$D$8:$D$595,$A$1) -> 0 | AU39: =SUMIFS(DT!$BL$8:$BL$595,DT!$C$8:$C$595,AU$5,DT!$D$8:$D$595,$A$1) -> 0 | AV39: =SUMIFS(DT!$BL$8:$BL$595,DT!$C$8:$C$595,AV$5,DT!$D$8:$D$595,$A$1) -> 0 | AW39: =SUMIFS(DT!$BL$8:$BL$595,DT!$C$8:$C$595,AW$5,DT!$D$8:$D$595,$A$1) -> 0 | AX39: =SUMIFS(DT!$BL$8:$BL$595,DT!$C$8:$C$595,AX$5,DT!$D$8:$D$595,$A$1) -> 0 | AY39: =SUMIFS(DT!$BL$8:$BL$595,DT!$C$8:$C$595,AY$5,DT!$D$8:$D$595,$A$1) -> 0 | AZ39: =SUMIFS(DT!$BL$8:$BL$595,DT!$C$8:$C$595,AZ$5,DT!$D$8:$D$595,$A$1) -> 0 | BA39: =SUMIFS(DT!$BL$8:$BL$595,DT!$C$8:$C$595,BA$5,DT!$D$8:$D$595,$A$1) -> 0 | BB39: =SUMIFS(DT!$BL$8:$BL$595,DT!$C$8:$C$595,BB$5,DT!$D$8:$D$595,$A$1) -> 0 | BC39: =SUMIFS(DT!$BL$8:$BL$595,DT!$C$8:$C$595,BC$5,DT!$D$8:$D$595,$A$1) -> 0 | BD39: 0 | BE39: =SUMIFS(DT!$BL$8:$BL$595,DT!$C$8:$C$595,BE$5,DT!$D$8:$D$595,$A$1) -> 0 | BF39: =SUMIFS(DT!$BL$8:$BL$595,DT!$C$8:$C$595,BF$5,DT!$D$8:$D$595,$A$1) -> 0 | BG39: =SUMIFS(DT!$BL$8:$BL$595,DT!$C$8:$C$595,BG$5,DT!$D$8:$D$595,$A$1) -> 0 | BH39: =$D39-AK39 ->  | BI39: =AK$62-$BH39 -> 
A40: 2.9.11 | B40: Đất chợ | C40: DCH | D40: =VLOOKUP(C40,#REF!,MATCH($A$1,maxa,0)+2,0) ->  | E40: 0 | F40: 0 | G40: =SUMIFS(DT!$BN$8:$BN$595,DT!$C$8:$C$595,G$5,DT!$D$8:$D$595,$A$1) -> 0 | H40: =SUMIFS(DT!$BN$8:$BN$595,DT!$C$8:$C$595,H$5,DT!$D$8:$D$595,$A$1) -> 0 | I40: =SUMIFS(DT!$BN$8:$BN$595,DT!$C$8:$C$595,I$5,DT!$D$8:$D$595,$A$1) -> 0 | J40: =SUMIFS(DT!$BN$8:$BN$595,DT!$C$8:$C$595,J$5,DT!$D$8:$D$595,$A$1) -> 0 | K40: =SUMIFS(DT!$BN$8:$BN$595,DT!$C$8:$C$595,K$5,DT!$D$8:$D$595,$A$1) -> 0 | L40: =SUMIFS(DT!$BN$8:$BN$595,DT!$C$8:$C$595,L$5,DT!$D$8:$D$595,$A$1) -> 0 | M40: =SUMIFS(DT!$BN$8:$BN$595,DT!$C$8:$C$595,M$5,DT!$D$8:$D$595,$A$1) -> 0 | N40: =SUMIFS(DT!$BN$8:$BN$595,DT!$C$8:$C$595,N$5,DT!$D$8:$D$595,$A$1) -> 0 | O40: =SUMIFS(DT!$BN$8:$BN$595,DT!$C$8:$C$595,O$5,DT!$D$8:$D$595,$A$1) -> 0 | P40: =SUMIFS(DT!$BN$8:$BN$595,DT!$C$8:$C$595,P$5,DT!$D$8:$D$595,$A$1) -> 0 | Q40: =SUMIFS(DT!$BN$8:$BN$595,DT!$C$8:$C$595,Q$5,DT!$D$8:$D$595,$A$1) -> 0 | S40: =SUMIFS(DT!$BN$8:$BN$595,DT!$C$8:$C$595,S$5,DT!$D$8:$D$595,$A$1) -> 0 | T40: =SUMIFS(DT!$BN$8:$BN$595,DT!$C$8:$C$595,T$5,DT!$D$8:$D$595,$A$1) -> 0 | U40: =SUMIFS(DT!$BN$8:$BN$595,DT!$C$8:$C$595,U$5,DT!$D$8:$D$595,$A$1) -> 0 | V40: =SUMIFS(DT!$BN$8:$BN$595,DT!$C$8:$C$595,V$5,DT!$D$8:$D$595,$A$1) -> 0 | W40: =SUMIFS(DT!$BN$8:$BN$595,DT!$C$8:$C$595,W$5,DT!$D$8:$D$595,$A$1) -> 0 | X40: =SUMIFS(DT!$BN$8:$BN$595,DT!$C$8:$C$595,X$5,DT!$D$8:$D$595,$A$1) -> 0 | Y40: =SUMIFS(DT!$BN$8:$BN$595,DT!$C$8:$C$595,Y$5,DT!$D$8:$D$595,$A$1) -> 0 | Z40: =SUMIFS(DT!$BN$8:$BN$595,DT!$C$8:$C$595,Z$5,DT!$D$8:$D$595,$A$1) -> 0 | AB40: =SUMIFS(DT!$BN$8:$BN$595,DT!$C$8:$C$595,AB$5,DT!$D$8:$D$595,$A$1) -> 0 | AC40: =SUMIFS(DT!$BN$8:$BN$595,DT!$C$8:$C$595,AC$5,DT!$D$8:$D$595,$A$1) -> 0 | AD40: =SUMIFS(DT!$BN$8:$BN$595,DT!$C$8:$C$595,AD$5,DT!$D$8:$D$595,$A$1) -> 0 | AE40: =SUMIFS(DT!$BN$8:$BN$595,DT!$C$8:$C$595,AE$5,DT!$D$8:$D$595,$A$1) -> 0 | AF40: =SUMIFS(DT!$BN$8:$BN$595,DT!$C$8:$C$595,AF$5,DT!$D$8:$D$595,$A$1) -> 0 | AG40: =SUMIFS(DT!$BN$8:$BN$595,DT!$C$8:$C$595,AG$5,DT!$D$8:$D$595,$A$1) -> 0 | AH40: =SUMIFS(DT!$BN$8:$BN$595,DT!$C$8:$C$595,AH$5,DT!$D$8:$D$595,$A$1) -> 0 | AI40: =SUMIFS(DT!$BN$8:$BN$595,DT!$C$8:$C$595,AI$5,DT!$D$8:$D$595,$A$1) -> 0 | AJ40: =SUMIFS(DT!$BN$8:$BN$595,DT!$C$8:$C$595,AJ$5,DT!$D$8:$D$595,$A$1) -> 0 | AK40: =SUMIFS(DT!$BN$8:$BN$595,DT!$C$8:$C$595,AK$5,DT!$D$8:$D$595,$A$1) -> 0 | AL40: =$D40-$E40--SUM($AB40:AK40)-SUM($S40:$Z40)-SUM(AM40:$BD40) ->  | AM40: =SUMIFS(DT!$BN$8:$BN$595,DT!$C$8:$C$595,AM$5,DT!$D$8:$D$595,$A$1) -> 0 | AN40: =SUMIFS(DT!$BN$8:$BN$595,DT!$C$8:$C$595,AN$5,DT!$D$8:$D$595,$A$1) -> 0 | AO40: =SUMIFS(DT!$BN$8:$BN$595,DT!$C$8:$C$595,AO$5,DT!$D$8:$D$595,$A$1) -> 0 | AP40: =SUMIFS(DT!$BN$8:$BN$595,DT!$C$8:$C$595,AP$5,DT!$D$8:$D$595,$A$1) -> 0 | AQ40: =SUMIFS(DT!$BN$8:$BN$595,DT!$C$8:$C$595,AQ$5,DT!$D$8:$D$595,$A$1) -> 0 | AR40: =SUMIFS(DT!$BN$8:$BN$595,DT!$C$8:$C$595,AR$5,DT!$D$8:$D$595,$A$1) -> 0 | AS40: =SUMIFS(DT!$BN$8:$BN$595,DT!$C$8:$C$595,AS$5,DT!$D$8:$D$595,$A$1) -> 0 | AT40: =SUMIFS(DT!$BN$8:$BN$595,DT!$C$8:$C$595,AT$5,DT!$D$8:$D$595,$A$1) -> 0 | AU40: =SUMIFS(DT!$BN$8:$BN$595,DT!$C$8:$C$595,AU$5,DT!$D$8:$D$595,$A$1) -> 0 | AV40: =SUMIFS(DT!$BN$8:$BN$595,DT!$C$8:$C$595,AV$5,DT!$D$8:$D$595,$A$1) -> 0 | AW40: =SUMIFS(DT!$BN$8:$BN$595,DT!$C$8:$C$595,AW$5,DT!$D$8:$D$595,$A$1) -> 0 | AX40: =SUMIFS(DT!$BN$8:$BN$595,DT!$C$8:$C$595,AX$5,DT!$D$8:$D$595,$A$1) -> 0 | AY40: =SUMIFS(DT!$BN$8:$BN$595,DT!$C$8:$C$595,AY$5,DT!$D$8:$D$595,$A$1) -> 0 | AZ40: =SUMIFS(DT!$BN$8:$BN$595,DT!$C$8:$C$595,AZ$5,DT!$D$8:$D$595,$A$1) -> 0 | BA40: =SUMIFS(DT!$BN$8:$BN$595,DT!$C$8:$C$595,BA$5,DT!$D$8:$D$595,$A$1) -> 0 | BB40: =SUMIFS(DT!$BN$8:$BN$595,DT!$C$8:$C$595,BB$5,DT!$D$8:$D$595,$A$1) -> 0 | BC40: =SUMIFS(DT!$BN$8:$BN$595,DT!$C$8:$C$595,BC$5,DT!$D$8:$D$595,$A$1) -> 0 | BD40: 0 | BE40: =SUMIFS(DT!$BN$8:$BN$595,DT!$C$8:$C$595,BE$5,DT!$D$8:$D$595,$A$1) -> 0 | BF40: =SUMIFS(DT!$BN$8:$BN$595,DT!$C$8:$C$595,BF$5,DT!$D$8:$D$595,$A$1) -> 0 | BG40: =SUMIFS(DT!$BN$8:$BN$595,DT!$C$8:$C$595,BG$5,DT!$D$8:$D$595,$A$1) -> 0 | BH40: =$D40-AL40 ->  | BI40: =AL$62-$BH40 -> 
A41: 2.1 | B41: Đất có di tích lịch sử - văn hóa | C41: DDT | D41: =VLOOKUP(C41,#REF!,MATCH($A$1,maxa,0)+2,0) ->  | E41: 0 | F41: 0 | G41: =SUMIFS(DT!$BP$8:$BP$595,DT!$C$8:$C$595,G$5,DT!$D$8:$D$595,$A$1) -> 0 | H41: =SUMIFS(DT!$BP$8:$BP$595,DT!$C$8:$C$595,H$5,DT!$D$8:$D$595,$A$1) -> 0 | I41: =SUMIFS(DT!$BP$8:$BP$595,DT!$C$8:$C$595,I$5,DT!$D$8:$D$595,$A$1) -> 0 | J41: =SUMIFS(DT!$BP$8:$BP$595,DT!$C$8:$C$595,J$5,DT!$D$8:$D$595,$A$1) -> 0 | K41: =SUMIFS(DT!$BP$8:$BP$595,DT!$C$8:$C$595,K$5,DT!$D$8:$D$595,$A$1) -> 0 | L41: =SUMIFS(DT!$BP$8:$BP$595,DT!$C$8:$C$595,L$5,DT!$D$8:$D$595,$A$1) -> 0 | M41: =SUMIFS(DT!$BP$8:$BP$595,DT!$C$8:$C$595,M$5,DT!$D$8:$D$595,$A$1) -> 0 | N41: =SUMIFS(DT!$BP$8:$BP$595,DT!$C$8:$C$595,N$5,DT!$D$8:$D$595,$A$1) -> 0 | O41: =SUMIFS(DT!$BP$8:$BP$595,DT!$C$8:$C$595,O$5,DT!$D$8:$D$595,$A$1) -> 0 | P41: =SUMIFS(DT!$BP$8:$BP$595,DT!$C$8:$C$595,P$5,DT!$D$8:$D$595,$A$1) -> 0 | Q41: =SUMIFS(DT!$BP$8:$BP$595,DT!$C$8:$C$595,Q$5,DT!$D$8:$D$595,$A$1) -> 0 | S41: =SUMIFS(DT!$BP$8:$BP$595,DT!$C$8:$C$595,S$5,DT!$D$8:$D$595,$A$1) -> 0 | T41: =SUMIFS(DT!$BP$8:$BP$595,DT!$C$8:$C$595,T$5,DT!$D$8:$D$595,$A$1) -> 0 | U41: =SUMIFS(DT!$BP$8:$BP$595,DT!$C$8:$C$595,U$5,DT!$D$8:$D$595,$A$1) -> 0 | V41: =SUMIFS(DT!$BP$8:$BP$595,DT!$C$8:$C$595,V$5,DT!$D$8:$D$595,$A$1) -> 0 | W41: =SUMIFS(DT!$BP$8:$BP$595,DT!$C$8:$C$595,W$5,DT!$D$8:$D$595,$A$1) -> 0 | X41: =SUMIFS(DT!$BP$8:$BP$595,DT!$C$8:$C$595,X$5,DT!$D$8:$D$595,$A$1) -> 0 | Y41: =SUMIFS(DT!$BP$8:$BP$595,DT!$C$8:$C$595,Y$5,DT!$D$8:$D$595,$A$1) -> 0 | Z41: =SUMIFS(DT!$BP$8:$BP$595,DT!$C$8:$C$595,Z$5,DT!$D$8:$D$595,$A$1) -> 0 | AA41: 0 | AB41: =SUMIFS(DT!$BP$8:$BP$595,DT!$C$8:$C$595,AB$5,DT!$D$8:$D$595,$A$1) -> 0 | AC41: =SUMIFS(DT!$BP$8:$BP$595,DT!$C$8:$C$595,AC$5,DT!$D$8:$D$595,$A$1) -> 0 | AD41: =SUMIFS(DT!$BP$8:$BP$595,DT!$C$8:$C$595,AD$5,DT!$D$8:$D$595,$A$1) -> 0 | AE41: =SUMIFS(DT!$BP$8:$BP$595,DT!$C$8:$C$595,AE$5,DT!$D$8:$D$595,$A$1) -> 0 | AF41: =SUMIFS(DT!$BP$8:$BP$595,DT!$C$8:$C$595,AF$5,DT!$D$8:$D$595,$A$1) -> 0 | AG41: =SUMIFS(DT!$BP$8:$BP$595,DT!$C$8:$C$595,AG$5,DT!$D$8:$D$595,$A$1) -> 0 | AH41: =SUMIFS(DT!$BP$8:$BP$595,DT!$C$8:$C$595,AH$5,DT!$D$8:$D$595,$A$1) -> 0 | AI41: =SUMIFS(DT!$BP$8:$BP$595,DT!$C$8:$C$595,AI$5,DT!$D$8:$D$595,$A$1) -> 0 | AJ41: =SUMIFS(DT!$BP$8:$BP$595,DT!$C$8:$C$595,AJ$5,DT!$D$8:$D$595,$A$1) -> 0 | AK41: =SUMIFS(DT!$BP$8:$BP$595,DT!$C$8:$C$595,AK$5,DT!$D$8:$D$595,$A$1) -> 0 | AL41: =SUMIFS(DT!$BP$8:$BP$595,DT!$C$8:$C$595,AL$5,DT!$D$8:$D$595,$A$1) -> 0 | AM41: =$D41-$E41-SUM($S41:$AA41)-SUM(AN41:$BD41) ->  | AN41: =SUMIFS(DT!$BP$8:$BP$595,DT!$C$8:$C$595,AN$5,DT!$D$8:$D$595,$A$1) -> 0 | AO41: =SUMIFS(DT!$BP$8:$BP$595,DT!$C$8:$C$595,AO$5,DT!$D$8:$D$595,$A$1) -> 0 | AP41: =SUMIFS(DT!$BP$8:$BP$595,DT!$C$8:$C$595,AP$5,DT!$D$8:$D$595,$A$1) -> 0 | AQ41: =SUMIFS(DT!$BP$8:$BP$595,DT!$C$8:$C$595,AQ$5,DT!$D$8:$D$595,$A$1) -> 0 | AR41: =SUMIFS(DT!$BP$8:$BP$595,DT!$C$8:$C$595,AR$5,DT!$D$8:$D$595,$A$1) -> 0 | AS41: =SUMIFS(DT!$BP$8:$BP$595,DT!$C$8:$C$595,AS$5,DT!$D$8:$D$595,$A$1) -> 0 | AT41: =SUMIFS(DT!$BP$8:$BP$595,DT!$C$8:$C$595,AT$5,DT!$D$8:$D$595,$A$1) -> 0 | AU41: =SUMIFS(DT!$BP$8:$BP$595,DT!$C$8:$C$595,AU$5,DT!$D$8:$D$595,$A$1) -> 0 | AV41: =SUMIFS(DT!$BP$8:$BP$595,DT!$C$8:$C$595,AV$5,DT!$D$8:$D$595,$A$1) -> 0 | AW41: =SUMIFS(DT!$BP$8:$BP$595,DT!$C$8:$C$595,AW$5,DT!$D$8:$D$595,$A$1) -> 0 | AX41: =SUMIFS(DT!$BP$8:$BP$595,DT!$C$8:$C$595,AX$5,DT!$D$8:$D$595,$A$1) -> 0 | AY41: =SUMIFS(DT!$BP$8:$BP$595,DT!$C$8:$C$595,AY$5,DT!$D$8:$D$595,$A$1) -> 0 | AZ41: =SUMIFS(DT!$BP$8:$BP$595,DT!$C$8:$C$595,AZ$5,DT!$D$8:$D$595,$A$1) -> 0 | BA41: =SUMIFS(DT!$BP$8:$BP$595,DT!$C$8:$C$595,BA$5,DT!$D$8:$D$595,$A$1) -> 0 | BB41: =SUMIFS(DT!$BP$8:$BP$595,DT!$C$8:$C$595,BB$5,DT!$D$8:$D$595,$A$1) -> 0 | BC41: =SUMIFS(DT!$BP$8:$BP$595,DT!$C$8:$C$595,BC$5,DT!$D$8:$D$595,$A$1) -> 0 | BD41: 0 | BE41: =SUMIFS(DT!$BP$8:$BP$595,DT!$C$8:$C$595,BE$5,DT!$D$8:$D$595,$A$1) -> 0 | BF41: =SUMIFS(DT!$BP$8:$BP$595,DT!$C$8:$C$595,BF$5,DT!$D$8:$D$595,$A$1) -> 0 | BG41: =SUMIFS(DT!$BP$8:$BP$595,DT!$C$8:$C$595,BG$5,DT!$D$8:$D$595,$A$1) -> 0 | BH41: =$D41-AM41 ->  | BI41: =AM$62-$BH41 -> 
A42: 2.11 | B42: Đất danh lam thắng cảnh | C42: DDL | D42: =VLOOKUP(C42,#REF!,MATCH($A$1,maxa,0)+2,0) ->  | E42: 0 | F42: 0 | G42: =SUMIFS(DT!$BR$8:$BR$595,DT!$C$8:$C$595,G$5,DT!$D$8:$D$595,$A$1) -> 0 | H42: =SUMIFS(DT!$BR$8:$BR$595,DT!$C$8:$C$595,H$5,DT!$D$8:$D$595,$A$1) -> 0 | I42: =SUMIFS(DT!$BR$8:$BR$595,DT!$C$8:$C$595,I$5,DT!$D$8:$D$595,$A$1) -> 0 | J42: =SUMIFS(DT!$BR$8:$BR$595,DT!$C$8:$C$595,J$5,DT!$D$8:$D$595,$A$1) -> 0 | K42: =SUMIFS(DT!$BR$8:$BR$595,DT!$C$8:$C$595,K$5,DT!$D$8:$D$595,$A$1) -> 0 | L42: =SUMIFS(DT!$BR$8:$BR$595,DT!$C$8:$C$595,L$5,DT!$D$8:$D$595,$A$1) -> 0 | M42: =SUMIFS(DT!$BR$8:$BR$595,DT!$C$8:$C$595,M$5,DT!$D$8:$D$595,$A$1) -> 0 | N42: =SUMIFS(DT!$BR$8:$BR$595,DT!$C$8:$C$595,N$5,DT!$D$8:$D$595,$A$1) -> 0 | O42: =SUMIFS(DT!$BR$8:$BR$595,DT!$C$8:$C$595,O$5,DT!$D$8:$D$595,$A$1) -> 0 | P42: =SUMIFS(DT!$BR$8:$BR$595,DT!$C$8:$C$595,P$5,DT!$D$8:$D$595,$A$1) -> 0 | Q42: =SUMIFS(DT!$BR$8:$BR$595,DT!$C$8:$C$595,Q$5,DT!$D$8:$D$595,$A$1) -> 0 | S42: =SUMIFS(DT!$BR$8:$BR$595,DT!$C$8:$C$595,S$5,DT!$D$8:$D$595,$A$1) -> 0 | T42: =SUMIFS(DT!$BR$8:$BR$595,DT!$C$8:$C$595,T$5,DT!$D$8:$D$595,$A$1) -> 0 | U42: =SUMIFS(DT!$BR$8:$BR$595,DT!$C$8:$C$595,U$5,DT!$D$8:$D$595,$A$1) -> 0 | V42: =SUMIFS(DT!$BR$8:$BR$595,DT!$C$8:$C$595,V$5,DT!$D$8:$D$595,$A$1) -> 0 | W42: =SUMIFS(DT!$BR$8:$BR$595,DT!$C$8:$C$595,W$5,DT!$D$8:$D$595,$A$1) -> 0 | X42: =SUMIFS(DT!$BR$8:$BR$595,DT!$C$8:$C$595,X$5,DT!$D$8:$D$595,$A$1) -> 0 | Y42: =SUMIFS(DT!$BR$8:$BR$595,DT!$C$8:$C$595,Y$5,DT!$D$8:$D$595,$A$1) -> 0 | Z42: =SUMIFS(DT!$BR$8:$BR$595,DT!$C$8:$C$595,Z$5,DT!$D$8:$D$595,$A$1) -> 0 | AA42: 0 | AB42: =SUMIFS(DT!$BR$8:$BR$595,DT!$C$8:$C$595,AB$5,DT!$D$8:$D$595,$A$1) -> 0 | AC42: =SUMIFS(DT!$BR$8:$BR$595,DT!$C$8:$C$595,AC$5,DT!$D$8:$D$595,$A$1) -> 0 | AD42: =SUMIFS(DT!$BR$8:$BR$595,DT!$C$8:$C$595,AD$5,DT!$D$8:$D$595,$A$1) -> 0 | AE42: =SUMIFS(DT!$BR$8:$BR$595,DT!$C$8:$C$595,AE$5,DT!$D$8:$D$595,$A$1) -> 0 | AF42: =SUMIFS(DT!$BR$8:$BR$595,DT!$C$8:$C$595,AF$5,DT!$D$8:$D$595,$A$1) -> 0 | AG42: =SUMIFS(DT!$BR$8:$BR$595,DT!$C$8:$C$595,AG$5,DT!$D$8:$D$595,$A$1) -> 0 | AH42: =SUMIFS(DT!$BR$8:$BR$595,DT!$C$8:$C$595,AH$5,DT!$D$8:$D$595,$A$1) -> 0 | AI42: =SUMIFS(DT!$BR$8:$BR$595,DT!$C$8:$C$595,AI$5,DT!$D$8:$D$595,$A$1) -> 0 | AJ42: =SUMIFS(DT!$BR$8:$BR$595,DT!$C$8:$C$595,AJ$5,DT!$D$8:$D$595,$A$1) -> 0 | AK42: =SUMIFS(DT!$BR$8:$BR$595,DT!$C$8:$C$595,AK$5,DT!$D$8:$D$595,$A$1) -> 0 | AL42: =SUMIFS(DT!$BR$8:$BR$595,DT!$C$8:$C$595,AL$5,DT!$D$8:$D$595,$A$1) -> 0 | AM42: =SUMIFS(DT!$BR$8:$BR$595,DT!$C$8:$C$595,AM$5,DT!$D$8:$D$595,$A$1) -> 0 | AN42: =$D42-$E42-SUM($S42:$AA42)-SUM($AM42:AM42)-SUM(AO42:$BD42) ->  | AO42: =SUMIFS(DT!$BR$8:$BR$595,DT!$C$8:$C$595,AO$5,DT!$D$8:$D$595,$A$1) -> 0 | AP42: =SUMIFS(DT!$BR$8:$BR$595,DT!$C$8:$C$595,AP$5,DT!$D$8:$D$595,$A$1) -> 0 | AQ42: =SUMIFS(DT!$BR$8:$BR$595,DT!$C$8:$C$595,AQ$5,DT!$D$8:$D$595,$A$1) -> 0 | AR42: =SUMIFS(DT!$BR$8:$BR$595,DT!$C$8:$C$595,AR$5,DT!$D$8:$D$595,$A$1) -> 0 | AS42: =SUMIFS(DT!$BR$8:$BR$595,DT!$C$8:$C$595,AS$5,DT!$D$8:$D$595,$A$1) -> 0 | AT42: =SUMIFS(DT!$BR$8:$BR$595,DT!$C$8:$C$595,AT$5,DT!$D$8:$D$595,$A$1) -> 0 | AU42: =SUMIFS(DT!$BR$8:$BR$595,DT!$C$8:$C$595,AU$5,DT!$D$8:$D$595,$A$1) -> 0 | AV42: =SUMIFS(DT!$BR$8:$BR$595,DT!$C$8:$C$595,AV$5,DT!$D$8:$D$595,$A$1) -> 0 | AW42: =SUMIFS(DT!$BR$8:$BR$595,DT!$C$8:$C$595,AW$5,DT!$D$8:$D$595,$A$1) -> 0 | AX42: =SUMIFS(DT!$BR$8:$BR$595,DT!$C$8:$C$595,AX$5,DT!$D$8:$D$595,$A$1) -> 0 | AY42: =SUMIFS(DT!$BR$8:$BR$595,DT!$C$8:$C$595,AY$5,DT!$D$8:$D$595,$A$1) -> 0 | AZ42: =SUMIFS(DT!$BR$8:$BR$595,DT!$C$8:$C$595,AZ$5,DT!$D$8:$D$595,$A$1) -> 0 | BA42: =SUMIFS(DT!$BR$8:$BR$595,DT!$C$8:$C$595,BA$5,DT!$D$8:$D$595,$A$1) -> 0 | BB42: =SUMIFS(DT!$BR$8:$BR$595,DT!$C$8:$C$595,BB$5,DT!$D$8:$D$595,$A$1) -> 0 | BC42: =SUMIFS(DT!$BR$8:$BR$595,DT!$C$8:$C$595,BC$5,DT!$D$8:$D$595,$A$1) -> 0 | BD42: 0 | BE42: =SUMIFS(DT!$BR$8:$BR$595,DT!$C$8:$C$595,BE$5,DT!$D$8:$D$595,$A$1) -> 0 | BF42: =SUMIFS(DT!$BR$8:$BR$595,DT!$C$8:$C$595,BF$5,DT!$D$8:$D$595,$A$1) -> 0 | BG42: =SUMIFS(DT!$BR$8:$BR$595,DT!$C$8:$C$595,BG$5,DT!$D$8:$D$595,$A$1) -> 0 | BH42: =$D42-AN42 ->  | BI42: =AN$62-$BH42 -> 
A43: 2.12 | B43: Đất bãi thải, xử lý chất thải | C43: DRA | D43: =VLOOKUP(C43,#REF!,MATCH($A$1,maxa,0)+2,0) ->  | E43: 0 | F43: 0 | G43: =SUMIFS(DT!$BT$8:$BT$595,DT!$C$8:$C$595,G$5,DT!$D$8:$D$595,$A$1) -> 0 | H43: =SUMIFS(DT!$BT$8:$BT$595,DT!$C$8:$C$595,H$5,DT!$D$8:$D$595,$A$1) -> 0 | I43: =SUMIFS(DT!$BT$8:$BT$595,DT!$C$8:$C$595,I$5,DT!$D$8:$D$595,$A$1) -> 0 | J43: =SUMIFS(DT!$BT$8:$BT$595,DT!$C$8:$C$595,J$5,DT!$D$8:$D$595,$A$1) -> 0 | K43: =SUMIFS(DT!$BT$8:$BT$595,DT!$C$8:$C$595,K$5,DT!$D$8:$D$595,$A$1) -> 0 | L43: =SUMIFS(DT!$BT$8:$BT$595,DT!$C$8:$C$595,L$5,DT!$D$8:$D$595,$A$1) -> 0 | M43: =SUMIFS(DT!$BT$8:$BT$595,DT!$C$8:$C$595,M$5,DT!$D$8:$D$595,$A$1) -> 0 | N43: =SUMIFS(DT!$BT$8:$BT$595,DT!$C$8:$C$595,N$5,DT!$D$8:$D$595,$A$1) -> 0 | O43: =SUMIFS(DT!$BT$8:$BT$595,DT!$C$8:$C$595,O$5,DT!$D$8:$D$595,$A$1) -> 0 | P43: =SUMIFS(DT!$BT$8:$BT$595,DT!$C$8:$C$595,P$5,DT!$D$8:$D$595,$A$1) -> 0 | Q43: =SUMIFS(DT!$BT$8:$BT$595,DT!$C$8:$C$595,Q$5,DT!$D$8:$D$595,$A$1) -> 0 | S43: =SUMIFS(DT!$BT$8:$BT$595,DT!$C$8:$C$595,S$5,DT!$D$8:$D$595,$A$1) -> 0 | T43: =SUMIFS(DT!$BT$8:$BT$595,DT!$C$8:$C$595,T$5,DT!$D$8:$D$595,$A$1) -> 0 | U43: =SUMIFS(DT!$BT$8:$BT$595,DT!$C$8:$C$595,U$5,DT!$D$8:$D$595,$A$1) -> 0 | V43: =SUMIFS(DT!$BT$8:$BT$595,DT!$C$8:$C$595,V$5,DT!$D$8:$D$595,$A$1) -> 0 | W43: =SUMIFS(DT!$BT$8:$BT$595,DT!$C$8:$C$595,W$5,DT!$D$8:$D$595,$A$1) -> 0 | X43: =SUMIFS(DT!$BT$8:$BT$595,DT!$C$8:$C$595,X$5,DT!$D$8:$D$595,$A$1) -> 0 | Y43: =SUMIFS(DT!$BT$8:$BT$595,DT!$C$8:$C$595,Y$5,DT!$D$8:$D$595,$A$1) -> 0 | Z43: =SUMIFS(DT!$BT$8:$BT$595,DT!$C$8:$C$595,Z$5,DT!$D$8:$D$595,$A$1) -> 0 | AA43: 0 | AB43: =SUMIFS(DT!$BT$8:$BT$595,DT!$C$8:$C$595,AB$5,DT!$D$8:$D$595,$A$1) -> 0 | AC43: =SUMIFS(DT!$BT$8:$BT$595,DT!$C$8:$C$595,AC$5,DT!$D$8:$D$595,$A$1) -> 0 | AD43: =SUMIFS(DT!$BT$8:$BT$595,DT!$C$8:$C$595,AD$5,DT!$D$8:$D$595,$A$1) -> 0 | AE43: =SUMIFS(DT!$BT$8:$BT$595,DT!$C$8:$C$595,AE$5,DT!$D$8:$D$595,$A$1) -> 0 | AF43: =SUMIFS(DT!$BT$8:$BT$595,DT!$C$8:$C$595,AF$5,DT!$D$8:$D$595,$A$1) -> 0 | AG43: =SUMIFS(DT!$BT$8:$BT$595,DT!$C$8:$C$595,AG$5,DT!$D$8:$D$595,$A$1) -> 0 | AH43: =SUMIFS(DT!$BT$8:$BT$595,DT!$C$8:$C$595,AH$5,DT!$D$8:$D$595,$A$1) -> 0 | AI43: =SUMIFS(DT!$BT$8:$BT$595,DT!$C$8:$C$595,AI$5,DT!$D$8:$D$595,$A$1) -> 0 | AJ43: =SUMIFS(DT!$BT$8:$BT$595,DT!$C$8:$C$595,AJ$5,DT!$D$8:$D$595,$A$1) -> 0 | AK43: =SUMIFS(DT!$BT$8:$BT$595,DT!$C$8:$C$595,AK$5,DT!$D$8:$D$595,$A$1) -> 0 | AL43: =SUMIFS(DT!$BT$8:$BT$595,DT!$C$8:$C$595,AL$5,DT!$D$8:$D$595,$A$1) -> 0 | AM43: =SUMIFS(DT!$BT$8:$BT$595,DT!$C$8:$C$595,AM$5,DT!$D$8:$D$595,$A$1) -> 0 | AN43: =SUMIFS(DT!$BT$8:$BT$595,DT!$C$8:$C$595,AN$5,DT!$D$8:$D$595,$A$1) -> 0 | AO43: =$D43-$E43-SUM($S43:$AA43)-SUM($AM43:AN43)-SUM(AP43:$BD43) ->  | AP43: =SUMIFS(DT!$BT$8:$BT$595,DT!$C$8:$C$595,AP$5,DT!$D$8:$D$595,$A$1) -> 0 | AQ43: =SUMIFS(DT!$BT$8:$BT$595,DT!$C$8:$C$595,AQ$5,DT!$D$8:$D$595,$A$1) -> 0 | AR43: =SUMIFS(DT!$BT$8:$BT$595,DT!$C$8:$C$595,AR$5,DT!$D$8:$D$595,$A$1) -> 0 | AS43: =SUMIFS(DT!$BT$8:$BT$595,DT!$C$8:$C$595,AS$5,DT!$D$8:$D$595,$A$1) -> 0 | AT43: =SUMIFS(DT!$BT$8:$BT$595,DT!$C$8:$C$595,AT$5,DT!$D$8:$D$595,$A$1) -> 0 | AU43: =SUMIFS(DT!$BT$8:$BT$595,DT!$C$8:$C$595,AU$5,DT!$D$8:$D$595,$A$1) -> 0 | AV43: =SUMIFS(DT!$BT$8:$BT$595,DT!$C$8:$C$595,AV$5,DT!$D$8:$D$595,$A$1) -> 0 | AW43: =SUMIFS(DT!$BT$8:$BT$595,DT!$C$8:$C$595,AW$5,DT!$D$8:$D$595,$A$1) -> 0 | AX43: =SUMIFS(DT!$BT$8:$BT$595,DT!$C$8:$C$595,AX$5,DT!$D$8:$D$595,$A$1) -> 0 | AY43: =SUMIFS(DT!$BT$8:$BT$595,DT!$C$8:$C$595,AY$5,DT!$D$8:$D$595,$A$1) -> 0 | AZ43: =SUMIFS(DT!$BT$8:$BT$595,DT!$C$8:$C$595,AZ$5,DT!$D$8:$D$595,$A$1) -> 0 | BA43: =SUMIFS(DT!$BT$8:$BT$595,DT!$C$8:$C$595,BA$5,DT!$D$8:$D$595,$A$1) -> 0 | BB43: =SUMIFS(DT!$BT$8:$BT$595,DT!$C$8:$C$595,BB$5,DT!$D$8:$D$595,$A$1) -> 0 | BC43: =SUMIFS(DT!$BT$8:$BT$595,DT!$C$8:$C$595,BC$5,DT!$D$8:$D$595,$A$1) -> 0 | BD43: 0 | BE43: =SUMIFS(DT!$BT$8:$BT$595,DT!$C$8:$C$595,BE$5,DT!$D$8:$D$595,$A$1) -> 0 | BF43: =SUMIFS(DT!$BT$8:$BT$595,DT!$C$8:$C$595,BF$5,DT!$D$8:$D$595,$A$1) -> 0 | BG43: =SUMIFS(DT!$BT$8:$BT$595,DT!$C$8:$C$595,BG$5,DT!$D$8:$D$595,$A$1) -> 0 | BH43: =$D43-AO43 ->  | BI43: =AO$62-$BH43 -> 
A44: 2.14 | B44: Đất ở tại nông thôn | C44: ONT | D44: =VLOOKUP(C44,#REF!,MATCH($A$1,maxa,0)+2,0) ->  | E44: 0 | F44: 0 | G44: =SUMIFS(DT!$BV$8:$BV$595,DT!$C$8:$C$595,G$5,DT!$D$8:$D$595,$A$1) -> 0 | H44: =SUMIFS(DT!$BV$8:$BV$595,DT!$C$8:$C$595,H$5,DT!$D$8:$D$595,$A$1) -> 0 | I44: =SUMIFS(DT!$BV$8:$BV$595,DT!$C$8:$C$595,I$5,DT!$D$8:$D$595,$A$1) -> 0 | J44: =SUMIFS(DT!$BV$8:$BV$595,DT!$C$8:$C$595,J$5,DT!$D$8:$D$595,$A$1) -> 0 | K44: =SUMIFS(DT!$BV$8:$BV$595,DT!$C$8:$C$595,K$5,DT!$D$8:$D$595,$A$1) -> 0 | L44: =SUMIFS(DT!$BV$8:$BV$595,DT!$C$8:$C$595,L$5,DT!$D$8:$D$595,$A$1) -> 0 | M44: =SUMIFS(DT!$BV$8:$BV$595,DT!$C$8:$C$595,M$5,DT!$D$8:$D$595,$A$1) -> 0 | N44: =SUMIFS(DT!$BV$8:$BV$595,DT!$C$8:$C$595,N$5,DT!$D$8:$D$595,$A$1) -> 0 | O44: =SUMIFS(DT!$BV$8:$BV$595,DT!$C$8:$C$595,O$5,DT!$D$8:$D$595,$A$1) -> 0 | P44: =SUMIFS(DT!$BV$8:$BV$595,DT!$C$8:$C$595,P$5,DT!$D$8:$D$595,$A$1) -> 0 | Q44: =SUMIFS(DT!$BV$8:$BV$595,DT!$C$8:$C$595,Q$5,DT!$D$8:$D$595,$A$1) -> 0 | S44: =SUMIFS(DT!$BV$8:$BV$595,DT!$C$8:$C$595,S$5,DT!$D$8:$D$595,$A$1) -> 0 | T44: =SUMIFS(DT!$BV$8:$BV$595,DT!$C$8:$C$595,T$5,DT!$D$8:$D$595,$A$1) -> 0 | U44: =SUMIFS(DT!$BV$8:$BV$595,DT!$C$8:$C$595,U$5,DT!$D$8:$D$595,$A$1) -> 0 | V44: =SUMIFS(DT!$BV$8:$BV$595,DT!$C$8:$C$595,V$5,DT!$D$8:$D$595,$A$1) -> 0 | W44: =SUMIFS(DT!$BV$8:$BV$595,DT!$C$8:$C$595,W$5,DT!$D$8:$D$595,$A$1) -> 0 | X44: =SUMIFS(DT!$BV$8:$BV$595,DT!$C$8:$C$595,X$5,DT!$D$8:$D$595,$A$1) -> 0 | Y44: =SUMIFS(DT!$BV$8:$BV$595,DT!$C$8:$C$595,Y$5,DT!$D$8:$D$595,$A$1) -> 0 | Z44: =SUMIFS(DT!$BV$8:$BV$595,DT!$C$8:$C$595,Z$5,DT!$D$8:$D$595,$A$1) -> 0 | AA44: 0 | AB44: =SUMIFS(DT!$BV$8:$BV$595,DT!$C$8:$C$595,AB$5,DT!$D$8:$D$595,$A$1) -> 0 | AC44: =SUMIFS(DT!$BV$8:$BV$595,DT!$C$8:$C$595,AC$5,DT!$D$8:$D$595,$A$1) -> 0 | AD44: =SUMIFS(DT!$BV$8:$BV$595,DT!$C$8:$C$595,AD$5,DT!$D$8:$D$595,$A$1) -> 0 | AE44: =SUMIFS(DT!$BV$8:$BV$595,DT!$C$8:$C$595,AE$5,DT!$D$8:$D$595,$A$1) -> 0 | AF44: =SUMIFS(DT!$BV$8:$BV$595,DT!$C$8:$C$595,AF$5,DT!$D$8:$D$595,$A$1) -> 0 | AG44: =SUMIFS(DT!$BV$8:$BV$595,DT!$C$8:$C$595,AG$5,DT!$D$8:$D$595,$A$1) -> 0 | AH44: =SUMIFS(DT!$BV$8:$BV$595,DT!$C$8:$C$595,AH$5,DT!$D$8:$D$595,$A$1) -> 0 | AI44: =SUMIFS(DT!$BV$8:$BV$595,DT!$C$8:$C$595,AI$5,DT!$D$8:$D$595,$A$1) -> 0 | AJ44: =SUMIFS(DT!$BV$8:$BV$595,DT!$C$8:$C$595,AJ$5,DT!$D$8:$D$595,$A$1) -> 0 | AK44: =SUMIFS(DT!$BV$8:$BV$595,DT!$C$8:$C$595,AK$5,DT!$D$8:$D$595,$A$1) -> 0 | AL44: =SUMIFS(DT!$BV$8:$BV$595,DT!$C$8:$C$595,AL$5,DT!$D$8:$D$595,$A$1) -> 0 | AM44: =SUMIFS(DT!$BV$8:$BV$595,DT!$C$8:$C$595,AM$5,DT!$D$8:$D$595,$A$1) -> 0 | AN44: =SUMIFS(DT!$BV$8:$BV$595,DT!$C$8:$C$595,AN$5,DT!$D$8:$D$595,$A$1) -> 0 | AO44: =SUMIFS(DT!$BV$8:$BV$595,DT!$C$8:$C$595,AO$5,DT!$D$8:$D$595,$A$1) -> 0 | AP44: =$D44-$E44-SUM($S44:$AA44)-SUM($AM44:AO44)-SUM(AQ44:$BD44) ->  | AQ44: =SUMIFS(DT!$BV$8:$BV$595,DT!$C$8:$C$595,AQ$5,DT!$D$8:$D$595,$A$1) -> 0 | AR44: =SUMIFS(DT!$BV$8:$BV$595,DT!$C$8:$C$595,AR$5,DT!$D$8:$D$595,$A$1) -> 0 | AS44: =SUMIFS(DT!$BV$8:$BV$595,DT!$C$8:$C$595,AS$5,DT!$D$8:$D$595,$A$1) -> 0 | AT44: =SUMIFS(DT!$BV$8:$BV$595,DT!$C$8:$C$595,AT$5,DT!$D$8:$D$595,$A$1) -> 0 | AU44: =SUMIFS(DT!$BV$8:$BV$595,DT!$C$8:$C$595,AU$5,DT!$D$8:$D$595,$A$1) -> 0 | AV44: =SUMIFS(DT!$BV$8:$BV$595,DT!$C$8:$C$595,AV$5,DT!$D$8:$D$595,$A$1) -> 0 | AW44: =SUMIFS(DT!$BV$8:$BV$595,DT!$C$8:$C$595,AW$5,DT!$D$8:$D$595,$A$1) -> 0 | AX44: =SUMIFS(DT!$BV$8:$BV$595,DT!$C$8:$C$595,AX$5,DT!$D$8:$D$595,$A$1) -> 0 | AY44: =SUMIFS(DT!$BV$8:$BV$595,DT!$C$8:$C$595,AY$5,DT!$D$8:$D$595,$A$1) -> 0 | AZ44: =SUMIFS(DT!$BV$8:$BV$595,DT!$C$8:$C$595,AZ$5,DT!$D$8:$D$595,$A$1) -> 0 | BA44: =SUMIFS(DT!$BV$8:$BV$595,DT!$C$8:$C$595,BA$5,DT!$D$8:$D$595,$A$1) -> 0 | BB44: =SUMIFS(DT!$BV$8:$BV$595,DT!$C$8:$C$595,BB$5,DT!$D$8:$D$595,$A$1) -> 0 | BC44: =SUMIFS(DT!$BV$8:$BV$595,DT!$C$8:$C$595,BC$5,DT!$D$8:$D$595,$A$1) -> 0 | BD44: 0 | BE44: =SUMIFS(DT!$BV$8:$BV$595,DT!$C$8:$C$595,BE$5,DT!$D$8:$D$595,$A$1) -> 0 | BF44: =SUMIFS(DT!$BV$8:$BV$595,DT!$C$8:$C$595,BF$5,DT!$D$8:$D$595,$A$1) -> 0 | BG44: =SUMIFS(DT!$BV$8:$BV$595,DT!$C$8:$C$595,BG$5,DT!$D$8:$D$595,$A$1) -> 0 | BH44: =$D44-AP44 ->  | BI44: =AP$62-$BH44 -> 
A45: 2.15 | B45: Đất ở tại đô thị | C45: ODT | D45: =VLOOKUP(C45,#REF!,MATCH($A$1,maxa,0)+2,0) ->  | E45: 0 | F45: 0 | G45: =SUMIFS(DT!$BX$8:$BX$595,DT!$C$8:$C$595,G$5,DT!$D$8:$D$595,$A$1) -> 0 | H45: =SUMIFS(DT!$BX$8:$BX$595,DT!$C$8:$C$595,H$5,DT!$D$8:$D$595,$A$1) -> 0 | I45: =SUMIFS(DT!$BX$8:$BX$595,DT!$C$8:$C$595,I$5,DT!$D$8:$D$595,$A$1) -> 0 | J45: =SUMIFS(DT!$BX$8:$BX$595,DT!$C$8:$C$595,J$5,DT!$D$8:$D$595,$A$1) -> 0 | K45: =SUMIFS(DT!$BX$8:$BX$595,DT!$C$8:$C$595,K$5,DT!$D$8:$D$595,$A$1) -> 0 | L45: =SUMIFS(DT!$BX$8:$BX$595,DT!$C$8:$C$595,L$5,DT!$D$8:$D$595,$A$1) -> 0 | M45: =SUMIFS(DT!$BX$8:$BX$595,DT!$C$8:$C$595,M$5,DT!$D$8:$D$595,$A$1) -> 0 | N45: =SUMIFS(DT!$BX$8:$BX$595,DT!$C$8:$C$595,N$5,DT!$D$8:$D$595,$A$1) -> 0 | O45: =SUMIFS(DT!$BX$8:$BX$595,DT!$C$8:$C$595,O$5,DT!$D$8:$D$595,$A$1) -> 0 | P45: =SUMIFS(DT!$BX$8:$BX$595,DT!$C$8:$C$595,P$5,DT!$D$8:$D$595,$A$1) -> 0 | Q45: =SUMIFS(DT!$BX$8:$BX$595,DT!$C$8:$C$595,Q$5,DT!$D$8:$D$595,$A$1) -> 0 | S45: =SUMIFS(DT!$BX$8:$BX$595,DT!$C$8:$C$595,S$5,DT!$D$8:$D$595,$A$1) -> 0 | T45: =SUMIFS(DT!$BX$8:$BX$595,DT!$C$8:$C$595,T$5,DT!$D$8:$D$595,$A$1) -> 0 | U45: =SUMIFS(DT!$BX$8:$BX$595,DT!$C$8:$C$595,U$5,DT!$D$8:$D$595,$A$1) -> 0 | V45: =SUMIFS(DT!$BX$8:$BX$595,DT!$C$8:$C$595,V$5,DT!$D$8:$D$595,$A$1) -> 0 | W45: =SUMIFS(DT!$BX$8:$BX$595,DT!$C$8:$C$595,W$5,DT!$D$8:$D$595,$A$1) -> 0 | X45: =SUMIFS(DT!$BX$8:$BX$595,DT!$C$8:$C$595,X$5,DT!$D$8:$D$595,$A$1) -> 0 | Y45: =SUMIFS(DT!$BX$8:$BX$595,DT!$C$8:$C$595,Y$5,DT!$D$8:$D$595,$A$1) -> 0 | Z45: =SUMIFS(DT!$BX$8:$BX$595,DT!$C$8:$C$595,Z$5,DT!$D$8:$D$595,$A$1) -> 0 | AA45: 0 | AB45: =SUMIFS(DT!$BX$8:$BX$595,DT!$C$8:$C$595,AB$5,DT!$D$8:$D$595,$A$1) -> 0 | AC45: =SUMIFS(DT!$BX$8:$BX$595,DT!$C$8:$C$595,AC$5,DT!$D$8:$D$595,$A$1) -> 0 | AD45: =SUMIFS(DT!$BX$8:$BX$595,DT!$C$8:$C$595,AD$5,DT!$D$8:$D$595,$A$1) -> 0 | AE45: =SUMIFS(DT!$BX$8:$BX$595,DT!$C$8:$C$595,AE$5,DT!$D$8:$D$595,$A$1) -> 0 | AF45: =SUMIFS(DT!$BX$8:$BX$595,DT!$C$8:$C$595,AF$5,DT!$D$8:$D$595,$A$1) -> 0 | AG45: =SUMIFS(DT!$BX$8:$BX$595,DT!$C$8:$C$595,AG$5,DT!$D$8:$D$595,$A$1) -> 0 | AH45: =SUMIFS(DT!$BX$8:$BX$595,DT!$C$8:$C$595,AH$5,DT!$D$8:$D$595,$A$1) -> 0 | AI45: =SUMIFS(DT!$BX$8:$BX$595,DT!$C$8:$C$595,AI$5,DT!$D$8:$D$595,$A$1) -> 0 | AJ45: =SUMIFS(DT!$BX$8:$BX$595,DT!$C$8:$C$595,AJ$5,DT!$D$8:$D$595,$A$1) -> 0 | AK45: =SUMIFS(DT!$BX$8:$BX$595,DT!$C$8:$C$595,AK$5,DT!$D$8:$D$595,$A$1) -> 0 | AL45: =SUMIFS(DT!$BX$8:$BX$595,DT!$C$8:$C$595,AL$5,DT!$D$8:$D$595,$A$1) -> 0 | AM45: =SUMIFS(DT!$BX$8:$BX$595,DT!$C$8:$C$595,AM$5,DT!$D$8:$D$595,$A$1) -> 0 | AN45: =SUMIFS(DT!$BX$8:$BX$595,DT!$C$8:$C$595,AN$5,DT!$D$8:$D$595,$A$1) -> 0 | AO45: =SUMIFS(DT!$BX$8:$BX$595,DT!$C$8:$C$595,AO$5,DT!$D$8:$D$595,$A$1) -> 0 | AP45: =SUMIFS(DT!$BX$8:$BX$595,DT!$C$8:$C$595,AP$5,DT!$D$8:$D$595,$A$1) -> 0 | AQ45: =$D45-$E45-SUM($S45:$AA45)-SUM($AM45:AP45)-SUM(AR45:$BD45) ->  | AR45: =SUMIFS(DT!$BX$8:$BX$595,DT!$C$8:$C$595,AR$5,DT!$D$8:$D$595,$A$1) -> 0 | AS45: =SUMIFS(DT!$BX$8:$BX$595,DT!$C$8:$C$595,AS$5,DT!$D$8:$D$595,$A$1) -> 0 | AT45: =SUMIFS(DT!$BX$8:$BX$595,DT!$C$8:$C$595,AT$5,DT!$D$8:$D$595,$A$1) -> 0 | AU45: =SUMIFS(DT!$BX$8:$BX$595,DT!$C$8:$C$595,AU$5,DT!$D$8:$D$595,$A$1) -> 0 | AV45: =SUMIFS(DT!$BX$8:$BX$595,DT!$C$8:$C$595,AV$5,DT!$D$8:$D$595,$A$1) -> 0 | AW45: =SUMIFS(DT!$BX$8:$BX$595,DT!$C$8:$C$595,AW$5,DT!$D$8:$D$595,$A$1) -> 0 | AX45: =SUMIFS(DT!$BX$8:$BX$595,DT!$C$8:$C$595,AX$5,DT!$D$8:$D$595,$A$1) -> 0 | AY45: =SUMIFS(DT!$BX$8:$BX$595,DT!$C$8:$C$595,AY$5,DT!$D$8:$D$595,$A$1) -> 0 | AZ45: =SUMIFS(DT!$BX$8:$BX$595,DT!$C$8:$C$595,AZ$5,DT!$D$8:$D$595,$A$1) -> 0 | BA45: =SUMIFS(DT!$BX$8:$BX$595,DT!$C$8:$C$595,BA$5,DT!$D$8:$D$595,$A$1) -> 0 | BB45: =SUMIFS(DT!$BX$8:$BX$595,DT!$C$8:$C$595,BB$5,DT!$D$8:$D$595,$A$1) -> 0 | BC45: =SUMIFS(DT!$BX$8:$BX$595,DT!$C$8:$C$595,BC$5,DT!$D$8:$D$595,$A$1) -> 0 | BD45: 0 | BE45: =SUMIFS(DT!$BX$8:$BX$595,DT!$C$8:$C$595,BE$5,DT!$D$8:$D$595,$A$1) -> 0 | BF45: =SUMIFS(DT!$BX$8:$BX$595,DT!$C$8:$C$595,BF$5,DT!$D$8:$D$595,$A$1) -> 0 | BG45: =SUMIFS(DT!$BX$8:$BX$595,DT!$C$8:$C$595,BG$5,DT!$D$8:$D$595,$A$1) -> 0 | BH45: =$D45-AQ45 ->  | BI45: =AQ$62-$BH45 -> 
A46: 2.16 | B46: Đất xây dựng trụ sở cơ quan | C46: TSC | D46: =VLOOKUP(C46,#REF!,MATCH($A$1,maxa,0)+2,0) ->  | E46: 0 | F46: 0 | G46: =SUMIFS(DT!$BZ$8:$BZ$595,DT!$C$8:$C$595,G$5,DT!$D$8:$D$595,$A$1) -> 0 | H46: =SUMIFS(DT!$BZ$8:$BZ$595,DT!$C$8:$C$595,H$5,DT!$D$8:$D$595,$A$1) -> 0 | I46: =SUMIFS(DT!$BZ$8:$BZ$595,DT!$C$8:$C$595,I$5,DT!$D$8:$D$595,$A$1) -> 0 | J46: =SUMIFS(DT!$BZ$8:$BZ$595,DT!$C$8:$C$595,J$5,DT!$D$8:$D$595,$A$1) -> 0 | K46: =SUMIFS(DT!$BZ$8:$BZ$595,DT!$C$8:$C$595,K$5,DT!$D$8:$D$595,$A$1) -> 0 | L46: =SUMIFS(DT!$BZ$8:$BZ$595,DT!$C$8:$C$595,L$5,DT!$D$8:$D$595,$A$1) -> 0 | M46: =SUMIFS(DT!$BZ$8:$BZ$595,DT!$C$8:$C$595,M$5,DT!$D$8:$D$595,$A$1) -> 0 | N46: =SUMIFS(DT!$BZ$8:$BZ$595,DT!$C$8:$C$595,N$5,DT!$D$8:$D$595,$A$1) -> 0 | O46: =SUMIFS(DT!$BZ$8:$BZ$595,DT!$C$8:$C$595,O$5,DT!$D$8:$D$595,$A$1) -> 0 | P46: =SUMIFS(DT!$BZ$8:$BZ$595,DT!$C$8:$C$595,P$5,DT!$D$8:$D$595,$A$1) -> 0 | Q46: =SUMIFS(DT!$BZ$8:$BZ$595,DT!$C$8:$C$595,Q$5,DT!$D$8:$D$595,$A$1) -> 0 | S46: =SUMIFS(DT!$BZ$8:$BZ$595,DT!$C$8:$C$595,S$5,DT!$D$8:$D$595,$A$1) -> 0 | T46: =SUMIFS(DT!$BZ$8:$BZ$595,DT!$C$8:$C$595,T$5,DT!$D$8:$D$595,$A$1) -> 0 | U46: =SUMIFS(DT!$BZ$8:$BZ$595,DT!$C$8:$C$595,U$5,DT!$D$8:$D$595,$A$1) -> 0 | V46: =SUMIFS(DT!$BZ$8:$BZ$595,DT!$C$8:$C$595,V$5,DT!$D$8:$D$595,$A$1) -> 0 | W46: =SUMIFS(DT!$BZ$8:$BZ$595,DT!$C$8:$C$595,W$5,DT!$D$8:$D$595,$A$1) -> 0 | X46: =SUMIFS(DT!$BZ$8:$BZ$595,DT!$C$8:$C$595,X$5,DT!$D$8:$D$595,$A$1) -> 0 | Y46: =SUMIFS(DT!$BZ$8:$BZ$595,DT!$C$8:$C$595,Y$5,DT!$D$8:$D$595,$A$1) -> 0 | Z46: =SUMIFS(DT!$BZ$8:$BZ$595,DT!$C$8:$C$595,Z$5,DT!$D$8:$D$595,$A$1) -> 0 | AA46: 0 | AB46: =SUMIFS(DT!$BZ$8:$BZ$595,DT!$C$8:$C$595,AB$5,DT!$D$8:$D$595,$A$1) -> 0 | AC46: =SUMIFS(DT!$BZ$8:$BZ$595,DT!$C$8:$C$595,AC$5,DT!$D$8:$D$595,$A$1) -> 0 | AD46: =SUMIFS(DT!$BZ$8:$BZ$595,DT!$C$8:$C$595,AD$5,DT!$D$8:$D$595,$A$1) -> 0 | AE46: =SUMIFS(DT!$BZ$8:$BZ$595,DT!$C$8:$C$595,AE$5,DT!$D$8:$D$595,$A$1) -> 0 | AF46: =SUMIFS(DT!$BZ$8:$BZ$595,DT!$C$8:$C$595,AF$5,DT!$D$8:$D$595,$A$1) -> 0 | AG46: =SUMIFS(DT!$BZ$8:$BZ$595,DT!$C$8:$C$595,AG$5,DT!$D$8:$D$595,$A$1) -> 0 | AH46: =SUMIFS(DT!$BZ$8:$BZ$595,DT!$C$8:$C$595,AH$5,DT!$D$8:$D$595,$A$1) -> 0 | AI46: =SUMIFS(DT!$BZ$8:$BZ$595,DT!$C$8:$C$595,AI$5,DT!$D$8:$D$595,$A$1) -> 0 | AJ46: =SUMIFS(DT!$BZ$8:$BZ$595,DT!$C$8:$C$595,AJ$5,DT!$D$8:$D$595,$A$1) -> 0 | AK46: =SUMIFS(DT!$BZ$8:$BZ$595,DT!$C$8:$C$595,AK$5,DT!$D$8:$D$595,$A$1) -> 0 | AL46: =SUMIFS(DT!$BZ$8:$BZ$595,DT!$C$8:$C$595,AL$5,DT!$D$8:$D$595,$A$1) -> 0 | AM46: =SUMIFS(DT!$BZ$8:$BZ$595,DT!$C$8:$C$595,AM$5,DT!$D$8:$D$595,$A$1) -> 0 | AN46: =SUMIFS(DT!$BZ$8:$BZ$595,DT!$C$8:$C$595,AN$5,DT!$D$8:$D$595,$A$1) -> 0 | AO46: =SUMIFS(DT!$BZ$8:$BZ$595,DT!$C$8:$C$595,AO$5,DT!$D$8:$D$595,$A$1) -> 0 | AP46: =SUMIFS(DT!$BZ$8:$BZ$595,DT!$C$8:$C$595,AP$5,DT!$D$8:$D$595,$A$1) -> 0 | AQ46: =SUMIFS(DT!$BZ$8:$BZ$595,DT!$C$8:$C$595,AQ$5,DT!$D$8:$D$595,$A$1) -> 0 | AR46: =$D46-$E46-SUM($S46:$AA46)-SUM($AM46:AQ46)-SUM(AS46:$BD46) ->  | AS46: =SUMIFS(DT!$BZ$8:$BZ$595,DT!$C$8:$C$595,AS$5,DT!$D$8:$D$595,$A$1) -> 0 | AT46: =SUMIFS(DT!$BZ$8:$BZ$595,DT!$C$8:$C$595,AT$5,DT!$D$8:$D$595,$A$1) -> 0 | AU46: =SUMIFS(DT!$BZ$8:$BZ$595,DT!$C$8:$C$595,AU$5,DT!$D$8:$D$595,$A$1) -> 0 | AV46: =SUMIFS(DT!$BZ$8:$BZ$595,DT!$C$8:$C$595,AV$5,DT!$D$8:$D$595,$A$1) -> 0 | AW46: =SUMIFS(DT!$BZ$8:$BZ$595,DT!$C$8:$C$595,AW$5,DT!$D$8:$D$595,$A$1) -> 0 | AX46: =SUMIFS(DT!$BZ$8:$BZ$595,DT!$C$8:$C$595,AX$5,DT!$D$8:$D$595,$A$1) -> 0 | AY46: =SUMIFS(DT!$BZ$8:$BZ$595,DT!$C$8:$C$595,AY$5,DT!$D$8:$D$595,$A$1) -> 0 | AZ46: =SUMIFS(DT!$BZ$8:$BZ$595,DT!$C$8:$C$595,AZ$5,DT!$D$8:$D$595,$A$1) -> 0 | BA46: =SUMIFS(DT!$BZ$8:$BZ$595,DT!$C$8:$C$595,BA$5,DT!$D$8:$D$595,$A$1) -> 0 | BB46: =SUMIFS(DT!$BZ$8:$BZ$595,DT!$C$8:$C$595,BB$5,DT!$D$8:$D$595,$A$1) -> 0 | BC46: =SUMIFS(DT!$BZ$8:$BZ$595,DT!$C$8:$C$595,BC$5,DT!$D$8:$D$595,$A$1) -> 0 | BD46: 0 | BE46: =SUMIFS(DT!$BZ$8:$BZ$595,DT!$C$8:$C$595,BE$5,DT!$D$8:$D$595,$A$1) -> 0 | BF46: =SUMIFS(DT!$BZ$8:$BZ$595,DT!$C$8:$C$595,BF$5,DT!$D$8:$D$595,$A$1) -> 0 | BG46: =SUMIFS(DT!$BZ$8:$BZ$595,DT!$C$8:$C$595,BG$5,DT!$D$8:$D$595,$A$1) -> 0 | BH46: =$D46-AR46 ->  | BI46: =AR$62-$BH46 -> 
A47: 2.17 | B47: Đất xây dựng trụ sở của tổ chức sự nghiệp | C47: DTS | D47: =VLOOKUP(C47,#REF!,MATCH($A$1,maxa,0)+2,0) ->  | E47: 0 | F47: 0 | G47: =SUMIFS(DT!$CB$8:$CB$595,DT!$C$8:$C$595,G$5,DT!$D$8:$D$595,$A$1) -> 0 | H47: =SUMIFS(DT!$CB$8:$CB$595,DT!$C$8:$C$595,H$5,DT!$D$8:$D$595,$A$1) -> 0 | I47: =SUMIFS(DT!$CB$8:$CB$595,DT!$C$8:$C$595,I$5,DT!$D$8:$D$595,$A$1) -> 0 | J47: =SUMIFS(DT!$CB$8:$CB$595,DT!$C$8:$C$595,J$5,DT!$D$8:$D$595,$A$1) -> 0 | K47: =SUMIFS(DT!$CB$8:$CB$595,DT!$C$8:$C$595,K$5,DT!$D$8:$D$595,$A$1) -> 0 | L47: =SUMIFS(DT!$CB$8:$CB$595,DT!$C$8:$C$595,L$5,DT!$D$8:$D$595,$A$1) -> 0 | M47: =SUMIFS(DT!$CB$8:$CB$595,DT!$C$8:$C$595,M$5,DT!$D$8:$D$595,$A$1) -> 0 | N47: =SUMIFS(DT!$CB$8:$CB$595,DT!$C$8:$C$595,N$5,DT!$D$8:$D$595,$A$1) -> 0 | O47: =SUMIFS(DT!$CB$8:$CB$595,DT!$C$8:$C$595,O$5,DT!$D$8:$D$595,$A$1) -> 0 | P47: =SUMIFS(DT!$CB$8:$CB$595,DT!$C$8:$C$595,P$5,DT!$D$8:$D$595,$A$1) -> 0 | Q47: =SUMIFS(DT!$CB$8:$CB$595,DT!$C$8:$C$595,Q$5,DT!$D$8:$D$595,$A$1) -> 0 | S47: =SUMIFS(DT!$CB$8:$CB$595,DT!$C$8:$C$595,S$5,DT!$D$8:$D$595,$A$1) -> 0 | T47: =SUMIFS(DT!$CB$8:$CB$595,DT!$C$8:$C$595,T$5,DT!$D$8:$D$595,$A$1) -> 0 | U47: =SUMIFS(DT!$CB$8:$CB$595,DT!$C$8:$C$595,U$5,DT!$D$8:$D$595,$A$1) -> 0 | V47: =SUMIFS(DT!$CB$8:$CB$595,DT!$C$8:$C$595,V$5,DT!$D$8:$D$595,$A$1) -> 0 | W47: =SUMIFS(DT!$CB$8:$CB$595,DT!$C$8:$C$595,W$5,DT!$D$8:$D$595,$A$1) -> 0 | X47: =SUMIFS(DT!$CB$8:$CB$595,DT!$C$8:$C$595,X$5,DT!$D$8:$D$595,$A$1) -> 0 | Y47: =SUMIFS(DT!$CB$8:$CB$595,DT!$C$8:$C$595,Y$5,DT!$D$8:$D$595,$A$1) -> 0 | Z47: =SUMIFS(DT!$CB$8:$CB$595,DT!$C$8:$C$595,Z$5,DT!$D$8:$D$595,$A$1) -> 0 | AA47: 0 | AB47: =SUMIFS(DT!$CB$8:$CB$595,DT!$C$8:$C$595,AB$5,DT!$D$8:$D$595,$A$1) -> 0 | AC47: =SUMIFS(DT!$CB$8:$CB$595,DT!$C$8:$C$595,AC$5,DT!$D$8:$D$595,$A$1) -> 0 | AD47: =SUMIFS(DT!$CB$8:$CB$595,DT!$C$8:$C$595,AD$5,DT!$D$8:$D$595,$A$1) -> 0 | AE47: =SUMIFS(DT!$CB$8:$CB$595,DT!$C$8:$C$595,AE$5,DT!$D$8:$D$595,$A$1) -> 0 | AF47: =SUMIFS(DT!$CB$8:$CB$595,DT!$C$8:$C$595,AF$5,DT!$D$8:$D$595,$A$1) -> 0 | AG47: =SUMIFS(DT!$CB$8:$CB$595,DT!$C$8:$C$595,AG$5,DT!$D$8:$D$595,$A$1) -> 0 | AH47: =SUMIFS(DT!$CB$8:$CB$595,DT!$C$8:$C$595,AH$5,DT!$D$8:$D$595,$A$1) -> 0 | AI47: =SUMIFS(DT!$CB$8:$CB$595,DT!$C$8:$C$595,AI$5,DT!$D$8:$D$595,$A$1) -> 0 | AJ47: =SUMIFS(DT!$CB$8:$CB$595,DT!$C$8:$C$595,AJ$5,DT!$D$8:$D$595,$A$1) -> 0 | AK47: =SUMIFS(DT!$CB$8:$CB$595,DT!$C$8:$C$595,AK$5,DT!$D$8:$D$595,$A$1) -> 0 | AL47: =SUMIFS(DT!$CB$8:$CB$595,DT!$C$8:$C$595,AL$5,DT!$D$8:$D$595,$A$1) -> 0 | AM47: =SUMIFS(DT!$CB$8:$CB$595,DT!$C$8:$C$595,AM$5,DT!$D$8:$D$595,$A$1) -> 0 | AN47: =SUMIFS(DT!$CB$8:$CB$595,DT!$C$8:$C$595,AN$5,DT!$D$8:$D$595,$A$1) -> 0 | AO47: =SUMIFS(DT!$CB$8:$CB$595,DT!$C$8:$C$595,AO$5,DT!$D$8:$D$595,$A$1) -> 0 | AP47: =SUMIFS(DT!$CB$8:$CB$595,DT!$C$8:$C$595,AP$5,DT!$D$8:$D$595,$A$1) -> 0 | AQ47: =SUMIFS(DT!$CB$8:$CB$595,DT!$C$8:$C$595,AQ$5,DT!$D$8:$D$595,$A$1) -> 0 | AR47: =SUMIFS(DT!$CB$8:$CB$595,DT!$C$8:$C$595,AR$5,DT!$D$8:$D$595,$A$1) -> 0 | AS47: =$D47-$E47-SUM($S47:$AA47)-SUM($AM47:AR47)-SUM(AT47:$BD47) ->  | AT47: =SUMIFS(DT!$CB$8:$CB$595,DT!$C$8:$C$595,AT$5,DT!$D$8:$D$595,$A$1) -> 0 | AU47: =SUMIFS(DT!$CB$8:$CB$595,DT!$C$8:$C$595,AU$5,DT!$D$8:$D$595,$A$1) -> 0 | AV47: =SUMIFS(DT!$CB$8:$CB$595,DT!$C$8:$C$595,AV$5,DT!$D$8:$D$595,$A$1) -> 0 | AW47: =SUMIFS(DT!$CB$8:$CB$595,DT!$C$8:$C$595,AW$5,DT!$D$8:$D$595,$A$1) -> 0 | AX47: =SUMIFS(DT!$CB$8:$CB$595,DT!$C$8:$C$595,AX$5,DT!$D$8:$D$595,$A$1) -> 0 | AY47: =SUMIFS(DT!$CB$8:$CB$595,DT!$C$8:$C$595,AY$5,DT!$D$8:$D$595,$A$1) -> 0 | AZ47: =SUMIFS(DT!$CB$8:$CB$595,DT!$C$8:$C$595,AZ$5,DT!$D$8:$D$595,$A$1) -> 0 | BA47: =SUMIFS(DT!$CB$8:$CB$595,DT!$C$8:$C$595,BA$5,DT!$D$8:$D$595,$A$1) -> 0 | BB47: =SUMIFS(DT!$CB$8:$CB$595,DT!$C$8:$C$595,BB$5,DT!$D$8:$D$595,$A$1) -> 0 | BC47: =SUMIFS(DT!$CB$8:$CB$595,DT!$C$8:$C$595,BC$5,DT!$D$8:$D$595,$A$1) -> 0 | BD47: 0 | BE47: =SUMIFS(DT!$CB$8:$CB$595,DT!$C$8:$C$595,BE$5,DT!$D$8:$D$595,$A$1) -> 0 | BF47: =SUMIFS(DT!$CB$8:$CB$595,DT!$C$8:$C$595,BF$5,DT!$D$8:$D$595,$A$1) -> 0 | BG47: =SUMIFS(DT!$CB$8:$CB$595,DT!$C$8:$C$595,BG$5,DT!$D$8:$D$595,$A$1) -> 0 | BH47: =$D47-AS47 ->  | BI47: =AS$62-$BH47 -> 
A48: 2.18 | B48: Đất xây dựng cơ sở ngoại giao | C48: DNG | D48: =VLOOKUP(C48,#REF!,MATCH($A$1,maxa,0)+2,0) ->  | E48: 0 | F48: 0 | G48: =SUMIFS(DT!$CD$8:$CD$595,DT!$C$8:$C$595,G$5,DT!$D$8:$D$595,$A$1) -> 0 | H48: =SUMIFS(DT!$CD$8:$CD$595,DT!$C$8:$C$595,H$5,DT!$D$8:$D$595,$A$1) -> 0 | I48: =SUMIFS(DT!$CD$8:$CD$595,DT!$C$8:$C$595,I$5,DT!$D$8:$D$595,$A$1) -> 0 | J48: =SUMIFS(DT!$CD$8:$CD$595,DT!$C$8:$C$595,J$5,DT!$D$8:$D$595,$A$1) -> 0 | K48: =SUMIFS(DT!$CD$8:$CD$595,DT!$C$8:$C$595,K$5,DT!$D$8:$D$595,$A$1) -> 0 | L48: =SUMIFS(DT!$CD$8:$CD$595,DT!$C$8:$C$595,L$5,DT!$D$8:$D$595,$A$1) -> 0 | M48: =SUMIFS(DT!$CD$8:$CD$595,DT!$C$8:$C$595,M$5,DT!$D$8:$D$595,$A$1) -> 0 | N48: =SUMIFS(DT!$CD$8:$CD$595,DT!$C$8:$C$595,N$5,DT!$D$8:$D$595,$A$1) -> 0 | O48: =SUMIFS(DT!$CD$8:$CD$595,DT!$C$8:$C$595,O$5,DT!$D$8:$D$595,$A$1) -> 0 | P48: =SUMIFS(DT!$CD$8:$CD$595,DT!$C$8:$C$595,P$5,DT!$D$8:$D$595,$A$1) -> 0 | Q48: =SUMIFS(DT!$CD$8:$CD$595,DT!$C$8:$C$595,Q$5,DT!$D$8:$D$595,$A$1) -> 0 | S48: =SUMIFS(DT!$CD$8:$CD$595,DT!$C$8:$C$595,S$5,DT!$D$8:$D$595,$A$1) -> 0 | T48: =SUMIFS(DT!$CD$8:$CD$595,DT!$C$8:$C$595,T$5,DT!$D$8:$D$595,$A$1) -> 0 | U48: =SUMIFS(DT!$CD$8:$CD$595,DT!$C$8:$C$595,U$5,DT!$D$8:$D$595,$A$1) -> 0 | V48: =SUMIFS(DT!$CD$8:$CD$595,DT!$C$8:$C$595,V$5,DT!$D$8:$D$595,$A$1) -> 0 | W48: =SUMIFS(DT!$CD$8:$CD$595,DT!$C$8:$C$595,W$5,DT!$D$8:$D$595,$A$1) -> 0 | X48: =SUMIFS(DT!$CD$8:$CD$595,DT!$C$8:$C$595,X$5,DT!$D$8:$D$595,$A$1) -> 0 | Y48: =SUMIFS(DT!$CD$8:$CD$595,DT!$C$8:$C$595,Y$5,DT!$D$8:$D$595,$A$1) -> 0 | Z48: =SUMIFS(DT!$CD$8:$CD$595,DT!$C$8:$C$595,Z$5,DT!$D$8:$D$595,$A$1) -> 0 | AA48: 0 | AB48: =SUMIFS(DT!$CD$8:$CD$595,DT!$C$8:$C$595,AB$5,DT!$D$8:$D$595,$A$1) -> 0 | AC48: =SUMIFS(DT!$CD$8:$CD$595,DT!$C$8:$C$595,AC$5,DT!$D$8:$D$595,$A$1) -> 0 | AD48: =SUMIFS(DT!$CD$8:$CD$595,DT!$C$8:$C$595,AD$5,DT!$D$8:$D$595,$A$1) -> 0 | AE48: =SUMIFS(DT!$CD$8:$CD$595,DT!$C$8:$C$595,AE$5,DT!$D$8:$D$595,$A$1) -> 0 | AF48: =SUMIFS(DT!$CD$8:$CD$595,DT!$C$8:$C$595,AF$5,DT!$D$8:$D$595,$A$1) -> 0 | AG48: =SUMIFS(DT!$CD$8:$CD$595,DT!$C$8:$C$595,AG$5,DT!$D$8:$D$595,$A$1) -> 0 | AH48: =SUMIFS(DT!$CD$8:$CD$595,DT!$C$8:$C$595,AH$5,DT!$D$8:$D$595,$A$1) -> 0 | AI48: =SUMIFS(DT!$CD$8:$CD$595,DT!$C$8:$C$595,AI$5,DT!$D$8:$D$595,$A$1) -> 0 | AJ48: =SUMIFS(DT!$CD$8:$CD$595,DT!$C$8:$C$595,AJ$5,DT!$D$8:$D$595,$A$1) -> 0 | AK48: =SUMIFS(DT!$CD$8:$CD$595,DT!$C$8:$C$595,AK$5,DT!$D$8:$D$595,$A$1) -> 0 | AL48: =SUMIFS(DT!$CD$8:$CD$595,DT!$C$8:$C$595,AL$5,DT!$D$8:$D$595,$A$1) -> 0 | AM48: =SUMIFS(DT!$CD$8:$CD$595,DT!$C$8:$C$595,AM$5,DT!$D$8:$D$595,$A$1) -> 0 | AN48: =SUMIFS(DT!$CD$8:$CD$595,DT!$C$8:$C$595,AN$5,DT!$D$8:$D$595,$A$1) -> 0 | AO48: =SUMIFS(DT!$CD$8:$CD$595,DT!$C$8:$C$595,AO$5,DT!$D$8:$D$595,$A$1) -> 0 | AP48: =SUMIFS(DT!$CD$8:$CD$595,DT!$C$8:$C$595,AP$5,DT!$D$8:$D$595,$A$1) -> 0 | AQ48: =SUMIFS(DT!$CD$8:$CD$595,DT!$C$8:$C$595,AQ$5,DT!$D$8:$D$595,$A$1) -> 0 | AR48: =SUMIFS(DT!$CD$8:$CD$595,DT!$C$8:$C$595,AR$5,DT!$D$8:$D$595,$A$1) -> 0 | AS48: =SUMIFS(DT!$CD$8:$CD$595,DT!$C$8:$C$595,AS$5,DT!$D$8:$D$595,$A$1) -> 0 | AT48: =$D48-$E48-SUM($S48:$AA48)-SUM($AM48:AS48)-SUM(AU48:$BD48) ->  | AU48: =SUMIFS(DT!$CD$8:$CD$595,DT!$C$8:$C$595,AU$5,DT!$D$8:$D$595,$A$1) -> 0 | AV48: =SUMIFS(DT!$CD$8:$CD$595,DT!$C$8:$C$595,AV$5,DT!$D$8:$D$595,$A$1) -> 0 | AW48: =SUMIFS(DT!$CD$8:$CD$595,DT!$C$8:$C$595,AW$5,DT!$D$8:$D$595,$A$1) -> 0 | AX48: =SUMIFS(DT!$CD$8:$CD$595,DT!$C$8:$C$595,AX$5,DT!$D$8:$D$595,$A$1) -> 0 | AY48: =SUMIFS(DT!$CD$8:$CD$595,DT!$C$8:$C$595,AY$5,DT!$D$8:$D$595,$A$1) -> 0 | AZ48: =SUMIFS(DT!$CD$8:$CD$595,DT!$C$8:$C$595,AZ$5,DT!$D$8:$D$595,$A$1) -> 0 | BA48: =SUMIFS(DT!$CD$8:$CD$595,DT!$C$8:$C$595,BA$5,DT!$D$8:$D$595,$A$1) -> 0 | BB48: =SUMIFS(DT!$CD$8:$CD$595,DT!$C$8:$C$595,BB$5,DT!$D$8:$D$595,$A$1) -> 0 | BC48: =SUMIFS(DT!$CD$8:$CD$595,DT!$C$8:$C$595,BC$5,DT!$D$8:$D$595,$A$1) -> 0 | BD48: 0 | BE48: =SUMIFS(DT!$CD$8:$CD$595,DT!$C$8:$C$595,BE$5,DT!$D$8:$D$595,$A$1) -> 0 | BF48: =SUMIFS(DT!$CD$8:$CD$595,DT!$C$8:$C$595,BF$5,DT!$D$8:$D$595,$A$1) -> 0 | BG48: =SUMIFS(DT!$CD$8:$CD$595,DT!$C$8:$C$595,BG$5,DT!$D$8:$D$595,$A$1) -> 0 | BH48: =$D48-AT48 ->  | BI48: =AT$62-$BH48 -> 
A49: 2.2 | B49: Đất cơ sở tôn giáo | C49: TON | D49: =VLOOKUP(C49,#REF!,MATCH($A$1,maxa,0)+2,0) ->  | E49: 0 | F49: 0 | G49: =SUMIFS(DT!$CF$8:$CF$595,DT!$C$8:$C$595,G$5,DT!$D$8:$D$595,$A$1) -> 0 | H49: =SUMIFS(DT!$CF$8:$CF$595,DT!$C$8:$C$595,H$5,DT!$D$8:$D$595,$A$1) -> 0 | I49: =SUMIFS(DT!$CF$8:$CF$595,DT!$C$8:$C$595,I$5,DT!$D$8:$D$595,$A$1) -> 0 | J49: =SUMIFS(DT!$CF$8:$CF$595,DT!$C$8:$C$595,J$5,DT!$D$8:$D$595,$A$1) -> 0 | K49: =SUMIFS(DT!$CF$8:$CF$595,DT!$C$8:$C$595,K$5,DT!$D$8:$D$595,$A$1) -> 0 | L49: =SUMIFS(DT!$CF$8:$CF$595,DT!$C$8:$C$595,L$5,DT!$D$8:$D$595,$A$1) -> 0 | M49: =SUMIFS(DT!$CF$8:$CF$595,DT!$C$8:$C$595,M$5,DT!$D$8:$D$595,$A$1) -> 0 | N49: =SUMIFS(DT!$CF$8:$CF$595,DT!$C$8:$C$595,N$5,DT!$D$8:$D$595,$A$1) -> 0 | O49: =SUMIFS(DT!$CF$8:$CF$595,DT!$C$8:$C$595,O$5,DT!$D$8:$D$595,$A$1) -> 0 | P49: =SUMIFS(DT!$CF$8:$CF$595,DT!$C$8:$C$595,P$5,DT!$D$8:$D$595,$A$1) -> 0 | Q49: =SUMIFS(DT!$CF$8:$CF$595,DT!$C$8:$C$595,Q$5,DT!$D$8:$D$595,$A$1) -> 0 | S49: =SUMIFS(DT!$CF$8:$CF$595,DT!$C$8:$C$595,S$5,DT!$D$8:$D$595,$A$1) -> 0 | T49: =SUMIFS(DT!$CF$8:$CF$595,DT!$C$8:$C$595,T$5,DT!$D$8:$D$595,$A$1) -> 0 | U49: =SUMIFS(DT!$CF$8:$CF$595,DT!$C$8:$C$595,U$5,DT!$D$8:$D$595,$A$1) -> 0 | V49: =SUMIFS(DT!$CF$8:$CF$595,DT!$C$8:$C$595,V$5,DT!$D$8:$D$595,$A$1) -> 0 | W49: =SUMIFS(DT!$CF$8:$CF$595,DT!$C$8:$C$595,W$5,DT!$D$8:$D$595,$A$1) -> 0 | X49: =SUMIFS(DT!$CF$8:$CF$595,DT!$C$8:$C$595,X$5,DT!$D$8:$D$595,$A$1) -> 0 | Y49: =SUMIFS(DT!$CF$8:$CF$595,DT!$C$8:$C$595,Y$5,DT!$D$8:$D$595,$A$1) -> 0 | Z49: =SUMIFS(DT!$CF$8:$CF$595,DT!$C$8:$C$595,Z$5,DT!$D$8:$D$595,$A$1) -> 0 | AA49: 0 | AB49: =SUMIFS(DT!$CF$8:$CF$595,DT!$C$8:$C$595,AB$5,DT!$D$8:$D$595,$A$1) -> 0 | AC49: =SUMIFS(DT!$CF$8:$CF$595,DT!$C$8:$C$595,AC$5,DT!$D$8:$D$595,$A$1) -> 0 | AD49: =SUMIFS(DT!$CF$8:$CF$595,DT!$C$8:$C$595,AD$5,DT!$D$8:$D$595,$A$1) -> 0 | AE49: =SUMIFS(DT!$CF$8:$CF$595,DT!$C$8:$C$595,AE$5,DT!$D$8:$D$595,$A$1) -> 0 | AF49: =SUMIFS(DT!$CF$8:$CF$595,DT!$C$8:$C$595,AF$5,DT!$D$8:$D$595,$A$1) -> 0 | AG49: =SUMIFS(DT!$CF$8:$CF$595,DT!$C$8:$C$595,AG$5,DT!$D$8:$D$595,$A$1) -> 0 | AH49: =SUMIFS(DT!$CF$8:$CF$595,DT!$C$8:$C$595,AH$5,DT!$D$8:$D$595,$A$1) -> 0 | AI49: =SUMIFS(DT!$CF$8:$CF$595,DT!$C$8:$C$595,AI$5,DT!$D$8:$D$595,$A$1) -> 0 | AJ49: =SUMIFS(DT!$CF$8:$CF$595,DT!$C$8:$C$595,AJ$5,DT!$D$8:$D$595,$A$1) -> 0 | AK49: =SUMIFS(DT!$CF$8:$CF$595,DT!$C$8:$C$595,AK$5,DT!$D$8:$D$595,$A$1) -> 0 | AL49: =SUMIFS(DT!$CF$8:$CF$595,DT!$C$8:$C$595,AL$5,DT!$D$8:$D$595,$A$1) -> 0 | AM49: =SUMIFS(DT!$CF$8:$CF$595,DT!$C$8:$C$595,AM$5,DT!$D$8:$D$595,$A$1) -> 0 | AN49: =SUMIFS(DT!$CF$8:$CF$595,DT!$C$8:$C$595,AN$5,DT!$D$8:$D$595,$A$1) -> 0 | AO49: =SUMIFS(DT!$CF$8:$CF$595,DT!$C$8:$C$595,AO$5,DT!$D$8:$D$595,$A$1) -> 0 | AP49: =SUMIFS(DT!$CF$8:$CF$595,DT!$C$8:$C$595,AP$5,DT!$D$8:$D$595,$A$1) -> 0 | AQ49: =SUMIFS(DT!$CF$8:$CF$595,DT!$C$8:$C$595,AQ$5,DT!$D$8:$D$595,$A$1) -> 0 | AR49: =SUMIFS(DT!$CF$8:$CF$595,DT!$C$8:$C$595,AR$5,DT!$D$8:$D$595,$A$1) -> 0 | AS49: =SUMIFS(DT!$CF$8:$CF$595,DT!$C$8:$C$595,AS$5,DT!$D$8:$D$595,$A$1) -> 0 | AT49: =SUMIFS(DT!$CF$8:$CF$595,DT!$C$8:$C$595,AT$5,DT!$D$8:$D$595,$A$1) -> 0 | AU49: =$D49-$E49-SUM($S49:$AA49)-SUM($AM49:AT49)-SUM(AV49:$BD49) ->  | AV49: =SUMIFS(DT!$CF$8:$CF$595,DT!$C$8:$C$595,AV$5,DT!$D$8:$D$595,$A$1) -> 0 | AW49: =SUMIFS(DT!$CF$8:$CF$595,DT!$C$8:$C$595,AW$5,DT!$D$8:$D$595,$A$1) -> 0 | AX49: =SUMIFS(DT!$CF$8:$CF$595,DT!$C$8:$C$595,AX$5,DT!$D$8:$D$595,$A$1) -> 0 | AY49: =SUMIFS(DT!$CF$8:$CF$595,DT!$C$8:$C$595,AY$5,DT!$D$8:$D$595,$A$1) -> 0 | AZ49: =SUMIFS(DT!$CF$8:$CF$595,DT!$C$8:$C$595,AZ$5,DT!$D$8:$D$595,$A$1) -> 0 | BA49: =SUMIFS(DT!$CF$8:$CF$595,DT!$C$8:$C$595,BA$5,DT!$D$8:$D$595,$A$1) -> 0 | BB49: =SUMIFS(DT!$CF$8:$CF$595,DT!$C$8:$C$595,BB$5,DT!$D$8:$D$595,$A$1) -> 0 | BC49: =SUMIFS(DT!$CF$8:$CF$595,DT!$C$8:$C$595,BC$5,DT!$D$8:$D$595,$A$1) -> 0 | BD49: 0 | BE49: =SUMIFS(DT!$CF$8:$CF$595,DT!$C$8:$C$595,BE$5,DT!$D$8:$D$595,$A$1) -> 0 | BF49: =SUMIFS(DT!$CF$8:$CF$595,DT!$C$8:$C$595,BF$5,DT!$D$8:$D$595,$A$1) -> 0 | BG49: =SUMIFS(DT!$CF$8:$CF$595,DT!$C$8:$C$595,BG$5,DT!$D$8:$D$595,$A$1) -> 0 | BH49: =$D49-AU49 ->  | BI49: =AU$62-$BH49 -> 
A50: 2.21 | B50: Đất làm nghĩa trang, nghĩa địa, nhà tang lễ, nhà hỏa táng | C50: NTD | D50: =VLOOKUP(C50,#REF!,MATCH($A$1,maxa,0)+2,0) ->  | E50: 0 | F50: 0 | G50: =SUMIFS(DT!$CH$8:$CH$595,DT!$C$8:$C$595,G$5,DT!$D$8:$D$595,$A$1) -> 0 | H50: =SUMIFS(DT!$CH$8:$CH$595,DT!$C$8:$C$595,H$5,DT!$D$8:$D$595,$A$1) -> 0 | I50: =SUMIFS(DT!$CH$8:$CH$595,DT!$C$8:$C$595,I$5,DT!$D$8:$D$595,$A$1) -> 0 | J50: =SUMIFS(DT!$CH$8:$CH$595,DT!$C$8:$C$595,J$5,DT!$D$8:$D$595,$A$1) -> 0 | K50: =SUMIFS(DT!$CH$8:$CH$595,DT!$C$8:$C$595,K$5,DT!$D$8:$D$595,$A$1) -> 0 | L50: =SUMIFS(DT!$CH$8:$CH$595,DT!$C$8:$C$595,L$5,DT!$D$8:$D$595,$A$1) -> 0 | M50: =SUMIFS(DT!$CH$8:$CH$595,DT!$C$8:$C$595,M$5,DT!$D$8:$D$595,$A$1) -> 0 | N50: =SUMIFS(DT!$CH$8:$CH$595,DT!$C$8:$C$595,N$5,DT!$D$8:$D$595,$A$1) -> 0 | O50: =SUMIFS(DT!$CH$8:$CH$595,DT!$C$8:$C$595,O$5,DT!$D$8:$D$595,$A$1) -> 0 | P50: =SUMIFS(DT!$CH$8:$CH$595,DT!$C$8:$C$595,P$5,DT!$D$8:$D$595,$A$1) -> 0 | Q50: =SUMIFS(DT!$CH$8:$CH$595,DT!$C$8:$C$595,Q$5,DT!$D$8:$D$595,$A$1) -> 0 | S50: =SUMIFS(DT!$CH$8:$CH$595,DT!$C$8:$C$595,S$5,DT!$D$8:$D$595,$A$1) -> 0 | T50: =SUMIFS(DT!$CH$8:$CH$595,DT!$C$8:$C$595,T$5,DT!$D$8:$D$595,$A$1) -> 0 | U50: =SUMIFS(DT!$CH$8:$CH$595,DT!$C$8:$C$595,U$5,DT!$D$8:$D$595,$A$1) -> 0 | V50: =SUMIFS(DT!$CH$8:$CH$595,DT!$C$8:$C$595,V$5,DT!$D$8:$D$595,$A$1) -> 0 | W50: =SUMIFS(DT!$CH$8:$CH$595,DT!$C$8:$C$595,W$5,DT!$D$8:$D$595,$A$1) -> 0 | X50: =SUMIFS(DT!$CH$8:$CH$595,DT!$C$8:$C$595,X$5,DT!$D$8:$D$595,$A$1) -> 0 | Y50: =SUMIFS(DT!$CH$8:$CH$595,DT!$C$8:$C$595,Y$5,DT!$D$8:$D$595,$A$1) -> 0 | Z50: =SUMIFS(DT!$CH$8:$CH$595,DT!$C$8:$C$595,Z$5,DT!$D$8:$D$595,$A$1) -> 0 | AA50: 0 | AB50: =SUMIFS(DT!$CH$8:$CH$595,DT!$C$8:$C$595,AB$5,DT!$D$8:$D$595,$A$1) -> 0 | AC50: =SUMIFS(DT!$CH$8:$CH$595,DT!$C$8:$C$595,AC$5,DT!$D$8:$D$595,$A$1) -> 0 | AD50: =SUMIFS(DT!$CH$8:$CH$595,DT!$C$8:$C$595,AD$5,DT!$D$8:$D$595,$A$1) -> 0 | AE50: =SUMIFS(DT!$CH$8:$CH$595,DT!$C$8:$C$595,AE$5,DT!$D$8:$D$595,$A$1) -> 0 | AF50: =SUMIFS(DT!$CH$8:$CH$595,DT!$C$8:$C$595,AF$5,DT!$D$8:$D$595,$A$1) -> 0 | AG50: =SUMIFS(DT!$CH$8:$CH$595,DT!$C$8:$C$595,AG$5,DT!$D$8:$D$595,$A$1) -> 0 | AH50: =SUMIFS(DT!$CH$8:$CH$595,DT!$C$8:$C$595,AH$5,DT!$D$8:$D$595,$A$1) -> 0 | AI50: =SUMIFS(DT!$CH$8:$CH$595,DT!$C$8:$C$595,AI$5,DT!$D$8:$D$595,$A$1) -> 0 | AJ50: =SUMIFS(DT!$CH$8:$CH$595,DT!$C$8:$C$595,AJ$5,DT!$D$8:$D$595,$A$1) -> 0 | AK50: =SUMIFS(DT!$CH$8:$CH$595,DT!$C$8:$C$595,AK$5,DT!$D$8:$D$595,$A$1) -> 0 | AL50: =SUMIFS(DT!$CH$8:$CH$595,DT!$C$8:$C$595,AL$5,DT!$D$8:$D$595,$A$1) -> 0 | AM50: =SUMIFS(DT!$CH$8:$CH$595,DT!$C$8:$C$595,AM$5,DT!$D$8:$D$595,$A$1) -> 0 | AN50: =SUMIFS(DT!$CH$8:$CH$595,DT!$C$8:$C$595,AN$5,DT!$D$8:$D$595,$A$1) -> 0 | AO50: =SUMIFS(DT!$CH$8:$CH$595,DT!$C$8:$C$595,AO$5,DT!$D$8:$D$595,$A$1) -> 0 | AP50: =SUMIFS(DT!$CH$8:$CH$595,DT!$C$8:$C$595,AP$5,DT!$D$8:$D$595,$A$1) -> 0 | AQ50: =SUMIFS(DT!$CH$8:$CH$595,DT!$C$8:$C$595,AQ$5,DT!$D$8:$D$595,$A$1) -> 0 | AR50: =SUMIFS(DT!$CH$8:$CH$595,DT!$C$8:$C$595,AR$5,DT!$D$8:$D$595,$A$1) -> 0 | AS50: =SUMIFS(DT!$CH$8:$CH$595,DT!$C$8:$C$595,AS$5,DT!$D$8:$D$595,$A$1) -> 0 | AT50: =SUMIFS(DT!$CH$8:$CH$595,DT!$C$8:$C$595,AT$5,DT!$D$8:$D$595,$A$1) -> 0 | AU50: =SUMIFS(DT!$CH$8:$CH$595,DT!$C$8:$C$595,AU$5,DT!$D$8:$D$595,$A$1) -> 0 | AV50: =$D50-$E50-SUM($S50:$AA50)-SUM($AM50:AU50)-SUM(AW50:$BD50) ->  | AW50: =SUMIFS(DT!$CH$8:$CH$595,DT!$C$8:$C$595,AW$5,DT!$D$8:$D$595,$A$1) -> 0 | AX50: =SUMIFS(DT!$CH$8:$CH$595,DT!$C$8:$C$595,AX$5,DT!$D$8:$D$595,$A$1) -> 0 | AY50: =SUMIFS(DT!$CH$8:$CH$595,DT!$C$8:$C$595,AY$5,DT!$D$8:$D$595,$A$1) -> 0 | AZ50: =SUMIFS(DT!$CH$8:$CH$595,DT!$C$8:$C$595,AZ$5,DT!$D$8:$D$595,$A$1) -> 0 | BA50: =SUMIFS(DT!$CH$8:$CH$595,DT!$C$8:$C$595,BA$5,DT!$D$8:$D$595,$A$1) -> 0 | BB50: =SUMIFS(DT!$CH$8:$CH$595,DT!$C$8:$C$595,BB$5,DT!$D$8:$D$595,$A$1) -> 0 | BC50: =SUMIFS(DT!$CH$8:$CH$595,DT!$C$8:$C$595,BC$5,DT!$D$8:$D$595,$A$1) -> 0 | BD50: 0 | BE50: =SUMIFS(DT!$CH$8:$CH$595,DT!$C$8:$C$595,BE$5,DT!$D$8:$D$595,$A$1) -> 0 | BF50: =SUMIFS(DT!$CH$8:$CH$595,DT!$C$8:$C$595,BF$5,DT!$D$8:$D$595,$A$1) -> 0 | BG50: =SUMIFS(DT!$CH$8:$CH$595,DT!$C$8:$C$595,BG$5,DT!$D$8:$D$595,$A$1) -> 0 | BH50: =$D50-AV50 ->  | BI50: =AV$62-$BH50 -> 
A51: 2.22 | B51: Đất sản xuất vật liệu xây dựng, làm đồ gốm | C51: SKX | D51: =VLOOKUP(C51,#REF!,MATCH($A$1,maxa,0)+2,0) ->  | E51: 0 | F51: 0 | G51: =SUMIFS(DT!$CJ$8:$CJ$595,DT!$C$8:$C$595,G$5,DT!$D$8:$D$595,$A$1) -> 0 | H51: =SUMIFS(DT!$CJ$8:$CJ$595,DT!$C$8:$C$595,H$5,DT!$D$8:$D$595,$A$1) -> 0 | I51: =SUMIFS(DT!$CJ$8:$CJ$595,DT!$C$8:$C$595,I$5,DT!$D$8:$D$595,$A$1) -> 0 | J51: =SUMIFS(DT!$CJ$8:$CJ$595,DT!$C$8:$C$595,J$5,DT!$D$8:$D$595,$A$1) -> 0 | K51: =SUMIFS(DT!$CJ$8:$CJ$595,DT!$C$8:$C$595,K$5,DT!$D$8:$D$595,$A$1) -> 0 | L51: =SUMIFS(DT!$CJ$8:$CJ$595,DT!$C$8:$C$595,L$5,DT!$D$8:$D$595,$A$1) -> 0 | M51: =SUMIFS(DT!$CJ$8:$CJ$595,DT!$C$8:$C$595,M$5,DT!$D$8:$D$595,$A$1) -> 0 | N51: =SUMIFS(DT!$CJ$8:$CJ$595,DT!$C$8:$C$595,N$5,DT!$D$8:$D$595,$A$1) -> 0 | O51: =SUMIFS(DT!$CJ$8:$CJ$595,DT!$C$8:$C$595,O$5,DT!$D$8:$D$595,$A$1) -> 0 | P51: =SUMIFS(DT!$CJ$8:$CJ$595,DT!$C$8:$C$595,P$5,DT!$D$8:$D$595,$A$1) -> 0 | Q51: =SUMIFS(DT!$CJ$8:$CJ$595,DT!$C$8:$C$595,Q$5,DT!$D$8:$D$595,$A$1) -> 0 | S51: =SUMIFS(DT!$CJ$8:$CJ$595,DT!$C$8:$C$595,S$5,DT!$D$8:$D$595,$A$1) -> 0 | T51: =SUMIFS(DT!$CJ$8:$CJ$595,DT!$C$8:$C$595,T$5,DT!$D$8:$D$595,$A$1) -> 0 | U51: =SUMIFS(DT!$CJ$8:$CJ$595,DT!$C$8:$C$595,U$5,DT!$D$8:$D$595,$A$1) -> 0 | V51: =SUMIFS(DT!$CJ$8:$CJ$595,DT!$C$8:$C$595,V$5,DT!$D$8:$D$595,$A$1) -> 0 | W51: =SUMIFS(DT!$CJ$8:$CJ$595,DT!$C$8:$C$595,W$5,DT!$D$8:$D$595,$A$1) -> 0 | X51: =SUMIFS(DT!$CJ$8:$CJ$595,DT!$C$8:$C$595,X$5,DT!$D$8:$D$595,$A$1) -> 0 | Y51: =SUMIFS(DT!$CJ$8:$CJ$595,DT!$C$8:$C$595,Y$5,DT!$D$8:$D$595,$A$1) -> 0 | Z51: =SUMIFS(DT!$CJ$8:$CJ$595,DT!$C$8:$C$595,Z$5,DT!$D$8:$D$595,$A$1) -> 0 | AA51: 0 | AB51: =SUMIFS(DT!$CJ$8:$CJ$595,DT!$C$8:$C$595,AB$5,DT!$D$8:$D$595,$A$1) -> 0 | AC51: =SUMIFS(DT!$CJ$8:$CJ$595,DT!$C$8:$C$595,AC$5,DT!$D$8:$D$595,$A$1) -> 0 | AD51: =SUMIFS(DT!$CJ$8:$CJ$595,DT!$C$8:$C$595,AD$5,DT!$D$8:$D$595,$A$1) -> 0 | AE51: =SUMIFS(DT!$CJ$8:$CJ$595,DT!$C$8:$C$595,AE$5,DT!$D$8:$D$595,$A$1) -> 0 | AF51: =SUMIFS(DT!$CJ$8:$CJ$595,DT!$C$8:$C$595,AF$5,DT!$D$8:$D$595,$A$1) -> 0 | AG51: =SUMIFS(DT!$CJ$8:$CJ$595,DT!$C$8:$C$595,AG$5,DT!$D$8:$D$595,$A$1) -> 0 | AH51: =SUMIFS(DT!$CJ$8:$CJ$595,DT!$C$8:$C$595,AH$5,DT!$D$8:$D$595,$A$1) -> 0 | AI51: =SUMIFS(DT!$CJ$8:$CJ$595,DT!$C$8:$C$595,AI$5,DT!$D$8:$D$595,$A$1) -> 0 | AJ51: =SUMIFS(DT!$CJ$8:$CJ$595,DT!$C$8:$C$595,AJ$5,DT!$D$8:$D$595,$A$1) -> 0 | AK51: =SUMIFS(DT!$CJ$8:$CJ$595,DT!$C$8:$C$595,AK$5,DT!$D$8:$D$595,$A$1) -> 0 | AL51: =SUMIFS(DT!$CJ$8:$CJ$595,DT!$C$8:$C$595,AL$5,DT!$D$8:$D$595,$A$1) -> 0 | AM51: =SUMIFS(DT!$CJ$8:$CJ$595,DT!$C$8:$C$595,AM$5,DT!$D$8:$D$595,$A$1) -> 0 | AN51: =SUMIFS(DT!$CJ$8:$CJ$595,DT!$C$8:$C$595,AN$5,DT!$D$8:$D$595,$A$1) -> 0 | AO51: =SUMIFS(DT!$CJ$8:$CJ$595,DT!$C$8:$C$595,AO$5,DT!$D$8:$D$595,$A$1) -> 0 | AP51: =SUMIFS(DT!$CJ$8:$CJ$595,DT!$C$8:$C$595,AP$5,DT!$D$8:$D$595,$A$1) -> 0 | AQ51: =SUMIFS(DT!$CJ$8:$CJ$595,DT!$C$8:$C$595,AQ$5,DT!$D$8:$D$595,$A$1) -> 0 | AR51: =SUMIFS(DT!$CJ$8:$CJ$595,DT!$C$8:$C$595,AR$5,DT!$D$8:$D$595,$A$1) -> 0 | AS51: =SUMIFS(DT!$CJ$8:$CJ$595,DT!$C$8:$C$595,AS$5,DT!$D$8:$D$595,$A$1) -> 0 | AT51: =SUMIFS(DT!$CJ$8:$CJ$595,DT!$C$8:$C$595,AT$5,DT!$D$8:$D$595,$A$1) -> 0 | AU51: =SUMIFS(DT!$CJ$8:$CJ$595,DT!$C$8:$C$595,AU$5,DT!$D$8:$D$595,$A$1) -> 0 | AV51: =SUMIFS(DT!$CJ$8:$CJ$595,DT!$C$8:$C$595,AV$5,DT!$D$8:$D$595,$A$1) -> 0 | AW51: =$D51-$E51-SUM($S51:$AA51)-SUM($AM51:AV51)-SUM(AX51:$BD51) ->  | AX51: =SUMIFS(DT!$CJ$8:$CJ$595,DT!$C$8:$C$595,AX$5,DT!$D$8:$D$595,$A$1) -> 0 | AY51: =SUMIFS(DT!$CJ$8:$CJ$595,DT!$C$8:$C$595,AY$5,DT!$D$8:$D$595,$A$1) -> 0 | AZ51: =SUMIFS(DT!$CJ$8:$CJ$595,DT!$C$8:$C$595,AZ$5,DT!$D$8:$D$595,$A$1) -> 0 | BA51: =SUMIFS(DT!$CJ$8:$CJ$595,DT!$C$8:$C$595,BA$5,DT!$D$8:$D$595,$A$1) -> 0 | BB51: =SUMIFS(DT!$CJ$8:$CJ$595,DT!$C$8:$C$595,BB$5,DT!$D$8:$D$595,$A$1) -> 0 | BC51: =SUMIFS(DT!$CJ$8:$CJ$595,DT!$C$8:$C$595,BC$5,DT!$D$8:$D$595,$A$1) -> 0 | BD51: 0 | BE51: =SUMIFS(DT!$CJ$8:$CJ$595,DT!$C$8:$C$595,BE$5,DT!$D$8:$D$595,$A$1) -> 0 | BF51: =SUMIFS(DT!$CJ$8:$CJ$595,DT!$C$8:$C$595,BF$5,DT!$D$8:$D$595,$A$1) -> 0 | BG51: =SUMIFS(DT!$CJ$8:$CJ$595,DT!$C$8:$C$595,BG$5,DT!$D$8:$D$595,$A$1) -> 0 | BH51: =$D51-AW51 ->  | BI51: =AW$62-$BH51 -> 
A52: 2.23 | B52: Đất sinh hoạt cộng đồng | C52: DSH | D52: =VLOOKUP(C52,#REF!,MATCH($A$1,maxa,0)+2,0) ->  | E52: 0 | F52: 0 | G52: =SUMIFS(DT!$CL$8:$CL$595,DT!$C$8:$C$595,G$5,DT!$D$8:$D$595,$A$1) -> 0 | H52: =SUMIFS(DT!$CL$8:$CL$595,DT!$C$8:$C$595,H$5,DT!$D$8:$D$595,$A$1) -> 0 | I52: =SUMIFS(DT!$CL$8:$CL$595,DT!$C$8:$C$595,I$5,DT!$D$8:$D$595,$A$1) -> 0 | J52: =SUMIFS(DT!$CL$8:$CL$595,DT!$C$8:$C$595,J$5,DT!$D$8:$D$595,$A$1) -> 0 | K52: =SUMIFS(DT!$CL$8:$CL$595,DT!$C$8:$C$595,K$5,DT!$D$8:$D$595,$A$1) -> 0 | L52: =SUMIFS(DT!$CL$8:$CL$595,DT!$C$8:$C$595,L$5,DT!$D$8:$D$595,$A$1) -> 0 | M52: =SUMIFS(DT!$CL$8:$CL$595,DT!$C$8:$C$595,M$5,DT!$D$8:$D$595,$A$1) -> 0 | N52: =SUMIFS(DT!$CL$8:$CL$595,DT!$C$8:$C$595,N$5,DT!$D$8:$D$595,$A$1) -> 0 | O52: =SUMIFS(DT!$CL$8:$CL$595,DT!$C$8:$C$595,O$5,DT!$D$8:$D$595,$A$1) -> 0 | P52: =SUMIFS(DT!$CL$8:$CL$595,DT!$C$8:$C$595,P$5,DT!$D$8:$D$595,$A$1) -> 0 | Q52: =SUMIFS(DT!$CL$8:$CL$595,DT!$C$8:$C$595,Q$5,DT!$D$8:$D$595,$A$1) -> 0 | S52: =SUMIFS(DT!$CL$8:$CL$595,DT!$C$8:$C$595,S$5,DT!$D$8:$D$595,$A$1) -> 0 | T52: =SUMIFS(DT!$CL$8:$CL$595,DT!$C$8:$C$595,T$5,DT!$D$8:$D$595,$A$1) -> 0 | U52: =SUMIFS(DT!$CL$8:$CL$595,DT!$C$8:$C$595,U$5,DT!$D$8:$D$595,$A$1) -> 0 | V52: =SUMIFS(DT!$CL$8:$CL$595,DT!$C$8:$C$595,V$5,DT!$D$8:$D$595,$A$1) -> 0 | W52: =SUMIFS(DT!$CL$8:$CL$595,DT!$C$8:$C$595,W$5,DT!$D$8:$D$595,$A$1) -> 0 | X52: =SUMIFS(DT!$CL$8:$CL$595,DT!$C$8:$C$595,X$5,DT!$D$8:$D$595,$A$1) -> 0 | Y52: =SUMIFS(DT!$CL$8:$CL$595,DT!$C$8:$C$595,Y$5,DT!$D$8:$D$595,$A$1) -> 0 | Z52: =SUMIFS(DT!$CL$8:$CL$595,DT!$C$8:$C$595,Z$5,DT!$D$8:$D$595,$A$1) -> 0 | AA52: 0 | AB52: =SUMIFS(DT!$CL$8:$CL$595,DT!$C$8:$C$595,AB$5,DT!$D$8:$D$595,$A$1) -> 0 | AC52: =SUMIFS(DT!$CL$8:$CL$595,DT!$C$8:$C$595,AC$5,DT!$D$8:$D$595,$A$1) -> 0 | AD52: =SUMIFS(DT!$CL$8:$CL$595,DT!$C$8:$C$595,AD$5,DT!$D$8:$D$595,$A$1) -> 0 | AE52: =SUMIFS(DT!$CL$8:$CL$595,DT!$C$8:$C$595,AE$5,DT!$D$8:$D$595,$A$1) -> 0 | AF52: =SUMIFS(DT!$CL$8:$CL$595,DT!$C$8:$C$595,AF$5,DT!$D$8:$D$595,$A$1) -> 0 | AG52: =SUMIFS(DT!$CL$8:$CL$595,DT!$C$8:$C$595,AG$5,DT!$D$8:$D$595,$A$1) -> 0 | AH52: =SUMIFS(DT!$CL$8:$CL$595,DT!$C$8:$C$595,AH$5,DT!$D$8:$D$595,$A$1) -> 0 | AI52: =SUMIFS(DT!$CL$8:$CL$595,DT!$C$8:$C$595,AI$5,DT!$D$8:$D$595,$A$1) -> 0 | AJ52: =SUMIFS(DT!$CL$8:$CL$595,DT!$C$8:$C$595,AJ$5,DT!$D$8:$D$595,$A$1) -> 0 | AK52: =SUMIFS(DT!$CL$8:$CL$595,DT!$C$8:$C$595,AK$5,DT!$D$8:$D$595,$A$1) -> 0 | AL52: =SUMIFS(DT!$CL$8:$CL$595,DT!$C$8:$C$595,AL$5,DT!$D$8:$D$595,$A$1) -> 0 | AM52: =SUMIFS(DT!$CL$8:$CL$595,DT!$C$8:$C$595,AM$5,DT!$D$8:$D$595,$A$1) -> 0 | AN52: =SUMIFS(DT!$CL$8:$CL$595,DT!$C$8:$C$595,AN$5,DT!$D$8:$D$595,$A$1) -> 0 | AO52: =SUMIFS(DT!$CL$8:$CL$595,DT!$C$8:$C$595,AO$5,DT!$D$8:$D$595,$A$1) -> 0 | AP52: =SUMIFS(DT!$CL$8:$CL$595,DT!$C$8:$C$595,AP$5,DT!$D$8:$D$595,$A$1) -> 0 | AQ52: =SUMIFS(DT!$CL$8:$CL$595,DT!$C$8:$C$595,AQ$5,DT!$D$8:$D$595,$A$1) -> 0 | AR52: =SUMIFS(DT!$CL$8:$CL$595,DT!$C$8:$C$595,AR$5,DT!$D$8:$D$595,$A$1) -> 0 | AS52: =SUMIFS(DT!$CL$8:$CL$595,DT!$C$8:$C$595,AS$5,DT!$D$8:$D$595,$A$1) -> 0 | AT52: =SUMIFS(DT!$CL$8:$CL$595,DT!$C$8:$C$595,AT$5,DT!$D$8:$D$595,$A$1) -> 0 | AU52: =SUMIFS(DT!$CL$8:$CL$595,DT!$C$8:$C$595,AU$5,DT!$D$8:$D$595,$A$1) -> 0 | AV52: =SUMIFS(DT!$CL$8:$CL$595,DT!$C$8:$C$595,AV$5,DT!$D$8:$D$595,$A$1) -> 0 | AW52: =SUMIFS(DT!$CL$8:$CL$595,DT!$C$8:$C$595,AW$5,DT!$D$8:$D$595,$A$1) -> 0 | AX52: =$D52-$E52-SUM($S52:$AA52)-SUM($AM52:AW52)-SUM(AY52:$BD52) ->  | AY52: =SUMIFS(DT!$CL$8:$CL$595,DT!$C$8:$C$595,AY$5,DT!$D$8:$D$595,$A$1) -> 0 | AZ52: =SUMIFS(DT!$CL$8:$CL$595,DT!$C$8:$C$595,AZ$5,DT!$D$8:$D$595,$A$1) -> 0 | BA52: =SUMIFS(DT!$CL$8:$CL$595,DT!$C$8:$C$595,BA$5,DT!$D$8:$D$595,$A$1) -> 0 | BB52: =SUMIFS(DT!$CL$8:$CL$595,DT!$C$8:$C$595,BB$5,DT!$D$8:$D$595,$A$1) -> 0 | BC52: =SUMIFS(DT!$CL$8:$CL$595,DT!$C$8:$C$595,BC$5,DT!$D$8:$D$595,$A$1) -> 0 | BD52: 0 | BE52: =SUMIFS(DT!$CL$8:$CL$595,DT!$C$8:$C$595,BE$5,DT!$D$8:$D$595,$A$1) -> 0 | BF52: =SUMIFS(DT!$CL$8:$CL$595,DT!$C$8:$C$595,BF$5,DT!$D$8:$D$595,$A$1) -> 0 | BG52: =SUMIFS(DT!$CL$8:$CL$595,DT!$C$8:$C$595,BG$5,DT!$D$8:$D$595,$A$1) -> 0 | BH52: =$D52-AX52 ->  | BI52: =AX$62-$BH52 -> 
A53: 2.24 | B53: Đất khu vui chơi, giải trí công cộng | C53: DKV | D53: =VLOOKUP(C53,#REF!,MATCH($A$1,maxa,0)+2,0) ->  | E53: 0 | F53: 0 | G53: =SUMIFS(DT!$CN$8:$CN$595,DT!$C$8:$C$595,G$5,DT!$D$8:$D$595,$A$1) -> 0 | H53: =SUMIFS(DT!$CN$8:$CN$595,DT!$C$8:$C$595,H$5,DT!$D$8:$D$595,$A$1) -> 0 | I53: =SUMIFS(DT!$CN$8:$CN$595,DT!$C$8:$C$595,I$5,DT!$D$8:$D$595,$A$1) -> 0 | J53: =SUMIFS(DT!$CN$8:$CN$595,DT!$C$8:$C$595,J$5,DT!$D$8:$D$595,$A$1) -> 0 | K53: =SUMIFS(DT!$CN$8:$CN$595,DT!$C$8:$C$595,K$5,DT!$D$8:$D$595,$A$1) -> 0 | L53: =SUMIFS(DT!$CN$8:$CN$595,DT!$C$8:$C$595,L$5,DT!$D$8:$D$595,$A$1) -> 0 | M53: =SUMIFS(DT!$CN$8:$CN$595,DT!$C$8:$C$595,M$5,DT!$D$8:$D$595,$A$1) -> 0 | N53: =SUMIFS(DT!$CN$8:$CN$595,DT!$C$8:$C$595,N$5,DT!$D$8:$D$595,$A$1) -> 0 | O53: =SUMIFS(DT!$CN$8:$CN$595,DT!$C$8:$C$595,O$5,DT!$D$8:$D$595,$A$1) -> 0 | P53: =SUMIFS(DT!$CN$8:$CN$595,DT!$C$8:$C$595,P$5,DT!$D$8:$D$595,$A$1) -> 0 | Q53: =SUMIFS(DT!$CN$8:$CN$595,DT!$C$8:$C$595,Q$5,DT!$D$8:$D$595,$A$1) -> 0 | S53: =SUMIFS(DT!$CN$8:$CN$595,DT!$C$8:$C$595,S$5,DT!$D$8:$D$595,$A$1) -> 0 | T53: =SUMIFS(DT!$CN$8:$CN$595,DT!$C$8:$C$595,T$5,DT!$D$8:$D$595,$A$1) -> 0 | U53: =SUMIFS(DT!$CN$8:$CN$595,DT!$C$8:$C$595,U$5,DT!$D$8:$D$595,$A$1) -> 0 | V53: =SUMIFS(DT!$CN$8:$CN$595,DT!$C$8:$C$595,V$5,DT!$D$8:$D$595,$A$1) -> 0 | W53: =SUMIFS(DT!$CN$8:$CN$595,DT!$C$8:$C$595,W$5,DT!$D$8:$D$595,$A$1) -> 0 | X53: =SUMIFS(DT!$CN$8:$CN$595,DT!$C$8:$C$595,X$5,DT!$D$8:$D$595,$A$1) -> 0 | Y53: =SUMIFS(DT!$CN$8:$CN$595,DT!$C$8:$C$595,Y$5,DT!$D$8:$D$595,$A$1) -> 0 | Z53: =SUMIFS(DT!$CN$8:$CN$595,DT!$C$8:$C$595,Z$5,DT!$D$8:$D$595,$A$1) -> 0 | AA53: 0 | AB53: =SUMIFS(DT!$CN$8:$CN$595,DT!$C$8:$C$595,AB$5,DT!$D$8:$D$595,$A$1) -> 0 | AC53: =SUMIFS(DT!$CN$8:$CN$595,DT!$C$8:$C$595,AC$5,DT!$D$8:$D$595,$A$1) -> 0 | AD53: =SUMIFS(DT!$CN$8:$CN$595,DT!$C$8:$C$595,AD$5,DT!$D$8:$D$595,$A$1) -> 0 | AE53: =SUMIFS(DT!$CN$8:$CN$595,DT!$C$8:$C$595,AE$5,DT!$D$8:$D$595,$A$1) -> 0 | AF53: =SUMIFS(DT!$CN$8:$CN$595,DT!$C$8:$C$595,AF$5,DT!$D$8:$D$595,$A$1) -> 0 | AG53: =SUMIFS(DT!$CN$8:$CN$595,DT!$C$8:$C$595,AG$5,DT!$D$8:$D$595,$A$1) -> 0 | AH53: =SUMIFS(DT!$CN$8:$CN$595,DT!$C$8:$C$595,AH$5,DT!$D$8:$D$595,$A$1) -> 0 | AI53: =SUMIFS(DT!$CN$8:$CN$595,DT!$C$8:$C$595,AI$5,DT!$D$8:$D$595,$A$1) -> 0 | AJ53: =SUMIFS(DT!$CN$8:$CN$595,DT!$C$8:$C$595,AJ$5,DT!$D$8:$D$595,$A$1) -> 0 | AK53: =SUMIFS(DT!$CN$8:$CN$595,DT!$C$8:$C$595,AK$5,DT!$D$8:$D$595,$A$1) -> 0 | AL53: =SUMIFS(DT!$CN$8:$CN$595,DT!$C$8:$C$595,AL$5,DT!$D$8:$D$595,$A$1) -> 0 | AM53: =SUMIFS(DT!$CN$8:$CN$595,DT!$C$8:$C$595,AM$5,DT!$D$8:$D$595,$A$1) -> 0 | AN53: =SUMIFS(DT!$CN$8:$CN$595,DT!$C$8:$C$595,AN$5,DT!$D$8:$D$595,$A$1) -> 0 | AO53: =SUMIFS(DT!$CN$8:$CN$595,DT!$C$8:$C$595,AO$5,DT!$D$8:$D$595,$A$1) -> 0 | AP53: =SUMIFS(DT!$CN$8:$CN$595,DT!$C$8:$C$595,AP$5,DT!$D$8:$D$595,$A$1) -> 0 | AQ53: =SUMIFS(DT!$CN$8:$CN$595,DT!$C$8:$C$595,AQ$5,DT!$D$8:$D$595,$A$1) -> 0 | AR53: =SUMIFS(DT!$CN$8:$CN$595,DT!$C$8:$C$595,AR$5,DT!$D$8:$D$595,$A$1) -> 0 | AS53: =SUMIFS(DT!$CN$8:$CN$595,DT!$C$8:$C$595,AS$5,DT!$D$8:$D$595,$A$1) -> 0 | AT53: =SUMIFS(DT!$CN$8:$CN$595,DT!$C$8:$C$595,AT$5,DT!$D$8:$D$595,$A$1) -> 0 | AU53: =SUMIFS(DT!$CN$8:$CN$595,DT!$C$8:$C$595,AU$5,DT!$D$8:$D$595,$A$1) -> 0 | AV53: =SUMIFS(DT!$CN$8:$CN$595,DT!$C$8:$C$595,AV$5,DT!$D$8:$D$595,$A$1) -> 0 | AW53: =SUMIFS(DT!$CN$8:$CN$595,DT!$C$8:$C$595,AW$5,DT!$D$8:$D$595,$A$1) -> 0 | AX53: =SUMIFS(DT!$CN$8:$CN$595,DT!$C$8:$C$595,AX$5,DT!$D$8:$D$595,$A$1) -> 0 | AY53: =$D53-$E53-SUM($S53:$AA53)-SUM($AM53:AX53)-SUM(AZ53:$BD53) ->  | AZ53: =SUMIFS(DT!$CN$8:$CN$595,DT!$C$8:$C$595,AZ$5,DT!$D$8:$D$595,$A$1) -> 0 | BA53: =SUMIFS(DT!$CN$8:$CN$595,DT!$C$8:$C$595,BA$5,DT!$D$8:$D$595,$A$1) -> 0 | BB53: =SUMIFS(DT!$CN$8:$CN$595,DT!$C$8:$C$595,BB$5,DT!$D$8:$D$595,$A$1) -> 0 | BC53: =SUMIFS(DT!$CN$8:$CN$595,DT!$C$8:$C$595,BC$5,DT!$D$8:$D$595,$A$1) -> 0 | BD53: 0 | BE53: =SUMIFS(DT!$CN$8:$CN$595,DT!$C$8:$C$595,BE$5,DT!$D$8:$D$595,$A$1) -> 0 | BF53: =SUMIFS(DT!$CN$8:$CN$595,DT!$C$8:$C$595,BF$5,DT!$D$8:$D$595,$A$1) -> 0 | BG53: =SUMIFS(DT!$CN$8:$CN$595,DT!$C$8:$C$595,BG$5,DT!$D$8:$D$595,$A$1) -> 0 | BH53: =$D53-AY53 ->  | BI53: =AY$62-$BH53 -> 
A54: 2.25 | B54: Đất cơ sở tín ngưỡng | C54: TIN | D54: =VLOOKUP(C54,#REF!,MATCH($A$1,maxa,0)+2,0) ->  | E54: 0 | F54: 0 | G54: =SUMIFS(DT!$CP$8:$CP$595,DT!$C$8:$C$595,G$5,DT!$D$8:$D$595,$A$1) -> 0 | H54: =SUMIFS(DT!$CP$8:$CP$595,DT!$C$8:$C$595,H$5,DT!$D$8:$D$595,$A$1) -> 0 | I54: =SUMIFS(DT!$CP$8:$CP$595,DT!$C$8:$C$595,I$5,DT!$D$8:$D$595,$A$1) -> 0 | J54: =SUMIFS(DT!$CP$8:$CP$595,DT!$C$8:$C$595,J$5,DT!$D$8:$D$595,$A$1) -> 0 | K54: =SUMIFS(DT!$CP$8:$CP$595,DT!$C$8:$C$595,K$5,DT!$D$8:$D$595,$A$1) -> 0 | L54: =SUMIFS(DT!$CP$8:$CP$595,DT!$C$8:$C$595,L$5,DT!$D$8:$D$595,$A$1) -> 0 | M54: =SUMIFS(DT!$CP$8:$CP$595,DT!$C$8:$C$595,M$5,DT!$D$8:$D$595,$A$1) -> 0 | N54: =SUMIFS(DT!$CP$8:$CP$595,DT!$C$8:$C$595,N$5,DT!$D$8:$D$595,$A$1) -> 0 | O54: =SUMIFS(DT!$CP$8:$CP$595,DT!$C$8:$C$595,O$5,DT!$D$8:$D$595,$A$1) -> 0 | P54: =SUMIFS(DT!$CP$8:$CP$595,DT!$C$8:$C$595,P$5,DT!$D$8:$D$595,$A$1) -> 0 | Q54: =SUMIFS(DT!$CP$8:$CP$595,DT!$C$8:$C$595,Q$5,DT!$D$8:$D$595,$A$1) -> 0 | S54: =SUMIFS(DT!$CP$8:$CP$595,DT!$C$8:$C$595,S$5,DT!$D$8:$D$595,$A$1) -> 0 | T54: =SUMIFS(DT!$CP$8:$CP$595,DT!$C$8:$C$595,T$5,DT!$D$8:$D$595,$A$1) -> 0 | U54: =SUMIFS(DT!$CP$8:$CP$595,DT!$C$8:$C$595,U$5,DT!$D$8:$D$595,$A$1) -> 0 | V54: =SUMIFS(DT!$CP$8:$CP$595,DT!$C$8:$C$595,V$5,DT!$D$8:$D$595,$A$1) -> 0 | W54: =SUMIFS(DT!$CP$8:$CP$595,DT!$C$8:$C$595,W$5,DT!$D$8:$D$595,$A$1) -> 0 | X54: =SUMIFS(DT!$CP$8:$CP$595,DT!$C$8:$C$595,X$5,DT!$D$8:$D$595,$A$1) -> 0 | Y54: =SUMIFS(DT!$CP$8:$CP$595,DT!$C$8:$C$595,Y$5,DT!$D$8:$D$595,$A$1) -> 0 | Z54: =SUMIFS(DT!$CP$8:$CP$595,DT!$C$8:$C$595,Z$5,DT!$D$8:$D$595,$A$1) -> 0 | AA54: 0 | AB54: =SUMIFS(DT!$CP$8:$CP$595,DT!$C$8:$C$595,AB$5,DT!$D$8:$D$595,$A$1) -> 0 | AC54: =SUMIFS(DT!$CP$8:$CP$595,DT!$C$8:$C$595,AC$5,DT!$D$8:$D$595,$A$1) -> 0 | AD54: =SUMIFS(DT!$CP$8:$CP$595,DT!$C$8:$C$595,AD$5,DT!$D$8:$D$595,$A$1) -> 0 | AE54: =SUMIFS(DT!$CP$8:$CP$595,DT!$C$8:$C$595,AE$5,DT!$D$8:$D$595,$A$1) -> 0 | AF54: =SUMIFS(DT!$CP$8:$CP$595,DT!$C$8:$C$595,AF$5,DT!$D$8:$D$595,$A$1) -> 0 | AG54: =SUMIFS(DT!$CP$8:$CP$595,DT!$C$8:$C$595,AG$5,DT!$D$8:$D$595,$A$1) -> 0 | AH54: =SUMIFS(DT!$CP$8:$CP$595,DT!$C$8:$C$595,AH$5,DT!$D$8:$D$595,$A$1) -> 0 | AI54: =SUMIFS(DT!$CP$8:$CP$595,DT!$C$8:$C$595,AI$5,DT!$D$8:$D$595,$A$1) -> 0 | AJ54: =SUMIFS(DT!$CP$8:$CP$595,DT!$C$8:$C$595,AJ$5,DT!$D$8:$D$595,$A$1) -> 0 | AK54: =SUMIFS(DT!$CP$8:$CP$595,DT!$C$8:$C$595,AK$5,DT!$D$8:$D$595,$A$1) -> 0 | AL54: =SUMIFS(DT!$CP$8:$CP$595,DT!$C$8:$C$595,AL$5,DT!$D$8:$D$595,$A$1) -> 0 | AM54: =SUMIFS(DT!$CP$8:$CP$595,DT!$C$8:$C$595,AM$5,DT!$D$8:$D$595,$A$1) -> 0 | AN54: =SUMIFS(DT!$CP$8:$CP$595,DT!$C$8:$C$595,AN$5,DT!$D$8:$D$595,$A$1) -> 0 | AO54: =SUMIFS(DT!$CP$8:$CP$595,DT!$C$8:$C$595,AO$5,DT!$D$8:$D$595,$A$1) -> 0 | AP54: =SUMIFS(DT!$CP$8:$CP$595,DT!$C$8:$C$595,AP$5,DT!$D$8:$D$595,$A$1) -> 0 | AQ54: =SUMIFS(DT!$CP$8:$CP$595,DT!$C$8:$C$595,AQ$5,DT!$D$8:$D$595,$A$1) -> 0 | AR54: =SUMIFS(DT!$CP$8:$CP$595,DT!$C$8:$C$595,AR$5,DT!$D$8:$D$595,$A$1) -> 0 | AS54: =SUMIFS(DT!$CP$8:$CP$595,DT!$C$8:$C$595,AS$5,DT!$D$8:$D$595,$A$1) -> 0 | AT54: =SUMIFS(DT!$CP$8:$CP$595,DT!$C$8:$C$595,AT$5,DT!$D$8:$D$595,$A$1) -> 0 | AU54: =SUMIFS(DT!$CP$8:$CP$595,DT!$C$8:$C$595,AU$5,DT!$D$8:$D$595,$A$1) -> 0 | AV54: =SUMIFS(DT!$CP$8:$CP$595,DT!$C$8:$C$595,AV$5,DT!$D$8:$D$595,$A$1) -> 0 | AW54: =SUMIFS(DT!$CP$8:$CP$595,DT!$C$8:$C$595,AW$5,DT!$D$8:$D$595,$A$1) -> 0 | AX54: =SUMIFS(DT!$CP$8:$CP$595,DT!$C$8:$C$595,AX$5,DT!$D$8:$D$595,$A$1) -> 0 | AY54: =SUMIFS(DT!$CP$8:$CP$595,DT!$C$8:$C$595,AY$5,DT!$D$8:$D$595,$A$1) -> 0 | AZ54: =$D54-$E54-SUM($S54:$AA54)-SUM($AM54:AY54)-SUM(BA54:$BD54) ->  | BA54: =SUMIFS(DT!$CP$8:$CP$595,DT!$C$8:$C$595,BA$5,DT!$D$8:$D$595,$A$1) -> 0 | BB54: =SUMIFS(DT!$CP$8:$CP$595,DT!$C$8:$C$595,BB$5,DT!$D$8:$D$595,$A$1) -> 0 | BC54: =SUMIFS(DT!$CP$8:$CP$595,DT!$C$8:$C$595,BC$5,DT!$D$8:$D$595,$A$1) -> 0 | BD54: 0 | BE54: =SUMIFS(DT!$CP$8:$CP$595,DT!$C$8:$C$595,BE$5,DT!$D$8:$D$595,$A$1) -> 0 | BF54: =SUMIFS(DT!$CP$8:$CP$595,DT!$C$8:$C$595,BF$5,DT!$D$8:$D$595,$A$1) -> 0 | BG54: =SUMIFS(DT!$CP$8:$CP$595,DT!$C$8:$C$595,BG$5,DT!$D$8:$D$595,$A$1) -> 0 | BH54: =$D54-AZ54 ->  | BI54: =AZ$62-$BH54 -> 
A55: 2.26 | B55: Đất sông, ngòi, kênh, rạch, suối | C55: SON | D55: =VLOOKUP(C55,#REF!,MATCH($A$1,maxa,0)+2,0) ->  | E55: 0 | F55: 0 | G55: =SUMIFS(DT!$CR$8:$CR$595,DT!$C$8:$C$595,G$5,DT!$D$8:$D$595,$A$1) -> 0 | H55: =SUMIFS(DT!$CR$8:$CR$595,DT!$C$8:$C$595,H$5,DT!$D$8:$D$595,$A$1) -> 0 | I55: =SUMIFS(DT!$CR$8:$CR$595,DT!$C$8:$C$595,I$5,DT!$D$8:$D$595,$A$1) -> 0 | J55: =SUMIFS(DT!$CR$8:$CR$595,DT!$C$8:$C$595,J$5,DT!$D$8:$D$595,$A$1) -> 0 | K55: =SUMIFS(DT!$CR$8:$CR$595,DT!$C$8:$C$595,K$5,DT!$D$8:$D$595,$A$1) -> 0 | L55: =SUMIFS(DT!$CR$8:$CR$595,DT!$C$8:$C$595,L$5,DT!$D$8:$D$595,$A$1) -> 0 | M55: =SUMIFS(DT!$CR$8:$CR$595,DT!$C$8:$C$595,M$5,DT!$D$8:$D$595,$A$1) -> 0 | N55: =SUMIFS(DT!$CR$8:$CR$595,DT!$C$8:$C$595,N$5,DT!$D$8:$D$595,$A$1) -> 0 | O55: =SUMIFS(DT!$CR$8:$CR$595,DT!$C$8:$C$595,O$5,DT!$D$8:$D$595,$A$1) -> 0 | P55: =SUMIFS(DT!$CR$8:$CR$595,DT!$C$8:$C$595,P$5,DT!$D$8:$D$595,$A$1) -> 0 | Q55: =SUMIFS(DT!$CR$8:$CR$595,DT!$C$8:$C$595,Q$5,DT!$D$8:$D$595,$A$1) -> 0 | S55: =SUMIFS(DT!$CR$8:$CR$595,DT!$C$8:$C$595,S$5,DT!$D$8:$D$595,$A$1) -> 0 | T55: =SUMIFS(DT!$CR$8:$CR$595,DT!$C$8:$C$595,T$5,DT!$D$8:$D$595,$A$1) -> 0 | U55: =SUMIFS(DT!$CR$8:$CR$595,DT!$C$8:$C$595,U$5,DT!$D$8:$D$595,$A$1) -> 0 | V55: =SUMIFS(DT!$CR$8:$CR$595,DT!$C$8:$C$595,V$5,DT!$D$8:$D$595,$A$1) -> 0 | W55: =SUMIFS(DT!$CR$8:$CR$595,DT!$C$8:$C$595,W$5,DT!$D$8:$D$595,$A$1) -> 0 | X55: =SUMIFS(DT!$CR$8:$CR$595,DT!$C$8:$C$595,X$5,DT!$D$8:$D$595,$A$1) -> 0 | Y55: =SUMIFS(DT!$CR$8:$CR$595,DT!$C$8:$C$595,Y$5,DT!$D$8:$D$595,$A$1) -> 0 | Z55: =SUMIFS(DT!$CR$8:$CR$595,DT!$C$8:$C$595,Z$5,DT!$D$8:$D$595,$A$1) -> 0 | AA55: 0 | AB55: =SUMIFS(DT!$CR$8:$CR$595,DT!$C$8:$C$595,AB$5,DT!$D$8:$D$595,$A$1) -> 0 | AC55: =SUMIFS(DT!$CR$8:$CR$595,DT!$C$8:$C$595,AC$5,DT!$D$8:$D$595,$A$1) -> 0 | AD55: =SUMIFS(DT!$CR$8:$CR$595,DT!$C$8:$C$595,AD$5,DT!$D$8:$D$595,$A$1) -> 0 | AE55: =SUMIFS(DT!$CR$8:$CR$595,DT!$C$8:$C$595,AE$5,DT!$D$8:$D$595,$A$1) -> 0 | AF55: =SUMIFS(DT!$CR$8:$CR$595,DT!$C$8:$C$595,AF$5,DT!$D$8:$D$595,$A$1) -> 0 | AG55: =SUMIFS(DT!$CR$8:$CR$595,DT!$C$8:$C$595,AG$5,DT!$D$8:$D$595,$A$1) -> 0 | AH55: =SUMIFS(DT!$CR$8:$CR$595,DT!$C$8:$C$595,AH$5,DT!$D$8:$D$595,$A$1) -> 0 | AI55: =SUMIFS(DT!$CR$8:$CR$595,DT!$C$8:$C$595,AI$5,DT!$D$8:$D$595,$A$1) -> 0 | AJ55: =SUMIFS(DT!$CR$8:$CR$595,DT!$C$8:$C$595,AJ$5,DT!$D$8:$D$595,$A$1) -> 0 | AK55: =SUMIFS(DT!$CR$8:$CR$595,DT!$C$8:$C$595,AK$5,DT!$D$8:$D$595,$A$1) -> 0 | AL55: =SUMIFS(DT!$CR$8:$CR$595,DT!$C$8:$C$595,AL$5,DT!$D$8:$D$595,$A$1) -> 0 | AM55: =SUMIFS(DT!$CR$8:$CR$595,DT!$C$8:$C$595,AM$5,DT!$D$8:$D$595,$A$1) -> 0 | AN55: =SUMIFS(DT!$CR$8:$CR$595,DT!$C$8:$C$595,AN$5,DT!$D$8:$D$595,$A$1) -> 0 | AO55: =SUMIFS(DT!$CR$8:$CR$595,DT!$C$8:$C$595,AO$5,DT!$D$8:$D$595,$A$1) -> 0 | AP55: =SUMIFS(DT!$CR$8:$CR$595,DT!$C$8:$C$595,AP$5,DT!$D$8:$D$595,$A$1) -> 0 | AQ55: =SUMIFS(DT!$CR$8:$CR$595,DT!$C$8:$C$595,AQ$5,DT!$D$8:$D$595,$A$1) -> 0 | AR55: =SUMIFS(DT!$CR$8:$CR$595,DT!$C$8:$C$595,AR$5,DT!$D$8:$D$595,$A$1) -> 0 | AS55: =SUMIFS(DT!$CR$8:$CR$595,DT!$C$8:$C$595,AS$5,DT!$D$8:$D$595,$A$1) -> 0 | AT55: =SUMIFS(DT!$CR$8:$CR$595,DT!$C$8:$C$595,AT$5,DT!$D$8:$D$595,$A$1) -> 0 | AU55: =SUMIFS(DT!$CR$8:$CR$595,DT!$C$8:$C$595,AU$5,DT!$D$8:$D$595,$A$1) -> 0 | AV55: =SUMIFS(DT!$CR$8:$CR$595,DT!$C$8:$C$595,AV$5,DT!$D$8:$D$595,$A$1) -> 0 | AW55: =SUMIFS(DT!$CR$8:$CR$595,DT!$C$8:$C$595,AW$5,DT!$D$8:$D$595,$A$1) -> 0 | AX55: =SUMIFS(DT!$CR$8:$CR$595,DT!$C$8:$C$595,AX$5,DT!$D$8:$D$595,$A$1) -> 0 | AY55: =SUMIFS(DT!$CR$8:$CR$595,DT!$C$8:$C$595,AY$5,DT!$D$8:$D$595,$A$1) -> 0 | AZ55: =SUMIFS(DT!$CR$8:$CR$595,DT!$C$8:$C$595,AZ$5,DT!$D$8:$D$595,$A$1) -> 0 | BA55: =$D55-$E55-SUM($S55:$AA55)-SUM($AM55:AZ55)-SUM(BB55:$BD55) ->  | BB55: =SUMIFS(DT!$CR$8:$CR$595,DT!$C$8:$C$595,BB$5,DT!$D$8:$D$595,$A$1) -> 0 | BC55: =SUMIFS(DT!$CR$8:$CR$595,DT!$C$8:$C$595,BC$5,DT!$D$8:$D$595,$A$1) -> 0 | BD55: 0 | BE55: =SUMIFS(DT!$CR$8:$CR$595,DT!$C$8:$C$595,BE$5,DT!$D$8:$D$595,$A$1) -> 0 | BF55: =SUMIFS(DT!$CR$8:$CR$595,DT!$C$8:$C$595,BF$5,DT!$D$8:$D$595,$A$1) -> 0 | BG55: =SUMIFS(DT!$CR$8:$CR$595,DT!$C$8:$C$595,BG$5,DT!$D$8:$D$595,$A$1) -> 0 | BH55: =$D55-BA55 ->  | BI55: =BA$62-$BH55 -> 
A56: 2.27 | B56: Đất có mặt nước chuyên dùng | C56: MNC | D56: =VLOOKUP(C56,#REF!,MATCH($A$1,maxa,0)+2,0) ->  | E56: 0 | F56: 0 | G56: =SUMIFS(DT!$CT$8:$CT$595,DT!$C$8:$C$595,G$5,DT!$D$8:$D$595,$A$1) -> 0 | H56: =SUMIFS(DT!$CT$8:$CT$595,DT!$C$8:$C$595,H$5,DT!$D$8:$D$595,$A$1) -> 0 | I56: =SUMIFS(DT!$CT$8:$CT$595,DT!$C$8:$C$595,I$5,DT!$D$8:$D$595,$A$1) -> 0 | J56: =SUMIFS(DT!$CT$8:$CT$595,DT!$C$8:$C$595,J$5,DT!$D$8:$D$595,$A$1) -> 0 | K56: =SUMIFS(DT!$CT$8:$CT$595,DT!$C$8:$C$595,K$5,DT!$D$8:$D$595,$A$1) -> 0 | L56: =SUMIFS(DT!$CT$8:$CT$595,DT!$C$8:$C$595,L$5,DT!$D$8:$D$595,$A$1) -> 0 | M56: =SUMIFS(DT!$CT$8:$CT$595,DT!$C$8:$C$595,M$5,DT!$D$8:$D$595,$A$1) -> 0 | N56: =SUMIFS(DT!$CT$8:$CT$595,DT!$C$8:$C$595,N$5,DT!$D$8:$D$595,$A$1) -> 0 | O56: =SUMIFS(DT!$CT$8:$CT$595,DT!$C$8:$C$595,O$5,DT!$D$8:$D$595,$A$1) -> 0 | P56: =SUMIFS(DT!$CT$8:$CT$595,DT!$C$8:$C$595,P$5,DT!$D$8:$D$595,$A$1) -> 0 | Q56: =SUMIFS(DT!$CT$8:$CT$595,DT!$C$8:$C$595,Q$5,DT!$D$8:$D$595,$A$1) -> 0 | S56: =SUMIFS(DT!$CT$8:$CT$595,DT!$C$8:$C$595,S$5,DT!$D$8:$D$595,$A$1) -> 0 | T56: =SUMIFS(DT!$CT$8:$CT$595,DT!$C$8:$C$595,T$5,DT!$D$8:$D$595,$A$1) -> 0 | U56: =SUMIFS(DT!$CT$8:$CT$595,DT!$C$8:$C$595,U$5,DT!$D$8:$D$595,$A$1) -> 0 | V56: =SUMIFS(DT!$CT$8:$CT$595,DT!$C$8:$C$595,V$5,DT!$D$8:$D$595,$A$1) -> 0 | W56: =SUMIFS(DT!$CT$8:$CT$595,DT!$C$8:$C$595,W$5,DT!$D$8:$D$595,$A$1) -> 0 | X56: =SUMIFS(DT!$CT$8:$CT$595,DT!$C$8:$C$595,X$5,DT!$D$8:$D$595,$A$1) -> 0 | Y56: =SUMIFS(DT!$CT$8:$CT$595,DT!$C$8:$C$595,Y$5,DT!$D$8:$D$595,$A$1) -> 0 | Z56: =SUMIFS(DT!$CT$8:$CT$595,DT!$C$8:$C$595,Z$5,DT!$D$8:$D$595,$A$1) -> 0 | AA56: 0 | AB56: =SUMIFS(DT!$CT$8:$CT$595,DT!$C$8:$C$595,AB$5,DT!$D$8:$D$595,$A$1) -> 0 | AC56: =SUMIFS(DT!$CT$8:$CT$595,DT!$C$8:$C$595,AC$5,DT!$D$8:$D$595,$A$1) -> 0 | AD56: =SUMIFS(DT!$CT$8:$CT$595,DT!$C$8:$C$595,AD$5,DT!$D$8:$D$595,$A$1) -> 0 | AE56: =SUMIFS(DT!$CT$8:$CT$595,DT!$C$8:$C$595,AE$5,DT!$D$8:$D$595,$A$1) -> 0 | AF56: =SUMIFS(DT!$CT$8:$CT$595,DT!$C$8:$C$595,AF$5,DT!$D$8:$D$595,$A$1) -> 0 | AG56: =SUMIFS(DT!$CT$8:$CT$595,DT!$C$8:$C$595,AG$5,DT!$D$8:$D$595,$A$1) -> 0 | AH56: =SUMIFS(DT!$CT$8:$CT$595,DT!$C$8:$C$595,AH$5,DT!$D$8:$D$595,$A$1) -> 0 | AI56: =SUMIFS(DT!$CT$8:$CT$595,DT!$C$8:$C$595,AI$5,DT!$D$8:$D$595,$A$1) -> 0 | AJ56: =SUMIFS(DT!$CT$8:$CT$595,DT!$C$8:$C$595,AJ$5,DT!$D$8:$D$595,$A$1) -> 0 | AK56: =SUMIFS(DT!$CT$8:$CT$595,DT!$C$8:$C$595,AK$5,DT!$D$8:$D$595,$A$1) -> 0 | AL56: =SUMIFS(DT!$CT$8:$CT$595,DT!$C$8:$C$595,AL$5,DT!$D$8:$D$595,$A$1) -> 0 | AM56: =SUMIFS(DT!$CT$8:$CT$595,DT!$C$8:$C$595,AM$5,DT!$D$8:$D$595,$A$1) -> 0 | AN56: =SUMIFS(DT!$CT$8:$CT$595,DT!$C$8:$C$595,AN$5,DT!$D$8:$D$595,$A$1) -> 0 | AO56: =SUMIFS(DT!$CT$8:$CT$595,DT!$C$8:$C$595,AO$5,DT!$D$8:$D$595,$A$1) -> 0 | AP56: =SUMIFS(DT!$CT$8:$CT$595,DT!$C$8:$C$595,AP$5,DT!$D$8:$D$595,$A$1) -> 0 | AQ56: =SUMIFS(DT!$CT$8:$CT$595,DT!$C$8:$C$595,AQ$5,DT!$D$8:$D$595,$A$1) -> 0 | AR56: =SUMIFS(DT!$CT$8:$CT$595,DT!$C$8:$C$595,AR$5,DT!$D$8:$D$595,$A$1) -> 0 | AS56: =SUMIFS(DT!$CT$8:$CT$595,DT!$C$8:$C$595,AS$5,DT!$D$8:$D$595,$A$1) -> 0 | AT56: =SUMIFS(DT!$CT$8:$CT$595,DT!$C$8:$C$595,AT$5,DT!$D$8:$D$595,$A$1) -> 0 | AU56: =SUMIFS(DT!$CT$8:$CT$595,DT!$C$8:$C$595,AU$5,DT!$D$8:$D$595,$A$1) -> 0 | AV56: =SUMIFS(DT!$CT$8:$CT$595,DT!$C$8:$C$595,AV$5,DT!$D$8:$D$595,$A$1) -> 0 | AW56: =SUMIFS(DT!$CT$8:$CT$595,DT!$C$8:$C$595,AW$5,DT!$D$8:$D$595,$A$1) -> 0 | AX56: =SUMIFS(DT!$CT$8:$CT$595,DT!$C$8:$C$595,AX$5,DT!$D$8:$D$595,$A$1) -> 0 | AY56: =SUMIFS(DT!$CT$8:$CT$595,DT!$C$8:$C$595,AY$5,DT!$D$8:$D$595,$A$1) -> 0 | AZ56: =SUMIFS(DT!$CT$8:$CT$595,DT!$C$8:$C$595,AZ$5,DT!$D$8:$D$595,$A$1) -> 0 | BA56: =SUMIFS(DT!$CT$8:$CT$595,DT!$C$8:$C$595,BA$5,DT!$D$8:$D$595,$A$1) -> 0 | BB56: =$D56-$E56-SUM($S56:$AA56)-SUM($AM56:BA56)-SUM(BC56:$BD56) ->  | BC56: =SUMIFS(DT!$CT$8:$CT$595,DT!$C$8:$C$595,BC$5,DT!$D$8:$D$595,$A$1) -> 0 | BD56: 0 | BE56: =SUMIFS(DT!$CT$8:$CT$595,DT!$C$8:$C$595,BE$5,DT!$D$8:$D$595,$A$1) -> 0 | BF56: =SUMIFS(DT!$CT$8:$CT$595,DT!$C$8:$C$595,BF$5,DT!$D$8:$D$595,$A$1) -> 0 | BG56: =SUMIFS(DT!$CT$8:$CT$595,DT!$C$8:$C$595,BG$5,DT!$D$8:$D$595,$A$1) -> 0 | BH56: =$D56-BB56 ->  | BI56: =BB$62-$BH56 -> 
A57: 2.28 | B57: Đất phi nông nghiệp khác | C57: PNK | D57: =VLOOKUP(C57,#REF!,MATCH($A$1,maxa,0)+2,0) ->  | E57: 0 | F57: 0 | G57: =SUMIFS(DT!$CV$8:$CV$595,DT!$C$8:$C$595,G$5,DT!$D$8:$D$595,$A$1) -> 0 | H57: =SUMIFS(DT!$CV$8:$CV$595,DT!$C$8:$C$595,H$5,DT!$D$8:$D$595,$A$1) -> 0 | I57: =SUMIFS(DT!$CV$8:$CV$595,DT!$C$8:$C$595,I$5,DT!$D$8:$D$595,$A$1) -> 0 | J57: =SUMIFS(DT!$CV$8:$CV$595,DT!$C$8:$C$595,J$5,DT!$D$8:$D$595,$A$1) -> 0 | K57: =SUMIFS(DT!$CV$8:$CV$595,DT!$C$8:$C$595,K$5,DT!$D$8:$D$595,$A$1) -> 0 | L57: =SUMIFS(DT!$CV$8:$CV$595,DT!$C$8:$C$595,L$5,DT!$D$8:$D$595,$A$1) -> 0 | M57: =SUMIFS(DT!$CV$8:$CV$595,DT!$C$8:$C$595,M$5,DT!$D$8:$D$595,$A$1) -> 0 | N57: =SUMIFS(DT!$CV$8:$CV$595,DT!$C$8:$C$595,N$5,DT!$D$8:$D$595,$A$1) -> 0 | O57: =SUMIFS(DT!$CV$8:$CV$595,DT!$C$8:$C$595,O$5,DT!$D$8:$D$595,$A$1) -> 0 | P57: =SUMIFS(DT!$CV$8:$CV$595,DT!$C$8:$C$595,P$5,DT!$D$8:$D$595,$A$1) -> 0 | Q57: =SUMIFS(DT!$CV$8:$CV$595,DT!$C$8:$C$595,Q$5,DT!$D$8:$D$595,$A$1) -> 0 | S57: =SUMIFS(DT!$CV$8:$CV$595,DT!$C$8:$C$595,S$5,DT!$D$8:$D$595,$A$1) -> 0 | T57: =SUMIFS(DT!$CV$8:$CV$595,DT!$C$8:$C$595,T$5,DT!$D$8:$D$595,$A$1) -> 0 | U57: =SUMIFS(DT!$CV$8:$CV$595,DT!$C$8:$C$595,U$5,DT!$D$8:$D$595,$A$1) -> 0 | V57: =SUMIFS(DT!$CV$8:$CV$595,DT!$C$8:$C$595,V$5,DT!$D$8:$D$595,$A$1) -> 0 | W57: =SUMIFS(DT!$CV$8:$CV$595,DT!$C$8:$C$595,W$5,DT!$D$8:$D$595,$A$1) -> 0 | X57: =SUMIFS(DT!$CV$8:$CV$595,DT!$C$8:$C$595,X$5,DT!$D$8:$D$595,$A$1) -> 0 | Y57: =SUMIFS(DT!$CV$8:$CV$595,DT!$C$8:$C$595,Y$5,DT!$D$8:$D$595,$A$1) -> 0 | Z57: =SUMIFS(DT!$CV$8:$CV$595,DT!$C$8:$C$595,Z$5,DT!$D$8:$D$595,$A$1) -> 0 | AA57: 0 | AB57: =SUMIFS(DT!$CV$8:$CV$595,DT!$C$8:$C$595,AB$5,DT!$D$8:$D$595,$A$1) -> 0 | AC57: =SUMIFS(DT!$CV$8:$CV$595,DT!$C$8:$C$595,AC$5,DT!$D$8:$D$595,$A$1) -> 0 | AD57: =SUMIFS(DT!$CV$8:$CV$595,DT!$C$8:$C$595,AD$5,DT!$D$8:$D$595,$A$1) -> 0 | AE57: =SUMIFS(DT!$CV$8:$CV$595,DT!$C$8:$C$595,AE$5,DT!$D$8:$D$595,$A$1) -> 0 | AF57: =SUMIFS(DT!$CV$8:$CV$595,DT!$C$8:$C$595,AF$5,DT!$D$8:$D$595,$A$1) -> 0 | AG57: =SUMIFS(DT!$CV$8:$CV$595,DT!$C$8:$C$595,AG$5,DT!$D$8:$D$595,$A$1) -> 0 | AH57: =SUMIFS(DT!$CV$8:$CV$595,DT!$C$8:$C$595,AH$5,DT!$D$8:$D$595,$A$1) -> 0 | AI57: =SUMIFS(DT!$CV$8:$CV$595,DT!$C$8:$C$595,AI$5,DT!$D$8:$D$595,$A$1) -> 0 | AJ57: =SUMIFS(DT!$CV$8:$CV$595,DT!$C$8:$C$595,AJ$5,DT!$D$8:$D$595,$A$1) -> 0 | AK57: =SUMIFS(DT!$CV$8:$CV$595,DT!$C$8:$C$595,AK$5,DT!$D$8:$D$595,$A$1) -> 0 | AL57: =SUMIFS(DT!$CV$8:$CV$595,DT!$C$8:$C$595,AL$5,DT!$D$8:$D$595,$A$1) -> 0 | AM57: =SUMIFS(DT!$CV$8:$CV$595,DT!$C$8:$C$595,AM$5,DT!$D$8:$D$595,$A$1) -> 0 | AN57: =SUMIFS(DT!$CV$8:$CV$595,DT!$C$8:$C$595,AN$5,DT!$D$8:$D$595,$A$1) -> 0 | AO57: =SUMIFS(DT!$CV$8:$CV$595,DT!$C$8:$C$595,AO$5,DT!$D$8:$D$595,$A$1) -> 0 | AP57: =SUMIFS(DT!$CV$8:$CV$595,DT!$C$8:$C$595,AP$5,DT!$D$8:$D$595,$A$1) -> 0 | AQ57: =SUMIFS(DT!$CV$8:$CV$595,DT!$C$8:$C$595,AQ$5,DT!$D$8:$D$595,$A$1) -> 0 | AR57: =SUMIFS(DT!$CV$8:$CV$595,DT!$C$8:$C$595,AR$5,DT!$D$8:$D$595,$A$1) -> 0 | AS57: =SUMIFS(DT!$CV$8:$CV$595,DT!$C$8:$C$595,AS$5,DT!$D$8:$D$595,$A$1) -> 0 | AT57: =SUMIFS(DT!$CV$8:$CV$595,DT!$C$8:$C$595,AT$5,DT!$D$8:$D$595,$A$1) -> 0 | AU57: =SUMIFS(DT!$CV$8:$CV$595,DT!$C$8:$C$595,AU$5,DT!$D$8:$D$595,$A$1) -> 0 | AV57: =SUMIFS(DT!$CV$8:$CV$595,DT!$C$8:$C$595,AV$5,DT!$D$8:$D$595,$A$1) -> 0 | AW57: =SUMIFS(DT!$CV$8:$CV$595,DT!$C$8:$C$595,AW$5,DT!$D$8:$D$595,$A$1) -> 0 | AX57: =SUMIFS(DT!$CV$8:$CV$595,DT!$C$8:$C$595,AX$5,DT!$D$8:$D$595,$A$1) -> 0 | AY57: =SUMIFS(DT!$CV$8:$CV$595,DT!$C$8:$C$595,AY$5,DT!$D$8:$D$595,$A$1) -> 0 | AZ57: =SUMIFS(DT!$CV$8:$CV$595,DT!$C$8:$C$595,AZ$5,DT!$D$8:$D$595,$A$1) -> 0 | BA57: =SUMIFS(DT!$CV$8:$CV$595,DT!$C$8:$C$595,BA$5,DT!$D$8:$D$595,$A$1) -> 0 | BB57: =SUMIFS(DT!$CV$8:$CV$595,DT!$C$8:$C$595,BB$5,DT!$D$8:$D$595,$A$1) -> 0 | BC57: =$D57-$E57-SUM($S57:$AA57)-SUM($AM57:BB57)-SUM(BD57:$BD57) ->  | BD57: 0 | BE57: =SUMIFS(DT!$CV$8:$CV$595,DT!$C$8:$C$595,BE$5,DT!$D$8:$D$595,$A$1) -> 0 | BF57: =SUMIFS(DT!$CV$8:$CV$595,DT!$C$8:$C$595,BF$5,DT!$D$8:$D$595,$A$1) -> 0 | BG57: =SUMIFS(DT!$CV$8:$CV$595,DT!$C$8:$C$595,BG$5,DT!$D$8:$D$595,$A$1) -> 0 | BH57: =$D57-BC57 ->  | BI57: =BC$62-$BH57 -> 
A58: 3 | B58: Đất chưa sử dụng | C58: CSD | D58: =D59+D60+D61 ->  | E58: =E59+E60+E61 -> 0 | F58: 0 | G58: 0 | H58: 0 | I58: 0 | J58: 0 | K58: 0 | L58: 0 | M58: 0 | N58: 0 | O58: 0 | P58: 0 | Q58: 0 | R58: 0 | S58: 0 | T58: 0 | U58: 0 | V58: 0 | W58: 0 | X58: 0 | Y58: 0 | Z58: 0 | AA58: 0 | AB58: 0 | AC58: 0 | AD58: 0 | AE58: 0 | AF58: 0 | AG58: 0 | AH58: 0 | AI58: 0 | AJ58: 0 | AK58: 0 | AL58: 0 | AM58: 0 | AN58: 0 | AO58: 0 | AP58: 0 | AQ58: 0 | AR58: 0 | AS58: 0 | AT58: 0 | AU58: 0 | AV58: 0 | AW58: 0 | AX58: 0 | AY58: 0 | AZ58: 0 | BA58: 0 | BB58: 0 | BC58: 0 | BD58: =D58-E58-R58 ->  | BH58: =$D58-BD58 ->  | BI58: =BD$62-$BH58 -> 
A59: 3.1 | B59: Đất bằng chưa sử dụng | C59: BCS | D59: =VLOOKUP(C59,#REF!,MATCH($A$1,maxa,0)+2,0) ->  | E59: =F59+SUM(J59:Q59) -> 0 | F59: =SUM(G59:I59) -> 0 | G59: =SUMIFS(DT!$CX$8:$CX$595,DT!$C$8:$C$595,G$5,DT!$D$8:$D$595,$A$1) -> 0 | H59: =SUMIFS(DT!$CX$8:$CX$595,DT!$C$8:$C$595,H$5,DT!$D$8:$D$595,$A$1) -> 0 | I59: =SUMIFS(DT!$CX$8:$CX$595,DT!$C$8:$C$595,I$5,DT!$D$8:$D$595,$A$1) -> 0 | J59: =SUMIFS(DT!$CX$8:$CX$595,DT!$C$8:$C$595,J$5,DT!$D$8:$D$595,$A$1) -> 0 | K59: =SUMIFS(DT!$CX$8:$CX$595,DT!$C$8:$C$595,K$5,DT!$D$8:$D$595,$A$1) -> 0 | L59: =SUMIFS(DT!$CX$8:$CX$595,DT!$C$8:$C$595,L$5,DT!$D$8:$D$595,$A$1) -> 0 | M59: =SUMIFS(DT!$CX$8:$CX$595,DT!$C$8:$C$595,M$5,DT!$D$8:$D$595,$A$1) -> 0 | N59: =SUMIFS(DT!$CX$8:$CX$595,DT!$C$8:$C$595,N$5,DT!$D$8:$D$595,$A$1) -> 0 | O59: =SUMIFS(DT!$CX$8:$CX$595,DT!$C$8:$C$595,O$5,DT!$D$8:$D$595,$A$1) -> 0 | P59: =SUMIFS(DT!$CX$8:$CX$595,DT!$C$8:$C$595,P$5,DT!$D$8:$D$595,$A$1) -> 0 | Q59: =SUMIFS(DT!$CX$8:$CX$595,DT!$C$8:$C$595,Q$5,DT!$D$8:$D$595,$A$1) -> 0 | R59: =SUM(S59:AA59)+SUM(AM59:BC59) -> 0 | S59: =SUMIFS(DT!$CX$8:$CX$595,DT!$C$8:$C$595,S$5,DT!$D$8:$D$595,$A$1) -> 0 | T59: =SUMIFS(DT!$CX$8:$CX$595,DT!$C$8:$C$595,T$5,DT!$D$8:$D$595,$A$1) -> 0 | U59: =SUMIFS(DT!$CX$8:$CX$595,DT!$C$8:$C$595,U$5,DT!$D$8:$D$595,$A$1) -> 0 | V59: =SUMIFS(DT!$CX$8:$CX$595,DT!$C$8:$C$595,V$5,DT!$D$8:$D$595,$A$1) -> 0 | W59: =SUMIFS(DT!$CX$8:$CX$595,DT!$C$8:$C$595,W$5,DT!$D$8:$D$595,$A$1) -> 0 | X59: =SUMIFS(DT!$CX$8:$CX$595,DT!$C$8:$C$595,X$5,DT!$D$8:$D$595,$A$1) -> 0 | Y59: =SUMIFS(DT!$CX$8:$CX$595,DT!$C$8:$C$595,Y$5,DT!$D$8:$D$595,$A$1) -> 0 | Z59: =SUMIFS(DT!$CX$8:$CX$595,DT!$C$8:$C$595,Z$5,DT!$D$8:$D$595,$A$1) -> 0 | AA59: 0 | AB59: =SUMIFS(DT!$CX$8:$CX$595,DT!$C$8:$C$595,AB$5,DT!$D$8:$D$595,$A$1) -> 0 | AC59: =SUMIFS(DT!$CX$8:$CX$595,DT!$C$8:$C$595,AC$5,DT!$D$8:$D$595,$A$1) -> 0 | AD59: =SUMIFS(DT!$CX$8:$CX$595,DT!$C$8:$C$595,AD$5,DT!$D$8:$D$595,$A$1) -> 0 | AE59: =SUMIFS(DT!$CX$8:$CX$595,DT!$C$8:$C$595,AE$5,DT!$D$8:$D$595,$A$1) -> 0 | AF59: =SUMIFS(DT!$CX$8:$CX$595,DT!$C$8:$C$595,AF$5,DT!$D$8:$D$595,$A$1) -> 0 | AG59: =SUMIFS(DT!$CX$8:$CX$595,DT!$C$8:$C$595,AG$5,DT!$D$8:$D$595,$A$1) -> 0 | AH59: =SUMIFS(DT!$CX$8:$CX$595,DT!$C$8:$C$595,AH$5,DT!$D$8:$D$595,$A$1) -> 0 | AI59: =SUMIFS(DT!$CX$8:$CX$595,DT!$C$8:$C$595,AI$5,DT!$D$8:$D$595,$A$1) -> 0 | AJ59: =SUMIFS(DT!$CX$8:$CX$595,DT!$C$8:$C$595,AJ$5,DT!$D$8:$D$595,$A$1) -> 0 | AK59: =SUMIFS(DT!$CX$8:$CX$595,DT!$C$8:$C$595,AK$5,DT!$D$8:$D$595,$A$1) -> 0 | AL59: =SUMIFS(DT!$CX$8:$CX$595,DT!$C$8:$C$595,AL$5,DT!$D$8:$D$595,$A$1) -> 0 | AM59: =SUMIFS(DT!$CX$8:$CX$595,DT!$C$8:$C$595,AM$5,DT!$D$8:$D$595,$A$1) -> 0 | AN59: =SUMIFS(DT!$CX$8:$CX$595,DT!$C$8:$C$595,AN$5,DT!$D$8:$D$595,$A$1) -> 0 | AO59: =SUMIFS(DT!$CX$8:$CX$595,DT!$C$8:$C$595,AO$5,DT!$D$8:$D$595,$A$1) -> 0 | AP59: =SUMIFS(DT!$CX$8:$CX$595,DT!$C$8:$C$595,AP$5,DT!$D$8:$D$595,$A$1) -> 0 | AQ59: =SUMIFS(DT!$CX$8:$CX$595,DT!$C$8:$C$595,AQ$5,DT!$D$8:$D$595,$A$1) -> 0 | AR59: =SUMIFS(DT!$CX$8:$CX$595,DT!$C$8:$C$595,AR$5,DT!$D$8:$D$595,$A$1) -> 0 | AS59: =SUMIFS(DT!$CX$8:$CX$595,DT!$C$8:$C$595,AS$5,DT!$D$8:$D$595,$A$1) -> 0 | AT59: =SUMIFS(DT!$CX$8:$CX$595,DT!$C$8:$C$595,AT$5,DT!$D$8:$D$595,$A$1) -> 0 | AU59: =SUMIFS(DT!$CX$8:$CX$595,DT!$C$8:$C$595,AU$5,DT!$D$8:$D$595,$A$1) -> 0 | AV59: =SUMIFS(DT!$CX$8:$CX$595,DT!$C$8:$C$595,AV$5,DT!$D$8:$D$595,$A$1) -> 0 | AW59: =SUMIFS(DT!$CX$8:$CX$595,DT!$C$8:$C$595,AW$5,DT!$D$8:$D$595,$A$1) -> 0 | AX59: =SUMIFS(DT!$CX$8:$CX$595,DT!$C$8:$C$595,AX$5,DT!$D$8:$D$595,$A$1) -> 0 | AY59: =SUMIFS(DT!$CX$8:$CX$595,DT!$C$8:$C$595,AY$5,DT!$D$8:$D$595,$A$1) -> 0 | AZ59: =SUMIFS(DT!$CX$8:$CX$595,DT!$C$8:$C$595,AZ$5,DT!$D$8:$D$595,$A$1) -> 0 | BA59: =SUMIFS(DT!$CX$8:$CX$595,DT!$C$8:$C$595,BA$5,DT!$D$8:$D$595,$A$1) -> 0 | BB59: =SUMIFS(DT!$CX$8:$CX$595,DT!$C$8:$C$595,BB$5,DT!$D$8:$D$595,$A$1) -> 0 | BC59: =SUMIFS(DT!$CX$8:$CX$595,DT!$C$8:$C$595,BC$5,DT!$D$8:$D$595,$A$1) -> 0 | BE59: =$D59-$E59-$R59-BF59-BG59 ->  | BF59: =SUMIFS(DT!$CX$8:$CX$595,DT!$C$8:$C$595,BF$5,DT!$D$8:$D$595,$A$1) -> 0 | BG59: =SUMIFS(DT!$CX$8:$CX$595,DT!$C$8:$C$595,BG$5,DT!$D$8:$D$595,$A$1) -> 0 | BH59: =$D59-BE59 ->  | BI59: =BE$62-$BH59 -> 
A60: 3.2 | B60: Đất đồi núi chưa sử dụng | C60: DCS | D60: =VLOOKUP(C60,#REF!,MATCH($A$1,maxa,0)+2,0) ->  | E60: =F60+SUM(J60:Q60) -> 0 | F60: =SUM(G60:I60) -> 0 | G60: =SUMIFS(DT!$CZ$8:$CZ$595,DT!$C$8:$C$595,G$5,DT!$D$8:$D$595,$A$1) -> 0 | H60: =SUMIFS(DT!$CZ$8:$CZ$595,DT!$C$8:$C$595,H$5,DT!$D$8:$D$595,$A$1) -> 0 | I60: =SUMIFS(DT!$CZ$8:$CZ$595,DT!$C$8:$C$595,I$5,DT!$D$8:$D$595,$A$1) -> 0 | J60: =SUMIFS(DT!$CZ$8:$CZ$595,DT!$C$8:$C$595,J$5,DT!$D$8:$D$595,$A$1) -> 0 | K60: =SUMIFS(DT!$CZ$8:$CZ$595,DT!$C$8:$C$595,K$5,DT!$D$8:$D$595,$A$1) -> 0 | L60: =SUMIFS(DT!$CZ$8:$CZ$595,DT!$C$8:$C$595,L$5,DT!$D$8:$D$595,$A$1) -> 0 | M60: =SUMIFS(DT!$CZ$8:$CZ$595,DT!$C$8:$C$595,M$5,DT!$D$8:$D$595,$A$1) -> 0 | N60: =SUMIFS(DT!$CZ$8:$CZ$595,DT!$C$8:$C$595,N$5,DT!$D$8:$D$595,$A$1) -> 0 | O60: =SUMIFS(DT!$CZ$8:$CZ$595,DT!$C$8:$C$595,O$5,DT!$D$8:$D$595,$A$1) -> 0 | P60: =SUMIFS(DT!$CZ$8:$CZ$595,DT!$C$8:$C$595,P$5,DT!$D$8:$D$595,$A$1) -> 0 | Q60: =SUMIFS(DT!$CZ$8:$CZ$595,DT!$C$8:$C$595,Q$5,DT!$D$8:$D$595,$A$1) -> 0 | R60: =SUM(S60:AA60)+SUM(AM60:BC60) -> 0 | S60: =SUMIFS(DT!$CZ$8:$CZ$595,DT!$C$8:$C$595,S$5,DT!$D$8:$D$595,$A$1) -> 0 | T60: =SUMIFS(DT!$CZ$8:$CZ$595,DT!$C$8:$C$595,T$5,DT!$D$8:$D$595,$A$1) -> 0 | U60: =SUMIFS(DT!$CZ$8:$CZ$595,DT!$C$8:$C$595,U$5,DT!$D$8:$D$595,$A$1) -> 0 | V60: =SUMIFS(DT!$CZ$8:$CZ$595,DT!$C$8:$C$595,V$5,DT!$D$8:$D$595,$A$1) -> 0 | W60: =SUMIFS(DT!$CZ$8:$CZ$595,DT!$C$8:$C$595,W$5,DT!$D$8:$D$595,$A$1) -> 0 | X60: =SUMIFS(DT!$CZ$8:$CZ$595,DT!$C$8:$C$595,X$5,DT!$D$8:$D$595,$A$1) -> 0 | Y60: =SUMIFS(DT!$CZ$8:$CZ$595,DT!$C$8:$C$595,Y$5,DT!$D$8:$D$595,$A$1) -> 0 | Z60: =SUMIFS(DT!$CZ$8:$CZ$595,DT!$C$8:$C$595,Z$5,DT!$D$8:$D$595,$A$1) -> 0 | AA60: 0 | AB60: =SUMIFS(DT!$CZ$8:$CZ$595,DT!$C$8:$C$595,AB$5,DT!$D$8:$D$595,$A$1) -> 0 | AC60: =SUMIFS(DT!$CZ$8:$CZ$595,DT!$C$8:$C$595,AC$5,DT!$D$8:$D$595,$A$1) -> 0 | AD60: =SUMIFS(DT!$CZ$8:$CZ$595,DT!$C$8:$C$595,AD$5,DT!$D$8:$D$595,$A$1) -> 0 | AE60: =SUMIFS(DT!$CZ$8:$CZ$595,DT!$C$8:$C$595,AE$5,DT!$D$8:$D$595,$A$1) -> 0 | AF60: =SUMIFS(DT!$CZ$8:$CZ$595,DT!$C$8:$C$595,AF$5,DT!$D$8:$D$595,$A$1) -> 0 | AG60: =SUMIFS(DT!$CZ$8:$CZ$595,DT!$C$8:$C$595,AG$5,DT!$D$8:$D$595,$A$1) -> 0 | AH60: =SUMIFS(DT!$CZ$8:$CZ$595,DT!$C$8:$C$595,AH$5,DT!$D$8:$D$595,$A$1) -> 0 | AI60: =SUMIFS(DT!$CZ$8:$CZ$595,DT!$C$8:$C$595,AI$5,DT!$D$8:$D$595,$A$1) -> 0 | AJ60: =SUMIFS(DT!$CZ$8:$CZ$595,DT!$C$8:$C$595,AJ$5,DT!$D$8:$D$595,$A$1) -> 0 | AK60: =SUMIFS(DT!$CZ$8:$CZ$595,DT!$C$8:$C$595,AK$5,DT!$D$8:$D$595,$A$1) -> 0 | AL60: =SUMIFS(DT!$CZ$8:$CZ$595,DT!$C$8:$C$595,AL$5,DT!$D$8:$D$595,$A$1) -> 0 | AM60: =SUMIFS(DT!$CZ$8:$CZ$595,DT!$C$8:$C$595,AM$5,DT!$D$8:$D$595,$A$1) -> 0 | AN60: =SUMIFS(DT!$CZ$8:$CZ$595,DT!$C$8:$C$595,AN$5,DT!$D$8:$D$595,$A$1) -> 0 | AO60: =SUMIFS(DT!$CZ$8:$CZ$595,DT!$C$8:$C$595,AO$5,DT!$D$8:$D$595,$A$1) -> 0 | AP60: =SUMIFS(DT!$CZ$8:$CZ$595,DT!$C$8:$C$595,AP$5,DT!$D$8:$D$595,$A$1) -> 0 | AQ60: =SUMIFS(DT!$CZ$8:$CZ$595,DT!$C$8:$C$595,AQ$5,DT!$D$8:$D$595,$A$1) -> 0 | AR60: =SUMIFS(DT!$CZ$8:$CZ$595,DT!$C$8:$C$595,AR$5,DT!$D$8:$D$595,$A$1) -> 0 | AS60: =SUMIFS(DT!$CZ$8:$CZ$595,DT!$C$8:$C$595,AS$5,DT!$D$8:$D$595,$A$1) -> 0 | AT60: =SUMIFS(DT!$CZ$8:$CZ$595,DT!$C$8:$C$595,AT$5,DT!$D$8:$D$595,$A$1) -> 0 | AU60: =SUMIFS(DT!$CZ$8:$CZ$595,DT!$C$8:$C$595,AU$5,DT!$D$8:$D$595,$A$1) -> 0 | AV60: =SUMIFS(DT!$CZ$8:$CZ$595,DT!$C$8:$C$595,AV$5,DT!$D$8:$D$595,$A$1) -> 0 | AW60: =SUMIFS(DT!$CZ$8:$CZ$595,DT!$C$8:$C$595,AW$5,DT!$D$8:$D$595,$A$1) -> 0 | AX60: =SUMIFS(DT!$CZ$8:$CZ$595,DT!$C$8:$C$595,AX$5,DT!$D$8:$D$595,$A$1) -> 0 | AY60: =SUMIFS(DT!$CZ$8:$CZ$595,DT!$C$8:$C$595,AY$5,DT!$D$8:$D$595,$A$1) -> 0 | AZ60: =SUMIFS(DT!$CZ$8:$CZ$595,DT!$C$8:$C$595,AZ$5,DT!$D$8:$D$595,$A$1) -> 0 | BA60: =SUMIFS(DT!$CZ$8:$CZ$595,DT!$C$8:$C$595,BA$5,DT!$D$8:$D$595,$A$1) -> 0 | BB60: =SUMIFS(DT!$CZ$8:$CZ$595,DT!$C$8:$C$595,BB$5,DT!$D$8:$D$595,$A$1) -> 0 | BC60: =SUMIFS(DT!$CZ$8:$CZ$595,DT!$C$8:$C$595,BC$5,DT!$D$8:$D$595,$A$1) -> 0 | BE60: =SUMIFS(DT!$CZ$8:$CZ$595,DT!$C$8:$C$595,BE$5,DT!$D$8:$D$595,$A$1) -> 0 | BF60: =$D60-$E60-$R60-BE60-BG60 ->  | BG60: =SUMIFS(DT!$CZ$8:$CZ$595,DT!$C$8:$C$595,BG$5,DT!$D$8:$D$595,$A$1) -> 0 | BH60: =$D60-BF60 ->  | BI60: =BF$62-$BH60 -> 
